Workbook

Sheet Notes
A1: Ayrshire & Arran
A2: Borders
A3: Dumfries & Galloway
A4: Fife
A5: Forth Valley
A6: Golden Jubilee
A7: Grampian
A8: Greater Glasgow & Clyde
A9: Highland
A10: Lanarkshire
A11: Lothian
A12: Orkney
A13: Scotland
A14: Shetland
A15: Tayside
A16: Western Isles

Sheet CDI Data and Charts
B1: Scotland | K1: =CONCATENATE("Healthcare and community rates for ",B1) -> Healthcare and community rates for Scotland
L2: CDIHCAI | N2: CDICA
D3: Healthcare associated* CDI | G3: Community associated CDI | L3: Healthcare associated* CDI | N3: Community associated CDI
C4: Cases | D4: Rate per 100 000 bed days | E4: 95% CI | F4: Cases | G4: Rate per 100 000 population | H4: 95% CI | L4: % change | N4: % change
B5: ='CDI data'!B8 -> 2014-12-19 | C5: ='CDI data'!D8 -> 321 | D5: ='CDI data'!E8 -> 18.766 | E5: =CONCATENATE("(",TEXT('CDI data'!F8,"0.0")," ,", TEXT('CDI data'!G8,"0.0"),")") -> (16.8 ,20.9) | F5: ='CDI data'!H8 -> 121 | G5: ='CDI data'!I8 -> 8.977 | H5: =IFERROR(CONCATENATE("(",TEXT('CDI data'!J8,"0.0")," ,", TEXT('CDI data'!K8,"0.0"),")"),"-") -> (7.4 ,10.7) | K5: This quarter compared to last (national only) | L5: =IFERROR(ROUND(VLOOKUP(CONCATENATE(L2,$B$1),'quarter comp'!$A1:$H21,4,FALSE),2),"-") -> 12.77 | M5: =IFERROR(VLOOKUP(CONCATENATE(L2,$B$1),'quarter comp'!$A1:$H21,8,FALSE),"-") -> Non Significant | N5: =IFERROR(ROUND(VLOOKUP(CONCATENATE(N2,$B$1),'quarter comp'!$A1:$H21,4,FALSE),2),"-") -> 12.69 | O5: =IFERROR(VLOOKUP(CONCATENATE(N2,$B$1),'quarter comp'!$A1:$H21,8,FALSE),"-") -> Non Significant
B6: ='CDI data'!B9 -> 2015-03-24 | C6: ='CDI data'!D9 -> 251 | D6: ='CDI data'!E9 -> 14.573 | E6: =CONCATENATE("(",TEXT('CDI data'!F9,"0.0")," ,", TEXT('CDI data'!G9,"0.0"),")") -> (12.8 ,16.5) | F6: ='CDI data'!H9 -> 92 | G6: ='CDI data'!I9 -> 6.944 | H6: =IFERROR(CONCATENATE("(",TEXT('CDI data'!J9,"0.0")," ,", TEXT('CDI data'!K9,"0.0"),")"),"-") -> (5.6 ,8.5) | K6: Year end compared to previous year end | L6: =ROUND(VLOOKUP(CONCATENATE(L2,$B$1),'year end comp'!$A$2:$Z$1086,4,FALSE),2) -> 16.58 | M6: =VLOOKUP(CONCATENATE(L2,$B$1),'year end comp'!$A$2:$Z$1086,8,FALSE) -> Significant | N6: =IFERROR(ROUND(VLOOKUP(CONCATENATE(N2,$B$1),'year end comp'!$A$2:$Z$1086,4,FALSE),2),"-") -> 1.46 | O6: =IFERROR(VLOOKUP(CONCATENATE(N2,$B$1),'year end comp'!$A$2:$Z$1086,8,FALSE),"-") -> Non Significant
B7: ='CDI data'!B10 -> 2015-06-24 | C7: ='CDI data'!D10 -> 308 | D7: ='CDI data'!E10 -> 18.552 | E7: =CONCATENATE("(",TEXT('CDI data'!F10,"0.0")," ,", TEXT('CDI data'!G10,"0.0"),")") -> (16.5 ,20.7) | F7: ='CDI data'!H10 -> 98 | G7: ='CDI data'!I10 -> 7.316 | H7: =IFERROR(CONCATENATE("(",TEXT('CDI data'!J10,"0.0")," ,", TEXT('CDI data'!K10,"0.0"),")"),"-") -> (5.9 ,8.9)
B8: ='CDI data'!B11 -> 2015-09-24 | C8: ='CDI data'!D11 -> 313 | D8: ='CDI data'!E11 -> 19.321 | E8: =CONCATENATE("(",TEXT('CDI data'!F11,"0.0")," ,", TEXT('CDI data'!G11,"0.0"),")") -> (17.2 ,21.6) | F8: ='CDI data'!H11 -> 131 | G8: ='CDI data'!I11 -> 9.673 | H8: =IFERROR(CONCATENATE("(",TEXT('CDI data'!J11,"0.0")," ,", TEXT('CDI data'!K11,"0.0"),")"),"-") -> (8.1 ,11.5)
B9: ='CDI data'!B12 -> 2015-12-24 | C9: ='CDI data'!D12 -> 367 | D9: ='CDI data'!E12 -> 22.372 | E9: =CONCATENATE("(",TEXT('CDI data'!F12,"0.0")," ,", TEXT('CDI data'!G12,"0.0"),")") -> (20.1 ,24.8) | F9: ='CDI data'!H12 -> 116 | G9: ='CDI data'!I12 -> 8.565 | H9: =IFERROR(CONCATENATE("(",TEXT('CDI data'!J12,"0.0")," ,", TEXT('CDI data'!K12,"0.0"),")"),"-") -> (7.1 ,10.3)
B10: ='CDI data'!B13 -> 2016-03-24 | C10: ='CDI data'!D13 -> 252 | D10: ='CDI data'!E13 -> 15.064 | E10: =CONCATENATE("(",TEXT('CDI data'!F13,"0.0")," ,", TEXT('CDI data'!G13,"0.0"),")") -> (13.3 ,17.0) | F10: ='CDI data'!H13 -> 97 | G10: ='CDI data'!I13 -> 7.218 | H10: =IFERROR(CONCATENATE("(",TEXT('CDI data'!J13,"0.0")," ,", TEXT('CDI data'!K13,"0.0"),")"),"-") -> (5.9 ,8.8)
B11: ='CDI data'!B14 -> 2016-06-24 | C11: ='CDI data'!D14 -> 250 | D11: ='CDI data'!E14 -> 15.59 | E11: =CONCATENATE("(",TEXT('CDI data'!F14,"0.0")," ,", TEXT('CDI data'!G14,"0.0"),")") -> (13.7 ,17.6) | F11: ='CDI data'!H14 -> 91 | G11: ='CDI data'!I14 -> 6.772 | H11: =IFERROR(CONCATENATE("(",TEXT('CDI data'!J14,"0.0")," ,", TEXT('CDI data'!K14,"0.0"),")"),"-") -> (5.5 ,8.3)
B12: ='CDI data'!B15 -> 2016-09-24 | C12: ='CDI data'!D15 -> 263 | D12: ='CDI data'!E15 -> 16.58 | E12: =CONCATENATE("(",TEXT('CDI data'!F15,"0.0")," ,", TEXT('CDI data'!G15,"0.0"),")") -> (14.6 ,18.7) | F12: ='CDI data'!H15 -> 119 | G12: ='CDI data'!I15 -> 8.759 | H12: =IFERROR(CONCATENATE("(",TEXT('CDI data'!J15,"0.0")," ,", TEXT('CDI data'!K15,"0.0"),")"),"-") -> (7.3 ,10.5)
B13: ='CDI data'!B16 -> 2016-12-24 | C13: ='CDI data'!D16 -> 233 | D13: ='CDI data'!E16 -> 14.654 | E13: =CONCATENATE("(",TEXT('CDI data'!F16,"0.0")," ,", TEXT('CDI data'!G16,"0.0"),")") -> (12.8 ,16.7) | F13: ='CDI data'!H16 -> 94 | G13: ='CDI data'!I16 -> 6.919 | H13: =IFERROR(CONCATENATE("(",TEXT('CDI data'!J16,"0.0")," ,", TEXT('CDI data'!K16,"0.0"),")"),"-") -> (5.6 ,8.5)
B14: ='CDI data'!B17 -> 2017-03-01 | C14: ='CDI data'!D17 -> 257 | D14: ='CDI data'!E17 -> 16.27 | E14: =CONCATENATE("(",TEXT('CDI data'!F17,"0.0")," ,", TEXT('CDI data'!G17,"0.0"),")") -> (14.3 ,18.4) | F14: ='CDI data'!H17 -> 74 | G14: ='CDI data'!I17 -> 5.532 | H14: =IFERROR(CONCATENATE("(",TEXT('CDI data'!J17,"0.0")," ,", TEXT('CDI data'!K17,"0.0"),")"),"-") -> (4.3 ,6.9)
B15: ='CDI data'!B18 -> 2017-06-01 | C15: ='CDI data'!D18 -> 238 | D15: ='CDI data'!E18 -> 15.364 | E15: =CONCATENATE("(",TEXT('CDI data'!F18,"0.0")," ,", TEXT('CDI data'!G18,"0.0"),")") -> (13.5 ,17.4) | F15: ='CDI data'!H18 -> 100 | G15: ='CDI data'!I18 -> 7.394 | H15: =IFERROR(CONCATENATE("(",TEXT('CDI data'!J18,"0.0")," ,", TEXT('CDI data'!K18,"0.0"),")"),"-") -> (6.0 ,9.0)
B16: ='CDI data'!B19 -> 2017-09-01 | C16: ='CDI data'!D19 -> 288 | D16: ='CDI data'!E19 -> 18.734 | E16: =CONCATENATE("(",TEXT('CDI data'!F19,"0.0")," ,", TEXT('CDI data'!G19,"0.0"),")") -> (16.6 ,21.0) | F16: ='CDI data'!H19 -> 103 | G16: ='CDI data'!I19 -> 7.533 | H16: =IFERROR(CONCATENATE("(",TEXT('CDI data'!J19,"0.0")," ,", TEXT('CDI data'!K19,"0.0"),")"),"-") -> (6.1 ,9.1)
B17: ='CDI data'!B20 -> 2017-12-01 | C17: ='CDI data'!D20 -> 235 | D17: ='CDI data'!E20 -> 14.939 | E17: =CONCATENATE("(",TEXT('CDI data'!F20,"0.0")," ,", TEXT('CDI data'!G20,"0.0"),")") -> (13.1 ,17.0) | F17: ='CDI data'!H20 -> 74 | G17: ='CDI data'!I20 -> 5.412 | H17: =IFERROR(CONCATENATE("(",TEXT('CDI data'!J20,"0.0")," ,", TEXT('CDI data'!K20,"0.0"),")"),"-") -> (4.2 ,6.8)
B18: ='CDI data'!B21 -> 2018-03-01 | C18: ='CDI data'!D21 -> 228 | D18: ='CDI data'!E21 -> 14.404 | E18: =CONCATENATE("(",TEXT('CDI data'!F21,"0.0")," ,", TEXT('CDI data'!G21,"0.0"),")") -> (12.6 ,16.4) | F18: ='CDI data'!H21 -> 86 | G18: ='CDI data'!I21 -> 6.414 | H18: =IFERROR(CONCATENATE("(",TEXT('CDI data'!J21,"0.0")," ,", TEXT('CDI data'!K21,"0.0"),")"),"-") -> (5.1 ,7.9)
B19: ='CDI data'!B22 -> 2018-06-01 | C19: ='CDI data'!D22 -> 244 | D19: ='CDI data'!E22 -> 16.019 | E19: =CONCATENATE("(",TEXT('CDI data'!F22,"0.0")," ,", TEXT('CDI data'!G22,"0.0"),")") -> (14.1 ,18.2) | F19: ='CDI data'!H22 -> 102 | G19: ='CDI data'!I22 -> 7.523 | H19: =IFERROR(CONCATENATE("(",TEXT('CDI data'!J22,"0.0")," ,", TEXT('CDI data'!K22,"0.0"),")"),"-") -> (6.1 ,9.1)
B20: ='CDI data'!B23 -> 2018-09-01 | C20: ='CDI data'!D23 -> 255 | D20: ='CDI data'!E23 -> 16.895 | E20: =CONCATENATE("(",TEXT('CDI data'!F23,"0.0")," ,", TEXT('CDI data'!G23,"0.0"),")") -> (14.9 ,19.1) | F20: ='CDI data'!H23 -> 92 | G20: ='CDI data'!I23 -> 6.712 | H20: =IFERROR(CONCATENATE("(",TEXT('CDI data'!J23,"0.0")," ,", TEXT('CDI data'!K23,"0.0"),")"),"-") -> (5.4 ,8.2)
B21: ='CDI data'!B24 -> 2018-12-01 | C21: ='CDI data'!D24 -> 220 | D21: ='CDI data'!E24 -> 14.471 | E21: =CONCATENATE("(",TEXT('CDI data'!F24,"0.0")," ,", TEXT('CDI data'!G24,"0.0"),")") -> (12.6 ,16.5) | F21: ='CDI data'!H24 -> 86 | G21: ='CDI data'!I24 -> 6.274 | H21: =IFERROR(CONCATENATE("(",TEXT('CDI data'!J24,"0.0")," ,", TEXT('CDI data'!K24,"0.0"),")"),"-") -> (5.0 ,7.7)
B22: ='CDI data'!B25 -> 2019-03-01 | C22: ='CDI data'!D25 -> 186 | D22: ='CDI data'!E25 -> 12.104 | E22: =CONCATENATE("(",TEXT('CDI data'!F25,"0.0")," ,", TEXT('CDI data'!G25,"0.0"),")") -> (10.4 ,14.0) | F22: ='CDI data'!H25 -> 50 | G22: ='CDI data'!I25 -> 3.712 | H22: =IFERROR(CONCATENATE("(",TEXT('CDI data'!J25,"0.0")," ,", TEXT('CDI data'!K25,"0.0"),")"),"-") -> (2.8 ,4.9)
B23: ='CDI data'!B26 -> 2019-06-01 | C23: ='CDI data'!D26 -> 184 | D23: ='CDI data'!E26 -> 12.261 | E23: =CONCATENATE("(",TEXT('CDI data'!F26,"0.0")," ,", TEXT('CDI data'!G26,"0.0"),")") -> (10.6 ,14.2) | F23: ='CDI data'!H26 -> 66 | G23: ='CDI data'!I26 -> 4.846 | H23: =IFERROR(CONCATENATE("(",TEXT('CDI data'!J26,"0.0")," ,", TEXT('CDI data'!K26,"0.0"),")"),"-") -> (3.7 ,6.2)
B24: ='CDI data'!B27 -> 2019-09-01 | C24: ='CDI data'!D27 -> 207 | D24: ='CDI data'!E27 -> 13.706 | E24: =CONCATENATE("(",TEXT('CDI data'!F27,"0.0")," ,", TEXT('CDI data'!G27,"0.0"),")") -> (11.9 ,15.7) | F24: ='CDI data'!H27 -> 72 | G24: ='CDI data'!I27 -> 5.229 | H24: =IFERROR(CONCATENATE("(",TEXT('CDI data'!J27,"0.0")," ,", TEXT('CDI data'!K27,"0.0"),")"),"-") -> (4.1 ,6.6)
B25: ='CDI data'!B28 -> 2019-12-01 | C25: ='CDI data'!D28 -> 231 | D25: ='CDI data'!E28 -> 15.057 | E25: =CONCATENATE("(",TEXT('CDI data'!F28,"0.0")," ,", TEXT('CDI data'!G28,"0.0"),")") -> (13.2 ,17.1) | F25: ='CDI data'!H28 -> 63 | G25: ='CDI data'!I28 -> 4.575 | H25: =IFERROR(CONCATENATE("(",TEXT('CDI data'!J28,"0.0")," ,", TEXT('CDI data'!K28,"0.0"),")"),"-") -> (3.5 ,5.9)
B26: ='CDI data'!B29 -> 2020-03-01 | C26: ='CDI data'!D29 -> 201 | D26: ='CDI data'!E29 -> 13.616 | E26: =CONCATENATE("(",TEXT('CDI data'!F29,"0.0")," ,", TEXT('CDI data'!G29,"0.0"),")") -> (11.8 ,15.6) | F26: ='CDI data'!H29 -> 46 | G26: ='CDI data'!I29 -> 3.386 | H26: =IFERROR(CONCATENATE("(",TEXT('CDI data'!J29,"0.0")," ,", TEXT('CDI data'!K29,"0.0"),")"),"-") -> (2.5 ,4.5)
B27: ='CDI data'!B30 -> 2020-06-01 | C27: ='CDI data'!D30 -> 167 | D27: ='CDI data'!E30 -> 15.447 | E27: =CONCATENATE("(",TEXT('CDI data'!F30,"0.0")," ,", TEXT('CDI data'!G30,"0.0"),")") -> (13.2 ,18.0) | F27: ='CDI data'!H30 -> 79 | G27: ='CDI data'!I30 -> 5.816 | H27: =IFERROR(CONCATENATE("(",TEXT('CDI data'!J30,"0.0")," ,", TEXT('CDI data'!K30,"0.0"),")"),"-") -> (4.6 ,7.2)
B28: ='CDI data'!B31 -> 2020-09-01 | C28: ='CDI data'!D31 -> 227 | D28: ='CDI data'!E31 -> 17.4207 | E28: =CONCATENATE("(",TEXT('CDI data'!F31,"0.0")," ,", TEXT('CDI data'!G31,"0.0"),")") -> (15.2 ,19.8) | F28: ='CDI data'!H31 -> 90 | G28: ='CDI data'!I31 -> 6.5536 | H28: =IFERROR(CONCATENATE("(",TEXT('CDI data'!J31,"0.0")," ,", TEXT('CDI data'!K31,"0.0"),")"),"-") -> (5.3 ,8.1)

Sheet ECOLI Data and Charts
B1: Scotland | K1: =CONCATENATE("Healthcare and community rates for ",B1) -> Healthcare and community rates for Scotland
L2: ECBHCAI | N2: ECBCOM
D3: Healthcare associated ECB infection | G3: Community associated ECB infection | L3: Healthcare associated ECB | N3: Community associated ECB
C4: Cases | D4: Rate per 100 000 bed days | E4: 95% CI | F4: Cases | G4: Rate per 100 000 Population | H4: 95% CI | L4: % change | N4: % change
B5: ='ECOLI data'!B8 -> 2016-09-24 | C5: ='ECOLI data'!D8 -> 582 | D5: ='ECOLI data'!E8 -> 36.69 | E5: =CONCATENATE("(",TEXT('ECOLI data'!F8,"0.0")," ,", TEXT('ECOLI data'!G8,"0.0"),")") -> (33.8 ,39.8) | F5: ='ECOLI data'!H8 -> 719 | G5: ='ECOLI data'!I8 -> 52.924 | H5: =IFERROR(CONCATENATE("(",TEXT('ECOLI data'!J8,"0.0")," ,", TEXT('ECOLI data'!K8,"0.0"),")"),"-") -> (49.1 ,56.9) | K5: This quarter compared to last (national only) | L5: =IFERROR(ROUND(VLOOKUP(CONCATENATE(L2,$B$1),'quarter comp'!$A1:$H21,4,FALSE),2),"-") -> 5.79 | M5: =IFERROR(VLOOKUP(CONCATENATE(L2,$B$1),'quarter comp'!$A1:$H21,8,FALSE),"-") -> Non Significant | N5: =IFERROR(ROUND(VLOOKUP(CONCATENATE(N2,$B$1),'quarter comp'!$A1:$H21,4,FALSE),2),"-") -> 24.45 | O5: =IFERROR(VLOOKUP(CONCATENATE(N2,$B$1),'quarter comp'!$A1:$H21,8,FALSE),"-") -> Significant
B6: ='ECOLI data'!B9 -> 2016-12-24 | C6: ='ECOLI data'!D9 -> 564 | D6: ='ECOLI data'!E9 -> 35.472 | E6: =CONCATENATE("(",TEXT('ECOLI data'!F9,"0.0")," ,", TEXT('ECOLI data'!G9,"0.0"),")") -> (32.6 ,38.5) | F6: ='ECOLI data'!H9 -> 631 | G6: ='ECOLI data'!I9 -> 46.446 | H6: =IFERROR(CONCATENATE("(",TEXT('ECOLI data'!J9,"0.0")," ,", TEXT('ECOLI data'!K9,"0.0"),")"),"-") -> (42.9 ,50.2) | K6: Year end compared to previous year end | L6: =ROUND(VLOOKUP(CONCATENATE(L2,$B$1),'year end comp'!$A$2:$Z$1086,4,FALSE),2) -> 2.56 | M6: =VLOOKUP(CONCATENATE(L2,$B$1),'year end comp'!$A$2:$Z$1086,8,FALSE) -> Non Significant | N6: =IFERROR(ROUND(VLOOKUP(CONCATENATE(N2,$B$1),'year end comp'!$A$2:$Z$1086,4,FALSE),2),"-") -> -9.42 | O6: =IFERROR(VLOOKUP(CONCATENATE(N2,$B$1),'year end comp'!$A$2:$Z$1086,8,FALSE),"-") -> Significant
B7: ='ECOLI data'!B10 -> 2017-03-01 | C7: ='ECOLI data'!D10 -> 547 | D7: ='ECOLI data'!E10 -> 34.629 | E7: =CONCATENATE("(",TEXT('ECOLI data'!F10,"0.0")," ,", TEXT('ECOLI data'!G10,"0.0"),")") -> (31.8 ,37.7) | F7: ='ECOLI data'!H10 -> 571 | G7: ='ECOLI data'!I10 -> 42.688 | H7: =IFERROR(CONCATENATE("(",TEXT('ECOLI data'!J10,"0.0")," ,", TEXT('ECOLI data'!K10,"0.0"),")"),"-") -> (39.3 ,46.3)
B8: ='ECOLI data'!B11 -> 2017-06-01 | C8: ='ECOLI data'!D11 -> 534 | D8: ='ECOLI data'!E11 -> 34.472 | E8: =CONCATENATE("(",TEXT('ECOLI data'!F11,"0.0")," ,", TEXT('ECOLI data'!G11,"0.0"),")") -> (31.6 ,37.5) | F8: ='ECOLI data'!H11 -> 662 | G8: ='ECOLI data'!I11 -> 48.947 | H8: =IFERROR(CONCATENATE("(",TEXT('ECOLI data'!J11,"0.0")," ,", TEXT('ECOLI data'!K11,"0.0"),")"),"-") -> (45.3 ,52.8)
B9: ='ECOLI data'!B12 -> 2017-09-01 | C9: ='ECOLI data'!D12 -> 585 | D9: ='ECOLI data'!E12 -> 38.053 | E9: =CONCATENATE("(",TEXT('ECOLI data'!F12,"0.0")," ,", TEXT('ECOLI data'!G12,"0.0"),")") -> (35.0 ,41.3) | F9: ='ECOLI data'!H12 -> 677 | G9: ='ECOLI data'!I12 -> 49.512 | H9: =IFERROR(CONCATENATE("(",TEXT('ECOLI data'!J12,"0.0")," ,", TEXT('ECOLI data'!K12,"0.0"),")"),"-") -> (45.9 ,53.4)
B10: ='ECOLI data'!B13 -> 2017-12-01 | C10: ='ECOLI data'!D13 -> 529 | D10: ='ECOLI data'!E13 -> 33.629 | E10: =CONCATENATE("(",TEXT('ECOLI data'!F13,"0.0")," ,", TEXT('ECOLI data'!G13,"0.0"),")") -> (30.8 ,36.6) | F10: ='ECOLI data'!H13 -> 658 | G10: ='ECOLI data'!I13 -> 48.122 | H10: =IFERROR(CONCATENATE("(",TEXT('ECOLI data'!J13,"0.0")," ,", TEXT('ECOLI data'!K13,"0.0"),")"),"-") -> (44.5 ,51.9)
B11: ='ECOLI data'!B14 -> 2018-03-01 | C11: ='ECOLI data'!D14 -> 524 | D11: ='ECOLI data'!E14 -> 33.103 | E11: =CONCATENATE("(",TEXT('ECOLI data'!F14,"0.0")," ,", TEXT('ECOLI data'!G14,"0.0"),")") -> (30.3 ,36.1) | F11: ='ECOLI data'!H14 -> 578 | G11: ='ECOLI data'!I14 -> 43.105 | H11: =IFERROR(CONCATENATE("(",TEXT('ECOLI data'!J14,"0.0")," ,", TEXT('ECOLI data'!K14,"0.0"),")"),"-") -> (39.7 ,46.8)
B12: ='ECOLI data'!B15 -> 2018-06-01 | C12: ='ECOLI data'!D15 -> 580 | D12: ='ECOLI data'!E15 -> 38.077 | E12: =CONCATENATE("(",TEXT('ECOLI data'!F15,"0.0")," ,", TEXT('ECOLI data'!G15,"0.0"),")") -> (35.0 ,41.3) | F12: ='ECOLI data'!H15 -> 598 | G12: ='ECOLI data'!I15 -> 44.107 | H12: =IFERROR(CONCATENATE("(",TEXT('ECOLI data'!J15,"0.0")," ,", TEXT('ECOLI data'!K15,"0.0"),")"),"-") -> (40.6 ,47.8)
B13: ='ECOLI data'!B16 -> 2018-09-01 | C13: ='ECOLI data'!D16 -> 606 | D13: ='ECOLI data'!E16 -> 40.15 | E13: =CONCATENATE("(",TEXT('ECOLI data'!F16,"0.0")," ,", TEXT('ECOLI data'!G16,"0.0"),")") -> (37.0 ,43.5) | F13: ='ECOLI data'!H16 -> 667 | G13: ='ECOLI data'!I16 -> 48.661 | H13: =IFERROR(CONCATENATE("(",TEXT('ECOLI data'!J16,"0.0")," ,", TEXT('ECOLI data'!K16,"0.0"),")"),"-") -> (45.0 ,52.5)
B14: ='ECOLI data'!B17 -> 2018-12-01 | C14: ='ECOLI data'!D17 -> 582 | D14: ='ECOLI data'!E17 -> 38.283 | E14: =CONCATENATE("(",TEXT('ECOLI data'!F17,"0.0")," ,", TEXT('ECOLI data'!G17,"0.0"),")") -> (35.2 ,41.5) | F14: ='ECOLI data'!H17 -> 603 | G14: ='ECOLI data'!I17 -> 43.992 | H14: =IFERROR(CONCATENATE("(",TEXT('ECOLI data'!J17,"0.0")," ,", TEXT('ECOLI data'!K17,"0.0"),")"),"-") -> (40.6 ,47.6)
B15: ='ECOLI data'!B18 -> 2019-03-01 | C15: ='ECOLI data'!D18 -> 573 | D15: ='ECOLI data'!E18 -> 37.287 | E15: =CONCATENATE("(",TEXT('ECOLI data'!F18,"0.0")," ,", TEXT('ECOLI data'!G18,"0.0"),")") -> (34.3 ,40.5) | F15: ='ECOLI data'!H18 -> 598 | G15: ='ECOLI data'!I18 -> 44.391 | H15: =IFERROR(CONCATENATE("(",TEXT('ECOLI data'!J18,"0.0")," ,", TEXT('ECOLI data'!K18,"0.0"),")"),"-") -> (40.9 ,48.1)
B16: ='ECOLI data'!B19 -> 2019-06-01 | C16: ='ECOLI data'!D19 -> 584 | D16: ='ECOLI data'!E19 -> 38.915 | E16: =CONCATENATE("(",TEXT('ECOLI data'!F19,"0.0")," ,", TEXT('ECOLI data'!G19,"0.0"),")") -> (35.8 ,42.2) | F16: ='ECOLI data'!H19 -> 604 | G16: ='ECOLI data'!I19 -> 44.344 | H16: =IFERROR(CONCATENATE("(",TEXT('ECOLI data'!J19,"0.0")," ,", TEXT('ECOLI data'!K19,"0.0"),")"),"-") -> (40.9 ,48.0)
B17: ='ECOLI data'!B20 -> 2019-09-01 | C17: ='ECOLI data'!D20 -> 608 | D17: ='ECOLI data'!E20 -> 40.258 | E17: =CONCATENATE("(",TEXT('ECOLI data'!F20,"0.0")," ,", TEXT('ECOLI data'!G20,"0.0"),")") -> (37.1 ,43.6) | F17: ='ECOLI data'!H20 -> 606 | G17: ='ECOLI data'!I20 -> 44.007 | H17: =IFERROR(CONCATENATE("(",TEXT('ECOLI data'!J20,"0.0")," ,", TEXT('ECOLI data'!K20,"0.0"),")"),"-") -> (40.6 ,47.7)
B18: ='ECOLI data'!B21 -> 2019-12-01 | C18: ='ECOLI data'!D21 -> 626 | D18: ='ECOLI data'!E21 -> 40.804 | E18: =CONCATENATE("(",TEXT('ECOLI data'!F21,"0.0")," ,", TEXT('ECOLI data'!G21,"0.0"),")") -> (37.7 ,44.1) | F18: ='ECOLI data'!H21 -> 568 | G18: ='ECOLI data'!I21 -> 41.248 | H18: =IFERROR(CONCATENATE("(",TEXT('ECOLI data'!J21,"0.0")," ,", TEXT('ECOLI data'!K21,"0.0"),")"),"-") -> (37.9 ,44.8)
B19: ='ECOLI data'!B22 -> 2020-03-01 | C19: ='ECOLI data'!D22 -> 538 | D19: ='ECOLI data'!E22 -> 36.446 | E19: =CONCATENATE("(",TEXT('ECOLI data'!F22,"0.0")," ,", TEXT('ECOLI data'!G22,"0.0"),")") -> (33.4 ,39.7) | F19: ='ECOLI data'!H22 -> 514 | G19: ='ECOLI data'!I22 -> 37.84 | H19: =IFERROR(CONCATENATE("(",TEXT('ECOLI data'!J22,"0.0")," ,", TEXT('ECOLI data'!K22,"0.0"),")"),"-") -> (34.6 ,41.3)
B20: ='ECOLI data'!B23 -> 2020-06-01 | C20: ='ECOLI data'!D23 -> 429 | D20: ='ECOLI data'!E23 -> 39.682 | E20: =CONCATENATE("(",TEXT('ECOLI data'!F23,"0.0")," ,", TEXT('ECOLI data'!G23,"0.0"),")") -> (36.0 ,43.6) | F20: ='ECOLI data'!H23 -> 488 | G20: ='ECOLI data'!I23 -> 35.926 | H20: =IFERROR(CONCATENATE("(",TEXT('ECOLI data'!J23,"0.0")," ,", TEXT('ECOLI data'!K23,"0.0"),")"),"-") -> (32.8 ,39.3)
B21: ='ECOLI data'!B24 -> 2020-09-01 | C21: ='ECOLI data'!D24 -> 547 | D21: ='ECOLI data'!E24 -> 41.9786 | E21: =CONCATENATE("(",TEXT('ECOLI data'!F24,"0.0")," ,", TEXT('ECOLI data'!G24,"0.0"),")") -> (38.5 ,45.6) | F21: ='ECOLI data'!H24 -> 614 | G21: ='ECOLI data'!I24 -> 44.7102 | H21: =IFERROR(CONCATENATE("(",TEXT('ECOLI data'!J24,"0.0")," ,", TEXT('ECOLI data'!K24,"0.0"),")"),"-") -> (41.2 ,48.4)

Sheet SAB Data and Charts
B1: Scotland | J1: =CONCATENATE("Healthcare and community rates for ",B1) -> Healthcare and community rates for Scotland
K2: SABHCAI | M2: SABCAUN
D3: Healthcare associated SAB infection | G3: Community associated SAB infection | K3: Healthcare associated SAB infection | M3: Community associated SAB infection
C4: Cases | D4: Rate per 100 000 bed days | E4: 95% CI | F4: Cases | G4: Rate per 100 000 population | H4: 95% CI | K4: % change | M4: % change
B5: ='SAB data'!B8 -> 2014-12-19 | C5: ='SAB data'!D8 -> 275 | D5: ='SAB data'!E8 -> 16.077 | E5: =CONCATENATE("(",TEXT('SAB data'!F8,"0.0")," ,", TEXT('SAB data'!G8,"0.0"),")") -> (14.2 ,18.1) | F5: ='SAB data'!H8 -> 119 | G5: ='SAB data'!I8 -> 8.829 | H5: =IFERROR(CONCATENATE("(",TEXT('SAB data'!J8,"0.0")," ,", TEXT('SAB data'!K8,"0.0"),")"),"-") -> (7.3 ,10.6) | J5: This quarter compared to last (national only) | K5: =IFERROR(ROUND(VLOOKUP(CONCATENATE(K2,$B$1),'quarter comp'!$A1:$H21,4,FALSE),2),"-") -> -14.76 | L5: =IFERROR(VLOOKUP(CONCATENATE(K2,$B$1),'quarter comp'!$A1:$H21,8,FALSE),"-") -> Non Significant | M5: =IFERROR(ROUND(VLOOKUP(CONCATENATE(M2,$B$1),'quarter comp'!$A1:$H21,4,FALSE),2),"-") -> 11.65 | N5: =IFERROR(VLOOKUP(CONCATENATE(M2,$B$1),'quarter comp'!$A1:$H21,8,FALSE),"-") -> Non Significant
B6: ='SAB data'!B9 -> 2015-03-24 | C6: ='SAB data'!D9 -> 263 | D6: ='SAB data'!E9 -> 15.27 | E6: =CONCATENATE("(",TEXT('SAB data'!F9,"0.0")," ,", TEXT('SAB data'!G9,"0.0"),")") -> (13.5 ,17.2) | F6: ='SAB data'!H9 -> 126 | G6: ='SAB data'!I9 -> 9.511 | H6: =IFERROR(CONCATENATE("(",TEXT('SAB data'!J9,"0.0")," ,", TEXT('SAB data'!K9,"0.0"),")"),"-") -> (7.9 ,11.3) | J6: Year end compared to previous year end | K6: =ROUND(VLOOKUP(CONCATENATE(K2,$B$1),'year end comp'!$A$2:$Z$1086,4,FALSE),2) -> 0.84 | L6: =VLOOKUP(CONCATENATE(K2,$B$1),'year end comp'!$A$2:$Z$1086,8,FALSE) -> Non Significant | M6: =IFERROR(ROUND(VLOOKUP(CONCATENATE(M2,$B$1),'year end comp'!$A$2:$Z$1086,4,FALSE),2),"-") -> 14.23 | N6: =IFERROR(VLOOKUP(CONCATENATE(M2,$B$1),'year end comp'!$A$2:$Z$1086,8,FALSE),"-") -> Significant
B7: ='SAB data'!B10 -> 2015-06-24 | C7: ='SAB data'!D10 -> 284 | D7: ='SAB data'!E10 -> 17.106 | E7: =CONCATENATE("(",TEXT('SAB data'!F10,"0.0")," ,", TEXT('SAB data'!G10,"0.0"),")") -> (15.2 ,19.2) | F7: ='SAB data'!H10 -> 131 | G7: ='SAB data'!I10 -> 9.779 | H7: =IFERROR(CONCATENATE("(",TEXT('SAB data'!J10,"0.0")," ,", TEXT('SAB data'!K10,"0.0"),")"),"-") -> (8.2 ,11.6)
B8: ='SAB data'!B11 -> 2015-09-24 | C8: ='SAB data'!D11 -> 275 | D8: ='SAB data'!E11 -> 16.975 | E8: =CONCATENATE("(",TEXT('SAB data'!F11,"0.0")," ,", TEXT('SAB data'!G11,"0.0"),")") -> (15.0 ,19.1) | F8: ='SAB data'!H11 -> 113 | G8: ='SAB data'!I11 -> 8.344 | H8: =IFERROR(CONCATENATE("(",TEXT('SAB data'!J11,"0.0")," ,", TEXT('SAB data'!K11,"0.0"),")"),"-") -> (6.9 ,10.0)
B9: ='SAB data'!B12 -> 2015-12-24 | C9: ='SAB data'!D12 -> 303 | D9: ='SAB data'!E12 -> 18.47 | E9: =CONCATENATE("(",TEXT('SAB data'!F12,"0.0")," ,", TEXT('SAB data'!G12,"0.0"),")") -> (16.4 ,20.7) | F9: ='SAB data'!H12 -> 104 | G9: ='SAB data'!I12 -> 7.679 | H9: =IFERROR(CONCATENATE("(",TEXT('SAB data'!J12,"0.0")," ,", TEXT('SAB data'!K12,"0.0"),")"),"-") -> (6.3 ,9.3)
B10: ='SAB data'!B13 -> 2016-03-24 | C10: ='SAB data'!D13 -> 279 | D10: ='SAB data'!E13 -> 16.678 | E10: =CONCATENATE("(",TEXT('SAB data'!F13,"0.0")," ,", TEXT('SAB data'!G13,"0.0"),")") -> (14.8 ,18.8) | F10: ='SAB data'!H13 -> 139 | G10: ='SAB data'!I13 -> 10.344 | H10: =IFERROR(CONCATENATE("(",TEXT('SAB data'!J13,"0.0")," ,", TEXT('SAB data'!K13,"0.0"),")"),"-") -> (8.7 ,12.2)
B11: ='SAB data'!B14 -> 2016-06-24 | C11: ='SAB data'!D14 -> 260 | D11: ='SAB data'!E14 -> 16.213 | E11: =CONCATENATE("(",TEXT('SAB data'!F14,"0.0")," ,", TEXT('SAB data'!G14,"0.0"),")") -> (14.3 ,18.3) | F11: ='SAB data'!H14 -> 121 | G11: ='SAB data'!I14 -> 9.004 | H11: =IFERROR(CONCATENATE("(",TEXT('SAB data'!J14,"0.0")," ,", TEXT('SAB data'!K14,"0.0"),")"),"-") -> (7.5 ,10.8)
B12: ='SAB data'!B15 -> 2016-09-24 | C12: ='SAB data'!D15 -> 273 | D12: ='SAB data'!E15 -> 17.21 | E12: =CONCATENATE("(",TEXT('SAB data'!F15,"0.0")," ,", TEXT('SAB data'!G15,"0.0"),")") -> (15.2 ,19.4) | F12: ='SAB data'!H15 -> 127 | G12: ='SAB data'!I15 -> 9.348 | H12: =IFERROR(CONCATENATE("(",TEXT('SAB data'!J15,"0.0")," ,", TEXT('SAB data'!K15,"0.0"),")"),"-") -> (7.8 ,11.1)
B13: ='SAB data'!B16 -> 2016-12-24 | C13: ='SAB data'!D16 -> 265 | D13: ='SAB data'!E16 -> 16.667 | E13: =CONCATENATE("(",TEXT('SAB data'!F16,"0.0")," ,", TEXT('SAB data'!G16,"0.0"),")") -> (14.7 ,18.8) | F13: ='SAB data'!H16 -> 135 | G13: ='SAB data'!I16 -> 9.937 | H13: =IFERROR(CONCATENATE("(",TEXT('SAB data'!J16,"0.0")," ,", TEXT('SAB data'!K16,"0.0"),")"),"-") -> (8.3 ,11.8)
B14: ='SAB data'!B17 -> 2017-03-01 | C14: ='SAB data'!D17 -> 259 | D14: ='SAB data'!E17 -> 16.397 | E14: =CONCATENATE("(",TEXT('SAB data'!F17,"0.0")," ,", TEXT('SAB data'!G17,"0.0"),")") -> (14.5 ,18.5) | F14: ='SAB data'!H17 -> 142 | G14: ='SAB data'!I17 -> 10.616 | H14: =IFERROR(CONCATENATE("(",TEXT('SAB data'!J17,"0.0")," ,", TEXT('SAB data'!K17,"0.0"),")"),"-") -> (8.9 ,12.5)
B15: ='SAB data'!B18 -> 2017-06-01 | C15: ='SAB data'!D18 -> 248 | D15: ='SAB data'!E18 -> 16.01 | E15: =CONCATENATE("(",TEXT('SAB data'!F18,"0.0")," ,", TEXT('SAB data'!G18,"0.0"),")") -> (14.1 ,18.1) | F15: ='SAB data'!H18 -> 126 | G15: ='SAB data'!I18 -> 9.316 | H15: =IFERROR(CONCATENATE("(",TEXT('SAB data'!J18,"0.0")," ,", TEXT('SAB data'!K18,"0.0"),")"),"-") -> (7.8 ,11.1)
B16: ='SAB data'!B19 -> 2017-09-01 | C16: ='SAB data'!D19 -> 278 | D16: ='SAB data'!E19 -> 18.083 | E16: =CONCATENATE("(",TEXT('SAB data'!F19,"0.0")," ,", TEXT('SAB data'!G19,"0.0"),")") -> (16.0 ,20.3) | F16: ='SAB data'!H19 -> 127 | G16: ='SAB data'!I19 -> 9.288 | H16: =IFERROR(CONCATENATE("(",TEXT('SAB data'!J19,"0.0")," ,", TEXT('SAB data'!K19,"0.0"),")"),"-") -> (7.7 ,11.1)
B17: ='SAB data'!B20 -> 2017-12-01 | C17: ='SAB data'!D20 -> 262 | D17: ='SAB data'!E20 -> 16.655 | E17: =CONCATENATE("(",TEXT('SAB data'!F20,"0.0")," ,", TEXT('SAB data'!G20,"0.0"),")") -> (14.7 ,18.8) | F17: ='SAB data'!H20 -> 132 | G17: ='SAB data'!I20 -> 9.654 | H17: =IFERROR(CONCATENATE("(",TEXT('SAB data'!J20,"0.0")," ,", TEXT('SAB data'!K20,"0.0"),")"),"-") -> (8.1 ,11.4)
B18: ='SAB data'!B21 -> 2018-03-01 | C18: ='SAB data'!D21 -> 296 | D18: ='SAB data'!E21 -> 18.699 | E18: =CONCATENATE("(",TEXT('SAB data'!F21,"0.0")," ,", TEXT('SAB data'!G21,"0.0"),")") -> (16.6 ,21.0) | F18: ='SAB data'!H21 -> 135 | G18: ='SAB data'!I21 -> 10.068 | H18: =IFERROR(CONCATENATE("(",TEXT('SAB data'!J21,"0.0")," ,", TEXT('SAB data'!K21,"0.0"),")"),"-") -> (8.4 ,11.9)
B19: ='SAB data'!B22 -> 2018-06-01 | C19: ='SAB data'!D22 -> 264 | D19: ='SAB data'!E22 -> 17.332 | E19: =CONCATENATE("(",TEXT('SAB data'!F22,"0.0")," ,", TEXT('SAB data'!G22,"0.0"),")") -> (15.3 ,19.6) | F19: ='SAB data'!H22 -> 123 | G19: ='SAB data'!I22 -> 9.072 | H19: =IFERROR(CONCATENATE("(",TEXT('SAB data'!J22,"0.0")," ,", TEXT('SAB data'!K22,"0.0"),")"),"-") -> (7.5 ,10.8)
B20: ='SAB data'!B23 -> 2018-09-01 | C20: ='SAB data'!D23 -> 253 | D20: ='SAB data'!E23 -> 16.762 | E20: =CONCATENATE("(",TEXT('SAB data'!F23,"0.0")," ,", TEXT('SAB data'!G23,"0.0"),")") -> (14.8 ,19.0) | F20: ='SAB data'!H23 -> 132 | G20: ='SAB data'!I23 -> 9.63 | H20: =IFERROR(CONCATENATE("(",TEXT('SAB data'!J23,"0.0")," ,", TEXT('SAB data'!K23,"0.0"),")"),"-") -> (8.1 ,11.4)
B21: ='SAB data'!B24 -> 2018-12-01 | C21: ='SAB data'!D24 -> 269 | D21: ='SAB data'!E24 -> 17.694 | E21: =CONCATENATE("(",TEXT('SAB data'!F24,"0.0")," ,", TEXT('SAB data'!G24,"0.0"),")") -> (15.6 ,19.9) | F21: ='SAB data'!H24 -> 113 | G21: ='SAB data'!I24 -> 8.244 | H21: =IFERROR(CONCATENATE("(",TEXT('SAB data'!J24,"0.0")," ,", TEXT('SAB data'!K24,"0.0"),")"),"-") -> (6.8 ,9.9)
B22: ='SAB data'!B25 -> 2019-03-01 | C22: ='SAB data'!D25 -> 240 | D22: ='SAB data'!E25 -> 15.618 | E22: =CONCATENATE("(",TEXT('SAB data'!F25,"0.0")," ,", TEXT('SAB data'!G25,"0.0"),")") -> (13.7 ,17.7) | F22: ='SAB data'!H25 -> 144 | G22: ='SAB data'!I25 -> 10.69 | H22: =IFERROR(CONCATENATE("(",TEXT('SAB data'!J25,"0.0")," ,", TEXT('SAB data'!K25,"0.0"),")"),"-") -> (9.0 ,12.6)
B23: ='SAB data'!B26 -> 2019-06-01 | C23: ='SAB data'!D26 -> 251 | D23: ='SAB data'!E26 -> 16.726 | E23: =CONCATENATE("(",TEXT('SAB data'!F26,"0.0")," ,", TEXT('SAB data'!G26,"0.0"),")") -> (14.7 ,18.9) | F23: ='SAB data'!H26 -> 133 | G23: ='SAB data'!I26 -> 9.764 | H23: =IFERROR(CONCATENATE("(",TEXT('SAB data'!J26,"0.0")," ,", TEXT('SAB data'!K26,"0.0"),")"),"-") -> (8.2 ,11.6)
B24: ='SAB data'!B27 -> 2019-09-01 | C24: ='SAB data'!D27 -> 264 | D24: ='SAB data'!E27 -> 17.48 | E24: =CONCATENATE("(",TEXT('SAB data'!F27,"0.0")," ,", TEXT('SAB data'!G27,"0.0"),")") -> (15.4 ,19.7) | F24: ='SAB data'!H27 -> 102 | G24: ='SAB data'!I27 -> 7.407 | H24: =IFERROR(CONCATENATE("(",TEXT('SAB data'!J27,"0.0")," ,", TEXT('SAB data'!K27,"0.0"),")"),"-") -> (6.0 ,9.0)
B25: ='SAB data'!B28 -> 2019-12-01 | C25: ='SAB data'!D28 -> 233 | D25: ='SAB data'!E28 -> 15.187 | E25: =CONCATENATE("(",TEXT('SAB data'!F28,"0.0")," ,", TEXT('SAB data'!G28,"0.0"),")") -> (13.3 ,17.3) | F25: ='SAB data'!H28 -> 132 | G25: ='SAB data'!I28 -> 9.586 | H25: =IFERROR(CONCATENATE("(",TEXT('SAB data'!J28,"0.0")," ,", TEXT('SAB data'!K28,"0.0"),")"),"-") -> (8.0 ,11.4)
B26: ='SAB data'!B29 -> 2020-03-01 | C26: ='SAB data'!D29 -> 241 | D26: ='SAB data'!E29 -> 16.326 | E26: =CONCATENATE("(",TEXT('SAB data'!F29,"0.0")," ,", TEXT('SAB data'!G29,"0.0"),")") -> (14.3 ,18.5) | F26: ='SAB data'!H29 -> 149 | G26: ='SAB data'!I29 -> 10.969 | H26: =IFERROR(CONCATENATE("(",TEXT('SAB data'!J29,"0.0")," ,", TEXT('SAB data'!K29,"0.0"),")"),"-") -> (9.3 ,12.9)
B27: ='SAB data'!B30 -> 2020-06-01 | C27: ='SAB data'!D30 -> 219 | D27: ='SAB data'!E30 -> 20.257 | E27: =CONCATENATE("(",TEXT('SAB data'!F30,"0.0")," ,", TEXT('SAB data'!G30,"0.0"),")") -> (17.7 ,23.1) | F27: ='SAB data'!H30 -> 132 | G27: ='SAB data'!I30 -> 9.718 | H27: =IFERROR(CONCATENATE("(",TEXT('SAB data'!J30,"0.0")," ,", TEXT('SAB data'!K30,"0.0"),")"),"-") -> (8.1 ,11.5)
B28: ='SAB data'!B31 -> 2020-09-01 | C28: ='SAB data'!D31 -> 225 | D28: ='SAB data'!E31 -> 17.2672 | E28: =CONCATENATE("(",TEXT('SAB data'!F31,"0.0")," ,", TEXT('SAB data'!G31,"0.0"),")") -> (15.1 ,19.7) | F28: ='SAB data'!H31 -> 149 | G28: ='SAB data'!I31 -> 10.8499 | H28: =IFERROR(CONCATENATE("(",TEXT('SAB data'!J31,"0.0")," ,", TEXT('SAB data'!K31,"0.0"),")"),"-") -> (9.2 ,12.7)

Sheet SSI Data and Charts
B1: Scotland | M1: =CONCATENATE("% SSI for ",B1) -> % SSI for Scotland
D3: Casesarean Section | H3: Hip Arthroplasty | N3: SSICSEC | P3: SSIHIP
C4: SSI to day 10 | D4: Procedures | E4: SSI Incidence (%) | F4: 95% CI | G4: SSI inpatient & readmission to day 30 | H4: Procedures | I4: SSI Incidence (%) | J4: 95% CI | N4: % change | P4: % change
B5: ='SSI data'!B8 -> 2014-03-24 | C5: ='SSI data'!D8 -> 61 | D5: ='SSI data'!L8 -> 3998 | E5: ='SSI data'!E8 -> 1.526 | F5: =IFERROR(CONCATENATE("(",TEXT('SSI data'!F8,"0.0")," ,", TEXT('SSI data'!G8,"0.0"),")"),"-") -> (1.2 ,2.0) | G5: ='SSI data'!H8 -> 16 | H5: ='SSI data'!M8 -> 2106 | I5: ='SSI data'!I8 -> 0.76 | J5: =IFERROR(CONCATENATE("(",TEXT('SSI data'!J8,"0.0"),", ", TEXT('SSI data'!K8,"0.0"),")"),"-") -> (0.5, 1.2) | M5: Year end compared to previous year end | N5: =IFERROR(ROUND(VLOOKUP(CONCATENATE(N3,$B$1),'year end comp'!$A$2:$Z$1086,4,FALSE),2),"-") -> -33.62 | O5: =IF(IFERROR(VLOOKUP(CONCATENATE(N3,$B$1),'year end comp'!$A$2:$Z$1086,8,FALSE),"-")=0,"-",IFERROR(VLOOKUP(CONCATENATE(N3,$B$1),'year end comp'!$A$2:$Z$1086,8,FALSE),"-")) -> Significant | P5: =IFERROR(ROUND(VLOOKUP(CONCATENATE(P3,$B$1),'year end comp'!$A$2:$Z$1086,4,FALSE),2),"-") -> 36.75 | Q5: =IF(IFERROR(VLOOKUP(CONCATENATE(P3,$B$1),'year end comp'!$A$2:$Z$1086,8,FALSE),"-")=0,"-",IFERROR(VLOOKUP(CONCATENATE(P3,$B$1),'year end comp'!$A$2:$Z$1086,8,FALSE),"-")) -> Non Significant
B6: ='SSI data'!B9 -> 2014-06-27 | C6: ='SSI data'!D9 -> 58 | D6: ='SSI data'!L9 -> 4103 | E6: ='SSI data'!E9 -> 1.414 | F6: =IFERROR(CONCATENATE("(",TEXT('SSI data'!F9,"0.0")," ,", TEXT('SSI data'!G9,"0.0"),")"),"-") -> (1.1 ,1.8) | G6: ='SSI data'!H9 -> 13 | H6: ='SSI data'!M9 -> 2098 | I6: ='SSI data'!I9 -> 0.62 | J6: =IFERROR(CONCATENATE("(",TEXT('SSI data'!J9,"0.0")," ,", TEXT('SSI data'!K9,"0.0"),")"),"-") -> (0.4 ,1.1)
B7: ='SSI data'!B10 -> 2014-09-30 | C7: ='SSI data'!D10 -> 58 | D7: ='SSI data'!L10 -> 4563 | E7: ='SSI data'!E10 -> 1.271 | F7: =IFERROR(CONCATENATE("(",TEXT('SSI data'!F10,"0.0")," ,", TEXT('SSI data'!G10,"0.0"),")"),"-") -> (1.0 ,1.6) | G7: ='SSI data'!H10 -> 16 | H7: ='SSI data'!M10 -> 2125 | I7: ='SSI data'!I10 -> 0.753 | J7: =IFERROR(CONCATENATE("(",TEXT('SSI data'!J10,"0.0")," ,", TEXT('SSI data'!K10,"0.0"),")"),"-") -> (0.5 ,1.2)
B8: ='SSI data'!B11 -> 2014-12-19 | C8: ='SSI data'!D11 -> 61 | D8: ='SSI data'!L11 -> 4261 | E8: ='SSI data'!E11 -> 1.432 | F8: =IFERROR(CONCATENATE("(",TEXT('SSI data'!F11,"0.0")," ,", TEXT('SSI data'!G11,"0.0"),")"),"-") -> (1.1 ,1.8) | G8: ='SSI data'!H11 -> 12 | H8: ='SSI data'!M11 -> 1974 | I8: ='SSI data'!I11 -> 0.608 | J8: =IFERROR(CONCATENATE("(",TEXT('SSI data'!J11,"0.0")," ,", TEXT('SSI data'!K11,"0.0"),")"),"-") -> (0.3 ,1.1)
B9: ='SSI data'!B12 -> 2015-03-24 | C9: ='SSI data'!D12 -> 47 | D9: ='SSI data'!L12 -> 3966 | E9: ='SSI data'!E12 -> 1.185 | F9: =IFERROR(CONCATENATE("(",TEXT('SSI data'!F12,"0.0")," ,", TEXT('SSI data'!G12,"0.0"),")"),"-") -> (0.9 ,1.6) | G9: ='SSI data'!H12 -> 18 | H9: ='SSI data'!M12 -> 1959 | I9: ='SSI data'!I12 -> 0.919 | J9: =IFERROR(CONCATENATE("(",TEXT('SSI data'!J12,"0.0")," ,", TEXT('SSI data'!K12,"0.0"),")"),"-") -> (0.6 ,1.4)
B10: ='SSI data'!B13 -> 2015-06-24 | C10: ='SSI data'!D13 -> 56 | D10: ='SSI data'!L13 -> 4358 | E10: ='SSI data'!E13 -> 1.285 | F10: =IFERROR(CONCATENATE("(",TEXT('SSI data'!F13,"0.0")," ,", TEXT('SSI data'!G13,"0.0"),")"),"-") -> (1.0 ,1.7) | G10: ='SSI data'!H13 -> 18 | H10: ='SSI data'!M13 -> 2159 | I10: ='SSI data'!I13 -> 0.834 | J10: =IFERROR(CONCATENATE("(",TEXT('SSI data'!J13,"0.0")," ,", TEXT('SSI data'!K13,"0.0"),")"),"-") -> (0.5 ,1.3)
B11: ='SSI data'!B14 -> 2015-09-24 | C11: ='SSI data'!D14 -> 56 | D11: ='SSI data'!L14 -> 4511 | E11: ='SSI data'!E14 -> 1.241 | F11: =IFERROR(CONCATENATE("(",TEXT('SSI data'!F14,"0.0")," ,", TEXT('SSI data'!G14,"0.0"),")"),"-") -> (1.0 ,1.6) | G11: ='SSI data'!H14 -> 10 | H11: ='SSI data'!M14 -> 2135 | I11: ='SSI data'!I14 -> 0.468 | J11: =IFERROR(CONCATENATE("(",TEXT('SSI data'!J14,"0.0")," ,", TEXT('SSI data'!K14,"0.0"),")"),"-") -> (0.3 ,0.9)
B12: ='SSI data'!B15 -> 2015-12-24 | C12: ='SSI data'!D15 -> 60 | D12: ='SSI data'!L15 -> 4300 | E12: ='SSI data'!E15 -> 1.395 | F12: =IFERROR(CONCATENATE("(",TEXT('SSI data'!F15,"0.0")," ,", TEXT('SSI data'!G15,"0.0"),")"),"-") -> (1.1 ,1.8) | G12: ='SSI data'!H15 -> 15 | H12: ='SSI data'!M15 -> 2191 | I12: ='SSI data'!I15 -> 0.685 | J12: =IFERROR(CONCATENATE("(",TEXT('SSI data'!J15,"0.0")," ,", TEXT('SSI data'!K15,"0.0"),")"),"-") -> (0.4 ,1.1)
B13: ='SSI data'!B16 -> 2016-03-24 | C13: ='SSI data'!D16 -> 58 | D13: ='SSI data'!L16 -> 4023 | E13: ='SSI data'!E16 -> 1.442 | F13: =IFERROR(CONCATENATE("(",TEXT('SSI data'!F16,"0.0")," ,", TEXT('SSI data'!G16,"0.0"),")"),"-") -> (1.1 ,1.9) | G13: ='SSI data'!H16 -> 7 | H13: ='SSI data'!M16 -> 2173 | I13: ='SSI data'!I16 -> 0.322 | J13: =IFERROR(CONCATENATE("(",TEXT('SSI data'!J16,"0.0")," ,", TEXT('SSI data'!K16,"0.0"),")"),"-") -> (0.2 ,0.7)
B14: ='SSI data'!B17 -> 2016-06-24 | C14: ='SSI data'!D17 -> 78 | D14: ='SSI data'!L17 -> 4448 | E14: ='SSI data'!E17 -> 1.754 | F14: =IFERROR(CONCATENATE("(",TEXT('SSI data'!F17,"0.0")," ,", TEXT('SSI data'!G17,"0.0"),")"),"-") -> (1.4 ,2.2) | G14: ='SSI data'!H17 -> 17 | H14: ='SSI data'!M17 -> 2318 | I14: ='SSI data'!I17 -> 0.733 | J14: =IFERROR(CONCATENATE("(",TEXT('SSI data'!J17,"0.0")," ,", TEXT('SSI data'!K17,"0.0"),")"),"-") -> (0.5 ,1.2)
B15: ='SSI data'!B18 -> 2016-09-24 | C15: ='SSI data'!D18 -> 71 | D15: ='SSI data'!L18 -> 4446 | E15: ='SSI data'!E18 -> 1.597 | F15: =IFERROR(CONCATENATE("(",TEXT('SSI data'!F18,"0.0")," ,", TEXT('SSI data'!G18,"0.0"),")"),"-") -> (1.3 ,2.0) | G15: ='SSI data'!H18 -> 14 | H15: ='SSI data'!M18 -> 2153 | I15: ='SSI data'!I18 -> 0.65 | J15: =IFERROR(CONCATENATE("(",TEXT('SSI data'!J18,"0.0")," ,", TEXT('SSI data'!K18,"0.0"),")"),"-") -> (0.4 ,1.1)
B16: ='SSI data'!B19 -> 2016-12-24 | C16: ='SSI data'!D19 -> 51 | D16: ='SSI data'!L19 -> 4258 | E16: ='SSI data'!E19 -> 1.198 | F16: =IFERROR(CONCATENATE("(",TEXT('SSI data'!F19,"0.0")," ,", TEXT('SSI data'!G19,"0.0"),")"),"-") -> (0.9 ,1.6) | G16: ='SSI data'!H19 -> 17 | H16: ='SSI data'!M19 -> 2226 | I16: ='SSI data'!I19 -> 0.764 | J16: =IFERROR(CONCATENATE("(",TEXT('SSI data'!J19,"0.0")," ,", TEXT('SSI data'!K19,"0.0"),")"),"-") -> (0.5 ,1.2)
B17: ='SSI data'!B20 -> 2017-03-01 | C17: ='SSI data'!D20 -> 58 | D17: ='SSI data'!L20 -> 4047 | E17: ='SSI data'!E20 -> 1.433 | F17: =IFERROR(CONCATENATE("(",TEXT('SSI data'!F20,"0.0")," ,", TEXT('SSI data'!G20,"0.0"),")"),"-") -> (1.1 ,1.8) | G17: ='SSI data'!H20 -> 12 | H17: ='SSI data'!M20 -> 2164 | I17: ='SSI data'!I20 -> 0.555 | J17: =IFERROR(CONCATENATE("(",TEXT('SSI data'!J20,"0.0")," ,", TEXT('SSI data'!K20,"0.0"),")"),"-") -> (0.3 ,1.0)
B18: ='SSI data'!B21 -> 2017-06-01 | C18: ='SSI data'!D21 -> 51 | D18: ='SSI data'!L21 -> 4115 | E18: ='SSI data'!E21 -> 1.239 | F18: =IFERROR(CONCATENATE("(",TEXT('SSI data'!F21,"0.0")," ,", TEXT('SSI data'!G21,"0.0"),")"),"-") -> (0.9 ,1.6) | G18: ='SSI data'!H21 -> 19 | H18: ='SSI data'!M21 -> 2301 | I18: ='SSI data'!I21 -> 0.826 | J18: =IFERROR(CONCATENATE("(",TEXT('SSI data'!J21,"0.0")," ,", TEXT('SSI data'!K21,"0.0"),")"),"-") -> (0.5 ,1.3)
B19: ='SSI data'!B22 -> 2017-09-01 | C19: ='SSI data'!D22 -> 58 | D19: ='SSI data'!L22 -> 4514 | E19: ='SSI data'!E22 -> 1.285 | F19: =IFERROR(CONCATENATE("(",TEXT('SSI data'!F22,"0.0")," ,", TEXT('SSI data'!G22,"0.0"),")"),"-") -> (1.0 ,1.7) | G19: ='SSI data'!H22 -> 9 | H19: ='SSI data'!M22 -> 2077 | I19: ='SSI data'!I22 -> 0.433 | J19: =IFERROR(CONCATENATE("(",TEXT('SSI data'!J22,"0.0")," ,", TEXT('SSI data'!K22,"0.0"),")"),"-") -> (0.2 ,0.8)
B20: ='SSI data'!B23 -> 2017-12-01 | C20: ='SSI data'!D23 -> 66 | D20: ='SSI data'!L23 -> 4224 | E20: ='SSI data'!E23 -> 1.563 | F20: =IFERROR(CONCATENATE("(",TEXT('SSI data'!F23,"0.0")," ,", TEXT('SSI data'!G23,"0.0"),")"),"-") -> (1.2 ,2.0) | G20: ='SSI data'!H23 -> 16 | H20: ='SSI data'!M23 -> 2071 | I20: ='SSI data'!I23 -> 0.773 | J20: =IFERROR(CONCATENATE("(",TEXT('SSI data'!J23,"0.0")," ,", TEXT('SSI data'!K23,"0.0"),")"),"-") -> (0.5 ,1.3)
B21: ='SSI data'!B24 -> 2018-03-01 | C21: ='SSI data'!D24 -> 64 | D21: ='SSI data'!L24 -> 3975 | E21: ='SSI data'!E24 -> 1.61 | F21: =IFERROR(CONCATENATE("(",TEXT('SSI data'!F24,"0.0")," ,", TEXT('SSI data'!G24,"0.0"),")"),"-") -> (1.3 ,2.1) | G21: ='SSI data'!H24 -> 17 | H21: ='SSI data'!M24 -> 2008 | I21: ='SSI data'!I24 -> 0.847 | J21: =IFERROR(CONCATENATE("(",TEXT('SSI data'!J24,"0.0")," ,", TEXT('SSI data'!K24,"0.0"),")"),"-") -> (0.5 ,1.4)
B22: ='SSI data'!B25 -> 2018-06-01 | C22: ='SSI data'!D25 -> 61 | D22: ='SSI data'!L25 -> 4191 | E22: ='SSI data'!E25 -> 1.455 | F22: =IFERROR(CONCATENATE("(",TEXT('SSI data'!F25,"0.0")," ,", TEXT('SSI data'!G25,"0.0"),")"),"-") -> (1.1 ,1.9) | G22: ='SSI data'!H25 -> 18 | H22: ='SSI data'!M25 -> 2270 | I22: ='SSI data'!I25 -> 0.793 | J22: =IFERROR(CONCATENATE("(",TEXT('SSI data'!J25,"0.0")," ,", TEXT('SSI data'!K25,"0.0"),")"),"-") -> (0.5 ,1.3)
B23: ='SSI data'!B26 -> 2018-09-01 | C23: ='SSI data'!D26 -> 66 | D23: ='SSI data'!L26 -> 4293 | E23: ='SSI data'!E26 -> 1.537 | F23: =IFERROR(CONCATENATE("(",TEXT('SSI data'!F26,"0.0")," ,", TEXT('SSI data'!G26,"0.0"),")"),"-") -> (1.2 ,2.0) | G23: ='SSI data'!H26 -> 13 | H23: ='SSI data'!M26 -> 2155 | I23: ='SSI data'!I26 -> 0.603 | J23: =IFERROR(CONCATENATE("(",TEXT('SSI data'!J26,"0.0")," ,", TEXT('SSI data'!K26,"0.0"),")"),"-") -> (0.4 ,1.0)
B24: ='SSI data'!B27 -> 2018-12-01 | C24: ='SSI data'!D27 -> 59 | D24: ='SSI data'!L27 -> 4346 | E24: ='SSI data'!E27 -> 1.358 | F24: =IFERROR(CONCATENATE("(",TEXT('SSI data'!F27,"0.0")," ,", TEXT('SSI data'!G27,"0.0"),")"),"-") -> (1.1 ,1.7) | G24: ='SSI data'!H27 -> 16 | H24: ='SSI data'!M27 -> 2276 | I24: ='SSI data'!I27 -> 0.703 | J24: =IFERROR(CONCATENATE("(",TEXT('SSI data'!J27,"0.0")," ,", TEXT('SSI data'!K27,"0.0"),")"),"-") -> (0.4 ,1.1)
B25: ='SSI data'!B28 -> 2019-03-01 | C25: ='SSI data'!D28 -> 64 | D25: ='SSI data'!L28 -> 4051 | E25: ='SSI data'!E28 -> 1.58 | F25: =IFERROR(CONCATENATE("(",TEXT('SSI data'!F28,"0.0")," ,", TEXT('SSI data'!G28,"0.0"),")"),"-") -> (1.2 ,2.0) | G25: ='SSI data'!H28 -> 8 | H25: ='SSI data'!M28 -> 2146 | I25: ='SSI data'!I28 -> 0.373 | J25: =IFERROR(CONCATENATE("(",TEXT('SSI data'!J28,"0.0")," ,", TEXT('SSI data'!K28,"0.0"),")"),"-") -> (0.2 ,0.7)
B26: ='SSI data'!B29 -> 2019-06-01 | C26: ='SSI data'!D29 -> 43 | D26: ='SSI data'!L29 -> 4118 | E26: ='SSI data'!E29 -> 1.044 | F26: =IFERROR(CONCATENATE("(",TEXT('SSI data'!F29,"0.0")," ,", TEXT('SSI data'!G29,"0.0"),")"),"-") -> (0.8 ,1.4) | G26: ='SSI data'!H29 -> 10 | H26: ='SSI data'!M29 -> 2257 | I26: ='SSI data'!I29 -> 0.443 | J26: =IFERROR(CONCATENATE("(",TEXT('SSI data'!J29,"0.0")," ,", TEXT('SSI data'!K29,"0.0"),")"),"-") -> (0.2 ,0.8)
B27: ='SSI data'!B30 -> 2019-09-01 | C27: ='SSI data'!D30 -> 51 | D27: ='SSI data'!L30 -> 4408 | E27: ='SSI data'!E30 -> 1.157 | F27: =IFERROR(CONCATENATE("(",TEXT('SSI data'!F30,"0.0")," ,", TEXT('SSI data'!G30,"0.0"),")"),"-") -> (0.9 ,1.5) | G27: ='SSI data'!H30 -> 17 | H27: ='SSI data'!M30 -> 2121 | I27: ='SSI data'!I30 -> 0.802 | J27: =IFERROR(CONCATENATE("(",TEXT('SSI data'!J30,"0.0")," ,", TEXT('SSI data'!K30,"0.0"),")"),"-") -> (0.5 ,1.3)
B28: ='SSI data'!B31 -> 2019-12-01 | C28: ='SSI data'!D31 -> 35 | D28: ='SSI data'!L31 -> 4112 | E28: ='SSI data'!E31 -> 0.851 | F28: =IFERROR(CONCATENATE("(",TEXT('SSI data'!F31,"0.0")," ,", TEXT('SSI data'!G31,"0.0"),")"),"-") -> (0.6 ,1.2) | G28: ='SSI data'!H31 -> 17 | H28: ='SSI data'!M31 -> 2145 | I28: ='SSI data'!I31 -> 0.793 | J28: =IFERROR(CONCATENATE("(",TEXT('SSI data'!J31,"0.0")," ,", TEXT('SSI data'!K31,"0.0"),")"),"-") -> (0.5 ,1.3)
B29: 2020-03-01 | C29: ='SSI data'!D32 -> - | D29: ='SSI data'!L32 -> - | E29: ='SSI data'!E32 -> - | F29: =IFERROR(CONCATENATE("(",TEXT('SSI data'!F32,"0.0")," ,", TEXT('SSI data'!G32,"0.0"),")"),"-") -> (- ,-) | G29: ='SSI data'!H32 -> - | H29: ='SSI data'!M32 -> - | I29: ='SSI data'!I32 -> - | J29: =IFERROR(CONCATENATE("(",TEXT('SSI data'!J32,"0.0")," ,", TEXT('SSI data'!K32,"0.0"),")"),"-") -> (- ,-)
B30: 2020-06-01 | C30: ='SSI data'!D33 -> - | D30: ='SSI data'!L33 -> - | E30: ='SSI data'!E33 -> - | F30: =IFERROR(CONCATENATE("(",TEXT('SSI data'!F33,"0.0")," ,", TEXT('SSI data'!G33,"0.0"),")"),"-") -> (- ,-) | G30: ='SSI data'!H33 -> - | H30: ='SSI data'!M33 -> - | I30: ='SSI data'!I33 -> - | J30: =IFERROR(CONCATENATE("(",TEXT('SSI data'!J33,"0.0")," ,", TEXT('SSI data'!K33,"0.0"),")"),"-") -> (- ,-)
B31: 2020-09-01 | C31: ='SSI data'!D34 -> - | D31: ='SSI data'!L34 -> - | E31: ='SSI data'!E34 -> - | F31: =IFERROR(CONCATENATE("(",TEXT('SSI data'!F34,"0.0")," ,", TEXT('SSI data'!G34,"0.0"),")"),"-") -> (- ,-) | G31: ='SSI data'!H34 -> - | H31: ='SSI data'!M34 -> - | I31: ='SSI data'!I34 -> - | J31: =IFERROR(CONCATENATE("(",TEXT('SSI data'!J34,"0.0")," ,", TEXT('SSI data'!K34,"0.0"),")"),"-") -> (- ,-)

Sheet SSI data (hidden)
A1: Trend data | Q1: data for u-charts
A3: add a new line for current quarter
T4: change this
D5: SSICSEC | E5: SSICSEC | F5: SSICSEC | G5: SSICSEC | H5: SSIHIP | I5: SSIHIP | J5: SSIHIP | K5: SSIHIP | L5: SSICSEC | M5: SSIHIP | S5: current quarter end | T5: 2019-12-31 | U5: 3 | V5: 4 | W5: 5 | X5: 6 | Z5: 3 | AA5: 4 | AB5: 5 | AC5: 6
D6: 2 | E6: 4 | F6: 5 | G6: 6 | H6: 2 | I6: 4 | J6: 5 | K6: 6 | L6: 3 | M6: 3
C7: ref | D7: C SEC cases | E7: C SEC prop | F7: C SEC_lower_CI | G7: C SEC_upper_CI | H7: HIP cases | I7: HIP prop | J7: HIP_lower_CI | K7: HIP_upper_CI | L7: C SEC OPS | M7: HIP OPS | U7: SSICSEC | Z7: SSIHIP
A8: 201401 | B8: 2014-03-24 | C8: =CONCATENATE(A8,'SSI Data and Charts'!B$1) -> 201401Scotland | D8: =IFERROR(VLOOKUP(CONCATENATE(D$5,$C8),'trend data'!$A$2:$O$11161,D$6,FALSE),"-") -> 61 | E8: =IFERROR(ROUND(VLOOKUP(CONCATENATE(E$5,$C8),'trend data'!$A$2:$O$11161,E$6,FALSE),3),"-") -> 1.526 | F8: =IFERROR(ROUND(VLOOKUP(CONCATENATE(F$5,$C8),'trend data'!$A$2:$O$11161,F$6,FALSE),3),"-") -> 1.19 | G8: =IFERROR(ROUND(VLOOKUP(CONCATENATE(G$5,$C8),'trend data'!$A$2:$O$11161,G$6,FALSE),3),"-") -> 1.955 | H8: =IFERROR(VLOOKUP(CONCATENATE(H$5,$C8),'trend data'!$A$2:$O$11161,H$6,FALSE),"-") -> 16 | I8: =IFERROR(ROUND(VLOOKUP(CONCATENATE(I$5,$C8),'trend data'!$A$2:$O$11161,I$6,FALSE),3),"-") -> 0.76 | J8: =IFERROR(ROUND(VLOOKUP(CONCATENATE(J$5,$C8),'trend data'!$A$2:$O$11161,J$6,FALSE),3),"-") -> 0.468 | K8: =IFERROR(ROUND(VLOOKUP(CONCATENATE(K$5,$C8),'trend data'!$A$2:$O$11161,K$6,FALSE),3),"-") -> 1.231 | L8: =IFERROR(VLOOKUP(CONCATENATE(L$5,$C8),'trend data'!$A$2:$O$11161,L$6,FALSE),"-") -> 3998 | M8: =IFERROR(VLOOKUP(CONCATENATE(M$5,$C8),'trend data'!$A$2:$O$11161,M$6,FALSE),"-") -> 2106 | Q8: change to last 12 quarters | U8: C SEC prop | V8: C SEC av prop | W8: C SEC UWL 2sd | X8: C SEC UWL 3sd | Z8: HIP prop | AA8: HIP av prop | AB8: HIP UWL 2sd | AC8: HIP UWL 3 sd
A9: 201402 | B9: 2014-06-27 | C9: =CONCATENATE(A9,'SSI Data and Charts'!B$1) -> 201402Scotland | D9: =IFERROR(VLOOKUP(CONCATENATE(D$5,$C9),'trend data'!$A$2:$O$11161,D$6,FALSE),"-") -> 58 | E9: =IFERROR(ROUND(VLOOKUP(CONCATENATE(E$5,$C9),'trend data'!$A$2:$O$11161,E$6,FALSE),3),"-") -> 1.414 | F9: =IFERROR(ROUND(VLOOKUP(CONCATENATE(F$5,$C9),'trend data'!$A$2:$O$11161,F$6,FALSE),3),"-") -> 1.095 | G9: =IFERROR(ROUND(VLOOKUP(CONCATENATE(G$5,$C9),'trend data'!$A$2:$O$11161,G$6,FALSE),3),"-") -> 1.823 | H9: =IFERROR(VLOOKUP(CONCATENATE(H$5,$C9),'trend data'!$A$2:$O$11161,H$6,FALSE),"-") -> 13 | I9: =IFERROR(ROUND(VLOOKUP(CONCATENATE(I$5,$C9),'trend data'!$A$2:$O$11161,I$6,FALSE),3),"-") -> 0.62 | J9: =IFERROR(ROUND(VLOOKUP(CONCATENATE(J$5,$C9),'trend data'!$A$2:$O$11161,J$6,FALSE),3),"-") -> 0.362 | K9: =IFERROR(ROUND(VLOOKUP(CONCATENATE(K$5,$C9),'trend data'!$A$2:$O$11161,K$6,FALSE),3),"-") -> 1.057 | L9: =IFERROR(VLOOKUP(CONCATENATE(L$5,$C9),'trend data'!$A$2:$O$11161,L$6,FALSE),"-") -> 4103 | M9: =IFERROR(VLOOKUP(CONCATENATE(M$5,$C9),'trend data'!$A$2:$O$11161,M$6,FALSE),"-") -> 2098 | Q9: =YEAR(T9)&"0"&IF(MONTH(T9)<4,1,IF(MONTH(T9)<7,2,IF(MONTH(T9)<10,3,4))) -> 201701 | R9: =CONCATENATE(U$7,$Q9,'SSI Data and Charts'!B$1) -> SSICSEC201701Scotland | S9: 1 | T9: =T10-92 -> 2017-03-24 | U9: =ROUND(VLOOKUP($R9,'data for u-p-charts'!$A$2:$F$5000,U$5,FALSE),2) ->  | V9: =ROUND(VLOOKUP($R9,'data for u-p-charts'!$A$2:$F$5000,V$5,FALSE),2) ->  | W9: =ROUND(VLOOKUP($R9,'data for u-p-charts'!$A$2:$F$5000,W$5,FALSE),2) ->  | X9: =ROUND(VLOOKUP($R9,'data for u-p-charts'!$A$2:$F$5000,X$5,FALSE),2) ->  | Y9: =CONCATENATE(Z$7,$Q9,'SSI Data and Charts'!$B$1) -> SSIHIP201701Scotland | Z9: =ROUND(VLOOKUP($Y9,'data for u-p-charts'!$A$2:$F$5000,Z$5,FALSE),2) ->  | AA9: =ROUND(VLOOKUP($Y9,'data for u-p-charts'!$A$2:$F$5000,AA$5,FALSE),2) ->  | AB9: =ROUND(VLOOKUP($Y9,'data for u-p-charts'!$A$2:$F$5000,AB$5,FALSE),2) ->  | AC9: =ROUND(VLOOKUP($Y9,'data for u-p-charts'!$A$2:$F$5000,AC$5,FALSE),2) -> 
A10: 201403 | B10: 2014-09-30 | C10: =CONCATENATE(A10,'SSI Data and Charts'!B$1) -> 201403Scotland | D10: =IFERROR(VLOOKUP(CONCATENATE(D$5,$C10),'trend data'!$A$2:$O$11161,D$6,FALSE),"-") -> 58 | E10: =IFERROR(ROUND(VLOOKUP(CONCATENATE(E$5,$C10),'trend data'!$A$2:$O$11161,E$6,FALSE),3),"-") -> 1.271 | F10: =IFERROR(ROUND(VLOOKUP(CONCATENATE(F$5,$C10),'trend data'!$A$2:$O$11161,F$6,FALSE),3),"-") -> 0.985 | G10: =IFERROR(ROUND(VLOOKUP(CONCATENATE(G$5,$C10),'trend data'!$A$2:$O$11161,G$6,FALSE),3),"-") -> 1.64 | H10: =IFERROR(VLOOKUP(CONCATENATE(H$5,$C10),'trend data'!$A$2:$O$11161,H$6,FALSE),"-") -> 16 | I10: =IFERROR(ROUND(VLOOKUP(CONCATENATE(I$5,$C10),'trend data'!$A$2:$O$11161,I$6,FALSE),3),"-") -> 0.753 | J10: =IFERROR(ROUND(VLOOKUP(CONCATENATE(J$5,$C10),'trend data'!$A$2:$O$11161,J$6,FALSE),3),"-") -> 0.464 | K10: =IFERROR(ROUND(VLOOKUP(CONCATENATE(K$5,$C10),'trend data'!$A$2:$O$11161,K$6,FALSE),3),"-") -> 1.22 | L10: =IFERROR(VLOOKUP(CONCATENATE(L$5,$C10),'trend data'!$A$2:$O$11161,L$6,FALSE),"-") -> 4563 | M10: =IFERROR(VLOOKUP(CONCATENATE(M$5,$C10),'trend data'!$A$2:$O$11161,M$6,FALSE),"-") -> 2125 | Q10: =YEAR(T10)&"0"&IF(MONTH(T10)<4,1,IF(MONTH(T10)<7,2,IF(MONTH(T10)<10,3,4))) -> 201702 | R10: =CONCATENATE(U$7,$Q10,'SSI Data and Charts'!B$1) -> SSICSEC201702Scotland | S10: 2 | T10: 2017-06-24 | U10: =ROUND(VLOOKUP($R10,'data for u-p-charts'!$A$2:$F$5000,U$5,FALSE),2) ->  | V10: =ROUND(VLOOKUP($R10,'data for u-p-charts'!$A$2:$F$5000,V$5,FALSE),2) ->  | W10: =ROUND(VLOOKUP($R10,'data for u-p-charts'!$A$2:$F$5000,W$5,FALSE),2) ->  | X10: =ROUND(VLOOKUP($R10,'data for u-p-charts'!$A$2:$F$5000,X$5,FALSE),2) ->  | Y10: =CONCATENATE(Z$7,$Q10,'SSI Data and Charts'!$B$1) -> SSIHIP201702Scotland | Z10: =ROUND(VLOOKUP($Y10,'data for u-p-charts'!$A$2:$F$5000,Z$5,FALSE),2) ->  | AA10: =ROUND(VLOOKUP($Y10,'data for u-p-charts'!$A$2:$F$5000,AA$5,FALSE),2) ->  | AB10: =ROUND(VLOOKUP($Y10,'data for u-p-charts'!$A$2:$F$5000,AB$5,FALSE),2) ->  | AC10: =ROUND(VLOOKUP($Y10,'data for u-p-charts'!$A$2:$F$5000,AC$5,FALSE),2) -> 
A11: 201404 | B11: 2014-12-19 | C11: =CONCATENATE(A11,'SSI Data and Charts'!B$1) -> 201404Scotland | D11: =IFERROR(VLOOKUP(CONCATENATE(D$5,$C11),'trend data'!$A$2:$O$11161,D$6,FALSE),"-") -> 61 | E11: =IFERROR(ROUND(VLOOKUP(CONCATENATE(E$5,$C11),'trend data'!$A$2:$O$11161,E$6,FALSE),3),"-") -> 1.432 | F11: =IFERROR(ROUND(VLOOKUP(CONCATENATE(F$5,$C11),'trend data'!$A$2:$O$11161,F$6,FALSE),3),"-") -> 1.116 | G11: =IFERROR(ROUND(VLOOKUP(CONCATENATE(G$5,$C11),'trend data'!$A$2:$O$11161,G$6,FALSE),3),"-") -> 1.835 | H11: =IFERROR(VLOOKUP(CONCATENATE(H$5,$C11),'trend data'!$A$2:$O$11161,H$6,FALSE),"-") -> 12 | I11: =IFERROR(ROUND(VLOOKUP(CONCATENATE(I$5,$C11),'trend data'!$A$2:$O$11161,I$6,FALSE),3),"-") -> 0.608 | J11: =IFERROR(ROUND(VLOOKUP(CONCATENATE(J$5,$C11),'trend data'!$A$2:$O$11161,J$6,FALSE),3),"-") -> 0.348 | K11: =IFERROR(ROUND(VLOOKUP(CONCATENATE(K$5,$C11),'trend data'!$A$2:$O$11161,K$6,FALSE),3),"-") -> 1.06 | L11: =IFERROR(VLOOKUP(CONCATENATE(L$5,$C11),'trend data'!$A$2:$O$11161,L$6,FALSE),"-") -> 4261 | M11: =IFERROR(VLOOKUP(CONCATENATE(M$5,$C11),'trend data'!$A$2:$O$11161,M$6,FALSE),"-") -> 1974 | Q11: 201703 | R11: =CONCATENATE(U$7,$Q11,'SSI Data and Charts'!B$1) -> SSICSEC201703Scotland | S11: 3 | T11: 2017-09-24 | U11: =ROUND(VLOOKUP($R11,'data for u-p-charts'!$A$2:$F$5000,U$5,FALSE),2) ->  | V11: =ROUND(VLOOKUP($R11,'data for u-p-charts'!$A$2:$F$5000,V$5,FALSE),2) ->  | W11: =ROUND(VLOOKUP($R11,'data for u-p-charts'!$A$2:$F$5000,W$5,FALSE),2) ->  | X11: =ROUND(VLOOKUP($R11,'data for u-p-charts'!$A$2:$F$5000,X$5,FALSE),2) ->  | Y11: =CONCATENATE(Z$7,$Q11,'SSI Data and Charts'!$B$1) -> SSIHIP201703Scotland | Z11: =ROUND(VLOOKUP($Y11,'data for u-p-charts'!$A$2:$F$5000,Z$5,FALSE),2) ->  | AA11: =ROUND(VLOOKUP($Y11,'data for u-p-charts'!$A$2:$F$5000,AA$5,FALSE),2) ->  | AB11: =ROUND(VLOOKUP($Y11,'data for u-p-charts'!$A$2:$F$5000,AB$5,FALSE),2) ->  | AC11: =ROUND(VLOOKUP($Y11,'data for u-p-charts'!$A$2:$F$5000,AC$5,FALSE),2) -> 
A12: 201501 | B12: 2015-03-24 | C12: =CONCATENATE(A12,'SSI Data and Charts'!B$1) -> 201501Scotland | D12: =IFERROR(VLOOKUP(CONCATENATE(D$5,$C12),'trend data'!$A$2:$O$11161,D$6,FALSE),"-") -> 47 | E12: =IFERROR(ROUND(VLOOKUP(CONCATENATE(E$5,$C12),'trend data'!$A$2:$O$11161,E$6,FALSE),3),"-") -> 1.185 | F12: =IFERROR(ROUND(VLOOKUP(CONCATENATE(F$5,$C12),'trend data'!$A$2:$O$11161,F$6,FALSE),3),"-") -> 0.892 | G12: =IFERROR(ROUND(VLOOKUP(CONCATENATE(G$5,$C12),'trend data'!$A$2:$O$11161,G$6,FALSE),3),"-") -> 1.572 | H12: =IFERROR(VLOOKUP(CONCATENATE(H$5,$C12),'trend data'!$A$2:$O$11161,H$6,FALSE),"-") -> 18 | I12: =IFERROR(ROUND(VLOOKUP(CONCATENATE(I$5,$C12),'trend data'!$A$2:$O$11161,I$6,FALSE),3),"-") -> 0.919 | J12: =IFERROR(ROUND(VLOOKUP(CONCATENATE(J$5,$C12),'trend data'!$A$2:$O$11161,J$6,FALSE),3),"-") -> 0.582 | K12: =IFERROR(ROUND(VLOOKUP(CONCATENATE(K$5,$C12),'trend data'!$A$2:$O$11161,K$6,FALSE),3),"-") -> 1.448 | L12: =IFERROR(VLOOKUP(CONCATENATE(L$5,$C12),'trend data'!$A$2:$O$11161,L$6,FALSE),"-") -> 3966 | M12: =IFERROR(VLOOKUP(CONCATENATE(M$5,$C12),'trend data'!$A$2:$O$11161,M$6,FALSE),"-") -> 1959 | Q12: 201704 | R12: =CONCATENATE(U$7,$Q12,'SSI Data and Charts'!B$1) -> SSICSEC201704Scotland | S12: 4 | T12: 2017-12-25 | U12: =ROUND(VLOOKUP($R12,'data for u-p-charts'!$A$2:$F$5000,U$5,FALSE),2) -> 1.56 | V12: =ROUND(VLOOKUP($R12,'data for u-p-charts'!$A$2:$F$5000,V$5,FALSE),2) -> 1.34 | W12: =ROUND(VLOOKUP($R12,'data for u-p-charts'!$A$2:$F$5000,W$5,FALSE),2) -> 1.7 | X12: =ROUND(VLOOKUP($R12,'data for u-p-charts'!$A$2:$F$5000,X$5,FALSE),2) -> 1.87 | Y12: =CONCATENATE(Z$7,$Q12,'SSI Data and Charts'!$B$1) -> SSIHIP201704Scotland | Z12: =ROUND(VLOOKUP($Y12,'data for u-p-charts'!$A$2:$F$5000,Z$5,FALSE),2) -> 0.77 | AA12: =ROUND(VLOOKUP($Y12,'data for u-p-charts'!$A$2:$F$5000,AA$5,FALSE),2) -> 0.66 | AB12: =ROUND(VLOOKUP($Y12,'data for u-p-charts'!$A$2:$F$5000,AB$5,FALSE),2) -> 1.01 | AC12: =ROUND(VLOOKUP($Y12,'data for u-p-charts'!$A$2:$F$5000,AC$5,FALSE),2) -> 1.19
A13: 201502 | B13: 2015-06-24 | C13: =CONCATENATE(A13,'SSI Data and Charts'!B$1) -> 201502Scotland | D13: =IFERROR(VLOOKUP(CONCATENATE(D$5,$C13),'trend data'!$A$2:$O$11161,D$6,FALSE),"-") -> 56 | E13: =IFERROR(ROUND(VLOOKUP(CONCATENATE(E$5,$C13),'trend data'!$A$2:$O$11161,E$6,FALSE),3),"-") -> 1.285 | F13: =IFERROR(ROUND(VLOOKUP(CONCATENATE(F$5,$C13),'trend data'!$A$2:$O$11161,F$6,FALSE),3),"-") -> 0.991 | G13: =IFERROR(ROUND(VLOOKUP(CONCATENATE(G$5,$C13),'trend data'!$A$2:$O$11161,G$6,FALSE),3),"-") -> 1.665 | H13: =IFERROR(VLOOKUP(CONCATENATE(H$5,$C13),'trend data'!$A$2:$O$11161,H$6,FALSE),"-") -> 18 | I13: =IFERROR(ROUND(VLOOKUP(CONCATENATE(I$5,$C13),'trend data'!$A$2:$O$11161,I$6,FALSE),3),"-") -> 0.834 | J13: =IFERROR(ROUND(VLOOKUP(CONCATENATE(J$5,$C13),'trend data'!$A$2:$O$11161,J$6,FALSE),3),"-") -> 0.528 | K13: =IFERROR(ROUND(VLOOKUP(CONCATENATE(K$5,$C13),'trend data'!$A$2:$O$11161,K$6,FALSE),3),"-") -> 1.314 | L13: =IFERROR(VLOOKUP(CONCATENATE(L$5,$C13),'trend data'!$A$2:$O$11161,L$6,FALSE),"-") -> 4358 | M13: =IFERROR(VLOOKUP(CONCATENATE(M$5,$C13),'trend data'!$A$2:$O$11161,M$6,FALSE),"-") -> 2159 | Q13: 201801 | R13: =CONCATENATE(U$7,$Q13,'SSI Data and Charts'!B$1) -> SSICSEC201801Scotland | S13: 5 | T13: 2018-03-27 | U13: =ROUND(VLOOKUP($R13,'data for u-p-charts'!$A$2:$F$5000,U$5,FALSE),2) -> 1.61 | V13: =ROUND(VLOOKUP($R13,'data for u-p-charts'!$A$2:$F$5000,V$5,FALSE),2) -> 1.34 | W13: =ROUND(VLOOKUP($R13,'data for u-p-charts'!$A$2:$F$5000,W$5,FALSE),2) -> 1.71 | X13: =ROUND(VLOOKUP($R13,'data for u-p-charts'!$A$2:$F$5000,X$5,FALSE),2) -> 1.89 | Y13: =CONCATENATE(Z$7,$Q13,'SSI Data and Charts'!$B$1) -> SSIHIP201801Scotland | Z13: =ROUND(VLOOKUP($Y13,'data for u-p-charts'!$A$2:$F$5000,Z$5,FALSE),2) -> 0.85 | AA13: =ROUND(VLOOKUP($Y13,'data for u-p-charts'!$A$2:$F$5000,AA$5,FALSE),2) -> 0.66 | AB13: =ROUND(VLOOKUP($Y13,'data for u-p-charts'!$A$2:$F$5000,AB$5,FALSE),2) -> 1.02 | AC13: =ROUND(VLOOKUP($Y13,'data for u-p-charts'!$A$2:$F$5000,AC$5,FALSE),2) -> 1.2
A14: 201503 | B14: 2015-09-24 | C14: =CONCATENATE(A14,'SSI Data and Charts'!B$1) -> 201503Scotland | D14: =IFERROR(VLOOKUP(CONCATENATE(D$5,$C14),'trend data'!$A$2:$O$11161,D$6,FALSE),"-") -> 56 | E14: =IFERROR(ROUND(VLOOKUP(CONCATENATE(E$5,$C14),'trend data'!$A$2:$O$11161,E$6,FALSE),3),"-") -> 1.241 | F14: =IFERROR(ROUND(VLOOKUP(CONCATENATE(F$5,$C14),'trend data'!$A$2:$O$11161,F$6,FALSE),3),"-") -> 0.957 | G14: =IFERROR(ROUND(VLOOKUP(CONCATENATE(G$5,$C14),'trend data'!$A$2:$O$11161,G$6,FALSE),3),"-") -> 1.609 | H14: =IFERROR(VLOOKUP(CONCATENATE(H$5,$C14),'trend data'!$A$2:$O$11161,H$6,FALSE),"-") -> 10 | I14: =IFERROR(ROUND(VLOOKUP(CONCATENATE(I$5,$C14),'trend data'!$A$2:$O$11161,I$6,FALSE),3),"-") -> 0.468 | J14: =IFERROR(ROUND(VLOOKUP(CONCATENATE(J$5,$C14),'trend data'!$A$2:$O$11161,J$6,FALSE),3),"-") -> 0.255 | K14: =IFERROR(ROUND(VLOOKUP(CONCATENATE(K$5,$C14),'trend data'!$A$2:$O$11161,K$6,FALSE),3),"-") -> 0.86 | L14: =IFERROR(VLOOKUP(CONCATENATE(L$5,$C14),'trend data'!$A$2:$O$11161,L$6,FALSE),"-") -> 4511 | M14: =IFERROR(VLOOKUP(CONCATENATE(M$5,$C14),'trend data'!$A$2:$O$11161,M$6,FALSE),"-") -> 2135 | Q14: 201802 | R14: =CONCATENATE(U$7,$Q14,'SSI Data and Charts'!B$1) -> SSICSEC201802Scotland | S14: 6 | T14: 2018-06-27 | U14: =ROUND(VLOOKUP($R14,'data for u-p-charts'!$A$2:$F$5000,U$5,FALSE),2) -> 1.46 | V14: =ROUND(VLOOKUP($R14,'data for u-p-charts'!$A$2:$F$5000,V$5,FALSE),2) -> 1.34 | W14: =ROUND(VLOOKUP($R14,'data for u-p-charts'!$A$2:$F$5000,W$5,FALSE),2) -> 1.7 | X14: =ROUND(VLOOKUP($R14,'data for u-p-charts'!$A$2:$F$5000,X$5,FALSE),2) -> 1.88 | Y14: =CONCATENATE(Z$7,$Q14,'SSI Data and Charts'!$B$1) -> SSIHIP201802Scotland | Z14: =ROUND(VLOOKUP($Y14,'data for u-p-charts'!$A$2:$F$5000,Z$5,FALSE),2) -> 0.79 | AA14: =ROUND(VLOOKUP($Y14,'data for u-p-charts'!$A$2:$F$5000,AA$5,FALSE),2) -> 0.66 | AB14: =ROUND(VLOOKUP($Y14,'data for u-p-charts'!$A$2:$F$5000,AB$5,FALSE),2) -> 0.99 | AC14: =ROUND(VLOOKUP($Y14,'data for u-p-charts'!$A$2:$F$5000,AC$5,FALSE),2) -> 1.16
A15: 201504 | B15: 2015-12-24 | C15: =CONCATENATE(A15,'SSI Data and Charts'!B$1) -> 201504Scotland | D15: =IFERROR(VLOOKUP(CONCATENATE(D$5,$C15),'trend data'!$A$2:$O$11161,D$6,FALSE),"-") -> 60 | E15: =IFERROR(ROUND(VLOOKUP(CONCATENATE(E$5,$C15),'trend data'!$A$2:$O$11161,E$6,FALSE),3),"-") -> 1.395 | F15: =IFERROR(ROUND(VLOOKUP(CONCATENATE(F$5,$C15),'trend data'!$A$2:$O$11161,F$6,FALSE),3),"-") -> 1.086 | G15: =IFERROR(ROUND(VLOOKUP(CONCATENATE(G$5,$C15),'trend data'!$A$2:$O$11161,G$6,FALSE),3),"-") -> 1.792 | H15: =IFERROR(VLOOKUP(CONCATENATE(H$5,$C15),'trend data'!$A$2:$O$11161,H$6,FALSE),"-") -> 15 | I15: =IFERROR(ROUND(VLOOKUP(CONCATENATE(I$5,$C15),'trend data'!$A$2:$O$11161,I$6,FALSE),3),"-") -> 0.685 | J15: =IFERROR(ROUND(VLOOKUP(CONCATENATE(J$5,$C15),'trend data'!$A$2:$O$11161,J$6,FALSE),3),"-") -> 0.415 | K15: =IFERROR(ROUND(VLOOKUP(CONCATENATE(K$5,$C15),'trend data'!$A$2:$O$11161,K$6,FALSE),3),"-") -> 1.127 | L15: =IFERROR(VLOOKUP(CONCATENATE(L$5,$C15),'trend data'!$A$2:$O$11161,L$6,FALSE),"-") -> 4300 | M15: =IFERROR(VLOOKUP(CONCATENATE(M$5,$C15),'trend data'!$A$2:$O$11161,M$6,FALSE),"-") -> 2191 | Q15: 201803 | R15: =CONCATENATE(U$7,$Q15,'SSI Data and Charts'!B$1) -> SSICSEC201803Scotland | S15: 7 | T15: 2018-09-27 | U15: =ROUND(VLOOKUP($R15,'data for u-p-charts'!$A$2:$F$5000,U$5,FALSE),2) -> 1.54 | V15: =ROUND(VLOOKUP($R15,'data for u-p-charts'!$A$2:$F$5000,V$5,FALSE),2) -> 1.34 | W15: =ROUND(VLOOKUP($R15,'data for u-p-charts'!$A$2:$F$5000,W$5,FALSE),2) -> 1.69 | X15: =ROUND(VLOOKUP($R15,'data for u-p-charts'!$A$2:$F$5000,X$5,FALSE),2) -> 1.87 | Y15: =CONCATENATE(Z$7,$Q15,'SSI Data and Charts'!$B$1) -> SSIHIP201803Scotland | Z15: =ROUND(VLOOKUP($Y15,'data for u-p-charts'!$A$2:$F$5000,Z$5,FALSE),2) -> 0.6 | AA15: =ROUND(VLOOKUP($Y15,'data for u-p-charts'!$A$2:$F$5000,AA$5,FALSE),2) -> 0.66 | AB15: =ROUND(VLOOKUP($Y15,'data for u-p-charts'!$A$2:$F$5000,AB$5,FALSE),2) -> 1 | AC15: =ROUND(VLOOKUP($Y15,'data for u-p-charts'!$A$2:$F$5000,AC$5,FALSE),2) -> 1.18
A16: 201601 | B16: 2016-03-24 | C16: =CONCATENATE(A16,'SSI Data and Charts'!B$1) -> 201601Scotland | D16: =IFERROR(VLOOKUP(CONCATENATE(D$5,$C16),'trend data'!$A$2:$O$11161,D$6,FALSE),"-") -> 58 | E16: =IFERROR(ROUND(VLOOKUP(CONCATENATE(E$5,$C16),'trend data'!$A$2:$O$11161,E$6,FALSE),3),"-") -> 1.442 | F16: =IFERROR(ROUND(VLOOKUP(CONCATENATE(F$5,$C16),'trend data'!$A$2:$O$11161,F$6,FALSE),3),"-") -> 1.117 | G16: =IFERROR(ROUND(VLOOKUP(CONCATENATE(G$5,$C16),'trend data'!$A$2:$O$11161,G$6,FALSE),3),"-") -> 1.859 | H16: =IFERROR(VLOOKUP(CONCATENATE(H$5,$C16),'trend data'!$A$2:$O$11161,H$6,FALSE),"-") -> 7 | I16: =IFERROR(ROUND(VLOOKUP(CONCATENATE(I$5,$C16),'trend data'!$A$2:$O$11161,I$6,FALSE),3),"-") -> 0.322 | J16: =IFERROR(ROUND(VLOOKUP(CONCATENATE(J$5,$C16),'trend data'!$A$2:$O$11161,J$6,FALSE),3),"-") -> 0.156 | K16: =IFERROR(ROUND(VLOOKUP(CONCATENATE(K$5,$C16),'trend data'!$A$2:$O$11161,K$6,FALSE),3),"-") -> 0.663 | L16: =IFERROR(VLOOKUP(CONCATENATE(L$5,$C16),'trend data'!$A$2:$O$11161,L$6,FALSE),"-") -> 4023 | M16: =IFERROR(VLOOKUP(CONCATENATE(M$5,$C16),'trend data'!$A$2:$O$11161,M$6,FALSE),"-") -> 2173 | Q16: 201804 | R16: =CONCATENATE(U$7,$Q16,'SSI Data and Charts'!B$1) -> SSICSEC201804Scotland | S16: 8 | T16: 2018-12-28 | U16: =ROUND(VLOOKUP($R16,'data for u-p-charts'!$A$2:$F$5000,U$5,FALSE),2) -> 1.36 | V16: =ROUND(VLOOKUP($R16,'data for u-p-charts'!$A$2:$F$5000,V$5,FALSE),2) -> 1.34 | W16: =ROUND(VLOOKUP($R16,'data for u-p-charts'!$A$2:$F$5000,W$5,FALSE),2) -> 1.69 | X16: =ROUND(VLOOKUP($R16,'data for u-p-charts'!$A$2:$F$5000,X$5,FALSE),2) -> 1.87 | Y16: =CONCATENATE(Z$7,$Q16,'SSI Data and Charts'!$B$1) -> SSIHIP201804Scotland | Z16: =ROUND(VLOOKUP($Y16,'data for u-p-charts'!$A$2:$F$5000,Z$5,FALSE),2) -> 0.7 | AA16: =ROUND(VLOOKUP($Y16,'data for u-p-charts'!$A$2:$F$5000,AA$5,FALSE),2) -> 0.66 | AB16: =ROUND(VLOOKUP($Y16,'data for u-p-charts'!$A$2:$F$5000,AB$5,FALSE),2) -> 0.99 | AC16: =ROUND(VLOOKUP($Y16,'data for u-p-charts'!$A$2:$F$5000,AC$5,FALSE),2) -> 1.16
A17: 201602 | B17: 2016-06-24 | C17: =CONCATENATE(A17,'SSI Data and Charts'!B$1) -> 201602Scotland | D17: =IFERROR(VLOOKUP(CONCATENATE(D$5,$C17),'trend data'!$A$2:$O$11161,D$6,FALSE),"-") -> 78 | E17: =IFERROR(ROUND(VLOOKUP(CONCATENATE(E$5,$C17),'trend data'!$A$2:$O$11161,E$6,FALSE),3),"-") -> 1.754 | F17: =IFERROR(ROUND(VLOOKUP(CONCATENATE(F$5,$C17),'trend data'!$A$2:$O$11161,F$6,FALSE),3),"-") -> 1.407 | G17: =IFERROR(ROUND(VLOOKUP(CONCATENATE(G$5,$C17),'trend data'!$A$2:$O$11161,G$6,FALSE),3),"-") -> 2.183 | H17: =IFERROR(VLOOKUP(CONCATENATE(H$5,$C17),'trend data'!$A$2:$O$11161,H$6,FALSE),"-") -> 17 | I17: =IFERROR(ROUND(VLOOKUP(CONCATENATE(I$5,$C17),'trend data'!$A$2:$O$11161,I$6,FALSE),3),"-") -> 0.733 | J17: =IFERROR(ROUND(VLOOKUP(CONCATENATE(J$5,$C17),'trend data'!$A$2:$O$11161,J$6,FALSE),3),"-") -> 0.458 | K17: =IFERROR(ROUND(VLOOKUP(CONCATENATE(K$5,$C17),'trend data'!$A$2:$O$11161,K$6,FALSE),3),"-") -> 1.171 | L17: =IFERROR(VLOOKUP(CONCATENATE(L$5,$C17),'trend data'!$A$2:$O$11161,L$6,FALSE),"-") -> 4448 | M17: =IFERROR(VLOOKUP(CONCATENATE(M$5,$C17),'trend data'!$A$2:$O$11161,M$6,FALSE),"-") -> 2318 | Q17: 201901 | R17: =CONCATENATE(U$7,$Q17,'SSI Data and Charts'!B$1) -> SSICSEC201901Scotland | S17: 9 | T17: 2019-03-30 | U17: =ROUND(VLOOKUP($R17,'data for u-p-charts'!$A$2:$F$5000,U$5,FALSE),2) -> 1.58 | V17: =ROUND(VLOOKUP($R17,'data for u-p-charts'!$A$2:$F$5000,V$5,FALSE),2) -> 1.34 | W17: =ROUND(VLOOKUP($R17,'data for u-p-charts'!$A$2:$F$5000,W$5,FALSE),2) -> 1.7 | X17: =ROUND(VLOOKUP($R17,'data for u-p-charts'!$A$2:$F$5000,X$5,FALSE),2) -> 1.89 | Y17: =CONCATENATE(Z$7,$Q17,'SSI Data and Charts'!$B$1) -> SSIHIP201901Scotland | Z17: =ROUND(VLOOKUP($Y17,'data for u-p-charts'!$A$2:$F$5000,Z$5,FALSE),2) -> 0.37 | AA17: =ROUND(VLOOKUP($Y17,'data for u-p-charts'!$A$2:$F$5000,AA$5,FALSE),2) -> 0.66 | AB17: =ROUND(VLOOKUP($Y17,'data for u-p-charts'!$A$2:$F$5000,AB$5,FALSE),2) -> 1 | AC17: =ROUND(VLOOKUP($Y17,'data for u-p-charts'!$A$2:$F$5000,AC$5,FALSE),2) -> 1.18
A18: 201603 | B18: 2016-09-24 | C18: =CONCATENATE(A18,'SSI Data and Charts'!B$1) -> 201603Scotland | D18: =IFERROR(VLOOKUP(CONCATENATE(D$5,$C18),'trend data'!$A$2:$O$11161,D$6,FALSE),"-") -> 71 | E18: =IFERROR(ROUND(VLOOKUP(CONCATENATE(E$5,$C18),'trend data'!$A$2:$O$11161,E$6,FALSE),3),"-") -> 1.597 | F18: =IFERROR(ROUND(VLOOKUP(CONCATENATE(F$5,$C18),'trend data'!$A$2:$O$11161,F$6,FALSE),3),"-") -> 1.268 | G18: =IFERROR(ROUND(VLOOKUP(CONCATENATE(G$5,$C18),'trend data'!$A$2:$O$11161,G$6,FALSE),3),"-") -> 2.009 | H18: =IFERROR(VLOOKUP(CONCATENATE(H$5,$C18),'trend data'!$A$2:$O$11161,H$6,FALSE),"-") -> 14 | I18: =IFERROR(ROUND(VLOOKUP(CONCATENATE(I$5,$C18),'trend data'!$A$2:$O$11161,I$6,FALSE),3),"-") -> 0.65 | J18: =IFERROR(ROUND(VLOOKUP(CONCATENATE(J$5,$C18),'trend data'!$A$2:$O$11161,J$6,FALSE),3),"-") -> 0.388 | K18: =IFERROR(ROUND(VLOOKUP(CONCATENATE(K$5,$C18),'trend data'!$A$2:$O$11161,K$6,FALSE),3),"-") -> 1.089 | L18: =IFERROR(VLOOKUP(CONCATENATE(L$5,$C18),'trend data'!$A$2:$O$11161,L$6,FALSE),"-") -> 4446 | M18: =IFERROR(VLOOKUP(CONCATENATE(M$5,$C18),'trend data'!$A$2:$O$11161,M$6,FALSE),"-") -> 2153 | Q18: 201902 | R18: =CONCATENATE(U$7,$Q18,'SSI Data and Charts'!B$1) -> SSICSEC201902Scotland | S18: 10 | T18: 2019-06-30 | U18: =ROUND(VLOOKUP($R18,'data for u-p-charts'!$A$2:$F$5000,U$5,FALSE),2) -> 1.04 | V18: =ROUND(VLOOKUP($R18,'data for u-p-charts'!$A$2:$F$5000,V$5,FALSE),2) -> 1.34 | W18: =ROUND(VLOOKUP($R18,'data for u-p-charts'!$A$2:$F$5000,W$5,FALSE),2) -> 1.7 | X18: =ROUND(VLOOKUP($R18,'data for u-p-charts'!$A$2:$F$5000,X$5,FALSE),2) -> 1.88 | Y18: =CONCATENATE(Z$7,$Q18,'SSI Data and Charts'!$B$1) -> SSIHIP201902Scotland | Z18: =ROUND(VLOOKUP($Y18,'data for u-p-charts'!$A$2:$F$5000,Z$5,FALSE),2) -> 0.44 | AA18: =ROUND(VLOOKUP($Y18,'data for u-p-charts'!$A$2:$F$5000,AA$5,FALSE),2) -> 0.66 | AB18: =ROUND(VLOOKUP($Y18,'data for u-p-charts'!$A$2:$F$5000,AB$5,FALSE),2) -> 0.99 | AC18: =ROUND(VLOOKUP($Y18,'data for u-p-charts'!$A$2:$F$5000,AC$5,FALSE),2) -> 1.16
A19: 201604 | B19: 2016-12-24 | C19: =CONCATENATE(A19,'SSI Data and Charts'!B$1) -> 201604Scotland | D19: =IFERROR(VLOOKUP(CONCATENATE(D$5,$C19),'trend data'!$A$2:$O$11161,D$6,FALSE),"-") -> 51 | E19: =IFERROR(ROUND(VLOOKUP(CONCATENATE(E$5,$C19),'trend data'!$A$2:$O$11161,E$6,FALSE),3),"-") -> 1.198 | F19: =IFERROR(ROUND(VLOOKUP(CONCATENATE(F$5,$C19),'trend data'!$A$2:$O$11161,F$6,FALSE),3),"-") -> 0.912 | G19: =IFERROR(ROUND(VLOOKUP(CONCATENATE(G$5,$C19),'trend data'!$A$2:$O$11161,G$6,FALSE),3),"-") -> 1.571 | H19: =IFERROR(VLOOKUP(CONCATENATE(H$5,$C19),'trend data'!$A$2:$O$11161,H$6,FALSE),"-") -> 17 | I19: =IFERROR(ROUND(VLOOKUP(CONCATENATE(I$5,$C19),'trend data'!$A$2:$O$11161,I$6,FALSE),3),"-") -> 0.764 | J19: =IFERROR(ROUND(VLOOKUP(CONCATENATE(J$5,$C19),'trend data'!$A$2:$O$11161,J$6,FALSE),3),"-") -> 0.477 | K19: =IFERROR(ROUND(VLOOKUP(CONCATENATE(K$5,$C19),'trend data'!$A$2:$O$11161,K$6,FALSE),3),"-") -> 1.22 | L19: =IFERROR(VLOOKUP(CONCATENATE(L$5,$C19),'trend data'!$A$2:$O$11161,L$6,FALSE),"-") -> 4258 | M19: =IFERROR(VLOOKUP(CONCATENATE(M$5,$C19),'trend data'!$A$2:$O$11161,M$6,FALSE),"-") -> 2226 | Q19: 201903 | R19: =CONCATENATE(U$7,$Q19,'SSI Data and Charts'!B$1) -> SSICSEC201903Scotland | S19: 11 | T19: =T20-92 -> 2019-09-30 | U19: =ROUND(VLOOKUP($R19,'data for u-p-charts'!$A$2:$F$5000,U$5,FALSE),2) -> 1.16 | V19: =ROUND(VLOOKUP($R19,'data for u-p-charts'!$A$2:$F$5000,V$5,FALSE),2) -> 1.34 | W19: =ROUND(VLOOKUP($R19,'data for u-p-charts'!$A$2:$F$5000,W$5,FALSE),2) -> 1.69 | X19: =ROUND(VLOOKUP($R19,'data for u-p-charts'!$A$2:$F$5000,X$5,FALSE),2) -> 1.86 | Y19: =CONCATENATE(Z$7,$Q19,'SSI Data and Charts'!$B$1) -> SSIHIP201903Scotland | Z19: =ROUND(VLOOKUP($Y19,'data for u-p-charts'!$A$2:$F$5000,Z$5,FALSE),2) -> 0.8 | AA19: =ROUND(VLOOKUP($Y19,'data for u-p-charts'!$A$2:$F$5000,AA$5,FALSE),2) -> 0.66 | AB19: =ROUND(VLOOKUP($Y19,'data for u-p-charts'!$A$2:$F$5000,AB$5,FALSE),2) -> 1.01 | AC19: =ROUND(VLOOKUP($Y19,'data for u-p-charts'!$A$2:$F$5000,AC$5,FALSE),2) -> 1.18
A20: 201701 | B20: 2017-03-01 | C20: =CONCATENATE(A20,'SSI Data and Charts'!B$1) -> 201701Scotland | D20: =IFERROR(VLOOKUP(CONCATENATE(D$5,$C20),'trend data'!$A$2:$O$11161,D$6,FALSE),"-") -> 58 | E20: =IFERROR(ROUND(VLOOKUP(CONCATENATE(E$5,$C20),'trend data'!$A$2:$O$11161,E$6,FALSE),3),"-") -> 1.433 | F20: =IFERROR(ROUND(VLOOKUP(CONCATENATE(F$5,$C20),'trend data'!$A$2:$O$11161,F$6,FALSE),3),"-") -> 1.11 | G20: =IFERROR(ROUND(VLOOKUP(CONCATENATE(G$5,$C20),'trend data'!$A$2:$O$11161,G$6,FALSE),3),"-") -> 1.848 | H20: =IFERROR(VLOOKUP(CONCATENATE(H$5,$C20),'trend data'!$A$2:$O$11161,H$6,FALSE),"-") -> 12 | I20: =IFERROR(ROUND(VLOOKUP(CONCATENATE(I$5,$C20),'trend data'!$A$2:$O$11161,I$6,FALSE),3),"-") -> 0.555 | J20: =IFERROR(ROUND(VLOOKUP(CONCATENATE(J$5,$C20),'trend data'!$A$2:$O$11161,J$6,FALSE),3),"-") -> 0.317 | K20: =IFERROR(ROUND(VLOOKUP(CONCATENATE(K$5,$C20),'trend data'!$A$2:$O$11161,K$6,FALSE),3),"-") -> 0.967 | L20: =IFERROR(VLOOKUP(CONCATENATE(L$5,$C20),'trend data'!$A$2:$O$11161,L$6,FALSE),"-") -> 4047 | M20: =IFERROR(VLOOKUP(CONCATENATE(M$5,$C20),'trend data'!$A$2:$O$11161,M$6,FALSE),"-") -> 2164 | Q20: 201904 | R20: =CONCATENATE(U$7,$Q20,'SSI Data and Charts'!B$1) -> SSICSEC201904Scotland | S20: 12 | T20: =T5 -> 2019-12-31 | U20: =ROUND(VLOOKUP($R20,'data for u-p-charts'!$A$2:$F$5000,U$5,FALSE),2) -> 0.85 | V20: =ROUND(VLOOKUP($R20,'data for u-p-charts'!$A$2:$F$5000,V$5,FALSE),2) -> 1.34 | W20: =ROUND(VLOOKUP($R20,'data for u-p-charts'!$A$2:$F$5000,W$5,FALSE),2) -> 1.7 | X20: =ROUND(VLOOKUP($R20,'data for u-p-charts'!$A$2:$F$5000,X$5,FALSE),2) -> 1.88 | Y20: =CONCATENATE(Z$7,$Q20,'SSI Data and Charts'!$B$1) -> SSIHIP201904Scotland | Z20: =ROUND(VLOOKUP($Y20,'data for u-p-charts'!$A$2:$F$5000,Z$5,FALSE),2) -> 0.79 | AA20: =ROUND(VLOOKUP($Y20,'data for u-p-charts'!$A$2:$F$5000,AA$5,FALSE),2) -> 0.66 | AB20: =ROUND(VLOOKUP($Y20,'data for u-p-charts'!$A$2:$F$5000,AB$5,FALSE),2) -> 1 | AC20: =ROUND(VLOOKUP($Y20,'data for u-p-charts'!$A$2:$F$5000,AC$5,FALSE),2) -> 1.18
A21: 201702 | B21: 2017-06-01 | C21: =CONCATENATE(A21,'SSI Data and Charts'!B$1) -> 201702Scotland | D21: =IFERROR(VLOOKUP(CONCATENATE(D$5,$C21),'trend data'!$A$2:$O$11161,D$6,FALSE),"-") -> 51 | E21: =IFERROR(ROUND(VLOOKUP(CONCATENATE(E$5,$C21),'trend data'!$A$2:$O$11161,E$6,FALSE),3),"-") -> 1.239 | F21: =IFERROR(ROUND(VLOOKUP(CONCATENATE(F$5,$C21),'trend data'!$A$2:$O$11161,F$6,FALSE),3),"-") -> 0.944 | G21: =IFERROR(ROUND(VLOOKUP(CONCATENATE(G$5,$C21),'trend data'!$A$2:$O$11161,G$6,FALSE),3),"-") -> 1.626 | H21: =IFERROR(VLOOKUP(CONCATENATE(H$5,$C21),'trend data'!$A$2:$O$11161,H$6,FALSE),"-") -> 19 | I21: =IFERROR(ROUND(VLOOKUP(CONCATENATE(I$5,$C21),'trend data'!$A$2:$O$11161,I$6,FALSE),3),"-") -> 0.826 | J21: =IFERROR(ROUND(VLOOKUP(CONCATENATE(J$5,$C21),'trend data'!$A$2:$O$11161,J$6,FALSE),3),"-") -> 0.529 | K21: =IFERROR(ROUND(VLOOKUP(CONCATENATE(K$5,$C21),'trend data'!$A$2:$O$11161,K$6,FALSE),3),"-") -> 1.286 | L21: =IFERROR(VLOOKUP(CONCATENATE(L$5,$C21),'trend data'!$A$2:$O$11161,L$6,FALSE),"-") -> 4115 | M21: =IFERROR(VLOOKUP(CONCATENATE(M$5,$C21),'trend data'!$A$2:$O$11161,M$6,FALSE),"-") -> 2301
A22: 201703 | B22: 2017-09-01 | C22: =CONCATENATE(A22,'SSI Data and Charts'!B$1) -> 201703Scotland | D22: =IFERROR(VLOOKUP(CONCATENATE(D$5,$C22),'trend data'!$A$2:$O$11161,D$6,FALSE),"-") -> 58 | E22: =IFERROR(ROUND(VLOOKUP(CONCATENATE(E$5,$C22),'trend data'!$A$2:$O$11161,E$6,FALSE),3),"-") -> 1.285 | F22: =IFERROR(ROUND(VLOOKUP(CONCATENATE(F$5,$C22),'trend data'!$A$2:$O$11161,F$6,FALSE),3),"-") -> 0.995 | G22: =IFERROR(ROUND(VLOOKUP(CONCATENATE(G$5,$C22),'trend data'!$A$2:$O$11161,G$6,FALSE),3),"-") -> 1.657 | H22: =IFERROR(VLOOKUP(CONCATENATE(H$5,$C22),'trend data'!$A$2:$O$11161,H$6,FALSE),"-") -> 9 | I22: =IFERROR(ROUND(VLOOKUP(CONCATENATE(I$5,$C22),'trend data'!$A$2:$O$11161,I$6,FALSE),3),"-") -> 0.433 | J22: =IFERROR(ROUND(VLOOKUP(CONCATENATE(J$5,$C22),'trend data'!$A$2:$O$11161,J$6,FALSE),3),"-") -> 0.228 | K22: =IFERROR(ROUND(VLOOKUP(CONCATENATE(K$5,$C22),'trend data'!$A$2:$O$11161,K$6,FALSE),3),"-") -> 0.822 | L22: =IFERROR(VLOOKUP(CONCATENATE(L$5,$C22),'trend data'!$A$2:$O$11161,L$6,FALSE),"-") -> 4514 | M22: =IFERROR(VLOOKUP(CONCATENATE(M$5,$C22),'trend data'!$A$2:$O$11161,M$6,FALSE),"-") -> 2077
A23: 201704 | B23: 2017-12-01 | C23: =CONCATENATE(A23,'SSI Data and Charts'!B$1) -> 201704Scotland | D23: =IFERROR(VLOOKUP(CONCATENATE(D$5,$C23),'trend data'!$A$2:$O$11161,D$6,FALSE),"-") -> 66 | E23: =IFERROR(ROUND(VLOOKUP(CONCATENATE(E$5,$C23),'trend data'!$A$2:$O$11161,E$6,FALSE),3),"-") -> 1.563 | F23: =IFERROR(ROUND(VLOOKUP(CONCATENATE(F$5,$C23),'trend data'!$A$2:$O$11161,F$6,FALSE),3),"-") -> 1.23 | G23: =IFERROR(ROUND(VLOOKUP(CONCATENATE(G$5,$C23),'trend data'!$A$2:$O$11161,G$6,FALSE),3),"-") -> 1.983 | H23: =IFERROR(VLOOKUP(CONCATENATE(H$5,$C23),'trend data'!$A$2:$O$11161,H$6,FALSE),"-") -> 16 | I23: =IFERROR(ROUND(VLOOKUP(CONCATENATE(I$5,$C23),'trend data'!$A$2:$O$11161,I$6,FALSE),3),"-") -> 0.773 | J23: =IFERROR(ROUND(VLOOKUP(CONCATENATE(J$5,$C23),'trend data'!$A$2:$O$11161,J$6,FALSE),3),"-") -> 0.476 | K23: =IFERROR(ROUND(VLOOKUP(CONCATENATE(K$5,$C23),'trend data'!$A$2:$O$11161,K$6,FALSE),3),"-") -> 1.251 | L23: =IFERROR(VLOOKUP(CONCATENATE(L$5,$C23),'trend data'!$A$2:$O$11161,L$6,FALSE),"-") -> 4224 | M23: =IFERROR(VLOOKUP(CONCATENATE(M$5,$C23),'trend data'!$A$2:$O$11161,M$6,FALSE),"-") -> 2071
A24: 201801 | B24: 2018-03-01 | C24: =CONCATENATE(A24,'SSI Data and Charts'!B$1) -> 201801Scotland | D24: =IFERROR(VLOOKUP(CONCATENATE(D$5,$C24),'trend data'!$A$2:$O$11161,D$6,FALSE),"-") -> 64 | E24: =IFERROR(ROUND(VLOOKUP(CONCATENATE(E$5,$C24),'trend data'!$A$2:$O$11161,E$6,FALSE),3),"-") -> 1.61 | F24: =IFERROR(ROUND(VLOOKUP(CONCATENATE(F$5,$C24),'trend data'!$A$2:$O$11161,F$6,FALSE),3),"-") -> 1.263 | G24: =IFERROR(ROUND(VLOOKUP(CONCATENATE(G$5,$C24),'trend data'!$A$2:$O$11161,G$6,FALSE),3),"-") -> 2.051 | H24: =IFERROR(VLOOKUP(CONCATENATE(H$5,$C24),'trend data'!$A$2:$O$11161,H$6,FALSE),"-") -> 17 | I24: =IFERROR(ROUND(VLOOKUP(CONCATENATE(I$5,$C24),'trend data'!$A$2:$O$11161,I$6,FALSE),3),"-") -> 0.847 | J24: =IFERROR(ROUND(VLOOKUP(CONCATENATE(J$5,$C24),'trend data'!$A$2:$O$11161,J$6,FALSE),3),"-") -> 0.529 | K24: =IFERROR(ROUND(VLOOKUP(CONCATENATE(K$5,$C24),'trend data'!$A$2:$O$11161,K$6,FALSE),3),"-") -> 1.352 | L24: =IFERROR(VLOOKUP(CONCATENATE(L$5,$C24),'trend data'!$A$2:$O$11161,L$6,FALSE),"-") -> 3975 | M24: =IFERROR(VLOOKUP(CONCATENATE(M$5,$C24),'trend data'!$A$2:$O$11161,M$6,FALSE),"-") -> 2008
A25: 201802 | B25: 2018-06-01 | C25: =CONCATENATE(A25,'SSI Data and Charts'!B$1) -> 201802Scotland | D25: =IFERROR(VLOOKUP(CONCATENATE(D$5,$C25),'trend data'!$A$2:$O$11161,D$6,FALSE),"-") -> 61 | E25: =IFERROR(ROUND(VLOOKUP(CONCATENATE(E$5,$C25),'trend data'!$A$2:$O$11161,E$6,FALSE),3),"-") -> 1.455 | F25: =IFERROR(ROUND(VLOOKUP(CONCATENATE(F$5,$C25),'trend data'!$A$2:$O$11161,F$6,FALSE),3),"-") -> 1.135 | G25: =IFERROR(ROUND(VLOOKUP(CONCATENATE(G$5,$C25),'trend data'!$A$2:$O$11161,G$6,FALSE),3),"-") -> 1.865 | H25: =IFERROR(VLOOKUP(CONCATENATE(H$5,$C25),'trend data'!$A$2:$O$11161,H$6,FALSE),"-") -> 18 | I25: =IFERROR(ROUND(VLOOKUP(CONCATENATE(I$5,$C25),'trend data'!$A$2:$O$11161,I$6,FALSE),3),"-") -> 0.793 | J25: =IFERROR(ROUND(VLOOKUP(CONCATENATE(J$5,$C25),'trend data'!$A$2:$O$11161,J$6,FALSE),3),"-") -> 0.502 | K25: =IFERROR(ROUND(VLOOKUP(CONCATENATE(K$5,$C25),'trend data'!$A$2:$O$11161,K$6,FALSE),3),"-") -> 1.25 | L25: =IFERROR(VLOOKUP(CONCATENATE(L$5,$C25),'trend data'!$A$2:$O$11161,L$6,FALSE),"-") -> 4191 | M25: =IFERROR(VLOOKUP(CONCATENATE(M$5,$C25),'trend data'!$A$2:$O$11161,M$6,FALSE),"-") -> 2270
A26: 201803 | B26: 2018-09-01 | C26: =CONCATENATE(A26,'SSI Data and Charts'!B$1) -> 201803Scotland | D26: =IFERROR(VLOOKUP(CONCATENATE(D$5,$C26),'trend data'!$A$2:$O$11161,D$6,FALSE),"-") -> 66 | E26: =IFERROR(ROUND(VLOOKUP(CONCATENATE(E$5,$C26),'trend data'!$A$2:$O$11161,E$6,FALSE),3),"-") -> 1.537 | F26: =IFERROR(ROUND(VLOOKUP(CONCATENATE(F$5,$C26),'trend data'!$A$2:$O$11161,F$6,FALSE),3),"-") -> 1.21 | G26: =IFERROR(ROUND(VLOOKUP(CONCATENATE(G$5,$C26),'trend data'!$A$2:$O$11161,G$6,FALSE),3),"-") -> 1.951 | H26: =IFERROR(VLOOKUP(CONCATENATE(H$5,$C26),'trend data'!$A$2:$O$11161,H$6,FALSE),"-") -> 13 | I26: =IFERROR(ROUND(VLOOKUP(CONCATENATE(I$5,$C26),'trend data'!$A$2:$O$11161,I$6,FALSE),3),"-") -> 0.603 | J26: =IFERROR(ROUND(VLOOKUP(CONCATENATE(J$5,$C26),'trend data'!$A$2:$O$11161,J$6,FALSE),3),"-") -> 0.353 | K26: =IFERROR(ROUND(VLOOKUP(CONCATENATE(K$5,$C26),'trend data'!$A$2:$O$11161,K$6,FALSE),3),"-") -> 1.029 | L26: =IFERROR(VLOOKUP(CONCATENATE(L$5,$C26),'trend data'!$A$2:$O$11161,L$6,FALSE),"-") -> 4293 | M26: =IFERROR(VLOOKUP(CONCATENATE(M$5,$C26),'trend data'!$A$2:$O$11161,M$6,FALSE),"-") -> 2155
A27: 201804 | B27: 2018-12-01 | C27: =CONCATENATE(A27,'SSI Data and Charts'!B$1) -> 201804Scotland | D27: =IFERROR(VLOOKUP(CONCATENATE(D$5,$C27),'trend data'!$A$2:$O$11161,D$6,FALSE),"-") -> 59 | E27: =IFERROR(ROUND(VLOOKUP(CONCATENATE(E$5,$C27),'trend data'!$A$2:$O$11161,E$6,FALSE),3),"-") -> 1.358 | F27: =IFERROR(ROUND(VLOOKUP(CONCATENATE(F$5,$C27),'trend data'!$A$2:$O$11161,F$6,FALSE),3),"-") -> 1.054 | G27: =IFERROR(ROUND(VLOOKUP(CONCATENATE(G$5,$C27),'trend data'!$A$2:$O$11161,G$6,FALSE),3),"-") -> 1.747 | H27: =IFERROR(VLOOKUP(CONCATENATE(H$5,$C27),'trend data'!$A$2:$O$11161,H$6,FALSE),"-") -> 16 | I27: =IFERROR(ROUND(VLOOKUP(CONCATENATE(I$5,$C27),'trend data'!$A$2:$O$11161,I$6,FALSE),3),"-") -> 0.703 | J27: =IFERROR(ROUND(VLOOKUP(CONCATENATE(J$5,$C27),'trend data'!$A$2:$O$11161,J$6,FALSE),3),"-") -> 0.433 | K27: =IFERROR(ROUND(VLOOKUP(CONCATENATE(K$5,$C27),'trend data'!$A$2:$O$11161,K$6,FALSE),3),"-") -> 1.139 | L27: =IFERROR(VLOOKUP(CONCATENATE(L$5,$C27),'trend data'!$A$2:$O$11161,L$6,FALSE),"-") -> 4346 | M27: =IFERROR(VLOOKUP(CONCATENATE(M$5,$C27),'trend data'!$A$2:$O$11161,M$6,FALSE),"-") -> 2276
A28: 201901 | B28: 2019-03-01 | C28: =CONCATENATE(A28,'SSI Data and Charts'!B$1) -> 201901Scotland | D28: =IFERROR(VLOOKUP(CONCATENATE(D$5,$C28),'trend data'!$A$2:$O$11161,D$6,FALSE),"-") -> 64 | E28: =IFERROR(ROUND(VLOOKUP(CONCATENATE(E$5,$C28),'trend data'!$A$2:$O$11161,E$6,FALSE),3),"-") -> 1.58 | F28: =IFERROR(ROUND(VLOOKUP(CONCATENATE(F$5,$C28),'trend data'!$A$2:$O$11161,F$6,FALSE),3),"-") -> 1.239 | G28: =IFERROR(ROUND(VLOOKUP(CONCATENATE(G$5,$C28),'trend data'!$A$2:$O$11161,G$6,FALSE),3),"-") -> 2.012 | H28: =IFERROR(VLOOKUP(CONCATENATE(H$5,$C28),'trend data'!$A$2:$O$11161,H$6,FALSE),"-") -> 8 | I28: =IFERROR(ROUND(VLOOKUP(CONCATENATE(I$5,$C28),'trend data'!$A$2:$O$11161,I$6,FALSE),3),"-") -> 0.373 | J28: =IFERROR(ROUND(VLOOKUP(CONCATENATE(J$5,$C28),'trend data'!$A$2:$O$11161,J$6,FALSE),3),"-") -> 0.189 | K28: =IFERROR(ROUND(VLOOKUP(CONCATENATE(K$5,$C28),'trend data'!$A$2:$O$11161,K$6,FALSE),3),"-") -> 0.734 | L28: =IFERROR(VLOOKUP(CONCATENATE(L$5,$C28),'trend data'!$A$2:$O$11161,L$6,FALSE),"-") -> 4051 | M28: =IFERROR(VLOOKUP(CONCATENATE(M$5,$C28),'trend data'!$A$2:$O$11161,M$6,FALSE),"-") -> 2146
A29: 201902 | B29: 2019-06-01 | C29: =CONCATENATE(A29,'SSI Data and Charts'!B$1) -> 201902Scotland | D29: =IFERROR(VLOOKUP(CONCATENATE(D$5,$C29),'trend data'!$A$2:$O$11161,D$6,FALSE),"-") -> 43 | E29: =IFERROR(ROUND(VLOOKUP(CONCATENATE(E$5,$C29),'trend data'!$A$2:$O$11161,E$6,FALSE),3),"-") -> 1.044 | F29: =IFERROR(ROUND(VLOOKUP(CONCATENATE(F$5,$C29),'trend data'!$A$2:$O$11161,F$6,FALSE),3),"-") -> 0.776 | G29: =IFERROR(ROUND(VLOOKUP(CONCATENATE(G$5,$C29),'trend data'!$A$2:$O$11161,G$6,FALSE),3),"-") -> 1.403 | H29: =IFERROR(VLOOKUP(CONCATENATE(H$5,$C29),'trend data'!$A$2:$O$11161,H$6,FALSE),"-") -> 10 | I29: =IFERROR(ROUND(VLOOKUP(CONCATENATE(I$5,$C29),'trend data'!$A$2:$O$11161,I$6,FALSE),3),"-") -> 0.443 | J29: =IFERROR(ROUND(VLOOKUP(CONCATENATE(J$5,$C29),'trend data'!$A$2:$O$11161,J$6,FALSE),3),"-") -> 0.241 | K29: =IFERROR(ROUND(VLOOKUP(CONCATENATE(K$5,$C29),'trend data'!$A$2:$O$11161,K$6,FALSE),3),"-") -> 0.814 | L29: =IFERROR(VLOOKUP(CONCATENATE(L$5,$C29),'trend data'!$A$2:$O$11161,L$6,FALSE),"-") -> 4118 | M29: =IFERROR(VLOOKUP(CONCATENATE(M$5,$C29),'trend data'!$A$2:$O$11161,M$6,FALSE),"-") -> 2257
A30: 201903 | B30: 2019-09-01 | C30: =CONCATENATE(A30,'SSI Data and Charts'!B$1) -> 201903Scotland | D30: =IFERROR(VLOOKUP(CONCATENATE(D$5,$C30),'trend data'!$A$2:$O$11161,D$6,FALSE),"-") -> 51 | E30: =IFERROR(ROUND(VLOOKUP(CONCATENATE(E$5,$C30),'trend data'!$A$2:$O$11161,E$6,FALSE),3),"-") -> 1.157 | F30: =IFERROR(ROUND(VLOOKUP(CONCATENATE(F$5,$C30),'trend data'!$A$2:$O$11161,F$6,FALSE),3),"-") -> 0.881 | G30: =IFERROR(ROUND(VLOOKUP(CONCATENATE(G$5,$C30),'trend data'!$A$2:$O$11161,G$6,FALSE),3),"-") -> 1.518 | H30: =IFERROR(VLOOKUP(CONCATENATE(H$5,$C30),'trend data'!$A$2:$O$11161,H$6,FALSE),"-") -> 17 | I30: =IFERROR(ROUND(VLOOKUP(CONCATENATE(I$5,$C30),'trend data'!$A$2:$O$11161,I$6,FALSE),3),"-") -> 0.802 | J30: =IFERROR(ROUND(VLOOKUP(CONCATENATE(J$5,$C30),'trend data'!$A$2:$O$11161,J$6,FALSE),3),"-") -> 0.501 | K30: =IFERROR(ROUND(VLOOKUP(CONCATENATE(K$5,$C30),'trend data'!$A$2:$O$11161,K$6,FALSE),3),"-") -> 1.28 | L30: =IFERROR(VLOOKUP(CONCATENATE(L$5,$C30),'trend data'!$A$2:$O$11161,L$6,FALSE),"-") -> 4408 | M30: =IFERROR(VLOOKUP(CONCATENATE(M$5,$C30),'trend data'!$A$2:$O$11161,M$6,FALSE),"-") -> 2121
A31: 201904 | B31: 2019-12-01 | C31: =CONCATENATE(A31,'SSI Data and Charts'!B$1) -> 201904Scotland | D31: =IFERROR(VLOOKUP(CONCATENATE(D$5,$C31),'trend data'!$A$2:$O$11161,D$6,FALSE),"-") -> 35 | E31: =IFERROR(ROUND(VLOOKUP(CONCATENATE(E$5,$C31),'trend data'!$A$2:$O$11161,E$6,FALSE),3),"-") -> 0.851 | F31: =IFERROR(ROUND(VLOOKUP(CONCATENATE(F$5,$C31),'trend data'!$A$2:$O$11161,F$6,FALSE),3),"-") -> 0.613 | G31: =IFERROR(ROUND(VLOOKUP(CONCATENATE(G$5,$C31),'trend data'!$A$2:$O$11161,G$6,FALSE),3),"-") -> 1.181 | H31: =IFERROR(VLOOKUP(CONCATENATE(H$5,$C31),'trend data'!$A$2:$O$11161,H$6,FALSE),"-") -> 17 | I31: =IFERROR(ROUND(VLOOKUP(CONCATENATE(I$5,$C31),'trend data'!$A$2:$O$11161,I$6,FALSE),3),"-") -> 0.793 | J31: =IFERROR(ROUND(VLOOKUP(CONCATENATE(J$5,$C31),'trend data'!$A$2:$O$11161,J$6,FALSE),3),"-") -> 0.495 | K31: =IFERROR(ROUND(VLOOKUP(CONCATENATE(K$5,$C31),'trend data'!$A$2:$O$11161,K$6,FALSE),3),"-") -> 1.266 | L31: =IFERROR(VLOOKUP(CONCATENATE(L$5,$C31),'trend data'!$A$2:$O$11161,L$6,FALSE),"-") -> 4112 | M31: =IFERROR(VLOOKUP(CONCATENATE(M$5,$C31),'trend data'!$A$2:$O$11161,M$6,FALSE),"-") -> 2145
A32: 202001 | B32: 2020-03-01 | C32: =CONCATENATE(A32,'SSI Data and Charts'!B$1) -> 202001Scotland | D32: =IFERROR(VLOOKUP(CONCATENATE(D$5,$C32),'trend data'!$A$2:$O$11161,D$6,FALSE),"-") -> - | E32: =IFERROR(ROUND(VLOOKUP(CONCATENATE(E$5,$C32),'trend data'!$A$2:$O$11161,E$6,FALSE),3),"-") -> - | F32: =IFERROR(ROUND(VLOOKUP(CONCATENATE(F$5,$C32),'trend data'!$A$2:$O$11161,F$6,FALSE),3),"-") -> - | G32: =IFERROR(ROUND(VLOOKUP(CONCATENATE(G$5,$C32),'trend data'!$A$2:$O$11161,G$6,FALSE),3),"-") -> - | H32: =IFERROR(VLOOKUP(CONCATENATE(H$5,$C32),'trend data'!$A$2:$O$11161,H$6,FALSE),"-") -> - | I32: =IFERROR(ROUND(VLOOKUP(CONCATENATE(I$5,$C32),'trend data'!$A$2:$O$11161,I$6,FALSE),3),"-") -> - | J32: =IFERROR(ROUND(VLOOKUP(CONCATENATE(J$5,$C32),'trend data'!$A$2:$O$11161,J$6,FALSE),3),"-") -> - | K32: =IFERROR(ROUND(VLOOKUP(CONCATENATE(K$5,$C32),'trend data'!$A$2:$O$11161,K$6,FALSE),3),"-") -> - | L32: =IFERROR(VLOOKUP(CONCATENATE(L$5,$C32),'trend data'!$A$2:$O$11161,L$6,FALSE),"-") -> - | M32: =IFERROR(VLOOKUP(CONCATENATE(M$5,$C32),'trend data'!$A$2:$O$11161,M$6,FALSE),"-") -> -
A33: 202002 | B33: 2020-06-01 | C33: =CONCATENATE(A33,'SSI Data and Charts'!B$1) -> 202002Scotland | D33: =IFERROR(VLOOKUP(CONCATENATE(D$5,$C33),'trend data'!$A$2:$O$11161,D$6,FALSE),"-") -> - | E33: =IFERROR(ROUND(VLOOKUP(CONCATENATE(E$5,$C33),'trend data'!$A$2:$O$11161,E$6,FALSE),3),"-") -> - | F33: =IFERROR(ROUND(VLOOKUP(CONCATENATE(F$5,$C33),'trend data'!$A$2:$O$11161,F$6,FALSE),3),"-") -> - | G33: =IFERROR(ROUND(VLOOKUP(CONCATENATE(G$5,$C33),'trend data'!$A$2:$O$11161,G$6,FALSE),3),"-") -> - | H33: =IFERROR(VLOOKUP(CONCATENATE(H$5,$C33),'trend data'!$A$2:$O$11161,H$6,FALSE),"-") -> - | I33: =IFERROR(ROUND(VLOOKUP(CONCATENATE(I$5,$C33),'trend data'!$A$2:$O$11161,I$6,FALSE),3),"-") -> - | J33: =IFERROR(ROUND(VLOOKUP(CONCATENATE(J$5,$C33),'trend data'!$A$2:$O$11161,J$6,FALSE),3),"-") -> - | K33: =IFERROR(ROUND(VLOOKUP(CONCATENATE(K$5,$C33),'trend data'!$A$2:$O$11161,K$6,FALSE),3),"-") -> - | L33: =IFERROR(VLOOKUP(CONCATENATE(L$5,$C33),'trend data'!$A$2:$O$11161,L$6,FALSE),"-") -> - | M33: =IFERROR(VLOOKUP(CONCATENATE(M$5,$C33),'trend data'!$A$2:$O$11161,M$6,FALSE),"-") -> -
A34: 202003 | B34: 2020-09-01 | C34: =CONCATENATE(A34,'SSI Data and Charts'!B$1) -> 202003Scotland | D34: =IFERROR(VLOOKUP(CONCATENATE(D$5,$C34),'trend data'!$A$2:$O$11161,D$6,FALSE),"-") -> - | E34: =IFERROR(ROUND(VLOOKUP(CONCATENATE(E$5,$C34),'trend data'!$A$2:$O$11161,E$6,FALSE),4),"-") -> - | F34: =IFERROR(ROUND(VLOOKUP(CONCATENATE(F$5,$C34),'trend data'!$A$2:$O$11161,F$6,FALSE),4),"-") -> - | G34: =IFERROR(ROUND(VLOOKUP(CONCATENATE(G$5,$C34),'trend data'!$A$2:$O$11161,G$6,FALSE),4),"-") -> - | H34: =IFERROR(VLOOKUP(CONCATENATE(H$5,$C34),'trend data'!$A$2:$O$11161,H$6,FALSE),"-") -> - | I34: =IFERROR(ROUND(VLOOKUP(CONCATENATE(I$5,$C34),'trend data'!$A$2:$O$11161,I$6,FALSE),4),"-") -> - | J34: =IFERROR(ROUND(VLOOKUP(CONCATENATE(J$5,$C34),'trend data'!$A$2:$O$11161,J$6,FALSE),4),"-") -> - | K34: =IFERROR(ROUND(VLOOKUP(CONCATENATE(K$5,$C34),'trend data'!$A$2:$O$11161,K$6,FALSE),4),"-") -> - | L34: =IFERROR(VLOOKUP(CONCATENATE(L$5,$C34),'trend data'!$A$2:$O$11161,L$6,FALSE),"-") -> - | M34: =IFERROR(VLOOKUP(CONCATENATE(M$5,$C34),'trend data'!$A$2:$O$11161,M$6,FALSE),"-") -> -

Sheet SAB data (hidden)
A1: Trend data | T1: data for u-charts
A3: always last 3 years
W4: change this
D5: SABHCAI | E5: SABHCAI | F5: SABHCAI | G5: SABHCAI | H5: SABCAUN | I5: SABCAUN | J5: SABCAUN | K5: SABCAUN | L5: SAB | M5: SAB | N5: SAB | O5: SAB | P5: SAB | V5: current quarter end | W5: 2020-09-30 | X5: 3 | Y5: 4 | Z5: 5 | AA5: 6 | AC5: 3 | AD5: 4 | AE5: 5 | AF5: 6 | AH5: 3 | AI5: 4 | AJ5: 5 | AK5: 6
D6: 2 | E6: 4 | F6: 5 | G6: 6 | H6: 2 | I6: 4 | J6: 5 | K6: 6 | L6: 2 | M6: 4 | N6: 5 | O6: 6 | P6: 3
C7: ref | D7: HCAI Cases | E7: Healthcare associated rate | F7: Healthcare associated lower CI | G7: Healthcare associated upper CI | H7: Community associatedCases | I7: Community associated rate | J7: Community associated lower CI | K7: Community associated upper CI | L7: CASES | M7: RATE | N7: LOWER | O7: UPPER | P7: beds | X7: SABHCAI | AC7: SABCAUN | AH7: SAB
A8: 201404 | B8: 2014-12-19 | C8: =CONCATENATE(A8,'SAB Data and Charts'!B$1) -> 201404Scotland | D8: =VLOOKUP(CONCATENATE(D$5,$C8),'trend data'!$A$2:$O$11161,D$6,FALSE) -> 275 | E8: =ROUND(VLOOKUP(CONCATENATE(E$5,$C8),'trend data'!$A$2:$O$11161,E$6,FALSE),3) -> 16.077 | F8: =ROUND(VLOOKUP(CONCATENATE(F$5,$C8),'trend data'!$A$2:$O$11161,F$6,FALSE),3) -> 14.233 | G8: =ROUND(VLOOKUP(CONCATENATE(G$5,$C8),'trend data'!$A$2:$O$11161,G$6,FALSE),3) -> 18.094 | H8: =IFERROR(VLOOKUP(CONCATENATE(H$5,$C8),'trend data'!$A$2:$O$11161,H$6,FALSE),"-") -> 119 | I8: =IFERROR(ROUND(VLOOKUP(CONCATENATE(I$5,$C8),'trend data'!$A$2:$O$11161,I$6,FALSE),3),"-") -> 8.829 | J8: =IFERROR(ROUND(VLOOKUP(CONCATENATE(J$5,$C8),'trend data'!$A$2:$O$11161,J$6,FALSE),3),"-") -> 7.314 | K8: =IFERROR(ROUND(VLOOKUP(CONCATENATE(K$5,$C8),'trend data'!$A$2:$O$11161,K$6,FALSE),3),"-") -> 10.565 | L8: =IFERROR(VLOOKUP(CONCATENATE(L$5,$C8),'trend data'!$A$2:$O$11161,L$6,FALSE),"-") -> - | M8: =IFERROR(VLOOKUP(CONCATENATE(M$5,$C8),'trend data'!$A$2:$O$11161,M$6,FALSE),"-") -> - | N8: =IFERROR(VLOOKUP(CONCATENATE(N$5,$C8),'trend data'!$A$2:$O$11161,N$6,FALSE),"-") -> - | O8: =IFERROR(VLOOKUP(CONCATENATE(O$5,$C8),'trend data'!$A$2:$O$11161,O$6,FALSE),"-") -> - | P8: =IFERROR(VLOOKUP(CONCATENATE(P$5,$C8),'trend data'!$A$2:$O$11161,P$6,FALSE),"-") -> - | T8: change to last 12 quarters | X8: Healthcare associated rate | Y8: Healthcare associated av rate | Z8: Healthcare associated UWL 2sd | AA8: Healthcare associated UWL 3sd | AC8: Community associated rate | AD8: Community associated av rate | AE8: Community associated UWL 2sd | AF8: Community associated UWL 3 sd | AH8: sa rate | AI8: sa av rate | AJ8: sa UWL 2 sd | AK8: sa UWL 3 sd
A9: 201501 | B9: 2015-03-24 | C9: =CONCATENATE(A9,'SAB Data and Charts'!B$1) -> 201501Scotland | D9: =VLOOKUP(CONCATENATE(D$5,$C9),'trend data'!$A$2:$O$11161,D$6,FALSE) -> 263 | E9: =ROUND(VLOOKUP(CONCATENATE(E$5,$C9),'trend data'!$A$2:$O$11161,E$6,FALSE),3) -> 15.27 | F9: =ROUND(VLOOKUP(CONCATENATE(F$5,$C9),'trend data'!$A$2:$O$11161,F$6,FALSE),3) -> 13.48 | G9: =ROUND(VLOOKUP(CONCATENATE(G$5,$C9),'trend data'!$A$2:$O$11161,G$6,FALSE),3) -> 17.232 | H9: =IFERROR(VLOOKUP(CONCATENATE(H$5,$C9),'trend data'!$A$2:$O$11161,H$6,FALSE),"-") -> 126 | I9: =IFERROR(ROUND(VLOOKUP(CONCATENATE(I$5,$C9),'trend data'!$A$2:$O$11161,I$6,FALSE),3),"-") -> 9.511 | J9: =IFERROR(ROUND(VLOOKUP(CONCATENATE(J$5,$C9),'trend data'!$A$2:$O$11161,J$6,FALSE),3),"-") -> 7.922 | K9: =IFERROR(ROUND(VLOOKUP(CONCATENATE(K$5,$C9),'trend data'!$A$2:$O$11161,K$6,FALSE),3),"-") -> 11.324 | L9: =IFERROR(VLOOKUP(CONCATENATE(L$5,$C9),'trend data'!$A$2:$O$11161,L$6,FALSE),"-") -> - | M9: =IFERROR(VLOOKUP(CONCATENATE(M$5,$C9),'trend data'!$A$2:$O$11161,M$6,FALSE),"-") -> - | N9: =IFERROR(VLOOKUP(CONCATENATE(N$5,$C9),'trend data'!$A$2:$O$11161,N$6,FALSE),"-") -> - | O9: =IFERROR(VLOOKUP(CONCATENATE(O$5,$C9),'trend data'!$A$2:$O$11161,O$6,FALSE),"-") -> - | P9: =IFERROR(VLOOKUP(CONCATENATE(P$5,$C9),'trend data'!$A$2:$O$11161,P$6,FALSE),"-") -> - | T9: =YEAR(W9)&"0"&IF(MONTH(W9)<4,1,IF(MONTH(W9)<7,2,IF(MONTH(W9)<10,3,4))) -> 201704 | U9: =CONCATENATE(X$7,$T9,'SAB Data and Charts'!B$1) -> SABHCAI201704Scotland | V9: 1 | W9: =W10-92 -> 2017-12-23 | X9: =ROUND(VLOOKUP($U9,'data for u-p-charts'!$A$2:$F$5000,X$5,FALSE),2) -> 16.66 | Y9: =ROUND(VLOOKUP($U9,'data for u-p-charts'!$A$2:$F$5000,Y$5,FALSE),2) -> 17.16 | Z9: =ROUND(VLOOKUP($U9,'data for u-p-charts'!$A$2:$F$5000,Z$5,FALSE),2) -> 19.25 | AA9: =ROUND(VLOOKUP($U9,'data for u-p-charts'!$A$2:$F$5000,AA$5,FALSE),2) -> 20.3 | AB9: =CONCATENATE(AC$7,$T9,'SAB Data and Charts'!$B$1) -> SABCAUN201704Scotland | AC9: =ROUND(VLOOKUP($AB9,'data for u-p-charts'!$A$2:$F$5000,AC$5,FALSE),2) -> 9.65 | AD9: =ROUND(VLOOKUP($AB9,'data for u-p-charts'!$A$2:$F$5000,AD$5,FALSE),2) -> 9.5 | AE9: =ROUND(VLOOKUP($AB9,'data for u-p-charts'!$A$2:$F$5000,AE$5,FALSE),2) -> 11.17 | AF9: =ROUND(VLOOKUP($AB9,'data for u-p-charts'!$A$2:$F$5000,AF$5,FALSE),2) -> 12 | AG9: =CONCATENATE(AH$7,$T9,'SAB Data and Charts'!$B$1) -> SAB 201704Scotland | AH9: =VLOOKUP($AG9,'data for u-p-charts'!$A$2:$F$5000,AH$5,FALSE) ->  | AI9: =VLOOKUP($AG9,'data for u-p-charts'!$A$2:$F$5000,AI$5,FALSE) ->  | AJ9: =VLOOKUP($AG9,'data for u-p-charts'!$A$2:$F$5000,AJ$5,FALSE) ->  | AK9: =VLOOKUP($AG9,'data for u-p-charts'!$A$2:$F$5000,AK$5,FALSE) -> 
A10: 201502 | B10: 2015-06-24 | C10: =CONCATENATE(A10,'SAB Data and Charts'!B$1) -> 201502Scotland | D10: =VLOOKUP(CONCATENATE(D$5,$C10),'trend data'!$A$2:$O$11161,D$6,FALSE) -> 284 | E10: =ROUND(VLOOKUP(CONCATENATE(E$5,$C10),'trend data'!$A$2:$O$11161,E$6,FALSE),3) -> 17.106 | F10: =ROUND(VLOOKUP(CONCATENATE(F$5,$C10),'trend data'!$A$2:$O$11161,F$6,FALSE),3) -> 15.174 | G10: =ROUND(VLOOKUP(CONCATENATE(G$5,$C10),'trend data'!$A$2:$O$11161,G$6,FALSE),3) -> 19.216 | H10: =IFERROR(VLOOKUP(CONCATENATE(H$5,$C10),'trend data'!$A$2:$O$11161,H$6,FALSE),"-") -> 131 | I10: =IFERROR(ROUND(VLOOKUP(CONCATENATE(I$5,$C10),'trend data'!$A$2:$O$11161,I$6,FALSE),3),"-") -> 9.779 | J10: =IFERROR(ROUND(VLOOKUP(CONCATENATE(J$5,$C10),'trend data'!$A$2:$O$11161,J$6,FALSE),3),"-") -> 8.176 | K10: =IFERROR(ROUND(VLOOKUP(CONCATENATE(K$5,$C10),'trend data'!$A$2:$O$11161,K$6,FALSE),3),"-") -> 11.605 | L10: =IFERROR(VLOOKUP(CONCATENATE(L$5,$C10),'trend data'!$A$2:$O$11161,L$6,FALSE),"-") -> - | M10: =IFERROR(VLOOKUP(CONCATENATE(M$5,$C10),'trend data'!$A$2:$O$11161,M$6,FALSE),"-") -> - | N10: =IFERROR(VLOOKUP(CONCATENATE(N$5,$C10),'trend data'!$A$2:$O$11161,N$6,FALSE),"-") -> - | O10: =IFERROR(VLOOKUP(CONCATENATE(O$5,$C10),'trend data'!$A$2:$O$11161,O$6,FALSE),"-") -> - | P10: =IFERROR(VLOOKUP(CONCATENATE(P$5,$C10),'trend data'!$A$2:$O$11161,P$6,FALSE),"-") -> - | T10: =YEAR(W10)&"0"&IF(MONTH(W10)<4,1,IF(MONTH(W10)<7,2,IF(MONTH(W10)<10,3,4))) -> 201801 | U10: =CONCATENATE(X$7,T10,'SAB Data and Charts'!B$1) -> SABHCAI201801Scotland | V10: 2 | W10: 2018-03-25 | X10: =ROUND(VLOOKUP($U10,'data for u-p-charts'!$A$2:$F$5000,X$5,FALSE),2) -> 18.7 | Y10: =ROUND(VLOOKUP($U10,'data for u-p-charts'!$A$2:$F$5000,Y$5,FALSE),2) -> 17.16 | Z10: =ROUND(VLOOKUP($U10,'data for u-p-charts'!$A$2:$F$5000,Z$5,FALSE),2) -> 19.25 | AA10: =ROUND(VLOOKUP($U10,'data for u-p-charts'!$A$2:$F$5000,AA$5,FALSE),2) -> 20.29 | AB10: =CONCATENATE(AC$7,$T10,'SAB Data and Charts'!$B$1) -> SABCAUN201801Scotland | AC10: =ROUND(VLOOKUP($AB10,'data for u-p-charts'!$A$2:$F$5000,AC$5,FALSE),2) -> 10.07 | AD10: =ROUND(VLOOKUP($AB10,'data for u-p-charts'!$A$2:$F$5000,AD$5,FALSE),2) -> 9.5 | AE10: =ROUND(VLOOKUP($AB10,'data for u-p-charts'!$A$2:$F$5000,AE$5,FALSE),2) -> 11.19 | AF10: =ROUND(VLOOKUP($AB10,'data for u-p-charts'!$A$2:$F$5000,AF$5,FALSE),2) -> 12.03 | AG10: =CONCATENATE(AH$7,$T10,'SAB Data and Charts'!$B$1) -> SAB 201801Scotland | AH10: =VLOOKUP($AG10,'data for u-p-charts'!$A$2:$F$5000,AH$5,FALSE) ->  | AI10: =VLOOKUP($AG10,'data for u-p-charts'!$A$2:$F$5000,AI$5,FALSE) ->  | AJ10: =VLOOKUP($AG10,'data for u-p-charts'!$A$2:$F$5000,AJ$5,FALSE) ->  | AK10: =VLOOKUP($AG10,'data for u-p-charts'!$A$2:$F$5000,AK$5,FALSE) -> 
A11: 201503 | B11: 2015-09-24 | C11: =CONCATENATE(A11,'SAB Data and Charts'!B$1) -> 201503Scotland | D11: =VLOOKUP(CONCATENATE(D$5,$C11),'trend data'!$A$2:$O$11161,D$6,FALSE) -> 275 | E11: =ROUND(VLOOKUP(CONCATENATE(E$5,$C11),'trend data'!$A$2:$O$11161,E$6,FALSE),3) -> 16.975 | F11: =ROUND(VLOOKUP(CONCATENATE(F$5,$C11),'trend data'!$A$2:$O$11161,F$6,FALSE),3) -> 15.028 | G11: =ROUND(VLOOKUP(CONCATENATE(G$5,$C11),'trend data'!$A$2:$O$11161,G$6,FALSE),3) -> 19.105 | H11: =IFERROR(VLOOKUP(CONCATENATE(H$5,$C11),'trend data'!$A$2:$O$11161,H$6,FALSE),"-") -> 113 | I11: =IFERROR(ROUND(VLOOKUP(CONCATENATE(I$5,$C11),'trend data'!$A$2:$O$11161,I$6,FALSE),3),"-") -> 8.344 | J11: =IFERROR(ROUND(VLOOKUP(CONCATENATE(J$5,$C11),'trend data'!$A$2:$O$11161,J$6,FALSE),3),"-") -> 6.876 | K11: =IFERROR(ROUND(VLOOKUP(CONCATENATE(K$5,$C11),'trend data'!$A$2:$O$11161,K$6,FALSE),3),"-") -> 10.032 | L11: =IFERROR(VLOOKUP(CONCATENATE(L$5,$C11),'trend data'!$A$2:$O$11161,L$6,FALSE),"-") -> - | M11: =IFERROR(VLOOKUP(CONCATENATE(M$5,$C11),'trend data'!$A$2:$O$11161,M$6,FALSE),"-") -> - | N11: =IFERROR(VLOOKUP(CONCATENATE(N$5,$C11),'trend data'!$A$2:$O$11161,N$6,FALSE),"-") -> - | O11: =IFERROR(VLOOKUP(CONCATENATE(O$5,$C11),'trend data'!$A$2:$O$11161,O$6,FALSE),"-") -> - | P11: =IFERROR(VLOOKUP(CONCATENATE(P$5,$C11),'trend data'!$A$2:$O$11161,P$6,FALSE),"-") -> - | T11: =YEAR(W11)&"0"&IF(MONTH(W11)<4,1,IF(MONTH(W11)<7,2,IF(MONTH(W11)<10,3,4))) -> 201802 | U11: =CONCATENATE(X$7,T11,'SAB Data and Charts'!B$1) -> SABHCAI201802Scotland | V11: 3 | W11: 2018-06-25 | X11: =ROUND(VLOOKUP($U11,'data for u-p-charts'!$A$2:$F$5000,X$5,FALSE),2) -> 17.33 | Y11: =ROUND(VLOOKUP($U11,'data for u-p-charts'!$A$2:$F$5000,Y$5,FALSE),2) -> 17.16 | Z11: =ROUND(VLOOKUP($U11,'data for u-p-charts'!$A$2:$F$5000,Z$5,FALSE),2) -> 19.29 | AA11: =ROUND(VLOOKUP($U11,'data for u-p-charts'!$A$2:$F$5000,AA$5,FALSE),2) -> 20.35 | AB11: =CONCATENATE(AC$7,$T11,'SAB Data and Charts'!$B$1) -> SABCAUN201802Scotland | AC11: =ROUND(VLOOKUP($AB11,'data for u-p-charts'!$A$2:$F$5000,AC$5,FALSE),2) -> 9.07 | AD11: =ROUND(VLOOKUP($AB11,'data for u-p-charts'!$A$2:$F$5000,AD$5,FALSE),2) -> 9.5 | AE11: =ROUND(VLOOKUP($AB11,'data for u-p-charts'!$A$2:$F$5000,AE$5,FALSE),2) -> 11.18 | AF11: =ROUND(VLOOKUP($AB11,'data for u-p-charts'!$A$2:$F$5000,AF$5,FALSE),2) -> 12.01 | AG11: =CONCATENATE(AH$7,$T11,'SAB Data and Charts'!$B$1) -> SAB 201802Scotland | AH11: =VLOOKUP($AG11,'data for u-p-charts'!$A$2:$F$5000,AH$5,FALSE) ->  | AI11: =VLOOKUP($AG11,'data for u-p-charts'!$A$2:$F$5000,AI$5,FALSE) ->  | AJ11: =VLOOKUP($AG11,'data for u-p-charts'!$A$2:$F$5000,AJ$5,FALSE) ->  | AK11: =VLOOKUP($AG11,'data for u-p-charts'!$A$2:$F$5000,AK$5,FALSE) -> 
A12: 201504 | B12: 2015-12-24 | C12: =CONCATENATE(A12,'SAB Data and Charts'!B$1) -> 201504Scotland | D12: =VLOOKUP(CONCATENATE(D$5,$C12),'trend data'!$A$2:$O$11161,D$6,FALSE) -> 303 | E12: =ROUND(VLOOKUP(CONCATENATE(E$5,$C12),'trend data'!$A$2:$O$11161,E$6,FALSE),3) -> 18.47 | F12: =ROUND(VLOOKUP(CONCATENATE(F$5,$C12),'trend data'!$A$2:$O$11161,F$6,FALSE),3) -> 16.449 | G12: =ROUND(VLOOKUP(CONCATENATE(G$5,$C12),'trend data'!$A$2:$O$11161,G$6,FALSE),3) -> 20.672 | H12: =IFERROR(VLOOKUP(CONCATENATE(H$5,$C12),'trend data'!$A$2:$O$11161,H$6,FALSE),"-") -> 104 | I12: =IFERROR(ROUND(VLOOKUP(CONCATENATE(I$5,$C12),'trend data'!$A$2:$O$11161,I$6,FALSE),3),"-") -> 7.679 | J12: =IFERROR(ROUND(VLOOKUP(CONCATENATE(J$5,$C12),'trend data'!$A$2:$O$11161,J$6,FALSE),3),"-") -> 6.274 | K12: =IFERROR(ROUND(VLOOKUP(CONCATENATE(K$5,$C12),'trend data'!$A$2:$O$11161,K$6,FALSE),3),"-") -> 9.305 | L12: =IFERROR(VLOOKUP(CONCATENATE(L$5,$C12),'trend data'!$A$2:$O$11161,L$6,FALSE),"-") -> - | M12: =IFERROR(VLOOKUP(CONCATENATE(M$5,$C12),'trend data'!$A$2:$O$11161,M$6,FALSE),"-") -> - | N12: =IFERROR(VLOOKUP(CONCATENATE(N$5,$C12),'trend data'!$A$2:$O$11161,N$6,FALSE),"-") -> - | O12: =IFERROR(VLOOKUP(CONCATENATE(O$5,$C12),'trend data'!$A$2:$O$11161,O$6,FALSE),"-") -> - | P12: =IFERROR(VLOOKUP(CONCATENATE(P$5,$C12),'trend data'!$A$2:$O$11161,P$6,FALSE),"-") -> - | T12: 201803 | U12: =CONCATENATE(X$7,T12,'SAB Data and Charts'!B$1) -> SABHCAI201803Scotland | V12: 4 | W12: 2018-09-25 | X12: =ROUND(VLOOKUP($U12,'data for u-p-charts'!$A$2:$F$5000,X$5,FALSE),2) -> 16.76 | Y12: =ROUND(VLOOKUP($U12,'data for u-p-charts'!$A$2:$F$5000,Y$5,FALSE),2) -> 17.16 | Z12: =ROUND(VLOOKUP($U12,'data for u-p-charts'!$A$2:$F$5000,Z$5,FALSE),2) -> 19.3 | AA12: =ROUND(VLOOKUP($U12,'data for u-p-charts'!$A$2:$F$5000,AA$5,FALSE),2) -> 20.36 | AB12: =CONCATENATE(AC$7,$T12,'SAB Data and Charts'!$B$1) -> SABCAUN201803Scotland | AC12: =ROUND(VLOOKUP($AB12,'data for u-p-charts'!$A$2:$F$5000,AC$5,FALSE),2) -> 9.63 | AD12: =ROUND(VLOOKUP($AB12,'data for u-p-charts'!$A$2:$F$5000,AD$5,FALSE),2) -> 9.5 | AE12: =ROUND(VLOOKUP($AB12,'data for u-p-charts'!$A$2:$F$5000,AE$5,FALSE),2) -> 11.17 | AF12: =ROUND(VLOOKUP($AB12,'data for u-p-charts'!$A$2:$F$5000,AF$5,FALSE),2) -> 12 | AG12: =CONCATENATE(AH$7,$T12,'SAB Data and Charts'!$B$1) -> SAB 201803Scotland | AH12: =VLOOKUP($AG12,'data for u-p-charts'!$A$2:$F$5000,AH$5,FALSE) ->  | AI12: =VLOOKUP($AG12,'data for u-p-charts'!$A$2:$F$5000,AI$5,FALSE) ->  | AJ12: =VLOOKUP($AG12,'data for u-p-charts'!$A$2:$F$5000,AJ$5,FALSE) ->  | AK12: =VLOOKUP($AG12,'data for u-p-charts'!$A$2:$F$5000,AK$5,FALSE) -> 
A13: 201601 | B13: 2016-03-24 | C13: =CONCATENATE(A13,'SAB Data and Charts'!B$1) -> 201601Scotland | D13: =VLOOKUP(CONCATENATE(D$5,$C13),'trend data'!$A$2:$O$11161,D$6,FALSE) -> 279 | E13: =ROUND(VLOOKUP(CONCATENATE(E$5,$C13),'trend data'!$A$2:$O$11161,E$6,FALSE),3) -> 16.678 | F13: =ROUND(VLOOKUP(CONCATENATE(F$5,$C13),'trend data'!$A$2:$O$11161,F$6,FALSE),3) -> 14.778 | G13: =ROUND(VLOOKUP(CONCATENATE(G$5,$C13),'trend data'!$A$2:$O$11161,G$6,FALSE),3) -> 18.754 | H13: =IFERROR(VLOOKUP(CONCATENATE(H$5,$C13),'trend data'!$A$2:$O$11161,H$6,FALSE),"-") -> 139 | I13: =IFERROR(ROUND(VLOOKUP(CONCATENATE(I$5,$C13),'trend data'!$A$2:$O$11161,I$6,FALSE),3),"-") -> 10.344 | J13: =IFERROR(ROUND(VLOOKUP(CONCATENATE(J$5,$C13),'trend data'!$A$2:$O$11161,J$6,FALSE),3),"-") -> 8.696 | K13: =IFERROR(ROUND(VLOOKUP(CONCATENATE(K$5,$C13),'trend data'!$A$2:$O$11161,K$6,FALSE),3),"-") -> 12.214 | L13: =IFERROR(VLOOKUP(CONCATENATE(L$5,$C13),'trend data'!$A$2:$O$11161,L$6,FALSE),"-") -> - | M13: =IFERROR(VLOOKUP(CONCATENATE(M$5,$C13),'trend data'!$A$2:$O$11161,M$6,FALSE),"-") -> - | N13: =IFERROR(VLOOKUP(CONCATENATE(N$5,$C13),'trend data'!$A$2:$O$11161,N$6,FALSE),"-") -> - | O13: =IFERROR(VLOOKUP(CONCATENATE(O$5,$C13),'trend data'!$A$2:$O$11161,O$6,FALSE),"-") -> - | P13: =IFERROR(VLOOKUP(CONCATENATE(P$5,$C13),'trend data'!$A$2:$O$11161,P$6,FALSE),"-") -> - | T13: 201804 | U13: =CONCATENATE(X$7,T13,'SAB Data and Charts'!B$1) -> SABHCAI201804Scotland | V13: 5 | W13: 2018-12-26 | X13: =ROUND(VLOOKUP($U13,'data for u-p-charts'!$A$2:$F$5000,X$5,FALSE),2) -> 17.69 | Y13: =ROUND(VLOOKUP($U13,'data for u-p-charts'!$A$2:$F$5000,Y$5,FALSE),2) -> 17.16 | Z13: =ROUND(VLOOKUP($U13,'data for u-p-charts'!$A$2:$F$5000,Z$5,FALSE),2) -> 19.29 | AA13: =ROUND(VLOOKUP($U13,'data for u-p-charts'!$A$2:$F$5000,AA$5,FALSE),2) -> 20.35 | AB13: =CONCATENATE(AC$7,$T13,'SAB Data and Charts'!$B$1) -> SABCAUN201804Scotland | AC13: =ROUND(VLOOKUP($AB13,'data for u-p-charts'!$A$2:$F$5000,AC$5,FALSE),2) -> 8.24 | AD13: =ROUND(VLOOKUP($AB13,'data for u-p-charts'!$A$2:$F$5000,AD$5,FALSE),2) -> 9.5 | AE13: =ROUND(VLOOKUP($AB13,'data for u-p-charts'!$A$2:$F$5000,AE$5,FALSE),2) -> 11.17 | AF13: =ROUND(VLOOKUP($AB13,'data for u-p-charts'!$A$2:$F$5000,AF$5,FALSE),2) -> 12 | AG13: =CONCATENATE(AH$7,$T13,'SAB Data and Charts'!$B$1) -> SAB 201804Scotland | AH13: =VLOOKUP($AG13,'data for u-p-charts'!$A$2:$F$5000,AH$5,FALSE) ->  | AI13: =VLOOKUP($AG13,'data for u-p-charts'!$A$2:$F$5000,AI$5,FALSE) ->  | AJ13: =VLOOKUP($AG13,'data for u-p-charts'!$A$2:$F$5000,AJ$5,FALSE) ->  | AK13: =VLOOKUP($AG13,'data for u-p-charts'!$A$2:$F$5000,AK$5,FALSE) -> 
A14: 201602 | B14: 2016-06-24 | C14: =CONCATENATE(A14,'SAB Data and Charts'!B$1) -> 201602Scotland | D14: =VLOOKUP(CONCATENATE(D$5,$C14),'trend data'!$A$2:$O$11161,D$6,FALSE) -> 260 | E14: =ROUND(VLOOKUP(CONCATENATE(E$5,$C14),'trend data'!$A$2:$O$11161,E$6,FALSE),3) -> 16.213 | F14: =ROUND(VLOOKUP(CONCATENATE(F$5,$C14),'trend data'!$A$2:$O$11161,F$6,FALSE),3) -> 14.302 | G14: =ROUND(VLOOKUP(CONCATENATE(G$5,$C14),'trend data'!$A$2:$O$11161,G$6,FALSE),3) -> 18.308 | H14: =IFERROR(VLOOKUP(CONCATENATE(H$5,$C14),'trend data'!$A$2:$O$11161,H$6,FALSE),"-") -> 121 | I14: =IFERROR(ROUND(VLOOKUP(CONCATENATE(I$5,$C14),'trend data'!$A$2:$O$11161,I$6,FALSE),3),"-") -> 9.004 | J14: =IFERROR(ROUND(VLOOKUP(CONCATENATE(J$5,$C14),'trend data'!$A$2:$O$11161,J$6,FALSE),3),"-") -> 7.471 | K14: =IFERROR(ROUND(VLOOKUP(CONCATENATE(K$5,$C14),'trend data'!$A$2:$O$11161,K$6,FALSE),3),"-") -> 10.759 | L14: =IFERROR(VLOOKUP(CONCATENATE(L$5,$C14),'trend data'!$A$2:$O$11161,L$6,FALSE),"-") -> - | M14: =IFERROR(VLOOKUP(CONCATENATE(M$5,$C14),'trend data'!$A$2:$O$11161,M$6,FALSE),"-") -> - | N14: =IFERROR(VLOOKUP(CONCATENATE(N$5,$C14),'trend data'!$A$2:$O$11161,N$6,FALSE),"-") -> - | O14: =IFERROR(VLOOKUP(CONCATENATE(O$5,$C14),'trend data'!$A$2:$O$11161,O$6,FALSE),"-") -> - | P14: =IFERROR(VLOOKUP(CONCATENATE(P$5,$C14),'trend data'!$A$2:$O$11161,P$6,FALSE),"-") -> - | T14: 201901 | U14: =CONCATENATE(X$7,T14,'SAB Data and Charts'!B$1) -> SABHCAI201901Scotland | V14: 6 | W14: 2019-03-28 | X14: =ROUND(VLOOKUP($U14,'data for u-p-charts'!$A$2:$F$5000,X$5,FALSE),2) -> 15.62 | Y14: =ROUND(VLOOKUP($U14,'data for u-p-charts'!$A$2:$F$5000,Y$5,FALSE),2) -> 17.16 | Z14: =ROUND(VLOOKUP($U14,'data for u-p-charts'!$A$2:$F$5000,Z$5,FALSE),2) -> 19.28 | AA14: =ROUND(VLOOKUP($U14,'data for u-p-charts'!$A$2:$F$5000,AA$5,FALSE),2) -> 20.34 | AB14: =CONCATENATE(AC$7,$T14,'SAB Data and Charts'!$B$1) -> SABCAUN201901Scotland | AC14: =ROUND(VLOOKUP($AB14,'data for u-p-charts'!$A$2:$F$5000,AC$5,FALSE),2) -> 10.69 | AD14: =ROUND(VLOOKUP($AB14,'data for u-p-charts'!$A$2:$F$5000,AD$5,FALSE),2) -> 9.5 | AE14: =ROUND(VLOOKUP($AB14,'data for u-p-charts'!$A$2:$F$5000,AE$5,FALSE),2) -> 11.18 | AF14: =ROUND(VLOOKUP($AB14,'data for u-p-charts'!$A$2:$F$5000,AF$5,FALSE),2) -> 12.02 | AG14: =CONCATENATE(AH$7,$T14,'SAB Data and Charts'!$B$1) -> SAB 201901Scotland | AH14: =VLOOKUP($AG14,'data for u-p-charts'!$A$2:$F$5000,AH$5,FALSE) ->  | AI14: =VLOOKUP($AG14,'data for u-p-charts'!$A$2:$F$5000,AI$5,FALSE) ->  | AJ14: =VLOOKUP($AG14,'data for u-p-charts'!$A$2:$F$5000,AJ$5,FALSE) ->  | AK14: =VLOOKUP($AG14,'data for u-p-charts'!$A$2:$F$5000,AK$5,FALSE) -> 
A15: 201603 | B15: 2016-09-24 | C15: =CONCATENATE(A15,'SAB Data and Charts'!B$1) -> 201603Scotland | D15: =VLOOKUP(CONCATENATE(D$5,$C15),'trend data'!$A$2:$O$11161,D$6,FALSE) -> 273 | E15: =ROUND(VLOOKUP(CONCATENATE(E$5,$C15),'trend data'!$A$2:$O$11161,E$6,FALSE),3) -> 17.21 | F15: =ROUND(VLOOKUP(CONCATENATE(F$5,$C15),'trend data'!$A$2:$O$11161,F$6,FALSE),3) -> 15.229 | G15: =ROUND(VLOOKUP(CONCATENATE(G$5,$C15),'trend data'!$A$2:$O$11161,G$6,FALSE),3) -> 19.378 | H15: =IFERROR(VLOOKUP(CONCATENATE(H$5,$C15),'trend data'!$A$2:$O$11161,H$6,FALSE),"-") -> 127 | I15: =IFERROR(ROUND(VLOOKUP(CONCATENATE(I$5,$C15),'trend data'!$A$2:$O$11161,I$6,FALSE),3),"-") -> 9.348 | J15: =IFERROR(ROUND(VLOOKUP(CONCATENATE(J$5,$C15),'trend data'!$A$2:$O$11161,J$6,FALSE),3),"-") -> 7.793 | K15: =IFERROR(ROUND(VLOOKUP(CONCATENATE(K$5,$C15),'trend data'!$A$2:$O$11161,K$6,FALSE),3),"-") -> 11.123 | L15: =IFERROR(VLOOKUP(CONCATENATE(L$5,$C15),'trend data'!$A$2:$O$11161,L$6,FALSE),"-") -> - | M15: =IFERROR(VLOOKUP(CONCATENATE(M$5,$C15),'trend data'!$A$2:$O$11161,M$6,FALSE),"-") -> - | N15: =IFERROR(VLOOKUP(CONCATENATE(N$5,$C15),'trend data'!$A$2:$O$11161,N$6,FALSE),"-") -> - | O15: =IFERROR(VLOOKUP(CONCATENATE(O$5,$C15),'trend data'!$A$2:$O$11161,O$6,FALSE),"-") -> - | P15: =IFERROR(VLOOKUP(CONCATENATE(P$5,$C15),'trend data'!$A$2:$O$11161,P$6,FALSE),"-") -> - | T15: 201902 | U15: =CONCATENATE(X$7,T15,'SAB Data and Charts'!B$1) -> SABHCAI201902Scotland | V15: 7 | W15: 2019-06-28 | X15: =ROUND(VLOOKUP($U15,'data for u-p-charts'!$A$2:$F$5000,X$5,FALSE),2) -> 16.73 | Y15: =ROUND(VLOOKUP($U15,'data for u-p-charts'!$A$2:$F$5000,Y$5,FALSE),2) -> 17.16 | Z15: =ROUND(VLOOKUP($U15,'data for u-p-charts'!$A$2:$F$5000,Z$5,FALSE),2) -> 19.3 | AA15: =ROUND(VLOOKUP($U15,'data for u-p-charts'!$A$2:$F$5000,AA$5,FALSE),2) -> 20.37 | AB15: =CONCATENATE(AC$7,$T15,'SAB Data and Charts'!$B$1) -> SABCAUN201902Scotland | AC15: =ROUND(VLOOKUP($AB15,'data for u-p-charts'!$A$2:$F$5000,AC$5,FALSE),2) -> 9.76 | AD15: =ROUND(VLOOKUP($AB15,'data for u-p-charts'!$A$2:$F$5000,AD$5,FALSE),2) -> 9.5 | AE15: =ROUND(VLOOKUP($AB15,'data for u-p-charts'!$A$2:$F$5000,AE$5,FALSE),2) -> 11.17 | AF15: =ROUND(VLOOKUP($AB15,'data for u-p-charts'!$A$2:$F$5000,AF$5,FALSE),2) -> 12.01 | AG15: =CONCATENATE(AH$7,$T15,'SAB Data and Charts'!$B$1) -> SAB 201902Scotland | AH15: =VLOOKUP($AG15,'data for u-p-charts'!$A$2:$F$5000,AH$5,FALSE) ->  | AI15: =VLOOKUP($AG15,'data for u-p-charts'!$A$2:$F$5000,AI$5,FALSE) ->  | AJ15: =VLOOKUP($AG15,'data for u-p-charts'!$A$2:$F$5000,AJ$5,FALSE) ->  | AK15: =VLOOKUP($AG15,'data for u-p-charts'!$A$2:$F$5000,AK$5,FALSE) -> 
A16: 201604 | B16: 2016-12-24 | C16: =CONCATENATE(A16,'SAB Data and Charts'!B$1) -> 201604Scotland | D16: =VLOOKUP(CONCATENATE(D$5,$C16),'trend data'!$A$2:$O$11161,D$6,FALSE) -> 265 | E16: =ROUND(VLOOKUP(CONCATENATE(E$5,$C16),'trend data'!$A$2:$O$11161,E$6,FALSE),3) -> 16.667 | F16: =ROUND(VLOOKUP(CONCATENATE(F$5,$C16),'trend data'!$A$2:$O$11161,F$6,FALSE),3) -> 14.72 | G16: =ROUND(VLOOKUP(CONCATENATE(G$5,$C16),'trend data'!$A$2:$O$11161,G$6,FALSE),3) -> 18.799 | H16: =IFERROR(VLOOKUP(CONCATENATE(H$5,$C16),'trend data'!$A$2:$O$11161,H$6,FALSE),"-") -> 135 | I16: =IFERROR(ROUND(VLOOKUP(CONCATENATE(I$5,$C16),'trend data'!$A$2:$O$11161,I$6,FALSE),3),"-") -> 9.937 | J16: =IFERROR(ROUND(VLOOKUP(CONCATENATE(J$5,$C16),'trend data'!$A$2:$O$11161,J$6,FALSE),3),"-") -> 8.331 | K16: =IFERROR(ROUND(VLOOKUP(CONCATENATE(K$5,$C16),'trend data'!$A$2:$O$11161,K$6,FALSE),3),"-") -> 11.762 | L16: =IFERROR(VLOOKUP(CONCATENATE(L$5,$C16),'trend data'!$A$2:$O$11161,L$6,FALSE),"-") -> - | M16: =IFERROR(VLOOKUP(CONCATENATE(M$5,$C16),'trend data'!$A$2:$O$11161,M$6,FALSE),"-") -> - | N16: =IFERROR(VLOOKUP(CONCATENATE(N$5,$C16),'trend data'!$A$2:$O$11161,N$6,FALSE),"-") -> - | O16: =IFERROR(VLOOKUP(CONCATENATE(O$5,$C16),'trend data'!$A$2:$O$11161,O$6,FALSE),"-") -> - | P16: =IFERROR(VLOOKUP(CONCATENATE(P$5,$C16),'trend data'!$A$2:$O$11161,P$6,FALSE),"-") -> - | T16: 201903 | U16: =CONCATENATE(X$7,T16,'SAB Data and Charts'!B$1) -> SABHCAI201903Scotland | V16: 8 | W16: 2019-09-28 | X16: =ROUND(VLOOKUP($U16,'data for u-p-charts'!$A$2:$F$5000,X$5,FALSE),2) -> 17.48 | Y16: =ROUND(VLOOKUP($U16,'data for u-p-charts'!$A$2:$F$5000,Y$5,FALSE),2) -> 17.16 | Z16: =ROUND(VLOOKUP($U16,'data for u-p-charts'!$A$2:$F$5000,Z$5,FALSE),2) -> 19.3 | AA16: =ROUND(VLOOKUP($U16,'data for u-p-charts'!$A$2:$F$5000,AA$5,FALSE),2) -> 20.36 | AB16: =CONCATENATE(AC$7,$T16,'SAB Data and Charts'!$B$1) -> SABCAUN201903Scotland | AC16: =ROUND(VLOOKUP($AB16,'data for u-p-charts'!$A$2:$F$5000,AC$5,FALSE),2) -> 7.41 | AD16: =ROUND(VLOOKUP($AB16,'data for u-p-charts'!$A$2:$F$5000,AD$5,FALSE),2) -> 9.5 | AE16: =ROUND(VLOOKUP($AB16,'data for u-p-charts'!$A$2:$F$5000,AE$5,FALSE),2) -> 11.16 | AF16: =ROUND(VLOOKUP($AB16,'data for u-p-charts'!$A$2:$F$5000,AF$5,FALSE),2) -> 12 | AG16: =CONCATENATE(AH$7,$T16,'SAB Data and Charts'!$B$1) -> SAB 201903Scotland | AH16: =VLOOKUP($AG16,'data for u-p-charts'!$A$2:$F$5000,AH$5,FALSE) ->  | AI16: =VLOOKUP($AG16,'data for u-p-charts'!$A$2:$F$5000,AI$5,FALSE) ->  | AJ16: =VLOOKUP($AG16,'data for u-p-charts'!$A$2:$F$5000,AJ$5,FALSE) ->  | AK16: =VLOOKUP($AG16,'data for u-p-charts'!$A$2:$F$5000,AK$5,FALSE) -> 
A17: 201701 | B17: 2017-03-01 | C17: =CONCATENATE(A17,'SAB Data and Charts'!B$1) -> 201701Scotland | D17: =VLOOKUP(CONCATENATE(D$5,$C17),'trend data'!$A$2:$O$11161,D$6,FALSE) -> 259 | E17: =ROUND(VLOOKUP(CONCATENATE(E$5,$C17),'trend data'!$A$2:$O$11161,E$6,FALSE),3) -> 16.397 | F17: =ROUND(VLOOKUP(CONCATENATE(F$5,$C17),'trend data'!$A$2:$O$11161,F$6,FALSE),3) -> 14.46 | G17: =ROUND(VLOOKUP(CONCATENATE(G$5,$C17),'trend data'!$A$2:$O$11161,G$6,FALSE),3) -> 18.52 | H17: =IFERROR(VLOOKUP(CONCATENATE(H$5,$C17),'trend data'!$A$2:$O$11161,H$6,FALSE),"-") -> 142 | I17: =IFERROR(ROUND(VLOOKUP(CONCATENATE(I$5,$C17),'trend data'!$A$2:$O$11161,I$6,FALSE),3),"-") -> 10.616 | J17: =IFERROR(ROUND(VLOOKUP(CONCATENATE(J$5,$C17),'trend data'!$A$2:$O$11161,J$6,FALSE),3),"-") -> 8.942 | K17: =IFERROR(ROUND(VLOOKUP(CONCATENATE(K$5,$C17),'trend data'!$A$2:$O$11161,K$6,FALSE),3),"-") -> 12.513 | L17: =IFERROR(VLOOKUP(CONCATENATE(L$5,$C17),'trend data'!$A$2:$O$11161,L$6,FALSE),"-") -> - | M17: =IFERROR(VLOOKUP(CONCATENATE(M$5,$C17),'trend data'!$A$2:$O$11161,M$6,FALSE),"-") -> - | N17: =IFERROR(VLOOKUP(CONCATENATE(N$5,$C17),'trend data'!$A$2:$O$11161,N$6,FALSE),"-") -> - | O17: =IFERROR(VLOOKUP(CONCATENATE(O$5,$C17),'trend data'!$A$2:$O$11161,O$6,FALSE),"-") -> - | P17: =IFERROR(VLOOKUP(CONCATENATE(P$5,$C17),'trend data'!$A$2:$O$11161,P$6,FALSE),"-") -> - | T17: 201904 | U17: =CONCATENATE(X$7,T17,'SAB Data and Charts'!B$1) -> SABHCAI201904Scotland | V17: 9 | W17: 2019-12-29 | X17: =ROUND(VLOOKUP($U17,'data for u-p-charts'!$A$2:$F$5000,X$5,FALSE),2) -> 15.19 | Y17: =ROUND(VLOOKUP($U17,'data for u-p-charts'!$A$2:$F$5000,Y$5,FALSE),2) -> 17.16 | Z17: =ROUND(VLOOKUP($U17,'data for u-p-charts'!$A$2:$F$5000,Z$5,FALSE),2) -> 19.28 | AA17: =ROUND(VLOOKUP($U17,'data for u-p-charts'!$A$2:$F$5000,AA$5,FALSE),2) -> 20.34 | AB17: =CONCATENATE(AC$7,$T17,'SAB Data and Charts'!$B$1) -> SABCAUN201904Scotland | AC17: =ROUND(VLOOKUP($AB17,'data for u-p-charts'!$A$2:$F$5000,AC$5,FALSE),2) -> 9.59 | AD17: =ROUND(VLOOKUP($AB17,'data for u-p-charts'!$A$2:$F$5000,AD$5,FALSE),2) -> 9.5 | AE17: =ROUND(VLOOKUP($AB17,'data for u-p-charts'!$A$2:$F$5000,AE$5,FALSE),2) -> 11.16 | AF17: =ROUND(VLOOKUP($AB17,'data for u-p-charts'!$A$2:$F$5000,AF$5,FALSE),2) -> 12 | AG17: =CONCATENATE(AH$7,$T17,'SAB Data and Charts'!$B$1) -> SAB 201904Scotland | AH17: =VLOOKUP($AG17,'data for u-p-charts'!$A$2:$F$5000,AH$5,FALSE) ->  | AI17: =VLOOKUP($AG17,'data for u-p-charts'!$A$2:$F$5000,AI$5,FALSE) ->  | AJ17: =VLOOKUP($AG17,'data for u-p-charts'!$A$2:$F$5000,AJ$5,FALSE) ->  | AK17: =VLOOKUP($AG17,'data for u-p-charts'!$A$2:$F$5000,AK$5,FALSE) -> 
A18: 201702 | B18: 2017-06-01 | C18: =CONCATENATE(A18,'SAB Data and Charts'!B$1) -> 201702Scotland | D18: =VLOOKUP(CONCATENATE(D$5,$C18),'trend data'!$A$2:$O$11161,D$6,FALSE) -> 248 | E18: =ROUND(VLOOKUP(CONCATENATE(E$5,$C18),'trend data'!$A$2:$O$11161,E$6,FALSE),3) -> 16.01 | F18: =ROUND(VLOOKUP(CONCATENATE(F$5,$C18),'trend data'!$A$2:$O$11161,F$6,FALSE),3) -> 14.079 | G18: =ROUND(VLOOKUP(CONCATENATE(G$5,$C18),'trend data'!$A$2:$O$11161,G$6,FALSE),3) -> 18.131 | H18: =IFERROR(VLOOKUP(CONCATENATE(H$5,$C18),'trend data'!$A$2:$O$11161,H$6,FALSE),"-") -> 126 | I18: =IFERROR(ROUND(VLOOKUP(CONCATENATE(I$5,$C18),'trend data'!$A$2:$O$11161,I$6,FALSE),3),"-") -> 9.316 | J18: =IFERROR(ROUND(VLOOKUP(CONCATENATE(J$5,$C18),'trend data'!$A$2:$O$11161,J$6,FALSE),3),"-") -> 7.76 | K18: =IFERROR(ROUND(VLOOKUP(CONCATENATE(K$5,$C18),'trend data'!$A$2:$O$11161,K$6,FALSE),3),"-") -> 11.092 | L18: =IFERROR(VLOOKUP(CONCATENATE(L$5,$C18),'trend data'!$A$2:$O$11161,L$6,FALSE),"-") -> - | M18: =IFERROR(VLOOKUP(CONCATENATE(M$5,$C18),'trend data'!$A$2:$O$11161,M$6,FALSE),"-") -> - | N18: =IFERROR(VLOOKUP(CONCATENATE(N$5,$C18),'trend data'!$A$2:$O$11161,N$6,FALSE),"-") -> - | O18: =IFERROR(VLOOKUP(CONCATENATE(O$5,$C18),'trend data'!$A$2:$O$11161,O$6,FALSE),"-") -> - | P18: =IFERROR(VLOOKUP(CONCATENATE(P$5,$C18),'trend data'!$A$2:$O$11161,P$6,FALSE),"-") -> - | T18: 202001 | U18: =CONCATENATE(X$7,T18,'SAB Data and Charts'!B$1) -> SABHCAI202001Scotland | V18: 10 | W18: 2020-03-30 | X18: =ROUND(VLOOKUP($U18,'data for u-p-charts'!$A$2:$F$5000,X$5,FALSE),2) -> 16.33 | Y18: =ROUND(VLOOKUP($U18,'data for u-p-charts'!$A$2:$F$5000,Y$5,FALSE),2) -> 17.16 | Z18: =ROUND(VLOOKUP($U18,'data for u-p-charts'!$A$2:$F$5000,Z$5,FALSE),2) -> 19.32 | AA18: =ROUND(VLOOKUP($U18,'data for u-p-charts'!$A$2:$F$5000,AA$5,FALSE),2) -> 20.4 | AB18: =CONCATENATE(AC$7,$T18,'SAB Data and Charts'!$B$1) -> SABCAUN202001Scotland | AC18: =ROUND(VLOOKUP($AB18,'data for u-p-charts'!$A$2:$F$5000,AC$5,FALSE),2) -> 10.97 | AD18: =ROUND(VLOOKUP($AB18,'data for u-p-charts'!$A$2:$F$5000,AD$5,FALSE),2) -> 9.5 | AE18: =ROUND(VLOOKUP($AB18,'data for u-p-charts'!$A$2:$F$5000,AE$5,FALSE),2) -> 11.18 | AF18: =ROUND(VLOOKUP($AB18,'data for u-p-charts'!$A$2:$F$5000,AF$5,FALSE),2) -> 12.01 | AG18: =CONCATENATE(AH$7,$T18,'SAB Data and Charts'!$B$1) -> SAB 202001Scotland | AH18: =VLOOKUP($AG18,'data for u-p-charts'!$A$2:$F$5000,AH$5,FALSE) ->  | AI18: =VLOOKUP($AG18,'data for u-p-charts'!$A$2:$F$5000,AI$5,FALSE) ->  | AJ18: =VLOOKUP($AG18,'data for u-p-charts'!$A$2:$F$5000,AJ$5,FALSE) ->  | AK18: =VLOOKUP($AG18,'data for u-p-charts'!$A$2:$F$5000,AK$5,FALSE) -> 
A19: 201703 | B19: 2017-09-01 | C19: =CONCATENATE(A19,'SAB Data and Charts'!B$1) -> 201703Scotland | D19: =VLOOKUP(CONCATENATE(D$5,$C19),'trend data'!$A$2:$O$11161,D$6,FALSE) -> 278 | E19: =ROUND(VLOOKUP(CONCATENATE(E$5,$C19),'trend data'!$A$2:$O$11161,E$6,FALSE),3) -> 18.083 | F19: =ROUND(VLOOKUP(CONCATENATE(F$5,$C19),'trend data'!$A$2:$O$11161,F$6,FALSE),3) -> 16.02 | G19: =ROUND(VLOOKUP(CONCATENATE(G$5,$C19),'trend data'!$A$2:$O$11161,G$6,FALSE),3) -> 20.339 | H19: =IFERROR(VLOOKUP(CONCATENATE(H$5,$C19),'trend data'!$A$2:$O$11161,H$6,FALSE),"-") -> 127 | I19: =IFERROR(ROUND(VLOOKUP(CONCATENATE(I$5,$C19),'trend data'!$A$2:$O$11161,I$6,FALSE),3),"-") -> 9.288 | J19: =IFERROR(ROUND(VLOOKUP(CONCATENATE(J$5,$C19),'trend data'!$A$2:$O$11161,J$6,FALSE),3),"-") -> 7.743 | K19: =IFERROR(ROUND(VLOOKUP(CONCATENATE(K$5,$C19),'trend data'!$A$2:$O$11161,K$6,FALSE),3),"-") -> 11.051 | L19: =IFERROR(VLOOKUP(CONCATENATE(L$5,$C19),'trend data'!$A$2:$O$11161,L$6,FALSE),"-") -> - | M19: =IFERROR(VLOOKUP(CONCATENATE(M$5,$C19),'trend data'!$A$2:$O$11161,M$6,FALSE),"-") -> - | N19: =IFERROR(VLOOKUP(CONCATENATE(N$5,$C19),'trend data'!$A$2:$O$11161,N$6,FALSE),"-") -> - | O19: =IFERROR(VLOOKUP(CONCATENATE(O$5,$C19),'trend data'!$A$2:$O$11161,O$6,FALSE),"-") -> - | P19: =IFERROR(VLOOKUP(CONCATENATE(P$5,$C19),'trend data'!$A$2:$O$11161,P$6,FALSE),"-") -> - | T19: 202002 | U19: =CONCATENATE(X$7,T19,'SAB Data and Charts'!B$1) -> SABHCAI202002Scotland | V19: 11 | W19: =W20-92 -> 2020-06-30 | X19: =ROUND(VLOOKUP($U19,'data for u-p-charts'!$A$2:$F$5000,X$5,FALSE),2) -> 20.26 | Y19: =ROUND(VLOOKUP($U19,'data for u-p-charts'!$A$2:$F$5000,Y$5,FALSE),2) -> 17.16 | Z19: =ROUND(VLOOKUP($U19,'data for u-p-charts'!$A$2:$F$5000,Z$5,FALSE),2) -> 19.69 | AA19: =ROUND(VLOOKUP($U19,'data for u-p-charts'!$A$2:$F$5000,AA$5,FALSE),2) -> 20.95 | AB19: =CONCATENATE(AC$7,$T19,'SAB Data and Charts'!$B$1) -> SABCAUN202002Scotland | AC19: =ROUND(VLOOKUP($AB19,'data for u-p-charts'!$A$2:$F$5000,AC$5,FALSE),2) -> 9.72 | AD19: =ROUND(VLOOKUP($AB19,'data for u-p-charts'!$A$2:$F$5000,AD$5,FALSE),2) -> 9.5 | AE19: =ROUND(VLOOKUP($AB19,'data for u-p-charts'!$A$2:$F$5000,AE$5,FALSE),2) -> 11.18 | AF19: =ROUND(VLOOKUP($AB19,'data for u-p-charts'!$A$2:$F$5000,AF$5,FALSE),2) -> 12.01 | AG19: =CONCATENATE(AH$7,$T19,'SAB Data and Charts'!$B$1) -> SAB 202002Scotland | AH19: =VLOOKUP($AG19,'data for u-p-charts'!$A$2:$F$5000,AH$5,FALSE) ->  | AI19: =VLOOKUP($AG19,'data for u-p-charts'!$A$2:$F$5000,AI$5,FALSE) ->  | AJ19: =VLOOKUP($AG19,'data for u-p-charts'!$A$2:$F$5000,AJ$5,FALSE) ->  | AK19: =VLOOKUP($AG19,'data for u-p-charts'!$A$2:$F$5000,AK$5,FALSE) -> 
A20: 201704 | B20: 2017-12-01 | C20: =CONCATENATE(A20,'SAB Data and Charts'!B$1) -> 201704Scotland | D20: =VLOOKUP(CONCATENATE(D$5,$C20),'trend data'!$A$2:$O$11161,D$6,FALSE) -> 262 | E20: =ROUND(VLOOKUP(CONCATENATE(E$5,$C20),'trend data'!$A$2:$O$11161,E$6,FALSE),3) -> 16.655 | F20: =ROUND(VLOOKUP(CONCATENATE(F$5,$C20),'trend data'!$A$2:$O$11161,F$6,FALSE),3) -> 14.699 | G20: =ROUND(VLOOKUP(CONCATENATE(G$5,$C20),'trend data'!$A$2:$O$11161,G$6,FALSE),3) -> 18.799 | H20: =IFERROR(VLOOKUP(CONCATENATE(H$5,$C20),'trend data'!$A$2:$O$11161,H$6,FALSE),"-") -> 132 | I20: =IFERROR(ROUND(VLOOKUP(CONCATENATE(I$5,$C20),'trend data'!$A$2:$O$11161,I$6,FALSE),3),"-") -> 9.654 | J20: =IFERROR(ROUND(VLOOKUP(CONCATENATE(J$5,$C20),'trend data'!$A$2:$O$11161,J$6,FALSE),3),"-") -> 8.077 | K20: =IFERROR(ROUND(VLOOKUP(CONCATENATE(K$5,$C20),'trend data'!$A$2:$O$11161,K$6,FALSE),3),"-") -> 11.448 | L20: =IFERROR(VLOOKUP(CONCATENATE(L$5,$C20),'trend data'!$A$2:$O$11161,L$6,FALSE),"-") -> - | M20: =IFERROR(VLOOKUP(CONCATENATE(M$5,$C20),'trend data'!$A$2:$O$11161,M$6,FALSE),"-") -> - | N20: =IFERROR(VLOOKUP(CONCATENATE(N$5,$C20),'trend data'!$A$2:$O$11161,N$6,FALSE),"-") -> - | O20: =IFERROR(VLOOKUP(CONCATENATE(O$5,$C20),'trend data'!$A$2:$O$11161,O$6,FALSE),"-") -> - | P20: =IFERROR(VLOOKUP(CONCATENATE(P$5,$C20),'trend data'!$A$2:$O$11161,P$6,FALSE),"-") -> - | T20: 202003 | U20: =CONCATENATE(X$7,T20,'SAB Data and Charts'!B$1) -> SABHCAI202003Scotland | V20: 12 | W20: =W5 -> 2020-09-30 | X20: =ROUND(VLOOKUP($U20,'data for u-p-charts'!$A$2:$F$5000,X$5,FALSE),2) -> 17.27 | Y20: =ROUND(VLOOKUP($U20,'data for u-p-charts'!$A$2:$F$5000,Y$5,FALSE),2) -> 17.16 | Z20: =ROUND(VLOOKUP($U20,'data for u-p-charts'!$A$2:$F$5000,Z$5,FALSE),2) -> 19.46 | AA20: =ROUND(VLOOKUP($U20,'data for u-p-charts'!$A$2:$F$5000,AA$5,FALSE),2) -> 20.61 | AB20: =CONCATENATE(AC$7,$T20,'SAB Data and Charts'!$B$1) -> SABCAUN202003Scotland | AC20: =ROUND(VLOOKUP($AB20,'data for u-p-charts'!$A$2:$F$5000,AC$5,FALSE),2) -> 10.85 | AD20: =ROUND(VLOOKUP($AB20,'data for u-p-charts'!$A$2:$F$5000,AD$5,FALSE),2) -> 9.5 | AE20: =ROUND(VLOOKUP($AB20,'data for u-p-charts'!$A$2:$F$5000,AE$5,FALSE),2) -> 11.17 | AF20: =ROUND(VLOOKUP($AB20,'data for u-p-charts'!$A$2:$F$5000,AF$5,FALSE),2) -> 12 | AG20: =CONCATENATE(AH$7,$T20,'SAB Data and Charts'!$B$1) -> SAB 202003Scotland | AH20: =VLOOKUP($AG20,'data for u-p-charts'!$A$2:$F$5000,AH$5,FALSE) ->  | AI20: =VLOOKUP($AG20,'data for u-p-charts'!$A$2:$F$5000,AI$5,FALSE) ->  | AJ20: =VLOOKUP($AG20,'data for u-p-charts'!$A$2:$F$5000,AJ$5,FALSE) ->  | AK20: =VLOOKUP($AG20,'data for u-p-charts'!$A$2:$F$5000,AK$5,FALSE) -> 
A21: 201801 | B21: 2018-03-01 | C21: =CONCATENATE(A21,'SAB Data and Charts'!B$1) -> 201801Scotland | D21: =IFERROR(VLOOKUP(CONCATENATE(D$5,$C21),'trend data'!$A$2:$O$11161,D$6,FALSE),"-") -> 296 | E21: =ROUND(VLOOKUP(CONCATENATE(E$5,$C21),'trend data'!$A$2:$O$11161,E$6,FALSE),3) -> 18.699 | F21: =ROUND(VLOOKUP(CONCATENATE(F$5,$C21),'trend data'!$A$2:$O$11161,F$6,FALSE),3) -> 16.629 | G21: =ROUND(VLOOKUP(CONCATENATE(G$5,$C21),'trend data'!$A$2:$O$11161,G$6,FALSE),3) -> 20.956 | H21: =IFERROR(VLOOKUP(CONCATENATE(H$5,$C21),'trend data'!$A$2:$O$11161,H$6,FALSE),"-") -> 135 | I21: =IFERROR(ROUND(VLOOKUP(CONCATENATE(I$5,$C21),'trend data'!$A$2:$O$11161,I$6,FALSE),3),"-") -> 10.068 | J21: =IFERROR(ROUND(VLOOKUP(CONCATENATE(J$5,$C21),'trend data'!$A$2:$O$11161,J$6,FALSE),3),"-") -> 8.441 | K21: =IFERROR(ROUND(VLOOKUP(CONCATENATE(K$5,$C21),'trend data'!$A$2:$O$11161,K$6,FALSE),3),"-") -> 11.917 | L21: =IFERROR(VLOOKUP(CONCATENATE(L$5,$C21),'trend data'!$A$2:$O$11161,L$6,FALSE),"-") -> - | M21: =IFERROR(VLOOKUP(CONCATENATE(M$5,$C21),'trend data'!$A$2:$O$11161,M$6,FALSE),"-") -> - | N21: =IFERROR(VLOOKUP(CONCATENATE(N$5,$C21),'trend data'!$A$2:$O$11161,N$6,FALSE),"-") -> - | O21: =IFERROR(VLOOKUP(CONCATENATE(O$5,$C21),'trend data'!$A$2:$O$11161,O$6,FALSE),"-") -> - | P21: =IFERROR(VLOOKUP(CONCATENATE(P$5,$C21),'trend data'!$A$2:$O$11161,P$6,FALSE),"-") -> -
A22: 201802 | B22: 2018-06-01 | C22: =CONCATENATE(A22,'SAB Data and Charts'!B$1) -> 201802Scotland | D22: =IFERROR(VLOOKUP(CONCATENATE(D$5,$C22),'trend data'!$A$2:$O$11161,D$6,FALSE),"-") -> 264 | E22: =ROUND(VLOOKUP(CONCATENATE(E$5,$C22),'trend data'!$A$2:$O$11161,E$6,FALSE),3) -> 17.332 | F22: =ROUND(VLOOKUP(CONCATENATE(F$5,$C22),'trend data'!$A$2:$O$11161,F$6,FALSE),3) -> 15.304 | G22: =ROUND(VLOOKUP(CONCATENATE(G$5,$C22),'trend data'!$A$2:$O$11161,G$6,FALSE),3) -> 19.553 | H22: =IFERROR(VLOOKUP(CONCATENATE(H$5,$C22),'trend data'!$A$2:$O$11161,H$6,FALSE),"-") -> 123 | I22: =IFERROR(ROUND(VLOOKUP(CONCATENATE(I$5,$C22),'trend data'!$A$2:$O$11161,I$6,FALSE),3),"-") -> 9.072 | J22: =IFERROR(ROUND(VLOOKUP(CONCATENATE(J$5,$C22),'trend data'!$A$2:$O$11161,J$6,FALSE),3),"-") -> 7.54 | K22: =IFERROR(ROUND(VLOOKUP(CONCATENATE(K$5,$C22),'trend data'!$A$2:$O$11161,K$6,FALSE),3),"-") -> 10.824 | L22: =IFERROR(VLOOKUP(CONCATENATE(L$5,$C22),'trend data'!$A$2:$O$11161,L$6,FALSE),"-") -> - | M22: =IFERROR(VLOOKUP(CONCATENATE(M$5,$C22),'trend data'!$A$2:$O$11161,M$6,FALSE),"-") -> - | N22: =IFERROR(VLOOKUP(CONCATENATE(N$5,$C22),'trend data'!$A$2:$O$11161,N$6,FALSE),"-") -> - | O22: =IFERROR(VLOOKUP(CONCATENATE(O$5,$C22),'trend data'!$A$2:$O$11161,O$6,FALSE),"-") -> - | P22: =IFERROR(VLOOKUP(CONCATENATE(P$5,$C22),'trend data'!$A$2:$O$11161,P$6,FALSE),"-") -> -
A23: 201803 | B23: 2018-09-01 | C23: =CONCATENATE(A23,'SAB Data and Charts'!B$1) -> 201803Scotland | D23: =IFERROR(VLOOKUP(CONCATENATE(D$5,$C23),'trend data'!$A$2:$O$11161,D$6,FALSE),"-") -> 253 | E23: =ROUND(VLOOKUP(CONCATENATE(E$5,$C23),'trend data'!$A$2:$O$11161,E$6,FALSE),3) -> 16.762 | F23: =ROUND(VLOOKUP(CONCATENATE(F$5,$C23),'trend data'!$A$2:$O$11161,F$6,FALSE),3) -> 14.76 | G23: =ROUND(VLOOKUP(CONCATENATE(G$5,$C23),'trend data'!$A$2:$O$11161,G$6,FALSE),3) -> 18.96 | H23: =IFERROR(VLOOKUP(CONCATENATE(H$5,$C23),'trend data'!$A$2:$O$11161,H$6,FALSE),"-") -> 132 | I23: =IFERROR(ROUND(VLOOKUP(CONCATENATE(I$5,$C23),'trend data'!$A$2:$O$11161,I$6,FALSE),3),"-") -> 9.63 | J23: =IFERROR(ROUND(VLOOKUP(CONCATENATE(J$5,$C23),'trend data'!$A$2:$O$11161,J$6,FALSE),3),"-") -> 8.057 | K23: =IFERROR(ROUND(VLOOKUP(CONCATENATE(K$5,$C23),'trend data'!$A$2:$O$11161,K$6,FALSE),3),"-") -> 11.42 | L23: =IFERROR(VLOOKUP(CONCATENATE(L$5,$C23),'trend data'!$A$2:$O$11161,L$6,FALSE),"-") -> - | M23: =IFERROR(VLOOKUP(CONCATENATE(M$5,$C23),'trend data'!$A$2:$O$11161,M$6,FALSE),"-") -> - | N23: =IFERROR(VLOOKUP(CONCATENATE(N$5,$C23),'trend data'!$A$2:$O$11161,N$6,FALSE),"-") -> - | O23: =IFERROR(VLOOKUP(CONCATENATE(O$5,$C23),'trend data'!$A$2:$O$11161,O$6,FALSE),"-") -> - | P23: =IFERROR(VLOOKUP(CONCATENATE(P$5,$C23),'trend data'!$A$2:$O$11161,P$6,FALSE),"-") -> -
A24: 201804 | B24: 2018-12-01 | C24: =CONCATENATE(A24,'SAB Data and Charts'!B$1) -> 201804Scotland | D24: =IFERROR(VLOOKUP(CONCATENATE(D$5,$C24),'trend data'!$A$2:$O$11161,D$6,FALSE),"-") -> 269 | E24: =ROUND(VLOOKUP(CONCATENATE(E$5,$C24),'trend data'!$A$2:$O$11161,E$6,FALSE),3) -> 17.694 | F24: =ROUND(VLOOKUP(CONCATENATE(F$5,$C24),'trend data'!$A$2:$O$11161,F$6,FALSE),3) -> 15.643 | G24: =ROUND(VLOOKUP(CONCATENATE(G$5,$C24),'trend data'!$A$2:$O$11161,G$6,FALSE),3) -> 19.94 | H24: =IFERROR(VLOOKUP(CONCATENATE(H$5,$C24),'trend data'!$A$2:$O$11161,H$6,FALSE),"-") -> 113 | I24: =IFERROR(ROUND(VLOOKUP(CONCATENATE(I$5,$C24),'trend data'!$A$2:$O$11161,I$6,FALSE),3),"-") -> 8.244 | J24: =IFERROR(ROUND(VLOOKUP(CONCATENATE(J$5,$C24),'trend data'!$A$2:$O$11161,J$6,FALSE),3),"-") -> 6.794 | K24: =IFERROR(ROUND(VLOOKUP(CONCATENATE(K$5,$C24),'trend data'!$A$2:$O$11161,K$6,FALSE),3),"-") -> 9.912 | L24: =IFERROR(VLOOKUP(CONCATENATE(L$5,$C24),'trend data'!$A$2:$O$11161,L$6,FALSE),"-") -> - | M24: =IFERROR(VLOOKUP(CONCATENATE(M$5,$C24),'trend data'!$A$2:$O$11161,M$6,FALSE),"-") -> - | N24: =IFERROR(VLOOKUP(CONCATENATE(N$5,$C24),'trend data'!$A$2:$O$11161,N$6,FALSE),"-") -> - | O24: =IFERROR(VLOOKUP(CONCATENATE(O$5,$C24),'trend data'!$A$2:$O$11161,O$6,FALSE),"-") -> - | P24: =IFERROR(VLOOKUP(CONCATENATE(P$5,$C24),'trend data'!$A$2:$O$11161,P$6,FALSE),"-") -> -
A25: 201901 | B25: 2019-03-01 | C25: =CONCATENATE(A25,'SAB Data and Charts'!B$1) -> 201901Scotland | D25: =IFERROR(VLOOKUP(CONCATENATE(D$5,$C25),'trend data'!$A$2:$O$11161,D$6,FALSE),"-") -> 240 | E25: =ROUND(VLOOKUP(CONCATENATE(E$5,$C25),'trend data'!$A$2:$O$11161,E$6,FALSE),3) -> 15.618 | F25: =ROUND(VLOOKUP(CONCATENATE(F$5,$C25),'trend data'!$A$2:$O$11161,F$6,FALSE),3) -> 13.704 | G25: =ROUND(VLOOKUP(CONCATENATE(G$5,$C25),'trend data'!$A$2:$O$11161,G$6,FALSE),3) -> 17.724 | H25: =IFERROR(VLOOKUP(CONCATENATE(H$5,$C25),'trend data'!$A$2:$O$11161,H$6,FALSE),"-") -> 144 | I25: =IFERROR(ROUND(VLOOKUP(CONCATENATE(I$5,$C25),'trend data'!$A$2:$O$11161,I$6,FALSE),3),"-") -> 10.69 | J25: =IFERROR(ROUND(VLOOKUP(CONCATENATE(J$5,$C25),'trend data'!$A$2:$O$11161,J$6,FALSE),3),"-") -> 9.015 | K25: =IFERROR(ROUND(VLOOKUP(CONCATENATE(K$5,$C25),'trend data'!$A$2:$O$11161,K$6,FALSE),3),"-") -> 12.585 | L25: =IFERROR(VLOOKUP(CONCATENATE(L$5,$C25),'trend data'!$A$2:$O$11161,L$6,FALSE),"-") -> - | M25: =IFERROR(VLOOKUP(CONCATENATE(M$5,$C25),'trend data'!$A$2:$O$11161,M$6,FALSE),"-") -> - | N25: =IFERROR(VLOOKUP(CONCATENATE(N$5,$C25),'trend data'!$A$2:$O$11161,N$6,FALSE),"-") -> - | O25: =IFERROR(VLOOKUP(CONCATENATE(O$5,$C25),'trend data'!$A$2:$O$11161,O$6,FALSE),"-") -> - | P25: =IFERROR(VLOOKUP(CONCATENATE(P$5,$C25),'trend data'!$A$2:$O$11161,P$6,FALSE),"-") -> -
A26: 201902 | B26: 2019-06-01 | C26: =CONCATENATE(A26,'SAB Data and Charts'!B$1) -> 201902Scotland | D26: =IFERROR(VLOOKUP(CONCATENATE(D$5,$C26),'trend data'!$A$2:$O$11161,D$6,FALSE),"-") -> 251 | E26: =ROUND(VLOOKUP(CONCATENATE(E$5,$C26),'trend data'!$A$2:$O$11161,E$6,FALSE),3) -> 16.726 | F26: =ROUND(VLOOKUP(CONCATENATE(F$5,$C26),'trend data'!$A$2:$O$11161,F$6,FALSE),3) -> 14.72 | G26: =ROUND(VLOOKUP(CONCATENATE(G$5,$C26),'trend data'!$A$2:$O$11161,G$6,FALSE),3) -> 18.928 | H26: =IFERROR(VLOOKUP(CONCATENATE(H$5,$C26),'trend data'!$A$2:$O$11161,H$6,FALSE),"-") -> 133 | I26: =IFERROR(ROUND(VLOOKUP(CONCATENATE(I$5,$C26),'trend data'!$A$2:$O$11161,I$6,FALSE),3),"-") -> 9.764 | J26: =IFERROR(ROUND(VLOOKUP(CONCATENATE(J$5,$C26),'trend data'!$A$2:$O$11161,J$6,FALSE),3),"-") -> 8.175 | K26: =IFERROR(ROUND(VLOOKUP(CONCATENATE(K$5,$C26),'trend data'!$A$2:$O$11161,K$6,FALSE),3),"-") -> 11.572 | L26: =IFERROR(VLOOKUP(CONCATENATE(L$5,$C26),'trend data'!$A$2:$O$11161,L$6,FALSE),"-") -> - | M26: =IFERROR(VLOOKUP(CONCATENATE(M$5,$C26),'trend data'!$A$2:$O$11161,M$6,FALSE),"-") -> - | N26: =IFERROR(VLOOKUP(CONCATENATE(N$5,$C26),'trend data'!$A$2:$O$11161,N$6,FALSE),"-") -> - | O26: =IFERROR(VLOOKUP(CONCATENATE(O$5,$C26),'trend data'!$A$2:$O$11161,O$6,FALSE),"-") -> - | P26: =IFERROR(VLOOKUP(CONCATENATE(P$5,$C26),'trend data'!$A$2:$O$11161,P$6,FALSE),"-") -> -
A27: 201903 | B27: 2019-09-01 | C27: =CONCATENATE(A27,'SAB Data and Charts'!B$1) -> 201903Scotland | D27: =IFERROR(VLOOKUP(CONCATENATE(D$5,$C27),'trend data'!$A$2:$O$11161,D$6,FALSE),"-") -> 264 | E27: =ROUND(VLOOKUP(CONCATENATE(E$5,$C27),'trend data'!$A$2:$O$11161,E$6,FALSE),3) -> 17.48 | F27: =ROUND(VLOOKUP(CONCATENATE(F$5,$C27),'trend data'!$A$2:$O$11161,F$6,FALSE),3) -> 15.435 | G27: =ROUND(VLOOKUP(CONCATENATE(G$5,$C27),'trend data'!$A$2:$O$11161,G$6,FALSE),3) -> 19.721 | H27: =IFERROR(VLOOKUP(CONCATENATE(H$5,$C27),'trend data'!$A$2:$O$11161,H$6,FALSE),"-") -> 102 | I27: =IFERROR(ROUND(VLOOKUP(CONCATENATE(I$5,$C27),'trend data'!$A$2:$O$11161,I$6,FALSE),3),"-") -> 7.407 | J27: =IFERROR(ROUND(VLOOKUP(CONCATENATE(J$5,$C27),'trend data'!$A$2:$O$11161,J$6,FALSE),3),"-") -> 6.039 | K27: =IFERROR(ROUND(VLOOKUP(CONCATENATE(K$5,$C27),'trend data'!$A$2:$O$11161,K$6,FALSE),3),"-") -> 8.992 | L27: =IFERROR(VLOOKUP(CONCATENATE(L$5,$C27),'trend data'!$A$2:$O$11161,L$6,FALSE),"-") -> - | M27: =IFERROR(VLOOKUP(CONCATENATE(M$5,$C27),'trend data'!$A$2:$O$11161,M$6,FALSE),"-") -> - | N27: =IFERROR(VLOOKUP(CONCATENATE(N$5,$C27),'trend data'!$A$2:$O$11161,N$6,FALSE),"-") -> - | O27: =IFERROR(VLOOKUP(CONCATENATE(O$5,$C27),'trend data'!$A$2:$O$11161,O$6,FALSE),"-") -> - | P27: =IFERROR(VLOOKUP(CONCATENATE(P$5,$C27),'trend data'!$A$2:$O$11161,P$6,FALSE),"-") -> -
A28: 201904 | B28: 2019-12-01 | C28: =CONCATENATE(A28,'SAB Data and Charts'!B$1) -> 201904Scotland | D28: =IFERROR(VLOOKUP(CONCATENATE(D$5,$C28),'trend data'!$A$2:$O$11161,D$6,FALSE),"-") -> 233 | E28: =ROUND(VLOOKUP(CONCATENATE(E$5,$C28),'trend data'!$A$2:$O$11161,E$6,FALSE),3) -> 15.187 | F28: =ROUND(VLOOKUP(CONCATENATE(F$5,$C28),'trend data'!$A$2:$O$11161,F$6,FALSE),3) -> 13.3 | G28: =ROUND(VLOOKUP(CONCATENATE(G$5,$C28),'trend data'!$A$2:$O$11161,G$6,FALSE),3) -> 17.268 | H28: =IFERROR(VLOOKUP(CONCATENATE(H$5,$C28),'trend data'!$A$2:$O$11161,H$6,FALSE),"-") -> 132 | I28: =IFERROR(ROUND(VLOOKUP(CONCATENATE(I$5,$C28),'trend data'!$A$2:$O$11161,I$6,FALSE),3),"-") -> 9.586 | J28: =IFERROR(ROUND(VLOOKUP(CONCATENATE(J$5,$C28),'trend data'!$A$2:$O$11161,J$6,FALSE),3),"-") -> 8.02 | K28: =IFERROR(ROUND(VLOOKUP(CONCATENATE(K$5,$C28),'trend data'!$A$2:$O$11161,K$6,FALSE),3),"-") -> 11.368 | L28: =IFERROR(VLOOKUP(CONCATENATE(L$5,$C28),'trend data'!$A$2:$O$11161,L$6,FALSE),"-") -> - | M28: =IFERROR(VLOOKUP(CONCATENATE(M$5,$C28),'trend data'!$A$2:$O$11161,M$6,FALSE),"-") -> - | N28: =IFERROR(VLOOKUP(CONCATENATE(N$5,$C28),'trend data'!$A$2:$O$11161,N$6,FALSE),"-") -> - | O28: =IFERROR(VLOOKUP(CONCATENATE(O$5,$C28),'trend data'!$A$2:$O$11161,O$6,FALSE),"-") -> - | P28: =IFERROR(VLOOKUP(CONCATENATE(P$5,$C28),'trend data'!$A$2:$O$11161,P$6,FALSE),"-") -> -
A29: 202001 | B29: 2020-03-01 | C29: =CONCATENATE(A29,'SAB Data and Charts'!B$1) -> 202001Scotland | D29: =IFERROR(VLOOKUP(CONCATENATE(D$5,$C29),'trend data'!$A$2:$O$11161,D$6,FALSE),"-") -> 241 | E29: =ROUND(VLOOKUP(CONCATENATE(E$5,$C29),'trend data'!$A$2:$O$11161,E$6,FALSE),3) -> 16.326 | F29: =ROUND(VLOOKUP(CONCATENATE(F$5,$C29),'trend data'!$A$2:$O$11161,F$6,FALSE),3) -> 14.33 | G29: =ROUND(VLOOKUP(CONCATENATE(G$5,$C29),'trend data'!$A$2:$O$11161,G$6,FALSE),3) -> 18.523 | H29: =IFERROR(VLOOKUP(CONCATENATE(H$5,$C29),'trend data'!$A$2:$O$11161,H$6,FALSE),"-") -> 149 | I29: =IFERROR(ROUND(VLOOKUP(CONCATENATE(I$5,$C29),'trend data'!$A$2:$O$11161,I$6,FALSE),3),"-") -> 10.969 | J29: =IFERROR(ROUND(VLOOKUP(CONCATENATE(J$5,$C29),'trend data'!$A$2:$O$11161,J$6,FALSE),3),"-") -> 9.278 | K29: =IFERROR(ROUND(VLOOKUP(CONCATENATE(K$5,$C29),'trend data'!$A$2:$O$11161,K$6,FALSE),3),"-") -> 12.879 | L29: =IFERROR(VLOOKUP(CONCATENATE(L$5,$C29),'trend data'!$A$2:$O$11161,L$6,FALSE),"-") -> - | M29: =IFERROR(VLOOKUP(CONCATENATE(M$5,$C29),'trend data'!$A$2:$O$11161,M$6,FALSE),"-") -> - | N29: =IFERROR(VLOOKUP(CONCATENATE(N$5,$C29),'trend data'!$A$2:$O$11161,N$6,FALSE),"-") -> - | O29: =IFERROR(VLOOKUP(CONCATENATE(O$5,$C29),'trend data'!$A$2:$O$11161,O$6,FALSE),"-") -> - | P29: =IFERROR(VLOOKUP(CONCATENATE(P$5,$C29),'trend data'!$A$2:$O$11161,P$6,FALSE),"-") -> -
A30: 202002 | B30: 2020-06-01 | C30: =CONCATENATE(A30,'SAB Data and Charts'!B$1) -> 202002Scotland | D30: =IFERROR(VLOOKUP(CONCATENATE(D$5,$C30),'trend data'!$A$2:$O$11161,D$6,FALSE),"-") -> 219 | E30: =ROUND(VLOOKUP(CONCATENATE(E$5,$C30),'trend data'!$A$2:$O$11161,E$6,FALSE),3) -> 20.257 | F30: =ROUND(VLOOKUP(CONCATENATE(F$5,$C30),'trend data'!$A$2:$O$11161,F$6,FALSE),3) -> 17.663 | G30: =ROUND(VLOOKUP(CONCATENATE(G$5,$C30),'trend data'!$A$2:$O$11161,G$6,FALSE),3) -> 23.126 | H30: =IFERROR(VLOOKUP(CONCATENATE(H$5,$C30),'trend data'!$A$2:$O$11161,H$6,FALSE),"-") -> 132 | I30: =IFERROR(ROUND(VLOOKUP(CONCATENATE(I$5,$C30),'trend data'!$A$2:$O$11161,I$6,FALSE),3),"-") -> 9.718 | J30: =IFERROR(ROUND(VLOOKUP(CONCATENATE(J$5,$C30),'trend data'!$A$2:$O$11161,J$6,FALSE),3),"-") -> 8.13 | K30: =IFERROR(ROUND(VLOOKUP(CONCATENATE(K$5,$C30),'trend data'!$A$2:$O$11161,K$6,FALSE),3),"-") -> 11.524 | L30: =IFERROR(VLOOKUP(CONCATENATE(L$5,$C30),'trend data'!$A$2:$O$11161,L$6,FALSE),"-") -> - | M30: =IFERROR(VLOOKUP(CONCATENATE(M$5,$C30),'trend data'!$A$2:$O$11161,M$6,FALSE),"-") -> - | N30: =IFERROR(VLOOKUP(CONCATENATE(N$5,$C30),'trend data'!$A$2:$O$11161,N$6,FALSE),"-") -> - | O30: =IFERROR(VLOOKUP(CONCATENATE(O$5,$C30),'trend data'!$A$2:$O$11161,O$6,FALSE),"-") -> - | P30: =IFERROR(VLOOKUP(CONCATENATE(P$5,$C30),'trend data'!$A$2:$O$11161,P$6,FALSE),"-") -> -
A31: 202003 | B31: 2020-09-01 | C31: =CONCATENATE(A31,'SAB Data and Charts'!B$1) -> 202003Scotland | D31: =IFERROR(VLOOKUP(CONCATENATE(D$5,$C31),'trend data'!$A$2:$O$11161,D$6,FALSE),"-") -> 225 | E31: =ROUND(VLOOKUP(CONCATENATE(E$5,$C31),'trend data'!$A$2:$O$11161,E$6,FALSE),4) -> 17.2672 | F31: =ROUND(VLOOKUP(CONCATENATE(F$5,$C31),'trend data'!$A$2:$O$11161,F$6,FALSE),4) -> 15.0844 | G31: =ROUND(VLOOKUP(CONCATENATE(G$5,$C31),'trend data'!$A$2:$O$11161,G$6,FALSE),4) -> 19.6771 | H31: =IFERROR(VLOOKUP(CONCATENATE(H$5,$C31),'trend data'!$A$2:$O$11161,H$6,FALSE),"-") -> 149 | I31: =IFERROR(ROUND(VLOOKUP(CONCATENATE(I$5,$C31),'trend data'!$A$2:$O$11161,I$6,FALSE),4),"-") -> 10.8499 | J31: =IFERROR(ROUND(VLOOKUP(CONCATENATE(J$5,$C31),'trend data'!$A$2:$O$11161,J$6,FALSE),4),"-") -> 9.1776 | K31: =IFERROR(ROUND(VLOOKUP(CONCATENATE(K$5,$C31),'trend data'!$A$2:$O$11161,K$6,FALSE),4),"-") -> 12.7387 | L31: =IFERROR(VLOOKUP(CONCATENATE(L$5,$C31),'trend data'!$A$2:$O$11161,L$6,FALSE),"-") -> - | M31: =IFERROR(VLOOKUP(CONCATENATE(M$5,$C31),'trend data'!$A$2:$O$11161,M$6,FALSE),"-") -> - | N31: =IFERROR(VLOOKUP(CONCATENATE(N$5,$C31),'trend data'!$A$2:$O$11161,N$6,FALSE),"-") -> - | O31: =IFERROR(VLOOKUP(CONCATENATE(O$5,$C31),'trend data'!$A$2:$O$11161,O$6,FALSE),"-") -> -

Sheet CDI data (hidden)
A1: Trend data | O1: u-chart data
A3: always last 3 years
Q4: change this
D5: CDIHCAI | E5: CDIHCAI | F5: CDIHCAI | G5: CDIHCAI | H5: CDICA | I5: CDICA | J5: CDICA | K5: CDICA | P5: current quarter end | Q5: 2020-09-30 | S5: 3 | T5: 4 | U5: 5 | V5: 6 | X5: 3 | Y5: 4 | Z5: 5 | AA5: 6
D6: 2 | E6: 4 | F6: 5 | G6: 6 | H6: 2 | I6: 4 | J6: 5 | K6: 6
C7: ref | D7: Healthcare associated Cases | E7: Healthcare associated rate | F7: Healthcare associated lower CI | G7: Healthcare associated upper CI | H7: Community associated Cases | I7: Community associated rate | J7: Community associated lower CI | K7: Community associated upper CI | S7: CDIHCAI | X7: CDICA
A8: 201404 | B8: 2014-12-19 | C8: =CONCATENATE(A8,'CDI Data and Charts'!B$1) -> 201404Scotland | D8: =VLOOKUP(CONCATENATE(D$5,$C8),'trend data'!$A$2:$O$11161,D$6,FALSE) -> 321 | E8: =ROUND(VLOOKUP(CONCATENATE(E$5,$C8),'trend data'!$A$2:$O$11161,E$6,FALSE),3) -> 18.766 | F8: =ROUND(VLOOKUP(CONCATENATE(F$5,$C8),'trend data'!$A$2:$O$11161,F$6,FALSE),3) -> 16.769 | G8: =ROUND(VLOOKUP(CONCATENATE(G$5,$C8),'trend data'!$A$2:$O$11161,G$6,FALSE),3) -> 20.936 | H8: =IFERROR(VLOOKUP(CONCATENATE(H$5,$C8),'trend data'!$A$2:$O$11161,H$6,FALSE),"-") -> 121 | I8: =IFERROR(ROUND(VLOOKUP(CONCATENATE(I$5,$C8),'trend data'!$A$2:$O$11161,I$6,FALSE),3),"-") -> 8.977 | J8: =IFERROR(ROUND(VLOOKUP(CONCATENATE(J$5,$C8),'trend data'!$A$2:$O$11161,J$6,FALSE),3),"-") -> 7.449 | K8: =IFERROR(ROUND(VLOOKUP(CONCATENATE(K$5,$C8),'trend data'!$A$2:$O$11161,K$6,FALSE),3),"-") -> 10.726 | S8: Healthcare associated rate | T8: Healthcare associated av rate | U8: Healthcare associated UWL 2sd | V8: Healthcare associated UWL 3sd | X8: Community associatedrate | Y8: Community associatedav rate | Z8: Community associatedUWL 2sd | AA8: Community associatedUWL 3 sd
A9: 201501 | B9: 2015-03-24 | C9: =CONCATENATE(A9,'CDI Data and Charts'!B$1) -> 201501Scotland | D9: =VLOOKUP(CONCATENATE(D$5,$C9),'trend data'!$A$2:$O$11161,D$6,FALSE) -> 251 | E9: =ROUND(VLOOKUP(CONCATENATE(E$5,$C9),'trend data'!$A$2:$O$11161,E$6,FALSE),3) -> 14.573 | F9: =ROUND(VLOOKUP(CONCATENATE(F$5,$C9),'trend data'!$A$2:$O$11161,F$6,FALSE),3) -> 12.826 | G9: =ROUND(VLOOKUP(CONCATENATE(G$5,$C9),'trend data'!$A$2:$O$11161,G$6,FALSE),3) -> 16.492 | H9: =IFERROR(VLOOKUP(CONCATENATE(H$5,$C9),'trend data'!$A$2:$O$11161,H$6,FALSE),"-") -> 92 | I9: =IFERROR(ROUND(VLOOKUP(CONCATENATE(I$5,$C9),'trend data'!$A$2:$O$11161,I$6,FALSE),3),"-") -> 6.944 | J9: =IFERROR(ROUND(VLOOKUP(CONCATENATE(J$5,$C9),'trend data'!$A$2:$O$11161,J$6,FALSE),3),"-") -> 5.598 | K9: =IFERROR(ROUND(VLOOKUP(CONCATENATE(K$5,$C9),'trend data'!$A$2:$O$11161,K$6,FALSE),3),"-") -> 8.517 | O9: =YEAR(Q9)&"0"&IF(MONTH(Q9)<4,1,IF(MONTH(Q9)<7,2,IF(MONTH(Q9)<10,3,4))) -> 201704 | P9: 1 | Q9: =Q10-92 -> 2017-12-23 | R9: =CONCATENATE(S$7,$O9,'CDI Data and Charts'!B$1) -> CDIHCAI201704Scotland | S9: =ROUND(VLOOKUP($R9,'data for u-p-charts'!$A$2:$F$5000,S$5,FALSE),2) -> 14.94 | T9: =ROUND(VLOOKUP($R9,'data for u-p-charts'!$A$2:$F$5000,T$5,FALSE),2) -> 14.79 | U9: =ROUND(VLOOKUP($R9,'data for u-p-charts'!$A$2:$F$5000,U$5,FALSE),2) -> 16.73 | V9: =ROUND(VLOOKUP($R9,'data for u-p-charts'!$A$2:$F$5000,V$5,FALSE),2) -> 17.7 | W9: =CONCATENATE(X$7,$O9,'CDI Data and Charts'!B$1) -> CDICA201704Scotland | X9: =ROUND(VLOOKUP($W9,'data for u-p-charts'!$A$2:$F$5000,X$5,FALSE),2) -> 5.41 | Y9: =ROUND(VLOOKUP($W9,'data for u-p-charts'!$A$2:$F$5000,Y$5,FALSE),2) -> 5.62 | Z9: =ROUND(VLOOKUP($W9,'data for u-p-charts'!$A$2:$F$5000,Z$5,FALSE),2) -> 6.9 | AA9: =ROUND(VLOOKUP($W9,'data for u-p-charts'!$A$2:$F$5000,AA$5,FALSE),2) -> 7.54
A10: 201502 | B10: 2015-06-24 | C10: =CONCATENATE(A10,'CDI Data and Charts'!B$1) -> 201502Scotland | D10: =VLOOKUP(CONCATENATE(D$5,$C10),'trend data'!$A$2:$O$11161,D$6,FALSE) -> 308 | E10: =ROUND(VLOOKUP(CONCATENATE(E$5,$C10),'trend data'!$A$2:$O$11161,E$6,FALSE),3) -> 18.552 | F10: =ROUND(VLOOKUP(CONCATENATE(F$5,$C10),'trend data'!$A$2:$O$11161,F$6,FALSE),3) -> 16.538 | G10: =ROUND(VLOOKUP(CONCATENATE(G$5,$C10),'trend data'!$A$2:$O$11161,G$6,FALSE),3) -> 20.744 | H10: =IFERROR(VLOOKUP(CONCATENATE(H$5,$C10),'trend data'!$A$2:$O$11161,H$6,FALSE),"-") -> 98 | I10: =IFERROR(ROUND(VLOOKUP(CONCATENATE(I$5,$C10),'trend data'!$A$2:$O$11161,I$6,FALSE),3),"-") -> 7.316 | J10: =IFERROR(ROUND(VLOOKUP(CONCATENATE(J$5,$C10),'trend data'!$A$2:$O$11161,J$6,FALSE),3),"-") -> 5.939 | K10: =IFERROR(ROUND(VLOOKUP(CONCATENATE(K$5,$C10),'trend data'!$A$2:$O$11161,K$6,FALSE),3),"-") -> 8.916 | O10: =YEAR(Q10)&"0"&IF(MONTH(Q10)<4,1,IF(MONTH(Q10)<7,2,IF(MONTH(Q10)<10,3,4))) -> 201801 | P10: 2 | Q10: 2018-03-25 | R10: =CONCATENATE(S$7,$O10,'CDI Data and Charts'!B$1) -> CDIHCAI201801Scotland | S10: =ROUND(VLOOKUP($R10,'data for u-p-charts'!$A$2:$F$5000,S$5,FALSE),2) -> 14.4 | T10: =ROUND(VLOOKUP($R10,'data for u-p-charts'!$A$2:$F$5000,T$5,FALSE),2) -> 14.79 | U10: =ROUND(VLOOKUP($R10,'data for u-p-charts'!$A$2:$F$5000,U$5,FALSE),2) -> 16.73 | V10: =ROUND(VLOOKUP($R10,'data for u-p-charts'!$A$2:$F$5000,V$5,FALSE),2) -> 17.69 | W10: =CONCATENATE(X$7,$O10,'CDI Data and Charts'!B$1) -> CDICA201801Scotland | X10: =ROUND(VLOOKUP($W10,'data for u-p-charts'!$A$2:$F$5000,X$5,FALSE),2) -> 6.41 | Y10: =ROUND(VLOOKUP($W10,'data for u-p-charts'!$A$2:$F$5000,Y$5,FALSE),2) -> 5.62 | Z10: =ROUND(VLOOKUP($W10,'data for u-p-charts'!$A$2:$F$5000,Z$5,FALSE),2) -> 6.91 | AA10: =ROUND(VLOOKUP($W10,'data for u-p-charts'!$A$2:$F$5000,AA$5,FALSE),2) -> 7.56
A11: 201503 | B11: 2015-09-24 | C11: =CONCATENATE(A11,'CDI Data and Charts'!B$1) -> 201503Scotland | D11: =VLOOKUP(CONCATENATE(D$5,$C11),'trend data'!$A$2:$O$11161,D$6,FALSE) -> 313 | E11: =ROUND(VLOOKUP(CONCATENATE(E$5,$C11),'trend data'!$A$2:$O$11161,E$6,FALSE),3) -> 19.321 | F11: =ROUND(VLOOKUP(CONCATENATE(F$5,$C11),'trend data'!$A$2:$O$11161,F$6,FALSE),3) -> 17.24 | G11: =ROUND(VLOOKUP(CONCATENATE(G$5,$C11),'trend data'!$A$2:$O$11161,G$6,FALSE),3) -> 21.585 | H11: =IFERROR(VLOOKUP(CONCATENATE(H$5,$C11),'trend data'!$A$2:$O$11161,H$6,FALSE),"-") -> 131 | I11: =IFERROR(ROUND(VLOOKUP(CONCATENATE(I$5,$C11),'trend data'!$A$2:$O$11161,I$6,FALSE),3),"-") -> 9.673 | J11: =IFERROR(ROUND(VLOOKUP(CONCATENATE(J$5,$C11),'trend data'!$A$2:$O$11161,J$6,FALSE),3),"-") -> 8.087 | K11: =IFERROR(ROUND(VLOOKUP(CONCATENATE(K$5,$C11),'trend data'!$A$2:$O$11161,K$6,FALSE),3),"-") -> 11.478 | O11: 201802 | P11: 3 | Q11: 2018-06-25 | R11: =CONCATENATE(S$7,$O11,'CDI Data and Charts'!B$1) -> CDIHCAI201802Scotland | S11: =ROUND(VLOOKUP($R11,'data for u-p-charts'!$A$2:$F$5000,S$5,FALSE),2) -> 16.02 | T11: =ROUND(VLOOKUP($R11,'data for u-p-charts'!$A$2:$F$5000,T$5,FALSE),2) -> 14.79 | U11: =ROUND(VLOOKUP($R11,'data for u-p-charts'!$A$2:$F$5000,U$5,FALSE),2) -> 16.77 | V11: =ROUND(VLOOKUP($R11,'data for u-p-charts'!$A$2:$F$5000,V$5,FALSE),2) -> 17.75 | W11: =CONCATENATE(X$7,$O11,'CDI Data and Charts'!B$1) -> CDICA201802Scotland | X11: =ROUND(VLOOKUP($W11,'data for u-p-charts'!$A$2:$F$5000,X$5,FALSE),2) -> 7.52 | Y11: =ROUND(VLOOKUP($W11,'data for u-p-charts'!$A$2:$F$5000,Y$5,FALSE),2) -> 5.62 | Z11: =ROUND(VLOOKUP($W11,'data for u-p-charts'!$A$2:$F$5000,Z$5,FALSE),2) -> 6.91 | AA11: =ROUND(VLOOKUP($W11,'data for u-p-charts'!$A$2:$F$5000,AA$5,FALSE),2) -> 7.55
A12: 201504 | B12: 2015-12-24 | C12: =CONCATENATE(A12,'CDI Data and Charts'!B$1) -> 201504Scotland | D12: =VLOOKUP(CONCATENATE(D$5,$C12),'trend data'!$A$2:$O$11161,D$6,FALSE) -> 367 | E12: =ROUND(VLOOKUP(CONCATENATE(E$5,$C12),'trend data'!$A$2:$O$11161,E$6,FALSE),3) -> 22.372 | F12: =ROUND(VLOOKUP(CONCATENATE(F$5,$C12),'trend data'!$A$2:$O$11161,F$6,FALSE),3) -> 20.141 | G12: =ROUND(VLOOKUP(CONCATENATE(G$5,$C12),'trend data'!$A$2:$O$11161,G$6,FALSE),3) -> 24.782 | H12: =IFERROR(VLOOKUP(CONCATENATE(H$5,$C12),'trend data'!$A$2:$O$11161,H$6,FALSE),"-") -> 116 | I12: =IFERROR(ROUND(VLOOKUP(CONCATENATE(I$5,$C12),'trend data'!$A$2:$O$11161,I$6,FALSE),3),"-") -> 8.565 | J12: =IFERROR(ROUND(VLOOKUP(CONCATENATE(J$5,$C12),'trend data'!$A$2:$O$11161,J$6,FALSE),3),"-") -> 7.078 | K12: =IFERROR(ROUND(VLOOKUP(CONCATENATE(K$5,$C12),'trend data'!$A$2:$O$11161,K$6,FALSE),3),"-") -> 10.273 | O12: 201803 | P12: 4 | Q12: 2018-09-25 | R12: =CONCATENATE(S$7,$O12,'CDI Data and Charts'!B$1) -> CDIHCAI201803Scotland | S12: =ROUND(VLOOKUP($R12,'data for u-p-charts'!$A$2:$F$5000,S$5,FALSE),2) -> 16.89 | T12: =ROUND(VLOOKUP($R12,'data for u-p-charts'!$A$2:$F$5000,T$5,FALSE),2) -> 14.79 | U12: =ROUND(VLOOKUP($R12,'data for u-p-charts'!$A$2:$F$5000,U$5,FALSE),2) -> 16.77 | V12: =ROUND(VLOOKUP($R12,'data for u-p-charts'!$A$2:$F$5000,V$5,FALSE),2) -> 17.76 | W12: =CONCATENATE(X$7,$O12,'CDI Data and Charts'!B$1) -> CDICA201803Scotland | X12: =ROUND(VLOOKUP($W12,'data for u-p-charts'!$A$2:$F$5000,X$5,FALSE),2) -> 6.71 | Y12: =ROUND(VLOOKUP($W12,'data for u-p-charts'!$A$2:$F$5000,Y$5,FALSE),2) -> 5.62 | Z12: =ROUND(VLOOKUP($W12,'data for u-p-charts'!$A$2:$F$5000,Z$5,FALSE),2) -> 6.9 | AA12: =ROUND(VLOOKUP($W12,'data for u-p-charts'!$A$2:$F$5000,AA$5,FALSE),2) -> 7.54
A13: 201601 | B13: 2016-03-24 | C13: =CONCATENATE(A13,'CDI Data and Charts'!B$1) -> 201601Scotland | D13: =VLOOKUP(CONCATENATE(D$5,$C13),'trend data'!$A$2:$O$11161,D$6,FALSE) -> 252 | E13: =ROUND(VLOOKUP(CONCATENATE(E$5,$C13),'trend data'!$A$2:$O$11161,E$6,FALSE),3) -> 15.064 | F13: =ROUND(VLOOKUP(CONCATENATE(F$5,$C13),'trend data'!$A$2:$O$11161,F$6,FALSE),3) -> 13.261 | G13: =ROUND(VLOOKUP(CONCATENATE(G$5,$C13),'trend data'!$A$2:$O$11161,G$6,FALSE),3) -> 17.043 | H13: =IFERROR(VLOOKUP(CONCATENATE(H$5,$C13),'trend data'!$A$2:$O$11161,H$6,FALSE),"-") -> 97 | I13: =IFERROR(ROUND(VLOOKUP(CONCATENATE(I$5,$C13),'trend data'!$A$2:$O$11161,I$6,FALSE),3),"-") -> 7.218 | J13: =IFERROR(ROUND(VLOOKUP(CONCATENATE(J$5,$C13),'trend data'!$A$2:$O$11161,J$6,FALSE),3),"-") -> 5.853 | K13: =IFERROR(ROUND(VLOOKUP(CONCATENATE(K$5,$C13),'trend data'!$A$2:$O$11161,K$6,FALSE),3),"-") -> 8.806 | O13: 201804 | P13: 5 | Q13: 2018-12-26 | R13: =CONCATENATE(S$7,$O13,'CDI Data and Charts'!B$1) -> CDIHCAI201804Scotland | S13: =ROUND(VLOOKUP($R13,'data for u-p-charts'!$A$2:$F$5000,S$5,FALSE),2) -> 14.47 | T13: =ROUND(VLOOKUP($R13,'data for u-p-charts'!$A$2:$F$5000,T$5,FALSE),2) -> 14.79 | U13: =ROUND(VLOOKUP($R13,'data for u-p-charts'!$A$2:$F$5000,U$5,FALSE),2) -> 16.77 | V13: =ROUND(VLOOKUP($R13,'data for u-p-charts'!$A$2:$F$5000,V$5,FALSE),2) -> 17.75 | W13: =CONCATENATE(X$7,$O13,'CDI Data and Charts'!B$1) -> CDICA201804Scotland | X13: =ROUND(VLOOKUP($W13,'data for u-p-charts'!$A$2:$F$5000,X$5,FALSE),2) -> 6.27 | Y13: =ROUND(VLOOKUP($W13,'data for u-p-charts'!$A$2:$F$5000,Y$5,FALSE),2) -> 5.62 | Z13: =ROUND(VLOOKUP($W13,'data for u-p-charts'!$A$2:$F$5000,Z$5,FALSE),2) -> 6.9 | AA13: =ROUND(VLOOKUP($W13,'data for u-p-charts'!$A$2:$F$5000,AA$5,FALSE),2) -> 7.54
A14: 201602 | B14: 2016-06-24 | C14: =CONCATENATE(A14,'CDI Data and Charts'!B$1) -> 201602Scotland | D14: =VLOOKUP(CONCATENATE(D$5,$C14),'trend data'!$A$2:$O$11161,D$6,FALSE) -> 250 | E14: =ROUND(VLOOKUP(CONCATENATE(E$5,$C14),'trend data'!$A$2:$O$11161,E$6,FALSE),3) -> 15.59 | F14: =ROUND(VLOOKUP(CONCATENATE(F$5,$C14),'trend data'!$A$2:$O$11161,F$6,FALSE),3) -> 13.717 | G14: =ROUND(VLOOKUP(CONCATENATE(G$5,$C14),'trend data'!$A$2:$O$11161,G$6,FALSE),3) -> 17.647 | H14: =IFERROR(VLOOKUP(CONCATENATE(H$5,$C14),'trend data'!$A$2:$O$11161,H$6,FALSE),"-") -> 91 | I14: =IFERROR(ROUND(VLOOKUP(CONCATENATE(I$5,$C14),'trend data'!$A$2:$O$11161,I$6,FALSE),3),"-") -> 6.772 | J14: =IFERROR(ROUND(VLOOKUP(CONCATENATE(J$5,$C14),'trend data'!$A$2:$O$11161,J$6,FALSE),3),"-") -> 5.452 | K14: =IFERROR(ROUND(VLOOKUP(CONCATENATE(K$5,$C14),'trend data'!$A$2:$O$11161,K$6,FALSE),3),"-") -> 8.314 | O14: 201901 | P14: 6 | Q14: 2019-03-28 | R14: =CONCATENATE(S$7,$O14,'CDI Data and Charts'!B$1) -> CDIHCAI201901Scotland | S14: =ROUND(VLOOKUP($R14,'data for u-p-charts'!$A$2:$F$5000,S$5,FALSE),2) -> 12.1 | T14: =ROUND(VLOOKUP($R14,'data for u-p-charts'!$A$2:$F$5000,T$5,FALSE),2) -> 14.79 | U14: =ROUND(VLOOKUP($R14,'data for u-p-charts'!$A$2:$F$5000,U$5,FALSE),2) -> 16.76 | V14: =ROUND(VLOOKUP($R14,'data for u-p-charts'!$A$2:$F$5000,V$5,FALSE),2) -> 17.74 | W14: =CONCATENATE(X$7,$O14,'CDI Data and Charts'!B$1) -> CDICA201901Scotland | X14: =ROUND(VLOOKUP($W14,'data for u-p-charts'!$A$2:$F$5000,X$5,FALSE),2) -> 3.71 | Y14: =ROUND(VLOOKUP($W14,'data for u-p-charts'!$A$2:$F$5000,Y$5,FALSE),2) -> 5.62 | Z14: =ROUND(VLOOKUP($W14,'data for u-p-charts'!$A$2:$F$5000,Z$5,FALSE),2) -> 6.91 | AA14: =ROUND(VLOOKUP($W14,'data for u-p-charts'!$A$2:$F$5000,AA$5,FALSE),2) -> 7.56
A15: 201603 | B15: 2016-09-24 | C15: =CONCATENATE(A15,'CDI Data and Charts'!B$1) -> 201603Scotland | D15: =VLOOKUP(CONCATENATE(D$5,$C15),'trend data'!$A$2:$O$11161,D$6,FALSE) -> 263 | E15: =ROUND(VLOOKUP(CONCATENATE(E$5,$C15),'trend data'!$A$2:$O$11161,E$6,FALSE),3) -> 16.58 | F15: =ROUND(VLOOKUP(CONCATENATE(F$5,$C15),'trend data'!$A$2:$O$11161,F$6,FALSE),3) -> 14.636 | G15: =ROUND(VLOOKUP(CONCATENATE(G$5,$C15),'trend data'!$A$2:$O$11161,G$6,FALSE),3) -> 18.71 | H15: =IFERROR(VLOOKUP(CONCATENATE(H$5,$C15),'trend data'!$A$2:$O$11161,H$6,FALSE),"-") -> 119 | I15: =IFERROR(ROUND(VLOOKUP(CONCATENATE(I$5,$C15),'trend data'!$A$2:$O$11161,I$6,FALSE),3),"-") -> 8.759 | J15: =IFERROR(ROUND(VLOOKUP(CONCATENATE(J$5,$C15),'trend data'!$A$2:$O$11161,J$6,FALSE),3),"-") -> 7.256 | K15: =IFERROR(ROUND(VLOOKUP(CONCATENATE(K$5,$C15),'trend data'!$A$2:$O$11161,K$6,FALSE),3),"-") -> 10.482 | O15: 201902 | P15: 7 | Q15: 2019-06-28 | R15: =CONCATENATE(S$7,$O15,'CDI Data and Charts'!B$1) -> CDIHCAI201902Scotland | S15: =ROUND(VLOOKUP($R15,'data for u-p-charts'!$A$2:$F$5000,S$5,FALSE),2) -> 12.26 | T15: =ROUND(VLOOKUP($R15,'data for u-p-charts'!$A$2:$F$5000,T$5,FALSE),2) -> 14.79 | U15: =ROUND(VLOOKUP($R15,'data for u-p-charts'!$A$2:$F$5000,U$5,FALSE),2) -> 16.78 | V15: =ROUND(VLOOKUP($R15,'data for u-p-charts'!$A$2:$F$5000,V$5,FALSE),2) -> 17.77 | W15: =CONCATENATE(X$7,$O15,'CDI Data and Charts'!B$1) -> CDICA201902Scotland | X15: =ROUND(VLOOKUP($W15,'data for u-p-charts'!$A$2:$F$5000,X$5,FALSE),2) -> 4.85 | Y15: =ROUND(VLOOKUP($W15,'data for u-p-charts'!$A$2:$F$5000,Y$5,FALSE),2) -> 5.62 | Z15: =ROUND(VLOOKUP($W15,'data for u-p-charts'!$A$2:$F$5000,Z$5,FALSE),2) -> 6.9 | AA15: =ROUND(VLOOKUP($W15,'data for u-p-charts'!$A$2:$F$5000,AA$5,FALSE),2) -> 7.55
A16: 201604 | B16: 2016-12-24 | C16: =CONCATENATE(A16,'CDI Data and Charts'!B$1) -> 201604Scotland | D16: =VLOOKUP(CONCATENATE(D$5,$C16),'trend data'!$A$2:$O$11161,D$6,FALSE) -> 233 | E16: =ROUND(VLOOKUP(CONCATENATE(E$5,$C16),'trend data'!$A$2:$O$11161,E$6,FALSE),3) -> 14.654 | F16: =ROUND(VLOOKUP(CONCATENATE(F$5,$C16),'trend data'!$A$2:$O$11161,F$6,FALSE),3) -> 12.833 | G16: =ROUND(VLOOKUP(CONCATENATE(G$5,$C16),'trend data'!$A$2:$O$11161,G$6,FALSE),3) -> 16.661 | H16: =IFERROR(VLOOKUP(CONCATENATE(H$5,$C16),'trend data'!$A$2:$O$11161,H$6,FALSE),"-") -> 94 | I16: =IFERROR(ROUND(VLOOKUP(CONCATENATE(I$5,$C16),'trend data'!$A$2:$O$11161,I$6,FALSE),3),"-") -> 6.919 | J16: =IFERROR(ROUND(VLOOKUP(CONCATENATE(J$5,$C16),'trend data'!$A$2:$O$11161,J$6,FALSE),3),"-") -> 5.591 | K16: =IFERROR(ROUND(VLOOKUP(CONCATENATE(K$5,$C16),'trend data'!$A$2:$O$11161,K$6,FALSE),3),"-") -> 8.467 | O16: 201903 | P16: 8 | Q16: 2019-09-28 | R16: =CONCATENATE(S$7,$O16,'CDI Data and Charts'!B$1) -> CDIHCAI201903Scotland | S16: =ROUND(VLOOKUP($R16,'data for u-p-charts'!$A$2:$F$5000,S$5,FALSE),2) -> 13.71 | T16: =ROUND(VLOOKUP($R16,'data for u-p-charts'!$A$2:$F$5000,T$5,FALSE),2) -> 14.79 | U16: =ROUND(VLOOKUP($R16,'data for u-p-charts'!$A$2:$F$5000,U$5,FALSE),2) -> 16.77 | V16: =ROUND(VLOOKUP($R16,'data for u-p-charts'!$A$2:$F$5000,V$5,FALSE),2) -> 17.76 | W16: =CONCATENATE(X$7,$O16,'CDI Data and Charts'!B$1) -> CDICA201903Scotland | X16: =ROUND(VLOOKUP($W16,'data for u-p-charts'!$A$2:$F$5000,X$5,FALSE),2) -> 5.23 | Y16: =ROUND(VLOOKUP($W16,'data for u-p-charts'!$A$2:$F$5000,Y$5,FALSE),2) -> 5.62 | Z16: =ROUND(VLOOKUP($W16,'data for u-p-charts'!$A$2:$F$5000,Z$5,FALSE),2) -> 6.9 | AA16: =ROUND(VLOOKUP($W16,'data for u-p-charts'!$A$2:$F$5000,AA$5,FALSE),2) -> 7.54
A17: 201701 | B17: 2017-03-01 | C17: =CONCATENATE(A17,'CDI Data and Charts'!B$1) -> 201701Scotland | D17: =VLOOKUP(CONCATENATE(D$5,$C17),'trend data'!$A$2:$O$11161,D$6,FALSE) -> 257 | E17: =ROUND(VLOOKUP(CONCATENATE(E$5,$C17),'trend data'!$A$2:$O$11161,E$6,FALSE),3) -> 16.27 | F17: =ROUND(VLOOKUP(CONCATENATE(F$5,$C17),'trend data'!$A$2:$O$11161,F$6,FALSE),3) -> 14.341 | G17: =ROUND(VLOOKUP(CONCATENATE(G$5,$C17),'trend data'!$A$2:$O$11161,G$6,FALSE),3) -> 18.386 | H17: =IFERROR(VLOOKUP(CONCATENATE(H$5,$C17),'trend data'!$A$2:$O$11161,H$6,FALSE),"-") -> 74 | I17: =IFERROR(ROUND(VLOOKUP(CONCATENATE(I$5,$C17),'trend data'!$A$2:$O$11161,I$6,FALSE),3),"-") -> 5.532 | J17: =IFERROR(ROUND(VLOOKUP(CONCATENATE(J$5,$C17),'trend data'!$A$2:$O$11161,J$6,FALSE),3),"-") -> 4.344 | K17: =IFERROR(ROUND(VLOOKUP(CONCATENATE(K$5,$C17),'trend data'!$A$2:$O$11161,K$6,FALSE),3),"-") -> 6.945 | O17: 201904 | P17: 9 | Q17: 2019-12-29 | R17: =CONCATENATE(S$7,$O17,'CDI Data and Charts'!B$1) -> CDIHCAI201904Scotland | S17: =ROUND(VLOOKUP($R17,'data for u-p-charts'!$A$2:$F$5000,S$5,FALSE),2) -> 15.06 | T17: =ROUND(VLOOKUP($R17,'data for u-p-charts'!$A$2:$F$5000,T$5,FALSE),2) -> 14.79 | U17: =ROUND(VLOOKUP($R17,'data for u-p-charts'!$A$2:$F$5000,U$5,FALSE),2) -> 16.76 | V17: =ROUND(VLOOKUP($R17,'data for u-p-charts'!$A$2:$F$5000,V$5,FALSE),2) -> 17.74 | W17: =CONCATENATE(X$7,$O17,'CDI Data and Charts'!B$1) -> CDICA201904Scotland | X17: =ROUND(VLOOKUP($W17,'data for u-p-charts'!$A$2:$F$5000,X$5,FALSE),2) -> 4.57 | Y17: =ROUND(VLOOKUP($W17,'data for u-p-charts'!$A$2:$F$5000,Y$5,FALSE),2) -> 5.62 | Z17: =ROUND(VLOOKUP($W17,'data for u-p-charts'!$A$2:$F$5000,Z$5,FALSE),2) -> 6.9 | AA17: =ROUND(VLOOKUP($W17,'data for u-p-charts'!$A$2:$F$5000,AA$5,FALSE),2) -> 7.54
A18: 201702 | B18: 2017-06-01 | C18: =CONCATENATE(A18,'CDI Data and Charts'!B$1) -> 201702Scotland | D18: =VLOOKUP(CONCATENATE(D$5,$C18),'trend data'!$A$2:$O$11161,D$6,FALSE) -> 238 | E18: =ROUND(VLOOKUP(CONCATENATE(E$5,$C18),'trend data'!$A$2:$O$11161,E$6,FALSE),3) -> 15.364 | F18: =ROUND(VLOOKUP(CONCATENATE(F$5,$C18),'trend data'!$A$2:$O$11161,F$6,FALSE),3) -> 13.474 | G18: =ROUND(VLOOKUP(CONCATENATE(G$5,$C18),'trend data'!$A$2:$O$11161,G$6,FALSE),3) -> 17.445 | H18: =IFERROR(VLOOKUP(CONCATENATE(H$5,$C18),'trend data'!$A$2:$O$11161,H$6,FALSE),"-") -> 100 | I18: =IFERROR(ROUND(VLOOKUP(CONCATENATE(I$5,$C18),'trend data'!$A$2:$O$11161,I$6,FALSE),3),"-") -> 7.394 | J18: =IFERROR(ROUND(VLOOKUP(CONCATENATE(J$5,$C18),'trend data'!$A$2:$O$11161,J$6,FALSE),3),"-") -> 6.016 | K18: =IFERROR(ROUND(VLOOKUP(CONCATENATE(K$5,$C18),'trend data'!$A$2:$O$11161,K$6,FALSE),3),"-") -> 8.993 | O18: 202001 | P18: 10 | Q18: 2020-03-30 | R18: =CONCATENATE(S$7,$O18,'CDI Data and Charts'!B$1) -> CDIHCAI202001Scotland | S18: =ROUND(VLOOKUP($R18,'data for u-p-charts'!$A$2:$F$5000,S$5,FALSE),2) -> 13.62 | T18: =ROUND(VLOOKUP($R18,'data for u-p-charts'!$A$2:$F$5000,T$5,FALSE),2) -> 14.79 | U18: =ROUND(VLOOKUP($R18,'data for u-p-charts'!$A$2:$F$5000,U$5,FALSE),2) -> 16.8 | V18: =ROUND(VLOOKUP($R18,'data for u-p-charts'!$A$2:$F$5000,V$5,FALSE),2) -> 17.8 | W18: =CONCATENATE(X$7,$O18,'CDI Data and Charts'!B$1) -> CDICA202001Scotland | X18: =ROUND(VLOOKUP($W18,'data for u-p-charts'!$A$2:$F$5000,X$5,FALSE),2) -> 3.39 | Y18: =ROUND(VLOOKUP($W18,'data for u-p-charts'!$A$2:$F$5000,Y$5,FALSE),2) -> 5.62 | Z18: =ROUND(VLOOKUP($W18,'data for u-p-charts'!$A$2:$F$5000,Z$5,FALSE),2) -> 6.91 | AA18: =ROUND(VLOOKUP($W18,'data for u-p-charts'!$A$2:$F$5000,AA$5,FALSE),2) -> 7.55
A19: 201703 | B19: 2017-09-01 | C19: =CONCATENATE(A19,'CDI Data and Charts'!B$1) -> 201703Scotland | D19: =VLOOKUP(CONCATENATE(D$5,$C19),'trend data'!$A$2:$O$11161,D$6,FALSE) -> 288 | E19: =ROUND(VLOOKUP(CONCATENATE(E$5,$C19),'trend data'!$A$2:$O$11161,E$6,FALSE),3) -> 18.734 | F19: =ROUND(VLOOKUP(CONCATENATE(F$5,$C19),'trend data'!$A$2:$O$11161,F$6,FALSE),3) -> 16.632 | G19: =ROUND(VLOOKUP(CONCATENATE(G$5,$C19),'trend data'!$A$2:$O$11161,G$6,FALSE),3) -> 21.027 | H19: =IFERROR(VLOOKUP(CONCATENATE(H$5,$C19),'trend data'!$A$2:$O$11161,H$6,FALSE),"-") -> 103 | I19: =IFERROR(ROUND(VLOOKUP(CONCATENATE(I$5,$C19),'trend data'!$A$2:$O$11161,I$6,FALSE),3),"-") -> 7.533 | J19: =IFERROR(ROUND(VLOOKUP(CONCATENATE(J$5,$C19),'trend data'!$A$2:$O$11161,J$6,FALSE),3),"-") -> 6.148 | K19: =IFERROR(ROUND(VLOOKUP(CONCATENATE(K$5,$C19),'trend data'!$A$2:$O$11161,K$6,FALSE),3),"-") -> 9.136 | O19: 202002 | P19: 11 | Q19: =Q20-92 -> 2020-06-30 | R19: =CONCATENATE(S$7,$O19,'CDI Data and Charts'!B$1) -> CDIHCAI202002Scotland | S19: =ROUND(VLOOKUP($R19,'data for u-p-charts'!$A$2:$F$5000,S$5,FALSE),2) -> 15.45 | T19: =ROUND(VLOOKUP($R19,'data for u-p-charts'!$A$2:$F$5000,T$5,FALSE),2) -> 14.79 | U19: =ROUND(VLOOKUP($R19,'data for u-p-charts'!$A$2:$F$5000,U$5,FALSE),2) -> 17.13 | V19: =ROUND(VLOOKUP($R19,'data for u-p-charts'!$A$2:$F$5000,V$5,FALSE),2) -> 18.3 | W19: =CONCATENATE(X$7,$O19,'CDI Data and Charts'!B$1) -> CDICA202002Scotland | X19: =ROUND(VLOOKUP($W19,'data for u-p-charts'!$A$2:$F$5000,X$5,FALSE),2) -> 5.82 | Y19: =ROUND(VLOOKUP($W19,'data for u-p-charts'!$A$2:$F$5000,Y$5,FALSE),2) -> 5.62 | Z19: =ROUND(VLOOKUP($W19,'data for u-p-charts'!$A$2:$F$5000,Z$5,FALSE),2) -> 6.91 | AA19: =ROUND(VLOOKUP($W19,'data for u-p-charts'!$A$2:$F$5000,AA$5,FALSE),2) -> 7.55
A20: 201704 | B20: 2017-12-01 | C20: =CONCATENATE(A20,'CDI Data and Charts'!B$1) -> 201704Scotland | D20: =VLOOKUP(CONCATENATE(D$5,$C20),'trend data'!$A$2:$O$11161,D$6,FALSE) -> 235 | E20: =ROUND(VLOOKUP(CONCATENATE(E$5,$C20),'trend data'!$A$2:$O$11161,E$6,FALSE),3) -> 14.939 | F20: =ROUND(VLOOKUP(CONCATENATE(F$5,$C20),'trend data'!$A$2:$O$11161,F$6,FALSE),3) -> 13.09 | G20: =ROUND(VLOOKUP(CONCATENATE(G$5,$C20),'trend data'!$A$2:$O$11161,G$6,FALSE),3) -> 16.976 | H20: =IFERROR(VLOOKUP(CONCATENATE(H$5,$C20),'trend data'!$A$2:$O$11161,H$6,FALSE),"-") -> 74 | I20: =IFERROR(ROUND(VLOOKUP(CONCATENATE(I$5,$C20),'trend data'!$A$2:$O$11161,I$6,FALSE),3),"-") -> 5.412 | J20: =IFERROR(ROUND(VLOOKUP(CONCATENATE(J$5,$C20),'trend data'!$A$2:$O$11161,J$6,FALSE),3),"-") -> 4.249 | K20: =IFERROR(ROUND(VLOOKUP(CONCATENATE(K$5,$C20),'trend data'!$A$2:$O$11161,K$6,FALSE),3),"-") -> 6.794 | O20: 202003 | P20: 12 | Q20: =Q5 -> 2020-09-30 | R20: =CONCATENATE(S$7,$O20,'CDI Data and Charts'!B$1) -> CDIHCAI202003Scotland | S20: =ROUND(VLOOKUP($R20,'data for u-p-charts'!$A$2:$F$5000,S$5,FALSE),2) -> 17.42 | T20: =ROUND(VLOOKUP($R20,'data for u-p-charts'!$A$2:$F$5000,T$5,FALSE),2) -> 14.79 | U20: =ROUND(VLOOKUP($R20,'data for u-p-charts'!$A$2:$F$5000,U$5,FALSE),2) -> 16.93 | V20: =ROUND(VLOOKUP($R20,'data for u-p-charts'!$A$2:$F$5000,V$5,FALSE),2) -> 17.99 | W20: =CONCATENATE(X$7,$O20,'CDI Data and Charts'!B$1) -> CDICA202003Scotland | X20: =ROUND(VLOOKUP($W20,'data for u-p-charts'!$A$2:$F$5000,X$5,FALSE),2) -> 6.55 | Y20: =ROUND(VLOOKUP($W20,'data for u-p-charts'!$A$2:$F$5000,Y$5,FALSE),2) -> 5.62 | Z20: =ROUND(VLOOKUP($W20,'data for u-p-charts'!$A$2:$F$5000,Z$5,FALSE),2) -> 6.9 | AA20: =ROUND(VLOOKUP($W20,'data for u-p-charts'!$A$2:$F$5000,AA$5,FALSE),2) -> 7.54
A21: 201801 | B21: 2018-03-01 | C21: =CONCATENATE(A21,'CDI Data and Charts'!B$1) -> 201801Scotland | D21: =IFERROR(VLOOKUP(CONCATENATE(D$5,$C21),'trend data'!$A$2:$O$11161,D$6,FALSE),"-") -> 228 | E21: =ROUND(VLOOKUP(CONCATENATE(E$5,$C21),'trend data'!$A$2:$O$11161,E$6,FALSE),3) -> 14.404 | F21: =ROUND(VLOOKUP(CONCATENATE(F$5,$C21),'trend data'!$A$2:$O$11161,F$6,FALSE),3) -> 12.594 | G21: =ROUND(VLOOKUP(CONCATENATE(G$5,$C21),'trend data'!$A$2:$O$11161,G$6,FALSE),3) -> 16.4 | H21: =IFERROR(VLOOKUP(CONCATENATE(H$5,$C21),'trend data'!$A$2:$O$11161,H$6,FALSE),"-") -> 86 | I21: =IFERROR(ROUND(VLOOKUP(CONCATENATE(I$5,$C21),'trend data'!$A$2:$O$11161,I$6,FALSE),3),"-") -> 6.414 | J21: =IFERROR(ROUND(VLOOKUP(CONCATENATE(J$5,$C21),'trend data'!$A$2:$O$11161,J$6,FALSE),3),"-") -> 5.13 | K21: =IFERROR(ROUND(VLOOKUP(CONCATENATE(K$5,$C21),'trend data'!$A$2:$O$11161,K$6,FALSE),3),"-") -> 7.921
A22: 201802 | B22: 2018-06-01 | C22: =CONCATENATE(A22,'CDI Data and Charts'!B$1) -> 201802Scotland | D22: =IFERROR(VLOOKUP(CONCATENATE(D$5,$C22),'trend data'!$A$2:$O$11161,D$6,FALSE),"-") -> 244 | E22: =ROUND(VLOOKUP(CONCATENATE(E$5,$C22),'trend data'!$A$2:$O$11161,E$6,FALSE),3) -> 16.019 | F22: =ROUND(VLOOKUP(CONCATENATE(F$5,$C22),'trend data'!$A$2:$O$11161,F$6,FALSE),3) -> 14.071 | G22: =ROUND(VLOOKUP(CONCATENATE(G$5,$C22),'trend data'!$A$2:$O$11161,G$6,FALSE),3) -> 18.16 | H22: =IFERROR(VLOOKUP(CONCATENATE(H$5,$C22),'trend data'!$A$2:$O$11161,H$6,FALSE),"-") -> 102 | I22: =IFERROR(ROUND(VLOOKUP(CONCATENATE(I$5,$C22),'trend data'!$A$2:$O$11161,I$6,FALSE),3),"-") -> 7.523 | J22: =IFERROR(ROUND(VLOOKUP(CONCATENATE(J$5,$C22),'trend data'!$A$2:$O$11161,J$6,FALSE),3),"-") -> 6.134 | K22: =IFERROR(ROUND(VLOOKUP(CONCATENATE(K$5,$C22),'trend data'!$A$2:$O$11161,K$6,FALSE),3),"-") -> 9.133
A23: 201803 | B23: 2018-09-01 | C23: =CONCATENATE(A23,'CDI Data and Charts'!B$1) -> 201803Scotland | D23: =IFERROR(VLOOKUP(CONCATENATE(D$5,$C23),'trend data'!$A$2:$O$11161,D$6,FALSE),"-") -> 255 | E23: =ROUND(VLOOKUP(CONCATENATE(E$5,$C23),'trend data'!$A$2:$O$11161,E$6,FALSE),3) -> 16.895 | F23: =ROUND(VLOOKUP(CONCATENATE(F$5,$C23),'trend data'!$A$2:$O$11161,F$6,FALSE),3) -> 14.884 | G23: =ROUND(VLOOKUP(CONCATENATE(G$5,$C23),'trend data'!$A$2:$O$11161,G$6,FALSE),3) -> 19.101 | H23: =IFERROR(VLOOKUP(CONCATENATE(H$5,$C23),'trend data'!$A$2:$O$11161,H$6,FALSE),"-") -> 92 | I23: =IFERROR(ROUND(VLOOKUP(CONCATENATE(I$5,$C23),'trend data'!$A$2:$O$11161,I$6,FALSE),3),"-") -> 6.712 | J23: =IFERROR(ROUND(VLOOKUP(CONCATENATE(J$5,$C23),'trend data'!$A$2:$O$11161,J$6,FALSE),3),"-") -> 5.411 | K23: =IFERROR(ROUND(VLOOKUP(CONCATENATE(K$5,$C23),'trend data'!$A$2:$O$11161,K$6,FALSE),3),"-") -> 8.232
A24: 201804 | B24: 2018-12-01 | C24: =CONCATENATE(A24,'CDI Data and Charts'!B$1) -> 201804Scotland | D24: =IFERROR(VLOOKUP(CONCATENATE(D$5,$C24),'trend data'!$A$2:$O$11161,D$6,FALSE),"-") -> 220 | E24: =ROUND(VLOOKUP(CONCATENATE(E$5,$C24),'trend data'!$A$2:$O$11161,E$6,FALSE),3) -> 14.471 | F24: =ROUND(VLOOKUP(CONCATENATE(F$5,$C24),'trend data'!$A$2:$O$11161,F$6,FALSE),3) -> 12.622 | G24: =ROUND(VLOOKUP(CONCATENATE(G$5,$C24),'trend data'!$A$2:$O$11161,G$6,FALSE),3) -> 16.515 | H24: =IFERROR(VLOOKUP(CONCATENATE(H$5,$C24),'trend data'!$A$2:$O$11161,H$6,FALSE),"-") -> 86 | I24: =IFERROR(ROUND(VLOOKUP(CONCATENATE(I$5,$C24),'trend data'!$A$2:$O$11161,I$6,FALSE),3),"-") -> 6.274 | J24: =IFERROR(ROUND(VLOOKUP(CONCATENATE(J$5,$C24),'trend data'!$A$2:$O$11161,J$6,FALSE),3),"-") -> 5.018 | K24: =IFERROR(ROUND(VLOOKUP(CONCATENATE(K$5,$C24),'trend data'!$A$2:$O$11161,K$6,FALSE),3),"-") -> 7.749
A25: 201901 | B25: 2019-03-01 | C25: =CONCATENATE(A25,'CDI Data and Charts'!B$1) -> 201901Scotland | D25: =IFERROR(VLOOKUP(CONCATENATE(D$5,$C25),'trend data'!$A$2:$O$11161,D$6,FALSE),"-") -> 186 | E25: =ROUND(VLOOKUP(CONCATENATE(E$5,$C25),'trend data'!$A$2:$O$11161,E$6,FALSE),3) -> 12.104 | F25: =ROUND(VLOOKUP(CONCATENATE(F$5,$C25),'trend data'!$A$2:$O$11161,F$6,FALSE),3) -> 10.426 | G25: =ROUND(VLOOKUP(CONCATENATE(G$5,$C25),'trend data'!$A$2:$O$11161,G$6,FALSE),3) -> 13.974 | H25: =IFERROR(VLOOKUP(CONCATENATE(H$5,$C25),'trend data'!$A$2:$O$11161,H$6,FALSE),"-") -> 50 | I25: =IFERROR(ROUND(VLOOKUP(CONCATENATE(I$5,$C25),'trend data'!$A$2:$O$11161,I$6,FALSE),3),"-") -> 3.712 | J25: =IFERROR(ROUND(VLOOKUP(CONCATENATE(J$5,$C25),'trend data'!$A$2:$O$11161,J$6,FALSE),3),"-") -> 2.755 | K25: =IFERROR(ROUND(VLOOKUP(CONCATENATE(K$5,$C25),'trend data'!$A$2:$O$11161,K$6,FALSE),3),"-") -> 4.893
A26: 201902 | B26: 2019-06-01 | C26: =CONCATENATE(A26,'CDI Data and Charts'!B$1) -> 201902Scotland | D26: =IFERROR(VLOOKUP(CONCATENATE(D$5,$C26),'trend data'!$A$2:$O$11161,D$6,FALSE),"-") -> 184 | E26: =ROUND(VLOOKUP(CONCATENATE(E$5,$C26),'trend data'!$A$2:$O$11161,E$6,FALSE),3) -> 12.261 | F26: =ROUND(VLOOKUP(CONCATENATE(F$5,$C26),'trend data'!$A$2:$O$11161,F$6,FALSE),3) -> 10.553 | G26: =ROUND(VLOOKUP(CONCATENATE(G$5,$C26),'trend data'!$A$2:$O$11161,G$6,FALSE),3) -> 14.166 | H26: =IFERROR(VLOOKUP(CONCATENATE(H$5,$C26),'trend data'!$A$2:$O$11161,H$6,FALSE),"-") -> 66 | I26: =IFERROR(ROUND(VLOOKUP(CONCATENATE(I$5,$C26),'trend data'!$A$2:$O$11161,I$6,FALSE),3),"-") -> 4.846 | J26: =IFERROR(ROUND(VLOOKUP(CONCATENATE(J$5,$C26),'trend data'!$A$2:$O$11161,J$6,FALSE),3),"-") -> 3.747 | K26: =IFERROR(ROUND(VLOOKUP(CONCATENATE(K$5,$C26),'trend data'!$A$2:$O$11161,K$6,FALSE),3),"-") -> 6.165
A27: 201903 | B27: 2019-09-01 | C27: =CONCATENATE(A27,'CDI Data and Charts'!B$1) -> 201903Scotland | D27: =IFERROR(VLOOKUP(CONCATENATE(D$5,$C27),'trend data'!$A$2:$O$11161,D$6,FALSE),"-") -> 207 | E27: =ROUND(VLOOKUP(CONCATENATE(E$5,$C27),'trend data'!$A$2:$O$11161,E$6,FALSE),3) -> 13.706 | F27: =ROUND(VLOOKUP(CONCATENATE(F$5,$C27),'trend data'!$A$2:$O$11161,F$6,FALSE),3) -> 11.902 | G27: =ROUND(VLOOKUP(CONCATENATE(G$5,$C27),'trend data'!$A$2:$O$11161,G$6,FALSE),3) -> 15.706 | H27: =IFERROR(VLOOKUP(CONCATENATE(H$5,$C27),'trend data'!$A$2:$O$11161,H$6,FALSE),"-") -> 72 | I27: =IFERROR(ROUND(VLOOKUP(CONCATENATE(I$5,$C27),'trend data'!$A$2:$O$11161,I$6,FALSE),3),"-") -> 5.229 | J27: =IFERROR(ROUND(VLOOKUP(CONCATENATE(J$5,$C27),'trend data'!$A$2:$O$11161,J$6,FALSE),3),"-") -> 4.091 | K27: =IFERROR(ROUND(VLOOKUP(CONCATENATE(K$5,$C27),'trend data'!$A$2:$O$11161,K$6,FALSE),3),"-") -> 6.585
A28: 201904 | B28: 2019-12-01 | C28: =CONCATENATE(A28,'CDI Data and Charts'!B$1) -> 201904Scotland | D28: =IFERROR(VLOOKUP(CONCATENATE(D$5,$C28),'trend data'!$A$2:$O$11161,D$6,FALSE),"-") -> 231 | E28: =ROUND(VLOOKUP(CONCATENATE(E$5,$C28),'trend data'!$A$2:$O$11161,E$6,FALSE),3) -> 15.057 | F28: =ROUND(VLOOKUP(CONCATENATE(F$5,$C28),'trend data'!$A$2:$O$11161,F$6,FALSE),3) -> 13.178 | G28: =ROUND(VLOOKUP(CONCATENATE(G$5,$C28),'trend data'!$A$2:$O$11161,G$6,FALSE),3) -> 17.129 | H28: =IFERROR(VLOOKUP(CONCATENATE(H$5,$C28),'trend data'!$A$2:$O$11161,H$6,FALSE),"-") -> 63 | I28: =IFERROR(ROUND(VLOOKUP(CONCATENATE(I$5,$C28),'trend data'!$A$2:$O$11161,I$6,FALSE),3),"-") -> 4.575 | J28: =IFERROR(ROUND(VLOOKUP(CONCATENATE(J$5,$C28),'trend data'!$A$2:$O$11161,J$6,FALSE),3),"-") -> 3.515 | K28: =IFERROR(ROUND(VLOOKUP(CONCATENATE(K$5,$C28),'trend data'!$A$2:$O$11161,K$6,FALSE),3),"-") -> 5.854
A29: 202001 | B29: 2020-03-01 | C29: =CONCATENATE(A29,'CDI Data and Charts'!B$1) -> 202001Scotland | D29: =IFERROR(VLOOKUP(CONCATENATE(D$5,$C29),'trend data'!$A$2:$O$11161,D$6,FALSE),"-") -> 201 | E29: =ROUND(VLOOKUP(CONCATENATE(E$5,$C29),'trend data'!$A$2:$O$11161,E$6,FALSE),3) -> 13.616 | F29: =ROUND(VLOOKUP(CONCATENATE(F$5,$C29),'trend data'!$A$2:$O$11161,F$6,FALSE),3) -> 11.799 | G29: =ROUND(VLOOKUP(CONCATENATE(G$5,$C29),'trend data'!$A$2:$O$11161,G$6,FALSE),3) -> 15.635 | H29: =IFERROR(VLOOKUP(CONCATENATE(H$5,$C29),'trend data'!$A$2:$O$11161,H$6,FALSE),"-") -> 46 | I29: =IFERROR(ROUND(VLOOKUP(CONCATENATE(I$5,$C29),'trend data'!$A$2:$O$11161,I$6,FALSE),3),"-") -> 3.386 | J29: =IFERROR(ROUND(VLOOKUP(CONCATENATE(J$5,$C29),'trend data'!$A$2:$O$11161,J$6,FALSE),3),"-") -> 2.479 | K29: =IFERROR(ROUND(VLOOKUP(CONCATENATE(K$5,$C29),'trend data'!$A$2:$O$11161,K$6,FALSE),3),"-") -> 4.517
A30: 202002 | B30: 2020-06-01 | C30: =CONCATENATE(A30,'CDI Data and Charts'!B$1) -> 202002Scotland | D30: =IFERROR(VLOOKUP(CONCATENATE(D$5,$C30),'trend data'!$A$2:$O$11161,D$6,FALSE),"-") -> 167 | E30: =ROUND(VLOOKUP(CONCATENATE(E$5,$C30),'trend data'!$A$2:$O$11161,E$6,FALSE),3) -> 15.447 | F30: =ROUND(VLOOKUP(CONCATENATE(F$5,$C30),'trend data'!$A$2:$O$11161,F$6,FALSE),3) -> 13.193 | G30: =ROUND(VLOOKUP(CONCATENATE(G$5,$C30),'trend data'!$A$2:$O$11161,G$6,FALSE),3) -> 17.976 | H30: =IFERROR(VLOOKUP(CONCATENATE(H$5,$C30),'trend data'!$A$2:$O$11161,H$6,FALSE),"-") -> 79 | I30: =IFERROR(ROUND(VLOOKUP(CONCATENATE(I$5,$C30),'trend data'!$A$2:$O$11161,I$6,FALSE),3),"-") -> 5.816 | J30: =IFERROR(ROUND(VLOOKUP(CONCATENATE(J$5,$C30),'trend data'!$A$2:$O$11161,J$6,FALSE),3),"-") -> 4.604 | K30: =IFERROR(ROUND(VLOOKUP(CONCATENATE(K$5,$C30),'trend data'!$A$2:$O$11161,K$6,FALSE),3),"-") -> 7.248
A31: 202003 | B31: 2020-09-01 | C31: =CONCATENATE(A31,'CDI Data and Charts'!B$1) -> 202003Scotland | D31: =IFERROR(VLOOKUP(CONCATENATE(D$5,$C31),'trend data'!$A$2:$O$11161,D$6,FALSE),"-") -> 227 | E31: =ROUND(VLOOKUP(CONCATENATE(E$5,$C31),'trend data'!$A$2:$O$11161,E$6,FALSE),4) -> 17.4207 | F31: =ROUND(VLOOKUP(CONCATENATE(F$5,$C31),'trend data'!$A$2:$O$11161,F$6,FALSE),4) -> 15.2279 | G31: =ROUND(VLOOKUP(CONCATENATE(G$5,$C31),'trend data'!$A$2:$O$11161,G$6,FALSE),4) -> 19.8406 | H31: =IFERROR(VLOOKUP(CONCATENATE(H$5,$C31),'trend data'!$A$2:$O$11161,H$6,FALSE),"-") -> 90 | I31: =IFERROR(ROUND(VLOOKUP(CONCATENATE(I$5,$C31),'trend data'!$A$2:$O$11161,I$6,FALSE),4),"-") -> 6.5536 | J31: =IFERROR(ROUND(VLOOKUP(CONCATENATE(J$5,$C31),'trend data'!$A$2:$O$11161,J$6,FALSE),4),"-") -> 5.2697 | K31: =IFERROR(ROUND(VLOOKUP(CONCATENATE(K$5,$C31),'trend data'!$A$2:$O$11161,K$6,FALSE),4),"-") -> 8.0556

Sheet ECOLI data (hidden)
A1: Trend data | R1: u-chart data
A3: add a new line for current quarter
U4: change this
D5: ECBHCAI | E5: ECBHCAI | F5: ECBHCAI | G5: ECBHCAI | H5: ECBCOM | I5: ECBCOM | J5: ECBCOM | K5: ECBCOM | L5: ECBHCAI | M5: ECBCOM | T5: current quarter end | U5: 2020-09-30 | V5: 3 | W5: 4 | X5: 5 | Y5: 6 | AA5: 3 | AB5: 4 | AC5: 5 | AD5: 6
D6: 2 | E6: 4 | F6: 5 | G6: 6 | H6: 2 | I6: 4 | J6: 5 | K6: 6 | L6: 3 | M6: 3
C7: ref | D7: Healthcare associated Cases | E7: Healthcare associated rate | F7: Healthcare associated lower CI | G7: Healthcare associated upper CI | H7: Community associatedCases | I7: Community associatedrate | J7: Community associated lower CI | K7: Community associated upper CI | L7: ALL beds | M7: Pop | V7: ECBHCAI | AA7: ECBCOM
A8: 201603 | B8: 2016-09-24 | C8: =CONCATENATE(A8,'ECOLI Data and Charts'!B$1) -> 201603Scotland | D8: =VLOOKUP(CONCATENATE(D$5,$C8),'trend data'!$A$2:$O$11161,D$6,FALSE) -> 582 | E8: =ROUND(VLOOKUP(CONCATENATE(E$5,$C8),'trend data'!$A$2:$O$11161,E$6,FALSE),3) -> 36.69 | F8: =ROUND(VLOOKUP(CONCATENATE(F$5,$C8),'trend data'!$A$2:$O$11161,F$6,FALSE),3) -> 33.77 | G8: =ROUND(VLOOKUP(CONCATENATE(G$5,$C8),'trend data'!$A$2:$O$11161,G$6,FALSE),3) -> 39.796 | H8: =IFERROR(VLOOKUP(CONCATENATE(H$5,$C8),'trend data'!$A$2:$O$11161,H$6,FALSE),"-") -> 719 | I8: =IFERROR(ROUND(VLOOKUP(CONCATENATE(I$5,$C8),'trend data'!$A$2:$O$11161,I$6,FALSE),3),"-") -> 52.924 | J8: =IFERROR(ROUND(VLOOKUP(CONCATENATE(J$5,$C8),'trend data'!$A$2:$O$11161,J$6,FALSE),3),"-") -> 49.125 | K8: =IFERROR(ROUND(VLOOKUP(CONCATENATE(K$5,$C8),'trend data'!$A$2:$O$11161,K$6,FALSE),3),"-") -> 56.938 | L8: =VLOOKUP(CONCATENATE(L$5,$C8),'trend data'!$A$2:$O$11161,L$6,FALSE) -> 1586248 | M8: =ROUND(VLOOKUP(CONCATENATE(M$5,$C8),'trend data'!$A$2:$O$11161,M$6,FALSE),2) -> 1358558.47 | R8: change to last 12 quarters | V8: Healthcare associated rate | W8: Healthcare associated av rate | X8: Healthcare associated UWL 2sd | Y8: Healthcare associated UWL 3sd | AA8: Community associated rate | AB8: Community associated av rate | AC8: Community associated UWL 2sd | AD8: Community associated UWL 3 sd
A9: 201604 | B9: 2016-12-24 | C9: =CONCATENATE(A9,'ECOLI Data and Charts'!B$1) -> 201604Scotland | D9: =VLOOKUP(CONCATENATE(D$5,$C9),'trend data'!$A$2:$O$11161,D$6,FALSE) -> 564 | E9: =ROUND(VLOOKUP(CONCATENATE(E$5,$C9),'trend data'!$A$2:$O$11161,E$6,FALSE),3) -> 35.472 | F9: =ROUND(VLOOKUP(CONCATENATE(F$5,$C9),'trend data'!$A$2:$O$11161,F$6,FALSE),3) -> 32.604 | G9: =ROUND(VLOOKUP(CONCATENATE(G$5,$C9),'trend data'!$A$2:$O$11161,G$6,FALSE),3) -> 38.524 | H9: =IFERROR(VLOOKUP(CONCATENATE(H$5,$C9),'trend data'!$A$2:$O$11161,H$6,FALSE),"-") -> 631 | I9: =IFERROR(ROUND(VLOOKUP(CONCATENATE(I$5,$C9),'trend data'!$A$2:$O$11161,I$6,FALSE),3),"-") -> 46.446 | J9: =IFERROR(ROUND(VLOOKUP(CONCATENATE(J$5,$C9),'trend data'!$A$2:$O$11161,J$6,FALSE),3),"-") -> 42.892 | K9: =IFERROR(ROUND(VLOOKUP(CONCATENATE(K$5,$C9),'trend data'!$A$2:$O$11161,K$6,FALSE),3),"-") -> 50.216 | L9: =VLOOKUP(CONCATENATE(L$5,$C9),'trend data'!$A$2:$O$11161,L$6,FALSE) -> 1590008 | M9: =ROUND(VLOOKUP(CONCATENATE(M$5,$C9),'trend data'!$A$2:$O$11161,M$6,FALSE),2) -> 1358558.47 | R9: =YEAR(U9)&"0"&IF(MONTH(U9)<4,1,IF(MONTH(U9)<7,2,IF(MONTH(U9)<10,3,4))) -> 201704 | S9: =CONCATENATE(V$7,$R9,'ECOLI Data and Charts'!B$1) -> ECBHCAI201704Scotland | T9: 1 | U9: =U10-92 -> 2017-12-23 | V9: =ROUND(VLOOKUP($S9,'data for u-p-charts'!$A$2:$F$5000,V$5,FALSE),2) -> 33.63 | W9: =ROUND(VLOOKUP($S9,'data for u-p-charts'!$A$2:$F$5000,W$5,FALSE),2) -> 37.82 | X9: =ROUND(VLOOKUP($S9,'data for u-p-charts'!$A$2:$F$5000,X$5,FALSE),2) -> 40.92 | Y9: =ROUND(VLOOKUP($S9,'data for u-p-charts'!$A$2:$F$5000,Y$5,FALSE),2) -> 42.47 | Z9: =CONCATENATE(AA$7,$R9,'ECOLI Data and Charts'!$B$1) -> ECBCOM201704Scotland | AA9: =ROUND(VLOOKUP($Z9,'data for u-p-charts'!$A$2:$F$5000,AA$5,FALSE),2) -> 48.12 | AB9: =ROUND(VLOOKUP($Z9,'data for u-p-charts'!$A$2:$F$5000,AB$5,FALSE),2) -> 43.78 | AC9: =ROUND(VLOOKUP($Z9,'data for u-p-charts'!$A$2:$F$5000,AC$5,FALSE),2) -> 47.36 | AD9: =ROUND(VLOOKUP($Z9,'data for u-p-charts'!$A$2:$F$5000,AD$5,FALSE),2) -> 49.15
A10: 201701 | B10: 2017-03-01 | C10: =CONCATENATE(A10,'ECOLI Data and Charts'!B$1) -> 201701Scotland | D10: =VLOOKUP(CONCATENATE(D$5,$C10),'trend data'!$A$2:$O$11161,D$6,FALSE) -> 547 | E10: =ROUND(VLOOKUP(CONCATENATE(E$5,$C10),'trend data'!$A$2:$O$11161,E$6,FALSE),3) -> 34.629 | F10: =ROUND(VLOOKUP(CONCATENATE(F$5,$C10),'trend data'!$A$2:$O$11161,F$6,FALSE),3) -> 31.788 | G10: =ROUND(VLOOKUP(CONCATENATE(G$5,$C10),'trend data'!$A$2:$O$11161,G$6,FALSE),3) -> 37.657 | H10: =IFERROR(VLOOKUP(CONCATENATE(H$5,$C10),'trend data'!$A$2:$O$11161,H$6,FALSE),"-") -> 571 | I10: =IFERROR(ROUND(VLOOKUP(CONCATENATE(I$5,$C10),'trend data'!$A$2:$O$11161,I$6,FALSE),3),"-") -> 42.688 | J10: =IFERROR(ROUND(VLOOKUP(CONCATENATE(J$5,$C10),'trend data'!$A$2:$O$11161,J$6,FALSE),3),"-") -> 39.258 | K10: =IFERROR(ROUND(VLOOKUP(CONCATENATE(K$5,$C10),'trend data'!$A$2:$O$11161,K$6,FALSE),3),"-") -> 46.337 | L10: =VLOOKUP(CONCATENATE(L$5,$C10),'trend data'!$A$2:$O$11161,L$6,FALSE) -> 1579585 | M10: =ROUND(VLOOKUP(CONCATENATE(M$5,$C10),'trend data'!$A$2:$O$11161,M$6,FALSE),2) -> 1337621.92 | R10: =YEAR(U10)&"0"&IF(MONTH(U10)<4,1,IF(MONTH(U10)<7,2,IF(MONTH(U10)<10,3,4))) -> 201801 | S10: =CONCATENATE(V$7,R10,'ECOLI Data and Charts'!B$1) -> ECBHCAI201801Scotland | T10: 2 | U10: 2018-03-25 | V10: =ROUND(VLOOKUP($S10,'data for u-p-charts'!$A$2:$F$5000,V$5,FALSE),2) -> 33.1 | W10: =ROUND(VLOOKUP($S10,'data for u-p-charts'!$A$2:$F$5000,W$5,FALSE),2) -> 37.82 | X10: =ROUND(VLOOKUP($S10,'data for u-p-charts'!$A$2:$F$5000,X$5,FALSE),2) -> 40.91 | Y10: =ROUND(VLOOKUP($S10,'data for u-p-charts'!$A$2:$F$5000,Y$5,FALSE),2) -> 42.46 | Z10: =CONCATENATE(AA$7,$R10,'ECOLI Data and Charts'!$B$1) -> ECBCOM201801Scotland | AA10: =ROUND(VLOOKUP($Z10,'data for u-p-charts'!$A$2:$F$5000,AA$5,FALSE),2) -> 43.11 | AB10: =ROUND(VLOOKUP($Z10,'data for u-p-charts'!$A$2:$F$5000,AB$5,FALSE),2) -> 43.78 | AC10: =ROUND(VLOOKUP($Z10,'data for u-p-charts'!$A$2:$F$5000,AC$5,FALSE),2) -> 47.39 | AD10: =ROUND(VLOOKUP($Z10,'data for u-p-charts'!$A$2:$F$5000,AD$5,FALSE),2) -> 49.2
A11: 201702 | B11: 2017-06-01 | C11: =CONCATENATE(A11,'ECOLI Data and Charts'!B$1) -> 201702Scotland | D11: =VLOOKUP(CONCATENATE(D$5,$C11),'trend data'!$A$2:$O$11161,D$6,FALSE) -> 534 | E11: =ROUND(VLOOKUP(CONCATENATE(E$5,$C11),'trend data'!$A$2:$O$11161,E$6,FALSE),3) -> 34.472 | F11: =ROUND(VLOOKUP(CONCATENATE(F$5,$C11),'trend data'!$A$2:$O$11161,F$6,FALSE),3) -> 31.61 | G11: =ROUND(VLOOKUP(CONCATENATE(G$5,$C11),'trend data'!$A$2:$O$11161,G$6,FALSE),3) -> 37.524 | H11: =IFERROR(VLOOKUP(CONCATENATE(H$5,$C11),'trend data'!$A$2:$O$11161,H$6,FALSE),"-") -> 662 | I11: =IFERROR(ROUND(VLOOKUP(CONCATENATE(I$5,$C11),'trend data'!$A$2:$O$11161,I$6,FALSE),3),"-") -> 48.947 | J11: =IFERROR(ROUND(VLOOKUP(CONCATENATE(J$5,$C11),'trend data'!$A$2:$O$11161,J$6,FALSE),3),"-") -> 45.289 | K11: =IFERROR(ROUND(VLOOKUP(CONCATENATE(K$5,$C11),'trend data'!$A$2:$O$11161,K$6,FALSE),3),"-") -> 52.822 | L11: =VLOOKUP(CONCATENATE(L$5,$C11),'trend data'!$A$2:$O$11161,L$6,FALSE) -> 1549065 | M11: =ROUND(VLOOKUP(CONCATENATE(M$5,$C11),'trend data'!$A$2:$O$11161,M$6,FALSE),2) -> 1352484.38 | R11: =YEAR(U11)&"0"&IF(MONTH(U11)<4,1,IF(MONTH(U11)<7,2,IF(MONTH(U11)<10,3,4))) -> 201802 | S11: =CONCATENATE(V$7,R11,'ECOLI Data and Charts'!B$1) -> ECBHCAI201802Scotland | T11: 3 | U11: 2018-06-25 | V11: =ROUND(VLOOKUP($S11,'data for u-p-charts'!$A$2:$F$5000,V$5,FALSE),2) -> 38.08 | W11: =ROUND(VLOOKUP($S11,'data for u-p-charts'!$A$2:$F$5000,W$5,FALSE),2) -> 37.82 | X11: =ROUND(VLOOKUP($S11,'data for u-p-charts'!$A$2:$F$5000,X$5,FALSE),2) -> 40.97 | Y11: =ROUND(VLOOKUP($S11,'data for u-p-charts'!$A$2:$F$5000,Y$5,FALSE),2) -> 42.55 | Z11: =CONCATENATE(AA$7,$R11,'ECOLI Data and Charts'!$B$1) -> ECBCOM201802Scotland | AA11: =ROUND(VLOOKUP($Z11,'data for u-p-charts'!$A$2:$F$5000,AA$5,FALSE),2) -> 44.11 | AB11: =ROUND(VLOOKUP($Z11,'data for u-p-charts'!$A$2:$F$5000,AB$5,FALSE),2) -> 43.78 | AC11: =ROUND(VLOOKUP($Z11,'data for u-p-charts'!$A$2:$F$5000,AC$5,FALSE),2) -> 47.37 | AD11: =ROUND(VLOOKUP($Z11,'data for u-p-charts'!$A$2:$F$5000,AD$5,FALSE),2) -> 49.17
A12: 201703 | B12: 2017-09-01 | C12: =CONCATENATE(A12,'ECOLI Data and Charts'!B$1) -> 201703Scotland | D12: =VLOOKUP(CONCATENATE(D$5,$C12),'trend data'!$A$2:$O$11161,D$6,FALSE) -> 585 | E12: =ROUND(VLOOKUP(CONCATENATE(E$5,$C12),'trend data'!$A$2:$O$11161,E$6,FALSE),3) -> 38.053 | F12: =ROUND(VLOOKUP(CONCATENATE(F$5,$C12),'trend data'!$A$2:$O$11161,F$6,FALSE),3) -> 35.031 | G12: =ROUND(VLOOKUP(CONCATENATE(G$5,$C12),'trend data'!$A$2:$O$11161,G$6,FALSE),3) -> 41.265 | H12: =IFERROR(VLOOKUP(CONCATENATE(H$5,$C12),'trend data'!$A$2:$O$11161,H$6,FALSE),"-") -> 677 | I12: =IFERROR(ROUND(VLOOKUP(CONCATENATE(I$5,$C12),'trend data'!$A$2:$O$11161,I$6,FALSE),3),"-") -> 49.512 | J12: =IFERROR(ROUND(VLOOKUP(CONCATENATE(J$5,$C12),'trend data'!$A$2:$O$11161,J$6,FALSE),3),"-") -> 45.852 | K12: =IFERROR(ROUND(VLOOKUP(CONCATENATE(K$5,$C12),'trend data'!$A$2:$O$11161,K$6,FALSE),3),"-") -> 53.386 | L12: =VLOOKUP(CONCATENATE(L$5,$C12),'trend data'!$A$2:$O$11161,L$6,FALSE) -> 1537335 | M12: =ROUND(VLOOKUP(CONCATENATE(M$5,$C12),'trend data'!$A$2:$O$11161,M$6,FALSE),2) -> 1367346.85 | R12: 201803 | S12: =CONCATENATE(V$7,R12,'ECOLI Data and Charts'!B$1) -> ECBHCAI201803Scotland | T12: 4 | U12: 2018-09-25 | V12: =ROUND(VLOOKUP($S12,'data for u-p-charts'!$A$2:$F$5000,V$5,FALSE),2) -> 40.15 | W12: =ROUND(VLOOKUP($S12,'data for u-p-charts'!$A$2:$F$5000,W$5,FALSE),2) -> 37.82 | X12: =ROUND(VLOOKUP($S12,'data for u-p-charts'!$A$2:$F$5000,X$5,FALSE),2) -> 40.98 | Y12: =ROUND(VLOOKUP($S12,'data for u-p-charts'!$A$2:$F$5000,Y$5,FALSE),2) -> 42.57 | Z12: =CONCATENATE(AA$7,$R12,'ECOLI Data and Charts'!$B$1) -> ECBCOM201803Scotland | AA12: =ROUND(VLOOKUP($Z12,'data for u-p-charts'!$A$2:$F$5000,AA$5,FALSE),2) -> 48.66 | AB12: =ROUND(VLOOKUP($Z12,'data for u-p-charts'!$A$2:$F$5000,AB$5,FALSE),2) -> 43.78 | AC12: =ROUND(VLOOKUP($Z12,'data for u-p-charts'!$A$2:$F$5000,AC$5,FALSE),2) -> 47.35 | AD12: =ROUND(VLOOKUP($Z12,'data for u-p-charts'!$A$2:$F$5000,AD$5,FALSE),2) -> 49.14
A13: 201704 | B13: 2017-12-01 | C13: =CONCATENATE(A13,'ECOLI Data and Charts'!B$1) -> 201704Scotland | D13: =VLOOKUP(CONCATENATE(D$5,$C13),'trend data'!$A$2:$O$11161,D$6,FALSE) -> 529 | E13: =ROUND(VLOOKUP(CONCATENATE(E$5,$C13),'trend data'!$A$2:$O$11161,E$6,FALSE),3) -> 33.629 | F13: =ROUND(VLOOKUP(CONCATENATE(F$5,$C13),'trend data'!$A$2:$O$11161,F$6,FALSE),3) -> 30.824 | G13: =ROUND(VLOOKUP(CONCATENATE(G$5,$C13),'trend data'!$A$2:$O$11161,G$6,FALSE),3) -> 36.62 | H13: =IFERROR(VLOOKUP(CONCATENATE(H$5,$C13),'trend data'!$A$2:$O$11161,H$6,FALSE),"-") -> 658 | I13: =IFERROR(ROUND(VLOOKUP(CONCATENATE(I$5,$C13),'trend data'!$A$2:$O$11161,I$6,FALSE),3),"-") -> 48.122 | J13: =IFERROR(ROUND(VLOOKUP(CONCATENATE(J$5,$C13),'trend data'!$A$2:$O$11161,J$6,FALSE),3),"-") -> 44.515 | K13: =IFERROR(ROUND(VLOOKUP(CONCATENATE(K$5,$C13),'trend data'!$A$2:$O$11161,K$6,FALSE),3),"-") -> 51.944 | L13: =VLOOKUP(CONCATENATE(L$5,$C13),'trend data'!$A$2:$O$11161,L$6,FALSE) -> 1573065 | M13: =ROUND(VLOOKUP(CONCATENATE(M$5,$C13),'trend data'!$A$2:$O$11161,M$6,FALSE),2) -> 1367346.85 | R13: 201804 | S13: =CONCATENATE(V$7,R13,'ECOLI Data and Charts'!B$1) -> ECBHCAI201804Scotland | T13: 5 | U13: 2018-12-26 | V13: =ROUND(VLOOKUP($S13,'data for u-p-charts'!$A$2:$F$5000,V$5,FALSE),2) -> 38.28 | W13: =ROUND(VLOOKUP($S13,'data for u-p-charts'!$A$2:$F$5000,W$5,FALSE),2) -> 37.82 | X13: =ROUND(VLOOKUP($S13,'data for u-p-charts'!$A$2:$F$5000,X$5,FALSE),2) -> 40.97 | Y13: =ROUND(VLOOKUP($S13,'data for u-p-charts'!$A$2:$F$5000,Y$5,FALSE),2) -> 42.55 | Z13: =CONCATENATE(AA$7,$R13,'ECOLI Data and Charts'!$B$1) -> ECBCOM201804Scotland | AA13: =ROUND(VLOOKUP($Z13,'data for u-p-charts'!$A$2:$F$5000,AA$5,FALSE),2) -> 43.99 | AB13: =ROUND(VLOOKUP($Z13,'data for u-p-charts'!$A$2:$F$5000,AB$5,FALSE),2) -> 43.78 | AC13: =ROUND(VLOOKUP($Z13,'data for u-p-charts'!$A$2:$F$5000,AC$5,FALSE),2) -> 47.35 | AD13: =ROUND(VLOOKUP($Z13,'data for u-p-charts'!$A$2:$F$5000,AD$5,FALSE),2) -> 49.14
A14: 201801 | B14: 2018-03-01 | C14: =CONCATENATE(A14,'ECOLI Data and Charts'!B$1) -> 201801Scotland | D14: =IFERROR(VLOOKUP(CONCATENATE(D$5,$C14),'trend data'!$A$2:$O$11161,D$6,FALSE),"-") -> 524 | E14: =ROUND(VLOOKUP(CONCATENATE(E$5,$C14),'trend data'!$A$2:$O$11161,E$6,FALSE),3) -> 33.103 | F14: =ROUND(VLOOKUP(CONCATENATE(F$5,$C14),'trend data'!$A$2:$O$11161,F$6,FALSE),3) -> 30.329 | G14: =ROUND(VLOOKUP(CONCATENATE(G$5,$C14),'trend data'!$A$2:$O$11161,G$6,FALSE),3) -> 36.062 | H14: =IFERROR(VLOOKUP(CONCATENATE(H$5,$C14),'trend data'!$A$2:$O$11161,H$6,FALSE),"-") -> 578 | I14: =IFERROR(ROUND(VLOOKUP(CONCATENATE(I$5,$C14),'trend data'!$A$2:$O$11161,I$6,FALSE),3),"-") -> 43.105 | J14: =IFERROR(ROUND(VLOOKUP(CONCATENATE(J$5,$C14),'trend data'!$A$2:$O$11161,J$6,FALSE),3),"-") -> 39.662 | K14: =IFERROR(ROUND(VLOOKUP(CONCATENATE(K$5,$C14),'trend data'!$A$2:$O$11161,K$6,FALSE),3),"-") -> 46.767 | L14: =VLOOKUP(CONCATENATE(L$5,$C14),'trend data'!$A$2:$O$11161,L$6,FALSE) -> 1582946 | M14: =ROUND(VLOOKUP(CONCATENATE(M$5,$C14),'trend data'!$A$2:$O$11161,M$6,FALSE),2) -> 1340901.37 | R14: 201901 | S14: =CONCATENATE(V$7,R14,'ECOLI Data and Charts'!B$1) -> ECBHCAI201901Scotland | T14: 6 | U14: 2019-03-28 | V14: =ROUND(VLOOKUP($S14,'data for u-p-charts'!$A$2:$F$5000,V$5,FALSE),2) -> 37.29 | W14: =ROUND(VLOOKUP($S14,'data for u-p-charts'!$A$2:$F$5000,W$5,FALSE),2) -> 37.82 | X14: =ROUND(VLOOKUP($S14,'data for u-p-charts'!$A$2:$F$5000,X$5,FALSE),2) -> 40.96 | Y14: =ROUND(VLOOKUP($S14,'data for u-p-charts'!$A$2:$F$5000,Y$5,FALSE),2) -> 42.53 | Z14: =CONCATENATE(AA$7,$R14,'ECOLI Data and Charts'!$B$1) -> ECBCOM201901Scotland | AA14: =ROUND(VLOOKUP($Z14,'data for u-p-charts'!$A$2:$F$5000,AA$5,FALSE),2) -> 44.39 | AB14: =ROUND(VLOOKUP($Z14,'data for u-p-charts'!$A$2:$F$5000,AB$5,FALSE),2) -> 43.78 | AC14: =ROUND(VLOOKUP($Z14,'data for u-p-charts'!$A$2:$F$5000,AC$5,FALSE),2) -> 47.38 | AD14: =ROUND(VLOOKUP($Z14,'data for u-p-charts'!$A$2:$F$5000,AD$5,FALSE),2) -> 49.19
A15: 201802 | B15: 2018-06-01 | C15: =CONCATENATE(A15,'ECOLI Data and Charts'!B$1) -> 201802Scotland | D15: =IFERROR(VLOOKUP(CONCATENATE(D$5,$C15),'trend data'!$A$2:$O$11161,D$6,FALSE),"-") -> 580 | E15: =ROUND(VLOOKUP(CONCATENATE(E$5,$C15),'trend data'!$A$2:$O$11161,E$6,FALSE),3) -> 38.077 | F15: =ROUND(VLOOKUP(CONCATENATE(F$5,$C15),'trend data'!$A$2:$O$11161,F$6,FALSE),3) -> 35.041 | G15: =ROUND(VLOOKUP(CONCATENATE(G$5,$C15),'trend data'!$A$2:$O$11161,G$6,FALSE),3) -> 41.306 | H15: =IFERROR(VLOOKUP(CONCATENATE(H$5,$C15),'trend data'!$A$2:$O$11161,H$6,FALSE),"-") -> 598 | I15: =IFERROR(ROUND(VLOOKUP(CONCATENATE(I$5,$C15),'trend data'!$A$2:$O$11161,I$6,FALSE),3),"-") -> 44.107 | J15: =IFERROR(ROUND(VLOOKUP(CONCATENATE(J$5,$C15),'trend data'!$A$2:$O$11161,J$6,FALSE),3),"-") -> 40.642 | K15: =IFERROR(ROUND(VLOOKUP(CONCATENATE(K$5,$C15),'trend data'!$A$2:$O$11161,K$6,FALSE),3),"-") -> 47.788 | L15: =VLOOKUP(CONCATENATE(L$5,$C15),'trend data'!$A$2:$O$11161,L$6,FALSE) -> 1523228 | M15: =ROUND(VLOOKUP(CONCATENATE(M$5,$C15),'trend data'!$A$2:$O$11161,M$6,FALSE),2) -> 1355800.27 | R15: 201902 | S15: =CONCATENATE(V$7,R15,'ECOLI Data and Charts'!B$1) -> ECBHCAI201902Scotland | T15: 7 | U15: 2019-06-28 | V15: =ROUND(VLOOKUP($S15,'data for u-p-charts'!$A$2:$F$5000,V$5,FALSE),2) -> 38.92 | W15: =ROUND(VLOOKUP($S15,'data for u-p-charts'!$A$2:$F$5000,W$5,FALSE),2) -> 37.82 | X15: =ROUND(VLOOKUP($S15,'data for u-p-charts'!$A$2:$F$5000,X$5,FALSE),2) -> 40.99 | Y15: =ROUND(VLOOKUP($S15,'data for u-p-charts'!$A$2:$F$5000,Y$5,FALSE),2) -> 42.58 | Z15: =CONCATENATE(AA$7,$R15,'ECOLI Data and Charts'!$B$1) -> ECBCOM201902Scotland | AA15: =ROUND(VLOOKUP($Z15,'data for u-p-charts'!$A$2:$F$5000,AA$5,FALSE),2) -> 44.34 | AB15: =ROUND(VLOOKUP($Z15,'data for u-p-charts'!$A$2:$F$5000,AB$5,FALSE),2) -> 43.78 | AC15: =ROUND(VLOOKUP($Z15,'data for u-p-charts'!$A$2:$F$5000,AC$5,FALSE),2) -> 47.36 | AD15: =ROUND(VLOOKUP($Z15,'data for u-p-charts'!$A$2:$F$5000,AD$5,FALSE),2) -> 49.16
A16: 201803 | B16: 2018-09-01 | C16: =CONCATENATE(A16,'ECOLI Data and Charts'!B$1) -> 201803Scotland | D16: =IFERROR(VLOOKUP(CONCATENATE(D$5,$C16),'trend data'!$A$2:$O$11161,D$6,FALSE),"-") -> 606 | E16: =ROUND(VLOOKUP(CONCATENATE(E$5,$C16),'trend data'!$A$2:$O$11161,E$6,FALSE),3) -> 40.15 | F16: =ROUND(VLOOKUP(CONCATENATE(F$5,$C16),'trend data'!$A$2:$O$11161,F$6,FALSE),3) -> 37.016 | G16: =ROUND(VLOOKUP(CONCATENATE(G$5,$C16),'trend data'!$A$2:$O$11161,G$6,FALSE),3) -> 43.478 | H16: =IFERROR(VLOOKUP(CONCATENATE(H$5,$C16),'trend data'!$A$2:$O$11161,H$6,FALSE),"-") -> 667 | I16: =IFERROR(ROUND(VLOOKUP(CONCATENATE(I$5,$C16),'trend data'!$A$2:$O$11161,I$6,FALSE),3),"-") -> 48.661 | J16: =IFERROR(ROUND(VLOOKUP(CONCATENATE(J$5,$C16),'trend data'!$A$2:$O$11161,J$6,FALSE),3),"-") -> 45.038 | K16: =IFERROR(ROUND(VLOOKUP(CONCATENATE(K$5,$C16),'trend data'!$A$2:$O$11161,K$6,FALSE),3),"-") -> 52.499 | L16: =VLOOKUP(CONCATENATE(L$5,$C16),'trend data'!$A$2:$O$11161,L$6,FALSE) -> 1509347 | M16: =ROUND(VLOOKUP(CONCATENATE(M$5,$C16),'trend data'!$A$2:$O$11161,M$6,FALSE),2) -> 1370699.18 | R16: 201903 | S16: =CONCATENATE(V$7,R16,'ECOLI Data and Charts'!B$1) -> ECBHCAI201903Scotland | T16: 8 | U16: 2019-09-28 | V16: =ROUND(VLOOKUP($S16,'data for u-p-charts'!$A$2:$F$5000,V$5,FALSE),2) -> 40.26 | W16: =ROUND(VLOOKUP($S16,'data for u-p-charts'!$A$2:$F$5000,W$5,FALSE),2) -> 37.82 | X16: =ROUND(VLOOKUP($S16,'data for u-p-charts'!$A$2:$F$5000,X$5,FALSE),2) -> 40.98 | Y16: =ROUND(VLOOKUP($S16,'data for u-p-charts'!$A$2:$F$5000,Y$5,FALSE),2) -> 42.57 | Z16: =CONCATENATE(AA$7,$R16,'ECOLI Data and Charts'!$B$1) -> ECBCOM201903Scotland | AA16: =ROUND(VLOOKUP($Z16,'data for u-p-charts'!$A$2:$F$5000,AA$5,FALSE),2) -> 44.01 | AB16: =ROUND(VLOOKUP($Z16,'data for u-p-charts'!$A$2:$F$5000,AB$5,FALSE),2) -> 43.78 | AC16: =ROUND(VLOOKUP($Z16,'data for u-p-charts'!$A$2:$F$5000,AC$5,FALSE),2) -> 47.34 | AD16: =ROUND(VLOOKUP($Z16,'data for u-p-charts'!$A$2:$F$5000,AD$5,FALSE),2) -> 49.13
A17: 201804 | B17: 2018-12-01 | C17: =CONCATENATE(A17,'ECOLI Data and Charts'!B$1) -> 201804Scotland | D17: =IFERROR(VLOOKUP(CONCATENATE(D$5,$C17),'trend data'!$A$2:$O$11161,D$6,FALSE),"-") -> 582 | E17: =ROUND(VLOOKUP(CONCATENATE(E$5,$C17),'trend data'!$A$2:$O$11161,E$6,FALSE),3) -> 38.283 | F17: =ROUND(VLOOKUP(CONCATENATE(F$5,$C17),'trend data'!$A$2:$O$11161,F$6,FALSE),3) -> 35.236 | G17: =ROUND(VLOOKUP(CONCATENATE(G$5,$C17),'trend data'!$A$2:$O$11161,G$6,FALSE),3) -> 41.524 | H17: =IFERROR(VLOOKUP(CONCATENATE(H$5,$C17),'trend data'!$A$2:$O$11161,H$6,FALSE),"-") -> 603 | I17: =IFERROR(ROUND(VLOOKUP(CONCATENATE(I$5,$C17),'trend data'!$A$2:$O$11161,I$6,FALSE),3),"-") -> 43.992 | J17: =IFERROR(ROUND(VLOOKUP(CONCATENATE(J$5,$C17),'trend data'!$A$2:$O$11161,J$6,FALSE),3),"-") -> 40.55 | K17: =IFERROR(ROUND(VLOOKUP(CONCATENATE(K$5,$C17),'trend data'!$A$2:$O$11161,K$6,FALSE),3),"-") -> 47.648 | L17: =VLOOKUP(CONCATENATE(L$5,$C17),'trend data'!$A$2:$O$11161,L$6,FALSE) -> 1520249 | M17: =ROUND(VLOOKUP(CONCATENATE(M$5,$C17),'trend data'!$A$2:$O$11161,M$6,FALSE),2) -> 1370699.18 | R17: 201904 | S17: =CONCATENATE(V$7,R17,'ECOLI Data and Charts'!B$1) -> ECBHCAI201904Scotland | T17: 9 | U17: 2019-12-29 | V17: =ROUND(VLOOKUP($S17,'data for u-p-charts'!$A$2:$F$5000,V$5,FALSE),2) -> 40.8 | W17: =ROUND(VLOOKUP($S17,'data for u-p-charts'!$A$2:$F$5000,W$5,FALSE),2) -> 37.82 | X17: =ROUND(VLOOKUP($S17,'data for u-p-charts'!$A$2:$F$5000,X$5,FALSE),2) -> 40.96 | Y17: =ROUND(VLOOKUP($S17,'data for u-p-charts'!$A$2:$F$5000,Y$5,FALSE),2) -> 42.53 | Z17: =CONCATENATE(AA$7,$R17,'ECOLI Data and Charts'!$B$1) -> ECBCOM201904Scotland | AA17: =ROUND(VLOOKUP($Z17,'data for u-p-charts'!$A$2:$F$5000,AA$5,FALSE),2) -> 41.25 | AB17: =ROUND(VLOOKUP($Z17,'data for u-p-charts'!$A$2:$F$5000,AB$5,FALSE),2) -> 43.78 | AC17: =ROUND(VLOOKUP($Z17,'data for u-p-charts'!$A$2:$F$5000,AC$5,FALSE),2) -> 47.34 | AD17: =ROUND(VLOOKUP($Z17,'data for u-p-charts'!$A$2:$F$5000,AD$5,FALSE),2) -> 49.13
A18: 201901 | B18: 2019-03-01 | C18: =CONCATENATE(A18,'ECOLI Data and Charts'!B$1) -> 201901Scotland | D18: =IFERROR(VLOOKUP(CONCATENATE(D$5,$C18),'trend data'!$A$2:$O$11161,D$6,FALSE),"-") -> 573 | E18: =ROUND(VLOOKUP(CONCATENATE(E$5,$C18),'trend data'!$A$2:$O$11161,E$6,FALSE),3) -> 37.287 | F18: =ROUND(VLOOKUP(CONCATENATE(F$5,$C18),'trend data'!$A$2:$O$11161,F$6,FALSE),3) -> 34.296 | G18: =ROUND(VLOOKUP(CONCATENATE(G$5,$C18),'trend data'!$A$2:$O$11161,G$6,FALSE),3) -> 40.469 | H18: =IFERROR(VLOOKUP(CONCATENATE(H$5,$C18),'trend data'!$A$2:$O$11161,H$6,FALSE),"-") -> 598 | I18: =IFERROR(ROUND(VLOOKUP(CONCATENATE(I$5,$C18),'trend data'!$A$2:$O$11161,I$6,FALSE),3),"-") -> 44.391 | J18: =IFERROR(ROUND(VLOOKUP(CONCATENATE(J$5,$C18),'trend data'!$A$2:$O$11161,J$6,FALSE),3),"-") -> 40.904 | K18: =IFERROR(ROUND(VLOOKUP(CONCATENATE(K$5,$C18),'trend data'!$A$2:$O$11161,K$6,FALSE),3),"-") -> 48.096 | L18: =VLOOKUP(CONCATENATE(L$5,$C18),'trend data'!$A$2:$O$11161,L$6,FALSE) -> 1536734 | M18: =ROUND(VLOOKUP(CONCATENATE(M$5,$C18),'trend data'!$A$2:$O$11161,M$6,FALSE),2) -> 1347115.07 | R18: 202001 | S18: =CONCATENATE(V$7,R18,'ECOLI Data and Charts'!B$1) -> ECBHCAI202001Scotland | T18: 10 | U18: 2020-03-30 | V18: =ROUND(VLOOKUP($S18,'data for u-p-charts'!$A$2:$F$5000,V$5,FALSE),2) -> 36.45 | W18: =ROUND(VLOOKUP($S18,'data for u-p-charts'!$A$2:$F$5000,W$5,FALSE),2) -> 37.82 | X18: =ROUND(VLOOKUP($S18,'data for u-p-charts'!$A$2:$F$5000,X$5,FALSE),2) -> 41.02 | Y18: =ROUND(VLOOKUP($S18,'data for u-p-charts'!$A$2:$F$5000,Y$5,FALSE),2) -> 42.62 | Z18: =CONCATENATE(AA$7,$R18,'ECOLI Data and Charts'!$B$1) -> ECBCOM202001Scotland | AA18: =ROUND(VLOOKUP($Z18,'data for u-p-charts'!$A$2:$F$5000,AA$5,FALSE),2) -> 37.84 | AB18: =ROUND(VLOOKUP($Z18,'data for u-p-charts'!$A$2:$F$5000,AB$5,FALSE),2) -> 43.78 | AC18: =ROUND(VLOOKUP($Z18,'data for u-p-charts'!$A$2:$F$5000,AC$5,FALSE),2) -> 47.37 | AD18: =ROUND(VLOOKUP($Z18,'data for u-p-charts'!$A$2:$F$5000,AD$5,FALSE),2) -> 49.16
A19: 201902 | B19: 2019-06-01 | C19: =CONCATENATE(A19,'ECOLI Data and Charts'!B$1) -> 201902Scotland | D19: =IFERROR(VLOOKUP(CONCATENATE(D$5,$C19),'trend data'!$A$2:$O$11161,D$6,FALSE),"-") -> 584 | E19: =ROUND(VLOOKUP(CONCATENATE(E$5,$C19),'trend data'!$A$2:$O$11161,E$6,FALSE),3) -> 38.915 | F19: =ROUND(VLOOKUP(CONCATENATE(F$5,$C19),'trend data'!$A$2:$O$11161,F$6,FALSE),3) -> 35.822 | G19: =ROUND(VLOOKUP(CONCATENATE(G$5,$C19),'trend data'!$A$2:$O$11161,G$6,FALSE),3) -> 42.203 | H19: =IFERROR(VLOOKUP(CONCATENATE(H$5,$C19),'trend data'!$A$2:$O$11161,H$6,FALSE),"-") -> 604 | I19: =IFERROR(ROUND(VLOOKUP(CONCATENATE(I$5,$C19),'trend data'!$A$2:$O$11161,I$6,FALSE),3),"-") -> 44.344 | J19: =IFERROR(ROUND(VLOOKUP(CONCATENATE(J$5,$C19),'trend data'!$A$2:$O$11161,J$6,FALSE),3),"-") -> 40.877 | K19: =IFERROR(ROUND(VLOOKUP(CONCATENATE(K$5,$C19),'trend data'!$A$2:$O$11161,K$6,FALSE),3),"-") -> 48.026 | L19: =VLOOKUP(CONCATENATE(L$5,$C19),'trend data'!$A$2:$O$11161,L$6,FALSE) -> 1500700 | M19: =ROUND(VLOOKUP(CONCATENATE(M$5,$C19),'trend data'!$A$2:$O$11161,M$6,FALSE),2) -> 1362083.01 | R19: 202002 | S19: =CONCATENATE(V$7,R19,'ECOLI Data and Charts'!B$1) -> ECBHCAI202002Scotland | T19: 11 | U19: =U20-92 -> 2020-06-30 | V19: =ROUND(VLOOKUP($S19,'data for u-p-charts'!$A$2:$F$5000,V$5,FALSE),2) -> 39.68 | W19: =ROUND(VLOOKUP($S19,'data for u-p-charts'!$A$2:$F$5000,W$5,FALSE),2) -> 37.82 | X19: =ROUND(VLOOKUP($S19,'data for u-p-charts'!$A$2:$F$5000,X$5,FALSE),2) -> 41.56 | Y19: =ROUND(VLOOKUP($S19,'data for u-p-charts'!$A$2:$F$5000,Y$5,FALSE),2) -> 43.43 | Z19: =CONCATENATE(AA$7,$R19,'ECOLI Data and Charts'!$B$1) -> ECBCOM202002Scotland | AA19: =ROUND(VLOOKUP($Z19,'data for u-p-charts'!$A$2:$F$5000,AA$5,FALSE),2) -> 35.93 | AB19: =ROUND(VLOOKUP($Z19,'data for u-p-charts'!$A$2:$F$5000,AB$5,FALSE),2) -> 43.78 | AC19: =ROUND(VLOOKUP($Z19,'data for u-p-charts'!$A$2:$F$5000,AC$5,FALSE),2) -> 47.37 | AD19: =ROUND(VLOOKUP($Z19,'data for u-p-charts'!$A$2:$F$5000,AD$5,FALSE),2) -> 49.16
A20: 201903 | B20: 2019-09-01 | C20: =CONCATENATE(A20,'ECOLI Data and Charts'!B$1) -> 201903Scotland | D20: =IFERROR(VLOOKUP(CONCATENATE(D$5,$C20),'trend data'!$A$2:$O$11161,D$6,FALSE),"-") -> 608 | E20: =ROUND(VLOOKUP(CONCATENATE(E$5,$C20),'trend data'!$A$2:$O$11161,E$6,FALSE),3) -> 40.258 | F20: =ROUND(VLOOKUP(CONCATENATE(F$5,$C20),'trend data'!$A$2:$O$11161,F$6,FALSE),3) -> 37.121 | G20: =ROUND(VLOOKUP(CONCATENATE(G$5,$C20),'trend data'!$A$2:$O$11161,G$6,FALSE),3) -> 43.589 | H20: =IFERROR(VLOOKUP(CONCATENATE(H$5,$C20),'trend data'!$A$2:$O$11161,H$6,FALSE),"-") -> 606 | I20: =IFERROR(ROUND(VLOOKUP(CONCATENATE(I$5,$C20),'trend data'!$A$2:$O$11161,I$6,FALSE),3),"-") -> 44.007 | J20: =IFERROR(ROUND(VLOOKUP(CONCATENATE(J$5,$C20),'trend data'!$A$2:$O$11161,J$6,FALSE),3),"-") -> 40.572 | K20: =IFERROR(ROUND(VLOOKUP(CONCATENATE(K$5,$C20),'trend data'!$A$2:$O$11161,K$6,FALSE),3),"-") -> 47.655 | L20: =VLOOKUP(CONCATENATE(L$5,$C20),'trend data'!$A$2:$O$11161,L$6,FALSE) -> 1510265 | M20: =ROUND(VLOOKUP(CONCATENATE(M$5,$C20),'trend data'!$A$2:$O$11161,M$6,FALSE),2) -> 1377050.96 | R20: 202003 | S20: =CONCATENATE(V$7,R20,'ECOLI Data and Charts'!B$1) -> ECBHCAI202003Scotland | T20: 12 | U20: =U5 -> 2020-09-30 | V20: =ROUND(VLOOKUP($S20,'data for u-p-charts'!$A$2:$F$5000,V$5,FALSE),2) -> 41.98 | W20: =ROUND(VLOOKUP($S20,'data for u-p-charts'!$A$2:$F$5000,W$5,FALSE),2) -> 37.82 | X20: =ROUND(VLOOKUP($S20,'data for u-p-charts'!$A$2:$F$5000,X$5,FALSE),2) -> 41.23 | Y20: =ROUND(VLOOKUP($S20,'data for u-p-charts'!$A$2:$F$5000,Y$5,FALSE),2) -> 42.93 | Z20: =CONCATENATE(AA$7,$R20,'ECOLI Data and Charts'!$B$1) -> ECBCOM202003Scotland | AA20: =ROUND(VLOOKUP($Z20,'data for u-p-charts'!$A$2:$F$5000,AA$5,FALSE),2) -> 44.71 | AB20: =ROUND(VLOOKUP($Z20,'data for u-p-charts'!$A$2:$F$5000,AB$5,FALSE),2) -> 43.78 | AC20: =ROUND(VLOOKUP($Z20,'data for u-p-charts'!$A$2:$F$5000,AC$5,FALSE),2) -> 47.35 | AD20: =ROUND(VLOOKUP($Z20,'data for u-p-charts'!$A$2:$F$5000,AD$5,FALSE),2) -> 49.13
A21: 201904 | B21: 2019-12-01 | C21: =CONCATENATE(A21,'ECOLI Data and Charts'!B$1) -> 201904Scotland | D21: =IFERROR(VLOOKUP(CONCATENATE(D$5,$C21),'trend data'!$A$2:$O$11161,D$6,FALSE),"-") -> 626 | E21: =ROUND(VLOOKUP(CONCATENATE(E$5,$C21),'trend data'!$A$2:$O$11161,E$6,FALSE),3) -> 40.804 | F21: =ROUND(VLOOKUP(CONCATENATE(F$5,$C21),'trend data'!$A$2:$O$11161,F$6,FALSE),3) -> 37.669 | G21: =ROUND(VLOOKUP(CONCATENATE(G$5,$C21),'trend data'!$A$2:$O$11161,G$6,FALSE),3) -> 44.129 | H21: =IFERROR(VLOOKUP(CONCATENATE(H$5,$C21),'trend data'!$A$2:$O$11161,H$6,FALSE),"-") -> 568 | I21: =IFERROR(ROUND(VLOOKUP(CONCATENATE(I$5,$C21),'trend data'!$A$2:$O$11161,I$6,FALSE),3),"-") -> 41.248 | J21: =IFERROR(ROUND(VLOOKUP(CONCATENATE(J$5,$C21),'trend data'!$A$2:$O$11161,J$6,FALSE),3),"-") -> 37.925 | K21: =IFERROR(ROUND(VLOOKUP(CONCATENATE(K$5,$C21),'trend data'!$A$2:$O$11161,K$6,FALSE),3),"-") -> 44.784 | L21: =VLOOKUP(CONCATENATE(L$5,$C21),'trend data'!$A$2:$O$11161,L$6,FALSE) -> 1534177 | M21: =ROUND(VLOOKUP(CONCATENATE(M$5,$C21),'trend data'!$A$2:$O$11161,M$6,FALSE),2) -> 1377050.96
A22: 202001 | B22: 2020-03-01 | C22: =CONCATENATE(A22,'ECOLI Data and Charts'!B$1) -> 202001Scotland | D22: =IFERROR(VLOOKUP(CONCATENATE(D$5,$C22),'trend data'!$A$2:$O$11161,D$6,FALSE),"-") -> 538 | E22: =ROUND(VLOOKUP(CONCATENATE(E$5,$C22),'trend data'!$A$2:$O$11161,E$6,FALSE),3) -> 36.446 | F22: =ROUND(VLOOKUP(CONCATENATE(F$5,$C22),'trend data'!$A$2:$O$11161,F$6,FALSE),3) -> 33.431 | G22: =ROUND(VLOOKUP(CONCATENATE(G$5,$C22),'trend data'!$A$2:$O$11161,G$6,FALSE),3) -> 39.66 | H22: =IFERROR(VLOOKUP(CONCATENATE(H$5,$C22),'trend data'!$A$2:$O$11161,H$6,FALSE),"-") -> 514 | I22: =IFERROR(ROUND(VLOOKUP(CONCATENATE(I$5,$C22),'trend data'!$A$2:$O$11161,I$6,FALSE),3),"-") -> 37.84 | J22: =IFERROR(ROUND(VLOOKUP(CONCATENATE(J$5,$C22),'trend data'!$A$2:$O$11161,J$6,FALSE),3),"-") -> 34.639 | K22: =IFERROR(ROUND(VLOOKUP(CONCATENATE(K$5,$C22),'trend data'!$A$2:$O$11161,K$6,FALSE),3),"-") -> 41.257 | L22: =VLOOKUP(CONCATENATE(L$5,$C22),'trend data'!$A$2:$O$11161,L$6,FALSE) -> 1476165 | M22: =ROUND(VLOOKUP(CONCATENATE(M$5,$C22),'trend data'!$A$2:$O$11161,M$6,FALSE),2) -> 1358361.48
A23: 202002 | B23: 2020-06-01 | C23: =CONCATENATE(A23,'ECOLI Data and Charts'!B$1) -> 202002Scotland | D23: =IFERROR(VLOOKUP(CONCATENATE(D$5,$C23),'trend data'!$A$2:$O$11161,D$6,FALSE),"-") -> 429 | E23: =ROUND(VLOOKUP(CONCATENATE(E$5,$C23),'trend data'!$A$2:$O$11161,E$6,FALSE),3) -> 39.682 | F23: =ROUND(VLOOKUP(CONCATENATE(F$5,$C23),'trend data'!$A$2:$O$11161,F$6,FALSE),3) -> 36.016 | G23: =ROUND(VLOOKUP(CONCATENATE(G$5,$C23),'trend data'!$A$2:$O$11161,G$6,FALSE),3) -> 43.621 | H23: =IFERROR(VLOOKUP(CONCATENATE(H$5,$C23),'trend data'!$A$2:$O$11161,H$6,FALSE),"-") -> 488 | I23: =IFERROR(ROUND(VLOOKUP(CONCATENATE(I$5,$C23),'trend data'!$A$2:$O$11161,I$6,FALSE),3),"-") -> 35.926 | J23: =IFERROR(ROUND(VLOOKUP(CONCATENATE(J$5,$C23),'trend data'!$A$2:$O$11161,J$6,FALSE),3),"-") -> 32.808 | K23: =IFERROR(ROUND(VLOOKUP(CONCATENATE(K$5,$C23),'trend data'!$A$2:$O$11161,K$6,FALSE),3),"-") -> 39.259 | L23: =VLOOKUP(CONCATENATE(L$5,$C23),'trend data'!$A$2:$O$11161,L$6,FALSE) -> 1081085 | M23: =ROUND(VLOOKUP(CONCATENATE(M$5,$C23),'trend data'!$A$2:$O$11161,M$6,FALSE),2) -> 1358361.48
A24: 202003 | B24: 2020-09-01 | C24: =CONCATENATE(A24,'ECOLI Data and Charts'!B$1) -> 202003Scotland | D24: =IFERROR(VLOOKUP(CONCATENATE(D$5,$C24),'trend data'!$A$2:$O$11161,D$6,FALSE),"-") -> 547 | E24: =ROUND(VLOOKUP(CONCATENATE(E$5,$C24),'trend data'!$A$2:$O$11161,E$6,FALSE),4) -> 41.9786 | F24: =ROUND(VLOOKUP(CONCATENATE(F$5,$C24),'trend data'!$A$2:$O$11161,F$6,FALSE),4) -> 38.5338 | G24: =ROUND(VLOOKUP(CONCATENATE(G$5,$C24),'trend data'!$A$2:$O$11161,G$6,FALSE),4) -> 45.6486 | H24: =IFERROR(VLOOKUP(CONCATENATE(H$5,$C24),'trend data'!$A$2:$O$11161,H$6,FALSE),"-") -> 614 | I24: =IFERROR(ROUND(VLOOKUP(CONCATENATE(I$5,$C24),'trend data'!$A$2:$O$11161,I$6,FALSE),4),"-") -> 44.7102 | J24: =IFERROR(ROUND(VLOOKUP(CONCATENATE(J$5,$C24),'trend data'!$A$2:$O$11161,J$6,FALSE),4),"-") -> 41.2431 | K24: =IFERROR(ROUND(VLOOKUP(CONCATENATE(K$5,$C24),'trend data'!$A$2:$O$11161,K$6,FALSE),4),"-") -> 48.3909 | L24: =VLOOKUP(CONCATENATE(L$5,$C24),'trend data'!$A$2:$O$11161,L$6,FALSE) -> 1303046 | M24: =ROUND(VLOOKUP(CONCATENATE(M$5,$C24),'trend data'!$A$2:$O$11161,M$6,FALSE),2) -> 1373288.52

Sheet data for u-p-charts (hidden)
A1: ref | B1: cases | C1: rate | D1: av | E1: uwl2 | F1: uwl3 | G1: aboveUCL
A2: CDICA201704Ayrshire & Arran | B2: 6 | C2: 6.426486279 | D2: 7.571468903 | E2: 13.26696075 | F2: 16.11470667 | G2: -
A3: CDICA201801Ayrshire & Arran | B3: 8 | C3: 8.776596544 | D3: 7.571468903 | E3: 13.33565696 | F3: 16.21775098 | G3: -
A4: CDICA201803Ayrshire & Arran | B4: 10 | C4: 10.73225121 | D4: 7.571468903 | E4: 13.27265847 | F4: 16.12325326 | G4: -
A5: CDICA201804Ayrshire & Arran | B5: 5 | C5: 5.366125604 | D5: 7.571468903 | E5: 13.27265847 | F5: 16.12325326 | G5: -
A6: CDICA201902Ayrshire & Arran | B6: 8 | C6: 8.687435588 | D6: 7.571468903 | E6: 13.30630318 | F6: 16.17372032 | G6: -
A7: CDICA202001Ayrshire & Arran | B7: 9 | C7: 9.800141379 | D7: 7.571468903 | E7: 13.31415375 | F7: 16.18549617 | G7: -
A8: CDICA202002Ayrshire & Arran | B8: 8 | C8: 8.711236781 | D8: 7.571468903 | E8: 13.31415375 | F8: 16.18549617 | G8: -
A9: CDICA202003Ayrshire & Arran | B9: 7 | C9: 7.539480747 | D9: 7.571468903 | E9: 13.28285823 | F9: 16.13855289 | G9: -
A10: CDICA201901Ayrshire & Arran | B10: 1 | C10: 1.097995331 | D10: 7.571468903 | E10: 13.33807536 | F10: 16.22137859 | G10: -
A11: CDICA201903Ayrshire & Arran | B11: 7 | C11: 7.518881073 | D11: 7.571468903 | E11: 13.27505045 | F11: 16.12684122 | G11: -
A12: CDICA201802Ayrshire & Arran | B12: 9 | C12: 9.765169232 | D12: 7.571468903 | E12: 13.3038981 | F12: 16.1701127 | G12: -
A13: CDICA201904Ayrshire & Arran | B13: 6 | C13: 6.444755205 | D13: 7.571468903 | E13: 13.27505045 | F13: 16.12684122 | G13: -
A14: CDIHCAI201704Ayrshire & Arran | B14: 18 | C14: 14.63378942 | D14: 16.20050222 | E14: 23.45882675 | F14: 27.08798902 | G14: -
A15: CDIHCAI202001Ayrshire & Arran | B15: 17 | C15: 15.82190123 | D15: 16.20050222 | E15: 23.96653301 | F15: 27.84954841 | G15: -
A16: CDIHCAI201801Ayrshire & Arran | B16: 18 | C16: 14.73501531 | D16: 16.20050222 | E16: 23.48388739 | F16: 27.12557998 | G16: -
A17: CDIHCAI202002Ayrshire & Arran | B17: 13 | C17: 15.87922021 | D17: 16.20050222 | E17: 25.09737015 | F17: 29.54580412 | G17: -
A18: CDIHCAI202003Ayrshire & Arran | B18: 20 | C18: 20.46936248 | D18: 16.20050222 | E18: 24.34438277 | F18: 28.41632304 | G18: -
A19: CDIHCAI201803Ayrshire & Arran | B19: 17 | C19: 15.43924656 | D19: 16.20050222 | E19: 23.87204701 | F19: 27.70781941 | G19: -
A20: CDIHCAI201902Ayrshire & Arran | B20: 15 | C20: 13.66369102 | D20: 16.20050222 | E20: 23.88353385 | F20: 27.72504967 | G20: -
A21: CDIHCAI201804Ayrshire & Arran | B21: 21 | C21: 18.96333755 | D21: 16.20050222 | E21: 23.85015944 | F21: 27.67498805 | G21: -
A22: CDIHCAI201903Ayrshire & Arran | B22: 21 | C22: 18.97533207 | D22: 16.20050222 | E22: 23.8525783 | F22: 27.67861634 | G22: -
A23: CDIHCAI201901Ayrshire & Arran | B23: 17 | C23: 15.22478954 | D23: 16.20050222 | E23: 23.81858035 | F23: 27.62761942 | G23: -
A24: CDIHCAI201904Ayrshire & Arran | B24: 21 | C24: 18.8339118 | D24: 16.20050222 | E24: 23.82401009 | F24: 27.63576403 | G24: -
A25: CDIHCAI201802Ayrshire & Arran | B25: 10 | C25: 8.627085598 | D25: 16.20050222 | E25: 23.67748341 | F25: 27.415974 | G25: -
A26: ECBCOM201704Ayrshire & Arran | B26: 50 | C26: 53.55405233 | D26: 55.61424182 | E26: 71.05022062 | F26: 78.76821001 | G26: -
A27: ECBCOM201801Ayrshire & Arran | B27: 50 | C27: 54.8537284 | D27: 55.61424182 | E27: 71.23640177 | F27: 79.04748174 | G27: -
A28: ECBCOM201803Ayrshire & Arran | B28: 67 | C28: 71.9060831 | D28: 55.61424182 | E28: 71.06566265 | F28: 78.79137307 | G28: -
A29: ECBCOM201804Ayrshire & Arran | B29: 49 | C29: 52.58803092 | D29: 55.61424182 | E29: 71.06566265 | F29: 78.79137307 | G29: -
A30: ECBCOM201902Ayrshire & Arran | B30: 57 | C30: 61.89797856 | D30: 55.61424182 | E30: 71.15684688 | F30: 78.9281494 | G30: -
A31: ECBCOM202001Ayrshire & Arran | B31: 52 | C31: 56.62303908 | D31: 55.61424182 | E31: 71.17812355 | F31: 78.96006442 | G31: -
A32: ECBCOM202002Ayrshire & Arran | B32: 45 | C32: 49.0007069 | D32: 55.61424182 | E32: 71.17812355 | F32: 78.96006442 | G32: -
A33: ECBCOM202003Ayrshire & Arran | B33: 64 | C33: 68.9323954 | D33: 55.61424182 | E33: 71.09330613 | F33: 78.83283828 | G33: -
A34: ECBCOM201901Ayrshire & Arran | B34: 43 | C34: 47.21379924 | D34: 55.61424182 | E34: 71.24295615 | F34: 79.05731331 | G34: -
A35: ECBCOM201903Ayrshire & Arran | B35: 55 | C35: 59.07692271 | D35: 55.61424182 | E35: 71.0721454 | F35: 78.80109719 | G35: -
A36: ECBCOM201802Ayrshire & Arran | B36: 51 | C36: 55.33595898 | D36: 55.61424182 | E36: 71.1503286 | F36: 78.918372 | G36: -
A37: ECBCOM201904Ayrshire & Arran | B37: 41 | C37: 44.03916057 | D37: 55.61424182 | E37: 71.0721454 | F37: 78.80109719 | G37: -
A38: ECBHCAI201704Ayrshire & Arran | B38: 57 | C38: 46.34033316 | D38: 45.45140899 | E38: 57.60895213 | F38: 63.6877237 | G38: -
A39: ECBHCAI202001Ayrshire & Arran | B39: 50 | C39: 46.53500363 | D39: 45.45140899 | E39: 58.45934959 | F39: 64.96331989 | G39: -
A40: ECBHCAI201801Ayrshire & Arran | B40: 56 | C40: 45.84226985 | D40: 45.45140899 | E40: 57.65092818 | F40: 63.75068777 | G40: -
A41: ECBHCAI202002Ayrshire & Arran | B41: 36 | C41: 43.97322519 | D41: 45.45140899 | E41: 60.35347836 | F41: 67.80451305 | G41: -
A42: ECBHCAI202003Ayrshire & Arran | B42: 60 | C42: 61.40808745 | D42: 45.45140899 | E42: 59.0922401 | F42: 65.91265565 | G42: -
A43: ECBHCAI201803Ayrshire & Arran | B43: 49 | C43: 44.50135775 | D43: 45.45140899 | E43: 58.3010875 | F43: 64.72592675 | G43: -
A44: ECBHCAI201902Ayrshire & Arran | B44: 46 | C44: 41.90198579 | D44: 45.45140899 | E44: 58.32032771 | F44: 64.75478707 | G44: -
A45: ECBHCAI201804Ayrshire & Arran | B45: 40 | C45: 36.12064295 | D45: 45.45140899 | E45: 58.26442626 | F45: 64.6709349 | G45: -
A46: ECBHCAI201903Ayrshire & Arran | B46: 50 | C46: 45.17936207 | D46: 45.45140899 | E46: 58.26847781 | F46: 64.67701222 | G46: -
A47: ECBHCAI201901Ayrshire & Arran | B47: 52 | C47: 46.56994447 | D47: 45.45140899 | E47: 58.21153195 | F47: 64.59159343 | G47: -
A48: ECBHCAI201904Ayrshire & Arran | B48: 46 | C48: 41.25523538 | D48: 45.45140899 | E48: 58.22062665 | F48: 64.60523549 | G48: -
A49: ECBHCAI201802Ayrshire & Arran | B49: 64 | C49: 55.21334783 | D49: 45.45140899 | E49: 57.97519749 | F49: 64.23709174 | G49: -
A50: SABCAUN201704Ayrshire & Arran | B50: 6 | C50: 6.426486279 | D50: 12.07829563 | E50: 19.27185762 | F50: 22.86863862 | G50: -
A51: SABCAUN201801Ayrshire & Arran | B51: 9 | C51: 9.873671112 | D51: 12.07829563 | E51: 19.35862281 | F51: 22.9987864 | G51: -
A52: SABCAUN201803Ayrshire & Arran | B52: 17 | C52: 18.24482705 | D52: 12.07829563 | E52: 19.279054 | F52: 22.87943319 | G52: -
A53: SABCAUN201804Ayrshire & Arran | B53: 7 | C53: 7.512575846 | D53: 12.07829563 | E53: 19.279054 | F53: 22.87943319 | G53: -
A54: SABCAUN201902Ayrshire & Arran | B54: 15 | C54: 16.28894173 | D54: 12.07829563 | E54: 19.32154819 | F54: 22.94317447 | G54: -
A55: SABCAUN202001Ayrshire & Arran | B55: 15 | C55: 16.33356897 | D55: 12.07829563 | E55: 19.33146367 | F55: 22.95804769 | G55: -
A56: SABCAUN202002Ayrshire & Arran | B56: 13 | C56: 14.15575977 | D56: 12.07829563 | E56: 19.33146367 | F56: 22.95804769 | G56: -
A57: SABCAUN202003Ayrshire & Arran | B57: 15 | C57: 16.15603017 | D57: 12.07829563 | E57: 19.29193657 | F57: 22.89875704 | G57: -
A58: SABCAUN201901Ayrshire & Arran | B58: 11 | C58: 12.07794864 | D58: 12.07829563 | E58: 19.36167732 | F58: 23.00336817 | G58: -
A59: SABCAUN201903Ayrshire & Arran | B59: 8 | C59: 8.59300694 | D59: 12.07829563 | E59: 19.28207513 | F59: 22.88396488 | G59: -
A60: SABCAUN201802Ayrshire & Arran | B60: 9 | C60: 9.765169232 | D60: 12.07829563 | E60: 19.31851051 | F60: 22.93861795 | G60: -
A61: SABCAUN201904Ayrshire & Arran | B61: 9 | C61: 9.667132808 | D61: 12.07829563 | E61: 19.28207513 | F61: 22.88396488 | G61: -
A62: SABHCAI201704Ayrshire & Arran | B62: 14 | C62: 11.38183622 | D62: 16.05049757 | E62: 23.2751406 | F62: 26.88746212 | G62: -
A63: SABHCAI202001Ayrshire & Arran | B63: 19 | C63: 17.68330138 | D63: 16.05049757 | E63: 23.7804909 | F63: 27.64548757 | G63: -
A64: SABHCAI201801Ayrshire & Arran | B64: 23 | C64: 18.82807512 | D64: 16.05049757 | E64: 23.30008495 | F64: 26.92487864 | G64: -
A65: SABHCAI202002Ayrshire & Arran | B65: 23 | C65: 28.09400498 | D65: 16.05049757 | E65: 24.90608051 | F65: 29.33387199 | G65: -
A66: SABHCAI202003Ayrshire & Arran | B66: 16 | C66: 16.37548999 | D66: 16.05049757 | E66: 24.15658728 | F66: 28.20963214 | G66: -
A67: SABHCAI201803Ayrshire & Arran | B67: 18 | C67: 16.34743754 | D67: 16.05049757 | E67: 23.68644335 | F67: 27.50441625 | G67: -
A68: SABHCAI201902Ayrshire & Arran | B68: 18 | C68: 16.39642922 | D68: 16.05049757 | E68: 23.69787689 | F68: 27.52156655 | G68: -
A69: SABHCAI201804Ayrshire & Arran | B69: 17 | C69: 15.35127325 | D69: 16.05049757 | E69: 23.66465735 | F69: 27.47173724 | G69: -
A70: SABHCAI201903Ayrshire & Arran | B70: 22 | C70: 19.87891931 | D70: 16.05049757 | E70: 23.66706499 | F70: 27.4753487 | G70: -
A71: SABHCAI201901Ayrshire & Arran | B71: 11 | C71: 9.851334408 | D71: 16.05049757 | E71: 23.6332248 | F71: 27.42458842 | G71: -
A72: SABHCAI201904Ayrshire & Arran | B72: 16 | C72: 14.34964709 | D72: 16.05049757 | E72: 23.63862935 | F72: 27.43269524 | G72: -
A73: SABHCAI201802Ayrshire & Arran | B73: 16 | C73: 13.80333696 | D73: 16.05049757 | E73: 23.4927826 | F73: 27.21392512 | G73: -
A74: SSICSEC201704Ayrshire & Arran | B74: 2 | C74: 0.6688963211 | D74: 0.9621993127 | E74: 2.091286337 | F74: 2.655829849 | G74: -
A75: SSICSEC201801Ayrshire & Arran | B75: 3 | C75: 0.9404388715 | D75: 0.9621993127 | E75: 2.055318882 | F75: 2.601878666 | G75: -
A76: SSICSEC201803Ayrshire & Arran | B76: 0 | C76: 0 | D76: 0.9621993127 | E76: 2.10084694 | F76: 2.670170753 | G76: -
A77: SSICSEC201804Ayrshire & Arran | B77: 4 | C77: 1.360544218 | D77: 0.9621993127 | E77: 2.10084694 | F77: 2.670170753 | G77: -
A78: SSICSEC201902Ayrshire & Arran | B78: 2 | C78: 0.7168458781 | D78: 0.9621993127 | E78: 2.131055039 | F78: 2.715482903 | G78: -
A79: SSICSEC201903Ayrshire & Arran | B79: 5 | C79: 1.650165017 | D79: 0.9621993127 | E79: 2.083808857 | F79: 2.644613629 | G79: -
A80: SSICSEC201904Ayrshire & Arran | B80: 2 | C80: 0.796812749 | D80: 0.9621993127 | E80: 2.19452684 | F80: 2.810690604 | G80: -
A81: SSICSEC201802Ayrshire & Arran | B81: 2 | C81: 0.6622516556 | D81: 0.9621993127 | E81: 2.085664292 | F81: 2.647396782 | G81: -
A82: SSICSEC201901Ayrshire & Arran | B82: 3 | C82: 1.176470588 | D82: 0.9621993127 | E82: 2.184823323 | F82: 2.796135328 | G82: -
A83: SSIHIP201704Ayrshire & Arran | B83: 0 | C83: 0 | D83: 0.22172949 | E83: 1.008397866 | F83: 1.401732054 | G83: -
A84: SSIHIP201904Ayrshire & Arran | B84: 0 | C84: 0 | D84: 0.22172949 | E84: 0.9898229745 | F84: 1.373869717 | G84: -
A85: SSIHIP201801Ayrshire & Arran | B85: 0 | C85: 0 | D85: 0.22172949 | E85: 1.049985995 | F85: 1.464114248 | G85: -
A86: SSIHIP201804Ayrshire & Arran | B86: 0 | C86: 0 | D86: 0.22172949 | E86: 1.008397866 | F86: 1.401732054 | G86: -
A87: SSIHIP201802Ayrshire & Arran | B87: 0 | C87: 0 | D87: 0.22172949 | E87: 1.037435928 | F87: 1.445289148 | G87: -
A88: SSIHIP201803Ayrshire & Arran | B88: 2 | C88: 2.02020202 | D88: 0.22172949 | E88: 1.167187212 | F88: 1.639916073 | G88: aboveUCL
A89: SSIHIP201902Ayrshire & Arran | B89: 0 | C89: 0 | D89: 0.22172949 | E89: 0.9701249895 | F89: 1.344322739 | G89: -
A90: SSIHIP201903Ayrshire & Arran | B90: 0 | C90: 0 | D90: 0.22172949 | E90: 1.049985995 | F90: 1.464114248 | G90: -
A91: SSIHIP201901Ayrshire & Arran | B91: 0 | C91: 0 | D91: 0.22172949 | E91: 0.9976210779 | F91: 1.385566872 | G91: -
A92: CDICA202003Borders | B92: 4 | C92: 13.77633406 | D92: 3.466183642 | E92: 10.37641546 | F92: 13.83153137 | G92: -
A93: CDICA201803Borders | B93: 2 | C93: 6.883649353 | D93: 3.466183642 | E93: 10.37414901 | F93: 13.8281317 | G93: -
A94: CDICA201904Borders | B94: 2 | C94: 6.869346904 | D94: 3.466183642 | E94: 10.3669688 | F94: 13.81736137 | G94: -
A95: CDICA201704Borders | B95: 1 | C95: 3.449305603 | D95: 3.466183642 | E95: 10.38165229 | F95: 13.83938662 | G95: -
A96: CDICA202002Borders | B96: 0 | C96: 0 | D96: 3.466183642 | E96: 10.41428003 | F96: 13.88832822 | G96: -
A97: CDICA201802Borders | B97: 1 | C97: 3.479646925 | D97: 3.466183642 | E97: 10.41200116 | F97: 13.88490992 | G97: -
A98: CDICA201804Borders | B98: 1 | C98: 3.441824676 | D98: 3.466183642 | E98: 10.37414901 | F98: 13.8281317 | G98: -
A99: CDICA201901Borders | B99: 1 | C99: 3.510999529 | D99: 3.466183642 | E99: 10.44322288 | F99: 13.9317425 | G99: -
A100: CDICA201801Borders | B100: 0 | C100: 0 | D100: 3.466183642 | E100: 10.45048244 | F100: 13.94263184 | G100: -
A101: CDICA201903Borders | B101: 0 | C101: 0 | D101: 3.466183642 | E101: 10.3669688 | F101: 13.81736137 | G101: -
A102: CDICA202001Borders | B102: 3 | C102: 10.44579176 | D102: 3.466183642 | E102: 10.41428003 | F102: 13.88832822 | G102: -
A103: CDICA201902Borders | B103: 0 | C103: 0 | D103: 3.466183642 | E103: 10.4047816 | F103: 13.87408058 | G103: -
A104: CDIHCAI201902Borders | B104: 4 | C104: 13.44718618 | D104: 13.01286613 | E104: 26.2411099 | F104: 32.85523179 | G104: -
A105: CDIHCAI201804Borders | B105: 0 | C105: 0 | D105: 13.01286613 | E105: 25.93106087 | F105: 32.39015824 | G105: -
A106: CDIHCAI201803Borders | B106: 4 | C106: 12.25077333 | D106: 13.01286613 | E106: 25.6389373 | F106: 31.95197289 | G106: -
A107: CDIHCAI201904Borders | B107: 3 | C107: 10.19887812 | D107: 13.01286613 | E107: 26.31532884 | F107: 32.96656019 | G107: -
A108: CDIHCAI201801Borders | B108: 4 | C108: 12.12635664 | D108: 13.01286613 | E108: 25.57465961 | F108: 31.85555635 | G108: -
A109: CDIHCAI201903Borders | B109: 4 | C109: 13.81120088 | D109: 13.01286613 | E109: 26.41895833 | F109: 33.12200443 | G109: -
A110: CDIHCAI201802Borders | B110: 3 | C110: 9.516256939 | D110: 13.01286613 | E110: 25.86244602 | F110: 32.28723596 | G110: -
A111: CDIHCAI202002Borders | B111: 4 | C111: 18.54599407 | D111: 13.01286613 | E111: 28.5478762 | F111: 36.31538123 | G111: -
A112: CDIHCAI202003Borders | B112: 2 | C112: 7.906700929 | D112: 13.01286613 | E112: 27.35781929 | F112: 34.53029588 | G112: -
A113: CDIHCAI202001Borders | B113: 3 | C113: 10.39681164 | D113: 13.01286613 | E113: 26.44379154 | F113: 33.15925424 | G113: -
A114: CDIHCAI201901Borders | B114: 6 | C114: 20.41510718 | D114: 13.01286613 | E114: 26.32098537 | F114: 32.97504499 | G114: -
A115: CDIHCAI201704Borders | B115: 6 | C115: 18.49568434 | D115: 13.01286613 | E115: 25.67993272 | F115: 32.01346602 | G115: -
A116: ECBCOM202003Borders | B116: 8 | C116: 27.55266813 | D116: 52.28160327 | E116: 79.11905532 | F116: 92.53778134 | G116: -
A117: ECBCOM201803Borders | B117: 17 | C117: 58.5110195 | D117: 52.28160327 | E117: 79.11025306 | F117: 92.52457795 | G117: -
A118: ECBCOM201904Borders | B118: 12 | C118: 41.21608142 | D118: 52.28160327 | E118: 79.08236705 | F118: 92.48274894 | G118: -
A119: ECBCOM201704Borders | B119: 9 | C119: 31.04375043 | D119: 52.28160327 | E119: 79.13939373 | F119: 92.56828896 | G119: -
A120: ECBCOM202002Borders | B120: 7 | C120: 24.37351411 | D120: 52.28160327 | E120: 79.26611095 | F120: 92.75836479 | G120: -
A121: ECBCOM201802Borders | B121: 24 | C121: 83.51152621 | D121: 52.28160327 | E121: 79.25726046 | F121: 92.74508905 | G121: -
A122: ECBCOM201804Borders | B122: 11 | C122: 37.86007144 | D122: 52.28160327 | E122: 79.11025306 | F122: 92.52457795 | G122: -
A123: ECBCOM201901Borders | B123: 16 | C123: 56.17599246 | D123: 52.28160327 | E123: 79.37851708 | F123: 92.92697398 | G123: -
A124: ECBCOM201801Borders | B124: 15 | C124: 52.77464504 | D124: 52.28160327 | E124: 79.40671122 | F124: 92.9692652 | G124: -
A125: ECBCOM201903Borders | B125: 24 | C125: 82.43216285 | D125: 52.28160327 | E125: 79.08236705 | F125: 92.48274894 | G125: -
A126: ECBCOM202001Borders | B126: 13 | C126: 45.26509764 | D126: 52.28160327 | E126: 79.26611095 | F126: 92.75836479 | G126: -
A127: ECBCOM201902Borders | B127: 19 | C127: 65.97592521 | D127: 52.28160327 | E127: 79.22922165 | F127: 92.70303084 | G127: -
A128: ECBHCAI201902Borders | B128: 15 | C128: 50.42694816 | D128: 38.2079899 | E128: 60.87492515 | F128: 72.20839277 | G128: -
A129: ECBHCAI201804Borders | B129: 11 | C129: 35.26658331 | D129: 38.2079899 | E129: 60.34364817 | F129: 71.4114773 | G129: -
A130: ECBHCAI201803Borders | B130: 10 | C130: 30.62693333 | D130: 38.2079899 | E130: 59.84308693 | F130: 70.66063545 | G130: -
A131: ECBHCAI201904Borders | B131: 14 | C131: 47.59476458 | D131: 38.2079899 | E131: 61.0021012 | F131: 72.39915684 | G131: -
A132: ECBHCAI201801Borders | B132: 10 | C132: 30.31589159 | D132: 38.2079899 | E132: 59.73294546 | F132: 70.49542324 | G132: -
A133: ECBHCAI201903Borders | B133: 8 | C133: 27.62240177 | D133: 38.2079899 | E133: 61.17967299 | F133: 72.66551453 | G133: -
A134: ECBHCAI201802Borders | B134: 12 | C134: 38.06502776 | D134: 38.2079899 | E134: 60.22607486 | F134: 71.23511734 | G134: -
A135: ECBHCAI202002Borders | B135: 14 | C135: 64.91097923 | D135: 38.2079899 | E135: 64.8276284 | F135: 78.13744765 | G135: -
A136: ECBHCAI202003Borders | B136: 13 | C136: 51.39355604 | D136: 38.2079899 | E136: 62.78843535 | F136: 75.07865807 | G136: -
A137: ECBHCAI202001Borders | B137: 10 | C137: 34.65603881 | D137: 38.2079899 | E137: 61.22222533 | F137: 72.72934304 | G137: -
A138: ECBHCAI201901Borders | B138: 9 | C138: 30.62266077 | D138: 38.2079899 | E138: 61.01179381 | F138: 72.41369576 | G138: -
A139: ECBHCAI201704Borders | B139: 13 | C139: 40.07398274 | D139: 38.2079899 | E139: 59.91333364 | F139: 70.76600551 | G139: -
A140: SABCAUN202003Borders | B140: 1 | C140: 3.444083516 | D140: 11.26509684 | E140: 23.72269441 | F140: 29.9514932 | G140: -
A141: SABCAUN201803Borders | B141: 3 | C141: 10.32547403 | D141: 11.26509684 | E141: 23.71860852 | F141: 29.94536436 | G141: -
A142: SABCAUN201904Borders | B142: 2 | C142: 6.869346904 | D142: 11.26509684 | E142: 23.7056642 | F142: 29.92594787 | G142: -
A143: SABCAUN201704Borders | B143: 2 | C143: 6.898611206 | D143: 11.26509684 | E143: 23.73213524 | F143: 29.96565444 | G143: -
A144: SABCAUN202002Borders | B144: 5 | C144: 17.40965294 | D144: 11.26509684 | E144: 23.79095573 | F144: 30.05388518 | G144: -
A145: SABCAUN201802Borders | B145: 3 | C145: 10.43894078 | D145: 11.26509684 | E145: 23.78684745 | F145: 30.04772275 | G145: -
A146: SABCAUN201804Borders | B146: 3 | C146: 10.32547403 | D146: 11.26509684 | E146: 23.71860852 | F146: 29.94536436 | G146: -
A147: SABCAUN201901Borders | B147: 3 | C147: 10.53299859 | D147: 11.26509684 | E147: 23.8431332 | F147: 30.13215138 | G147: -
A148: SABCAUN201801Borders | B148: 3 | C148: 10.55492901 | D148: 11.26509684 | E148: 23.85622056 | F148: 30.15178242 | G148: -
A149: SABCAUN201903Borders | B149: 2 | C149: 6.869346904 | D149: 11.26509684 | E149: 23.7056642 | F149: 29.92594787 | G149: -
A150: SABCAUN202001Borders | B150: 3 | C150: 10.44579176 | D150: 11.26509684 | E150: 23.79095573 | F150: 30.05388518 | G150: -
A151: SABCAUN201902Borders | B151: 3 | C151: 10.41725135 | D151: 11.26509684 | E151: 23.7738322 | F151: 30.02819988 | G151: -
A152: SABHCAI201902Borders | B152: 2 | C152: 6.723593088 | D152: 15.50469155 | E152: 29.94402928 | F152: 37.16369814 | G152: -
A153: SABHCAI201804Borders | B153: 4 | C153: 12.82421211 | D153: 15.50469155 | E153: 29.60559412 | F153: 36.6560454 | G153: -
A154: SABHCAI201803Borders | B154: 9 | C154: 27.56423999 | D154: 15.50469155 | E154: 29.28672558 | F154: 36.17774259 | G154: -
A155: SABHCAI201904Borders | B155: 2 | C155: 6.799252082 | D155: 15.50469155 | E155: 30.02504322 | F155: 37.28521906 | G155: -
A156: SABHCAI201801Borders | B156: 12 | C156: 36.37906991 | D156: 15.50469155 | E156: 29.21656303 | F156: 36.07249876 | G156: aboveUCL
A157: SABHCAI201903Borders | B157: 0 | C157: 0 | D157: 15.50469155 | E157: 30.13816037 | F157: 37.45489478 | G157: -
A158: SABHCAI201802Borders | B158: 6 | C158: 19.03251388 | D158: 15.50469155 | E158: 29.53069733 | F158: 36.54370022 | G158: -
A159: SABHCAI202002Borders | B159: 5 | C159: 23.18249258 | D159: 15.50469155 | E159: 32.46198844 | F159: 40.94063688 | G159: -
A160: SABHCAI202003Borders | B160: 2 | C160: 7.906700929 | D160: 15.50469155 | E160: 31.16297748 | F160: 38.99212045 | G160: -
A161: SABHCAI202001Borders | B161: 3 | C161: 10.39681164 | D161: 15.50469155 | E161: 30.16526715 | F161: 37.49555495 | G161: -
A162: SABHCAI201901Borders | B162: 3 | C162: 10.20755359 | D162: 15.50469155 | E162: 30.03121763 | F162: 37.29448067 | G162: -
A163: SABHCAI201704Borders | B163: 4 | C163: 12.33045623 | D163: 15.50469155 | E163: 29.33147428 | F163: 36.24486564 | G163: -
A164: SSICSEC201803Borders | B164: 0 | C164: 0 | D164: 0.299850075 | E164: 1.711588895 | F164: 2.417458305 | G164: -
A165: SSICSEC201704Borders | B165: 1 | C165: 1.428571429 | D165: 0.299850075 | E165: 1.60686625 | F165: 2.260374337 | G165: -
A166: SSICSEC201904Borders | B166: 0 | C166: 0 | D166: 0.299850075 | E166: 1.677566092 | F166: 2.366424101 | G166: -
A167: SSICSEC201801Borders | B167: 0 | C167: 0 | D167: 0.299850075 | E167: 1.748263543 | F167: 2.472470277 | G167: -
A168: SSICSEC201802Borders | B168: 0 | C168: 0 | D168: 0.299850075 | E168: 1.597629271 | F168: 2.246518869 | G168: -
A169: SSICSEC201902Borders | B169: 0 | C169: 0 | D169: 0.299850075 | E169: 1.571050772 | F169: 2.206651121 | G169: -
A170: SSICSEC201903Borders | B170: 1 | C170: 1.754385965 | D170: 0.299850075 | E170: 1.748263543 | F170: 2.472470277 | G170: -
A171: SSICSEC201804Borders | B171: 0 | C171: 0 | D171: 0.299850075 | E171: 1.635807386 | F171: 2.303786041 | G171: -
A172: SSICSEC201901Borders | B172: 0 | C172: 0 | D172: 0.299850075 | E172: 1.625947787 | F172: 2.288996644 | G172: -
A173: SSIHIP201801Borders | B173: 1 | C173: 2.272727273 | D173: 1.239669421 | E173: 4.575837091 | F173: 6.243920925 | G173: -
A174: SSIHIP201803Borders | B174: 0 | C174: 0 | D174: 1.239669421 | E174: 3.81218698 | F174: 5.098445759 | G174: -
A175: SSIHIP201902Borders | B175: 2 | C175: 2.06185567 | D175: 1.239669421 | E175: 3.486593201 | F175: 4.61005509 | G175: -
A176: SSIHIP201804Borders | B176: 1 | C176: 1.149425287 | D176: 1.239669421 | E176: 3.612215092 | F176: 4.798487928 | G176: -
A177: SSIHIP201903Borders | B177: 1 | C177: 1.351351351 | D177: 1.239669421 | E177: 3.81218698 | F177: 5.098445759 | G177: -
A178: SSIHIP201704Borders | B178: 1 | C178: 1.818181818 | D178: 1.239669421 | E178: 4.223628498 | F178: 5.715608037 | G178: -
A179: SSIHIP201904Borders | B179: 2 | C179: 2.222222222 | D179: 1.239669421 | E179: 3.572337535 | F179: 4.738671592 | G179: -
A180: SSIHIP201802Borders | B180: 0 | C180: 0 | D180: 1.239669421 | E180: 3.81218698 | F180: 5.098445759 | G180: -
A181: SSIHIP201901Borders | B181: 1 | C181: 1.639344262 | D181: 1.239669421 | E181: 4.073078558 | F181: 5.489783127 | G181: -
A182: CDICA201904Dumfries & Galloway | B182: 2 | C182: 5.330365853 | D182: 7.384426519 | E182: 16.25704676 | F182: 20.69335688 | G182: -
A183: CDICA201801Dumfries & Galloway | B183: 4 | C183: 10.90276378 | D183: 7.384426519 | E183: 16.35719967 | F183: 20.84358624 | G183: -
A184: CDICA202002Dumfries & Galloway | B184: 2 | C184: 5.403705525 | D184: 7.384426519 | E184: 16.31787673 | F184: 20.78460184 | G184: -
A185: CDICA201903Dumfries & Galloway | B185: 5 | C185: 13.32591463 | D185: 7.384426519 | E185: 16.25704676 | F185: 20.69335688 | G185: -
A186: CDICA201803Dumfries & Galloway | B186: 3 | C186: 7.999310379 | D186: 7.384426519 | E186: 16.25913363 | F186: 20.69648718 | G186: -
A187: CDICA202003Dumfries & Galloway | B187: 6 | C187: 16.03490879 | D187: 7.384426519 | E187: 16.26919272 | F187: 20.71157582 | G187: -
A188: CDICA201704Dumfries & Galloway | B188: 1 | C188: 2.659109453 | D188: 7.384426519 | E188: 16.24693144 | F188: 20.6781839 | G188: -
A189: CDICA201902Dumfries & Galloway | B189: 4 | C189: 10.7778826 | D189: 7.384426519 | E189: 16.30566422 | F189: 20.76628307 | G189: -
A190: CDICA201901Dumfries & Galloway | B190: 1 | C190: 2.724409214 | D190: 7.384426519 | E190: 16.35508974 | F190: 20.84042135 | G190: -
A191: CDICA201802Dumfries & Galloway | B191: 5 | C191: 13.47869148 | D191: 7.384426519 | E191: 16.30776252 | F191: 20.76943053 | G191: -
A192: CDICA202001Dumfries & Galloway | B192: 2 | C192: 5.403705525 | D192: 7.384426519 | E192: 16.31787673 | F192: 20.78460184 | G192: -
A193: CDICA201804Dumfries & Galloway | B193: 0 | C193: 0 | D193: 7.384426519 | E193: 16.25913363 | F193: 20.69648718 | G193: -
A194: CDIHCAI202003Dumfries & Galloway | B194: 10 | C194: 27.22792496 | D194: 20.82104989 | E194: 35.879788 | F194: 43.40915706 | G194: -
A195: CDIHCAI201901Dumfries & Galloway | B195: 3 | C195: 6.50096431 | D195: 20.82104989 | E195: 34.25518066 | F195: 40.97224605 | G195: -
A196: CDIHCAI201902Dumfries & Galloway | B196: 6 | C196: 13.13859023 | D196: 20.82104989 | E196: 34.32559832 | F196: 41.07787254 | G196: -
A197: CDIHCAI201804Dumfries & Galloway | B197: 12 | C197: 27.39726027 | D197: 20.82104989 | E197: 34.61041442 | F197: 41.50509669 | G197: -
A198: CDIHCAI201704Dumfries & Galloway | B198: 11 | C198: 25.67394095 | D198: 20.82104989 | E198: 34.76324751 | F198: 41.73434633 | G198: -
A199: CDIHCAI201904Dumfries & Galloway | B199: 6 | C199: 12.91489087 | D199: 20.82104989 | E199: 34.21013965 | F199: 40.90468453 | G199: -
A200: CDIHCAI202002Dumfries & Galloway | B200: 3 | C200: 11.07501477 | D200: 20.82104989 | E200: 38.35552773 | F200: 47.12276665 | G200: -
... 1196 more rows

Sheet trend data (hidden)
A1: ref | B1: cases | C1: OCBD | D1: rate | E1: lower | F1: upper
A2: CDICA201404Ayrshire & Arran | B2: 9 | C2: 93547.61644 | D2: 9.620768912 | E2: 4.390086183 | F2: 18.26443485
A3: CDICA201404Borders | B3: 0 | C3: 28744.32877 | D3: 0 | E3: 0 | F3: 12.76111724
A4: CDICA201404Dumfries & Galloway | B4: 5 | C4: 37798.13699 | D4: 13.22816519 | E4: 4.262934604 | F4: 30.87004414
A5: CDICA201404Fife | B5: 5 | C5: 92567.12329 | D5: 5.401485779 | E5: 1.74069346 | F5: 12.605233
A6: CDICA201404Forth Valley | B6: 5 | C6: 75717.26027 | D6: 6.603514155 | E6: 2.128061495 | F6: 15.41035892
A7: CDICA201404Grampian | B7: 7 | C7: 147255.4521 | D7: 4.753644026 | E7: 1.904431287 | F7: 9.794824746
A8: CDICA201404Greater Glasgow & Clyde | B8: 19 | C8: 287995.2877 | D8: 6.597330169 | E8: 3.970158244 | F8: 10.30313934
A9: CDICA201404Highland | B9: 9 | C9: 80841.53425 | D9: 11.13289114 | E9: 5.08008788 | F9: 21.13510539
A10: CDICA201404Lanarkshire | B10: 18 | C10: 164667.3973 | D10: 10.93112559 | E10: 6.475105069 | F10: 17.27691447
A11: CDICA201404Lothian | B11: 21 | C11: 216293.2603 | D11: 9.70904039 | E11: 6.007712236 | F11: 14.84209798
A12: CDICA201404Orkney | B12: 0 | C12: 5439.342466 | D12: 0 | E12: 0 | F12: 67.43641379
A13: CDICA201404Shetland | B13: 0 | C13: 5852.712329 | D13: 0 | E13: 0 | F13: 62.67346294
A14: CDICA201404Tayside | B14: 20 | C14: 104300.274 | D14: 19.17540505 | E14: 11.70784356 | F14: 29.61650306
A15: CDICA201404Western Isles | B15: 3 | C15: 6868.493151 | D15: 43.67770243 | E15: 8.778507217 | F15: 127.6187619
A16: CDICA201501Ayrshire & Arran | B16: 6 | C16: 91378.35616 | D16: 6.566106299 | E16: 2.3976583 | F16: 14.2921101
A17: CDICA201501Borders | B17: 1 | C17: 28116.9863 | D17: 3.556568934 | E17: 0.04648483408 | F17: 19.78823858
A18: CDICA201501Dumfries & Galloway | B18: 5 | C18: 36904.93151 | D18: 13.54832483 | E18: 4.366109882 | F18: 31.61718798
A19: CDICA201501Fife | B19: 4 | C19: 90759.45205 | D19: 4.407254462 | E19: 1.185684097 | F19: 11.28354391
A20: CDICA201501Forth Valley | B20: 4 | C20: 74626.0274 | D20: 5.360060209 | E20: 1.44201752 | F20: 13.72293686
A21: CDICA201501Grampian | B21: 6 | C21: 144941.9178 | D21: 4.139589217 | E21: 1.511599111 | F21: 9.010433604
A22: CDICA201501Greater Glasgow & Clyde | B22: 14 | C22: 283534.5205 | D22: 4.937670367 | E22: 2.697181506 | F22: 8.285123745
A23: CDICA201501Highland | B23: 9 | C23: 79150.68493 | D23: 11.37071651 | E23: 5.188610796 | F23: 21.58660216
A24: CDICA201501Lanarkshire | B24: 6 | C24: 161381.0959 | D24: 3.717907582 | E24: 1.357619199 | F24: 8.092580607
A25: CDICA201501Lothian | B25: 29 | C25: 213978.0822 | D25: 13.55278994 | E25: 9.07456808 | F25: 19.46488765
A26: CDICA201501Orkney | B26: 1 | C26: 5343.287671 | D26: 18.71506948 | E26: 0.2446084739 | F26: 104.1279578
A27: CDICA201501Shetland | B27: 1 | C27: 5720.547945 | D27: 17.48084291 | E27: 0.2284769668 | F27: 97.26089848
A28: CDICA201501Tayside | B28: 5 | C28: 102338.6301 | D28: 4.885740598 | E28: 1.574488401 | F28: 11.40165894
A29: CDICA201501Western Isles | B29: 1 | C29: 6674.794521 | D29: 14.9817346 | E29: 0.1958132852 | F29: 83.35621887
A30: CDICA201502Ayrshire & Arran | B30: 10 | C30: 92393.67123 | D30: 10.82325214 | E30: 5.181502317 | F30: 19.90572149
A31: CDICA201502Borders | B31: 3 | C31: 28429.39726 | D31: 10.55245728 | E31: 2.120872143 | F31: 30.8324719
A32: CDICA201502Dumfries & Galloway | B32: 3 | C32: 37314.9863 | D32: 8.039665286 | E32: 1.615841855 | F32: 23.49052429
A33: CDICA201502Fife | B33: 2 | C33: 91767.89041 | D33: 2.179411547 | E33: 0.2447624698 | F33: 7.868744728
A34: CDICA201502Forth Valley | B34: 5 | C34: 75455.20548 | D34: 6.62644806 | E34: 2.135452221 | F34: 15.46387886
A35: CDICA201502Grampian | B35: 9 | C35: 146552.3836 | D35: 6.141148838 | E35: 2.802288768 | F35: 11.65859131
A36: CDICA201502Greater Glasgow & Clyde | B36: 13 | C36: 286684.9041 | D36: 4.534595235 | E36: 2.412110158 | F36: 7.754824238
A37: CDICA201502Highland | B37: 11 | C37: 80030.13699 | D37: 13.74482216 | E37: 6.851937664 | F37: 24.59499806
A38: CDICA201502Lanarkshire | B38: 11 | C38: 163174.2192 | D38: 6.741261 | E38: 3.360589146 | F38: 12.06281895
A39: CDICA201502Lothian | B39: 17 | C39: 216355.6164 | D39: 7.857434108 | E39: 4.574585923 | F39: 12.58128223
A40: CDICA201502Orkney | B40: 0 | C40: 5402.657534 | D40: 0 | E40: 0 | F40: 67.89431811
A41: CDICA201502Shetland | B41: 0 | C41: 5784.109589 | D41: 0 | E41: 0 | F41: 63.41680489
A42: CDICA201502Tayside | B42: 14 | C42: 103475.726 | D42: 13.52974319 | E42: 7.390564864 | F42: 22.70212231
A43: CDICA201502Western Isles | B43: 0 | C43: 6748.958904 | D43: 0 | E43: 0 | F43: 54.35056791
A44: CDICA201503Ayrshire & Arran | B44: 17 | C44: 93408.9863 | D44: 18.19953376 | E44: 10.59574026 | F44: 29.14099788
A45: CDICA201503Borders | B45: 1 | C45: 28741.80822 | D45: 3.479252218 | E45: 0.04547429421 | F45: 19.35805948
A46: CDICA201503Dumfries & Galloway | B46: 2 | C46: 37725.0411 | D46: 5.301518413 | E46: 0.5953959188 | F46: 19.14108197
A47: CDICA201503Fife | B47: 6 | C47: 92776.32877 | D47: 6.467166873 | E47: 2.361529896 | F47: 14.07675367
A48: CDICA201503Forth Valley | B48: 4 | C48: 76284.38356 | D48: 5.243537161 | E48: 1.410669313 | F48: 13.42461215
A49: CDICA201503Grampian | B49: 14 | C49: 148162.8493 | D49: 9.449062342 | E49: 5.161510248 | F49: 15.85497714
A50: CDICA201503Greater Glasgow & Clyde | B50: 17 | C50: 289835.2877 | D50: 5.865400358 | E50: 3.41482697 | F50: 9.391648248
A51: CDICA201503Highland | B51: 7 | C51: 80909.58904 | D51: 8.651632128 | E51: 3.466064942 | F51: 17.82658104
A52: CDICA201503Lanarkshire | B52: 18 | C52: 164967.3425 | D52: 10.91125051 | E52: 6.463331971 | F52: 17.24550142
A53: CDICA201503Lothian | B53: 33 | C53: 218733.1507 | D53: 15.08687636 | E53: 10.38334343 | F53: 21.18838409
A54: CDICA201503Orkney | B54: 0 | C54: 5462.027397 | D54: 0 | E54: 0 | F54: 67.15633639
A55: CDICA201503Shetland | B55: 1 | C55: 5847.671233 | D55: 17.10082459 | E55: 0.2235100762 | F55: 95.14653112
A56: CDICA201503Tayside | B56: 11 | C56: 104612.8219 | D56: 10.51496346 | E56: 5.241819309 | F56: 18.81548579
A57: CDICA201503Western Isles | B57: 0 | C57: 6823.123288 | D57: 0 | E57: 0 | F57: 53.75980087
A58: CDICA201504Ayrshire & Arran | B58: 7 | C58: 93408.9863 | D58: 7.493925667 | E58: 3.002258146 | F58: 15.44114119
A59: CDICA201504Borders | B59: 2 | C59: 28741.80822 | D59: 6.958504436 | E59: 0.7814865138 | F59: 25.1236143
A60: CDICA201504Dumfries & Galloway | B60: 4 | C60: 37725.0411 | D60: 10.60303683 | E60: 2.85253603 | F60: 27.14611389
A61: CDICA201504Fife | B61: 7 | C61: 92776.32877 | D61: 7.545028018 | E61: 3.022731054 | F61: 15.54643695
A62: CDICA201504Forth Valley | B62: 3 | C62: 76284.38356 | D62: 3.932652871 | E62: 0.7903992125 | F62: 11.49053779
A63: CDICA201504Grampian | B63: 15 | C63: 148162.8493 | D63: 10.12399537 | E63: 5.662127426 | F63: 16.69907409
A64: CDICA201504Greater Glasgow & Clyde | B64: 25 | C64: 289835.2877 | D64: 8.625588761 | E64: 5.580456178 | F64: 12.73367468
A65: CDICA201504Highland | B65: 9 | C65: 80909.58904 | D65: 11.12352702 | E65: 5.075814909 | F65: 21.1173282
A66: CDICA201504Lanarkshire | B66: 19 | C66: 164967.3425 | D66: 11.5174311 | E66: 6.93098918 | F66: 17.98692719
A67: CDICA201504Lothian | B67: 18 | C67: 218733.1507 | D67: 8.229205287 | E67: 4.87460952 | F67: 13.00646257
A68: CDICA201504Orkney | B68: 0 | C68: 5462.027397 | D68: 0 | E68: 0 | F68: 67.15633639
A69: CDICA201504Shetland | B69: 0 | C69: 5847.671233 | D69: 0 | E69: 0 | F69: 62.72749179
A70: CDICA201504Tayside | B70: 7 | C70: 104612.8219 | D70: 6.691340384 | E70: 2.68072197 | F70: 13.78742414
A71: CDICA201504Western Isles | B71: 0 | C71: 6823.123288 | D71: 0 | E71: 0 | F71: 53.75980087
A72: CDICA201601Ayrshire & Arran | B72: 10 | C72: 92133.77049 | D72: 10.85378352 | E72: 5.19611885 | F72: 19.96187367
A73: CDICA201601Borders | B73: 0 | C73: 28476.03825 | D73: 0 | E73: 0 | F73: 12.88134768
A74: CDICA201601Dumfries & Galloway | B74: 2 | C74: 37175.7377 | D74: 5.379852892 | E74: 0.6041934039 | F74: 19.42390786
A75: CDICA201601Fife | B75: 5 | C75: 92076.5847 | D75: 5.430262228 | E75: 1.749967016 | F75: 12.67238746
A76: CDICA201601Forth Valley | B76: 1 | C76: 75704.04372 | D76: 1.320933402 | E76: 0.01726477714 | F76: 7.349483669
A77: CDICA201601Grampian | B77: 19 | C77: 146221.5847 | D77: 12.99397763 | E77: 7.819549132 | F77: 20.29286979
A78: CDICA201601Greater Glasgow & Clyde | B78: 19 | C78: 288755.929 | D78: 6.579951473 | E78: 3.959700048 | F78: 10.2759988
A79: CDICA201601Highland | B79: 2 | C79: 80035.2459 | D79: 2.498899051 | E79: 0.2806430499 | F79: 9.022251331
A80: CDICA201601Lanarkshire | B80: 12 | C80: 163225.6557 | D80: 7.351785444 | E80: 3.794397112 | F80: 12.84297896
A81: CDICA201601Lothian | B81: 16 | C81: 218797.8142 | D81: 7.312687313 | E81: 4.177102853 | F81: 11.87609453
A82: CDICA201601Orkney | B82: 0 | C82: 5432.650273 | D82: 0 | E82: 0 | F82: 67.51948511
A83: CDICA201601Shetland | B83: 0 | C83: 5768.306011 | D83: 0 | E83: 0 | F83: 63.59054956
A84: CDICA201601Tayside | B84: 11 | C84: 103299.918 | D84: 10.64860477 | E84: 5.3084409 | F84: 19.05462368
A85: CDICA201601Western Isles | B85: 0 | C85: 6688.251366 | D85: 0 | E85: 0 | F85: 54.84389404
A86: CDICA201602Ayrshire & Arran | B86: 5 | C86: 92133.77049 | D86: 5.426891761 | E86: 1.748880842 | F86: 12.66452193
A87: CDICA201602Borders | B87: 0 | C87: 28476.03825 | D87: 0 | E87: 0 | F87: 12.88134768
A88: CDICA201602Dumfries & Galloway | B88: 5 | C88: 37175.7377 | D88: 13.44963223 | E88: 4.334305009 | F88: 31.38687297
A89: CDICA201602Fife | B89: 4 | C89: 92076.5847 | D89: 4.344209783 | E89: 1.168723181 | F89: 11.12213562
A90: CDICA201602Forth Valley | B90: 5 | C90: 75704.04372 | D90: 6.604667009 | E90: 2.128433017 | F90: 15.41304929
A91: CDICA201602Grampian | B91: 8 | C91: 146221.5847 | D91: 5.471148474 | E91: 2.355762024 | F91: 10.78100578
A92: CDICA201602Greater Glasgow & Clyde | B92: 15 | C92: 288755.929 | D92: 5.194698531 | E92: 2.905280372 | F92: 8.568421115
A93: CDICA201602Highland | B93: 2 | C93: 80035.2459 | D93: 2.498899051 | E93: 0.2806430499 | F93: 9.022251331
A94: CDICA201602Lanarkshire | B94: 14 | C94: 163225.6557 | D94: 8.577083018 | E94: 4.685195239 | F94: 14.39184654
A95: CDICA201602Lothian | B95: 23 | C95: 218797.8142 | D95: 10.51198801 | E95: 6.661512273 | F95: 15.77393961
A96: CDICA201602Orkney | B96: 0 | C96: 5432.650273 | D96: 0 | E96: 0 | F96: 67.51948511
A97: CDICA201602Shetland | B97: 0 | C97: 5768.306011 | D97: 0 | E97: 0 | F97: 63.59054956
A98: CDICA201602Tayside | B98: 10 | C98: 103299.918 | D98: 9.680549792 | E98: 4.634447255 | F98: 17.80410597
A99: CDICA201602Western Isles | B99: 0 | C99: 6688.251366 | D99: 0 | E99: 0 | F99: 54.84389404
A100: CDICA201603Ayrshire & Arran | B100: 9 | C100: 93146.22951 | D100: 9.662226853 | E100: 4.409003999 | F100: 18.34314019
A101: CDICA201603Borders | B101: 0 | C101: 28788.96175 | D101: 0 | E101: 0 | F101: 12.74133303
A102: CDICA201603Dumfries & Galloway | B102: 2 | C102: 37584.2623 | D102: 5.32137623 | E102: 0.5976260843 | F102: 19.21277843
A103: CDICA201603Fife | B103: 6 | C103: 93088.4153 | D103: 6.445485167 | E103: 2.353612674 | F103: 14.02956021
A104: CDICA201603Forth Valley | B104: 4 | C104: 76535.95628 | D104: 5.22630172 | E104: 1.406032461 | F104: 13.38048562
A105: CDICA201603Grampian | B105: 20 | C105: 147828.4153 | D105: 13.52919867 | E105: 8.260463923 | F105: 20.89591083
A106: CDICA201603Greater Glasgow & Clyde | B106: 20 | C106: 291929.071 | D106: 6.850979222 | E106: 4.182972553 | F106: 10.58136955
A107: CDICA201603Highland | B107: 8 | C107: 80914.7541 | D107: 9.886948418 | E107: 4.257113059 | F107: 19.4824265
A108: CDICA201603Lanarkshire | B108: 15 | C108: 165019.3443 | D108: 9.089843416 | E108: 5.083749038 | F108: 14.99328706
A109: CDICA201603Lothian | B109: 20 | C109: 221202.1858 | D109: 9.041501976 | E109: 5.520430492 | F109: 13.96464222
A110: CDICA201603Orkney | B110: 0 | C110: 5492.349727 | D110: 0 | E110: 0 | F110: 66.78557767
A111: CDICA201603Shetland | B111: 1 | C111: 5831.693989 | D111: 17.14767616 | E111: 0.2241224326 | F111: 95.40720655
A112: CDICA201603Tayside | B112: 14 | C112: 104435.082 | D112: 13.40545699 | E112: 7.322674054 | F112: 22.4935773
A113: CDICA201603Western Isles | B113: 0 | C113: 6761.748634 | D113: 0 | E113: 0 | F113: 54.24776476
A114: CDICA201604Ayrshire & Arran | B114: 7 | C114: 93146.22951 | D114: 7.51506533 | E114: 3.010727235 | F114: 15.4846992
A115: CDICA201604Borders | B115: 1 | C115: 28788.96175 | D115: 3.47355354 | E115: 0.04539981172 | F115: 19.32635285
A116: CDICA201604Dumfries & Galloway | B116: 8 | C116: 37584.2623 | D116: 21.28550492 | E116: 9.165092923 | F116: 41.94350648
A117: CDICA201604Fife | B117: 4 | C117: 93088.4153 | D117: 4.296990111 | E117: 1.156019668 | F117: 11.00124284
A118: CDICA201604Forth Valley | B118: 4 | C118: 76535.95628 | D118: 5.22630172 | E118: 1.406032461 | F118: 13.38048562
A119: CDICA201604Grampian | B119: 12 | C119: 147828.4153 | D119: 8.117519203 | E119: 4.189606954 | F119: 14.18065436
A120: CDICA201604Greater Glasgow & Clyde | B120: 12 | C120: 291929.071 | D120: 4.110587533 | E120: 2.121552864 | F120: 7.180866416
A121: CDICA201604Highland | B121: 9 | C121: 80914.7541 | D121: 11.12281697 | E121: 5.075490903 | F121: 21.11598021
A122: CDICA201604Lanarkshire | B122: 13 | C122: 165019.3443 | D122: 7.877864294 | E122: 4.190512163 | F122: 13.47230564
A123: CDICA201604Lothian | B123: 16 | C123: 221202.1858 | D123: 7.233201581 | E123: 4.131699561 | F123: 11.74700654
A124: CDICA201604Orkney | B124: 0 | C124: 5492.349727 | D124: 0 | E124: 0 | F124: 66.78557767
A125: CDICA201604Shetland | B125: 0 | C125: 5831.693989 | D125: 0 | E125: 0 | F125: 62.89934793
A126: CDICA201604Tayside | B126: 8 | C126: 104435.082 | D126: 7.66026114 | E126: 3.298348121 | F126: 15.09469538
A127: CDICA201604Western Isles | B127: 0 | C127: 6761.748634 | D127: 0 | E127: 0 | F127: 54.24776476
A128: CDICA201701Ayrshire & Arran | B128: 12 | C128: 91333.9726 | D128: 13.13859417 | E128: 6.781079801 | F128: 22.95206923
A129: CDICA201701Borders | B129: 0 | C129: 28361.09589 | D129: 0 | E129: 0 | F129: 12.93355344
A130: CDICA201701Dumfries & Galloway | B130: 2 | C130: 36789.0411 | D130: 5.436401549 | E130: 0.6105441957 | F130: 19.62807625
A131: CDICA201701Fife | B131: 3 | C131: 91580.54795 | D131: 3.275804816 | E131: 0.6583834455 | F131: 9.571340331
A132: CDICA201701Forth Valley | B132: 2 | C132: 75348.49315 | D132: 2.654333108 | E132: 0.2980993324 | F132: 9.583444521
A133: CDICA201701Grampian | B133: 9 | C133: 144586.8493 | D133: 6.224632491 | E133: 2.840383481 | F133: 11.81707987
A134: CDICA201701Greater Glasgow & Clyde | B134: 16 | C134: 288273.6986 | D134: 5.550280888 | E134: 3.170393201 | F134: 9.01387652
A135: CDICA201701Highland | B135: 4 | C135: 79394.79452 | D135: 5.038113675 | E135: 1.355404213 | F135: 12.89868269
A136: CDICA201701Lanarkshire | B136: 10 | C136: 162278.6301 | D136: 6.162240827 | E136: 2.950098982 | F136: 11.3333634
A137: CDICA201701Lothian | B137: 10 | C137: 219316.4384 | D137: 4.559621739 | E137: 2.18286429 | F137: 8.385886171
A138: CDICA201701Orkney | B138: 0 | C138: 5424.657534 | D138: 0 | E138: 0 | F138: 67.61896893
A139: CDICA201701Shetland | B139: 0 | C139: 5690.958904 | D139: 0 | E139: 0 | F139: 64.45482307
A140: CDICA201701Tayside | B140: 6 | C140: 102597.5342 | D140: 5.848093762 | E140: 2.135471146 | F140: 12.72924868
A141: CDICA201701Western Isles | B141: 0 | C141: 6645.205479 | D141: 0 | E141: 0 | F141: 55.19915831
A142: CDICA201702Ayrshire & Arran | B142: 4 | C142: 92348.79452 | D142: 4.331404672 | E142: 1.165278221 | F142: 11.08935171
A143: CDICA201702Borders | B143: 2 | C143: 28676.21918 | D143: 6.97442012 | E143: 0.7832739514 | F143: 25.18107772
A144: CDICA201702Dumfries & Galloway | B144: 12 | C144: 37197.80822 | D144: 32.25996524 | E144: 16.64998521 | F144: 56.35556938
A145: CDICA201702Fife | B145: 2 | C145: 92598.10959 | D145: 2.159871307 | E145: 0.2425679704 | F145: 7.798194877
A146: CDICA201702Forth Valley | B146: 7 | C146: 76185.69863 | D146: 9.188076143 | E146: 3.680978125 | F146: 18.9319173
A147: CDICA201702Grampian | B147: 17 | C147: 146193.3699 | D147: 11.62843432 | E147: 6.770056386 | F147: 18.61938797
A148: CDICA201702Greater Glasgow & Clyde | B148: 22 | C148: 291476.7397 | D148: 7.547772087 | E148: 4.728462746 | F148: 11.42801306
A149: CDICA201702Highland | B149: 8 | C149: 80276.9589 | D149: 9.965499577 | E149: 4.290935544 | F149: 19.6372131
A150: CDICA201702Lanarkshire | B150: 6 | C150: 164081.726 | D150: 3.656714337 | E150: 1.33527407 | F150: 7.959384378
A151: CDICA201702Lothian | B151: 9 | C151: 221753.2877 | D151: 4.058564405 | E151: 1.851977496 | F151: 7.70493355
A152: CDICA201702Orkney | B152: 1 | C152: 5484.931507 | D152: 18.23176823 | E152: 0.2382916617 | F152: 101.4389391
A153: CDICA201702Shetland | B153: 0 | C153: 5754.191781 | D153: 0 | E153: 0 | F153: 63.74652831
A154: CDICA201702Tayside | B154: 10 | C154: 103737.5068 | D154: 9.639714992 | E154: 4.614898084 | F154: 17.72900413
A155: CDICA201702Western Isles | B155: 0 | C155: 6719.041096 | D155: 0 | E155: 0 | F155: 54.59257415
A156: CDICA201703Ayrshire & Arran | B156: 7 | C156: 93363.61644 | D156: 7.497567326 | E156: 3.003717088 | F156: 15.44864478
A157: CDICA201703Borders | B157: 1 | C157: 28991.34247 | D157: 3.449305603 | E157: 0.04508288792 | F157: 19.19144081
A158: CDICA201703Dumfries & Galloway | B158: 4 | C158: 37606.57534 | D158: 10.63643781 | E158: 2.861521901 | F158: 27.23162779
A159: CDICA201703Fife | B159: 7 | C159: 93615.67123 | D159: 7.477380558 | E159: 2.995629753 | F159: 15.4070502
A160: CDICA201703Forth Valley | B160: 8 | C160: 77022.90411 | D160: 10.38652086 | E160: 4.472218496 | F160: 20.46684382
A161: CDICA201703Grampian | B161: 15 | C161: 147799.8904 | D161: 10.14885732 | E161: 5.67603217 | F161: 16.74008277
A162: CDICA201703Greater Glasgow & Clyde | B162: 27 | C162: 294679.7808 | D162: 9.162488151 | E162: 6.036662144 | F162: 13.33153479
A163: CDICA201703Highland | B163: 4 | C163: 81159.12329 | D163: 4.928589465 | E163: 1.325938904 | F163: 12.61827655
A164: CDICA201703Lanarkshire | B164: 11 | C164: 165884.8219 | D164: 6.631106977 | E164: 3.305676213 | F164: 11.86570924
A165: CDICA201703Lothian | B165: 11 | C165: 224190.137 | D165: 4.90654948 | E165: 2.445966256 | F165: 8.779784385
A166: CDICA201703Orkney | B166: 1 | C166: 5545.205479 | D166: 18.03359684 | E166: 0.2357015349 | F166: 100.3363419
A167: CDICA201703Shetland | B167: 0 | C167: 5817.424658 | D167: 0 | E167: 0 | F167: 63.05363126
A168: CDICA201703Tayside | B168: 7 | C168: 104877.4795 | D168: 6.674454837 | E168: 2.673957188 | F168: 13.75263167
A169: CDICA201703Western Isles | B169: 0 | C169: 6792.876712 | D169: 0 | E169: 0 | F169: 53.99917661
A170: CDICA201704Ayrshire & Arran | B170: 6 | C170: 93363.61644 | D170: 6.426486279 | E170: 2.346675101 | F170: 13.98820629
A171: CDICA201704Borders | B171: 1 | C171: 28991.34247 | D171: 3.449305603 | E171: 0.04508288792 | F171: 19.19144081
A172: CDICA201704Dumfries & Galloway | B172: 1 | C172: 37606.57534 | D172: 2.659109453 | E172: 0.03475491802 | F172: 14.79490296
A173: CDICA201704Fife | B173: 4 | C173: 93615.67123 | D173: 4.27278889 | E173: 1.149508811 | F173: 10.93928237
A174: CDICA201704Forth Valley | B174: 5 | C174: 77022.90411 | D174: 6.491575536 | E174: 2.091987935 | F174: 15.1491322
A175: CDICA201704Grampian | B175: 7 | C175: 147799.8904 | D175: 4.736133417 | E175: 1.897416089 | F175: 9.758744352
A176: CDICA201704Greater Glasgow & Clyde | B176: 17 | C176: 294679.7808 | D176: 5.768974021 | E176: 3.358687707 | F176: 9.237250904
A177: CDICA201704Highland | B177: 7 | C177: 81159.12329 | D177: 8.625031563 | E177: 3.455408076 | F177: 17.7717709
A178: CDICA201704Lanarkshire | B178: 9 | C178: 165884.8219 | D178: 5.425451163 | E178: 2.475706298 | F178: 10.29988354
A179: CDICA201704Lothian | B179: 15 | C179: 224190.137 | D179: 6.690749291 | E179: 3.741988581 | F179: 11.03608942
A180: CDICA201704Orkney | B180: 0 | C180: 5545.205479 | D180: 0 | E180: 0 | F180: 66.14899134
A181: CDICA201704Shetland | B181: 0 | C181: 5817.424658 | D181: 0 | E181: 0 | F181: 63.05363126
A182: CDICA201704Tayside | B182: 2 | C182: 104877.4795 | D182: 1.906987096 | E182: 0.2141673849 | F182: 6.885158831
A183: CDICA201704Western Isles | B183: 0 | C183: 6792.876712 | D183: 0 | E183: 0 | F183: 53.99917661
A184: CDICA201801Ayrshire & Arran | B184: 8 | C184: 91151.50685 | D184: 8.776596544 | E184: 3.779018782 | F184: 17.29445627
A185: CDICA201801Borders | B185: 0 | C185: 28422.73973 | D185: 0 | E185: 0 | F185: 12.90550287
A186: CDICA201801Dumfries & Galloway | B186: 4 | C186: 36687.94521 | D186: 10.90276378 | E186: 2.933171601 | F186: 27.91348102
A187: CDICA201801Fife | B187: 2 | C187: 91703.83562 | D187: 2.180933858 | E187: 0.2449334355 | F187: 7.874241017
A188: CDICA201801Forth Valley | B188: 0 | C188: 75469.31507 | D188: 0 | E188: 0 | F188: 4.860382646
A189: CDICA201801Grampian | B189: 12 | C189: 144135.6164 | D189: 8.325492544 | E189: 4.296945974 | F189: 14.54396709
A190: CDICA201801Greater Glasgow & Clyde | B190: 17 | C190: 289721.0959 | D190: 5.867712169 | E190: 3.416172903 | F190: 9.395349908
A191: CDICA201801Highland | B191: 15 | C191: 79347.94521 | D191: 18.90408121 | E191: 10.57263588 | F191: 31.18143
A192: CDICA201801Lanarkshire | B192: 10 | C192: 162542.4658 | D192: 6.152238403 | E192: 2.945310441 | F192: 11.31496732
A193: CDICA201801Lothian | B193: 12 | C193: 221367.9452 | D193: 5.420839042 | E193: 2.797798734 | F193: 9.469770612
A194: CDICA201801Orkney | B194: 1 | C194: 5471.506849 | D194: 18.27650093 | E194: 0.238876324 | F194: 101.6878254
A195: CDICA201801Shetland | B195: 0 | C195: 5668.767123 | D195: 0 | E195: 0 | F195: 64.7071473
A196: CDICA201801Tayside | B196: 4 | C196: 102595.0685 | D196: 3.898822876 | E196: 1.048900698 | F196: 9.981846859
A197: CDICA201801Western Isles | B197: 1 | C197: 6615.616438 | D197: 15.11574937 | E197: 0.1975648763 | F197: 84.1018578
A198: CDICA201802Ayrshire & Arran | B198: 9 | C198: 92164.30137 | D198: 9.765169232 | E198: 4.45597799 | F198: 18.53856993
A199: CDICA201802Borders | B199: 1 | C199: 28738.54795 | D199: 3.479646925 | E199: 0.04547945309 | F199: 19.36025557
A200: CDICA201802Dumfries & Galloway | B200: 5 | C200: 37095.58904 | D200: 13.47869148 | E200: 4.3436697 | F200: 31.45468739
... 2559 more rows

Sheet year end comp (hidden)
A1: ref | B1: p | C1: lp | D1: pc | E1: r | F1: rl | G1: ru | H1: s | I1: direction
A2: CDICA Ayrshire & Arran | B2: 8.122157245 | C2: 5.685510071 | D2: 42.85714286 | E2: 1.428571429 | F2: 0.8179231943 | G2: 2.495119763 | H2: Non Significant | I2: -
A3: CDIHCAI Ayrshire & Arran | B3: 17.81582949 | C3: 16.70994693 | D3: 6.618109319 | E3: 1.066181093 | F3: 0.7698767928 | G3: 1.47652473 | H3: Non Significant | I3: -
A4: ECBCOM Ayrshire & Arran | B4: 54.68919212 | C4: 55.23066927 | D4: -0.9803921569 | E4: 0.9901960784 | F4: 0.8151354441 | G4: 1.202853195 | H4: Non Significant | I4: -
A5: ECBHCAI Ayrshire & Arran | B5: 48.17801778 | C5: 42.45229762 | D5: 13.48742113 | E5: 1.134874211 | F5: 0.9281322171 | G5: 1.387668106 | H5: Non Significant | I5: -
A6: SABCAUN Ayrshire & Arran | B6: 14.07840589 | C6: 11.10028157 | D6: 26.82926829 | E6: 1.268292683 | F6: 0.8422427763 | G6: 1.909860642 | H6: Non Significant | I6: -
A7: SABHCAI Ayrshire & Arran | B7: 18.56861102 | C7: 15.35508637 | D7: 20.92807925 | E7: 1.209280793 | F7: 0.870030209 | G7: 1.680815241 | H7: Non Significant | I7: -
A8: SSICSEC Ayrshire & Arran | B8: 0.796812749 | C8: 1.237842617 | D8: -35.62891292 | E8: 0.6437108708 | F8: 0.1472237743 | G8: 2.814516115 | H8: Non Significant | I8: -
A9: SSIHIP Ayrshire & Arran | B9: 0 | C9: 0 | D9: 0 | E9: 0 | F9: 0 | G9: 0
A10: CDICA Borders | B10: 7.791533201 | C10: 1.731451822 | D10: 350 | E10: 4.5 | F10: 0.9722667434 | G10: 20.82761766 | H10: Non Significant | I10: -
A11: CDIHCAI Borders | B11: 11.41411355 | C11: 11.73620367 | D11: -2.744414898 | E11: 0.972555851 | F11: 0.4498290526 | G11: 2.102720751 | H11: Non Significant | I11: -
A12: ECBCOM Borders | B12: 34.62903645 | C12: 60.60081378 | D12: -42.85714286 | E12: 0.5714285714 | F12: 0.3874765214 | G12: 0.8427107042 | H12: Significant | I12: Decrease
A13: ECBHCAI Borders | B13: 48.50998259 | C13: 36.04691128 | D13: 34.57458869 | E13: 1.345745887 | F13: 0.8968730421 | G13: 2.019273528 | H13: Non Significant | I13: -
A14: SABCAUN Borders | B14: 9.522985023 | C14: 9.522985023 | D14: 0 | E14: 1 | F14: 0.4335505814 | G14: 2.306535945 | H14: Non Significant | I14: -
A15: SABHCAI Borders | B15: 11.41411355 | C15: 7.544702361 | D15: 51.28646571 | E15: 1.512864657 | F15: 0.6374536031 | G15: 3.590472248 | H15: Non Significant | I15: -
A16: SSICSEC Borders | B16: 0 | C16: 0.3759398496 | D16: -100 | E16: 0 | F16: 0 | G16: 0
A17: SSIHIP Borders | B17: 2.222222222 | C17: 1.567398119 | D17: 41.77777778 | E17: 1.417777778 | F17: 0.279713167 | G17: 7.186268163 | H17: Non Significant | I17: -
A18: CDICA Dumfries & Galloway | B18: 8.061265619 | C18: 6.717721349 | D18: 20 | E18: 1.2 | F18: 0.5184559015 | G18: 2.777478269 | H18: Non Significant | I18: -
A19: CDIHCAI Dumfries & Galloway | B19: 20.05083858 | C19: 15.4110343 | D19: 30.10702713 | E19: 1.301070271 | F19: 0.780504842 | G19: 2.168831966 | H19: Non Significant | I19: -
A20: ECBCOM Dumfries & Galloway | B20: 57.7724036 | C20: 60.45949214 | D20: -4.444444444 | E20: 0.9555555556 | F20: 0.7110448055 | G20: 1.284147515 | H20: Non Significant | I20: -
A21: ECBHCAI Dumfries & Galloway | B21: 34.9272672 | C21: 29.17088635 | D21: 19.73330798 | E21: 1.19733308 | F21: 0.8196477496 | G21: 1.749051961 | H21: Non Significant | I21: -
A22: SABCAUN Dumfries & Galloway | B22: 11.42012629 | C22: 12.09189843 | D22: -5.555555556 | E22: 0.9444444444 | F22: 0.4867376708 | G22: 1.832558608 | H22: Non Significant | I22: -
A23: SABHCAI Dumfries & Galloway | B23: 12.93602489 | C23: 8.806305315 | D23: 46.89503063 | E23: 1.468950306 | F23: 0.761202456 | G23: 2.834745192 | H23: Non Significant | I23: -
A24: SSICSEC Dumfries & Galloway | B24: 0 | C24: 0.6211180124 | D24: -100 | E24: 0 | F24: 0 | G24: 0
A25: SSIHIP Dumfries & Galloway | B25: 0 | C25: 0.5780346821 | D25: -100 | E25: 0 | F25: 0 | G25: 0
A26: CDICA Fife | B26: 3.212421363 | C26: 4.818632044 | D26: -33.33333333 | E26: 0.6666666667 | F26: 0.3211284819 | G26: 1.384008176 | H26: Non Significant | I26: -
A27: CDIHCAI Fife | B27: 9.759261067 | C27: 8.575831095 | D27: 13.79959515 | E27: 1.137995951 | F27: 0.6917215977 | G27: 1.872190763 | H27: Non Significant | I27: -
A28: ECBCOM Fife | B28: 38.81675813 | C28: 38.54905635 | D28: 0.6944444444 | E28: 1.006944444 | F28: 0.7995796132 | G28: 1.268087752 | H28: Non Significant | I28: -
A29: ECBHCAI Fife | B29: 48.48149046 | C29: 40.38939806 | D29: 20.0351894 | E29: 1.200351894 | F29: 0.9571577535 | G29: 1.505336674 | H29: Non Significant | I29: -
A30: SABCAUN Fife | B30: 8.834158747 | C30: 11.51117655 | D30: -23.25581395 | E30: 0.7674418605 | F30: 0.4875847698 | G30: 1.207927412 | H30: Non Significant | I30: -
A31: SABHCAI Fife | B31: 12.59259492 | C31: 15.2151842 | D31: -17.23665807 | E31: 0.8276334193 | F31: 0.5507481975 | G31: 1.24372096 | H31: Non Significant | I31: -
A32: SSICSEC Fife | B32: 2.314814815 | C32: 3.012746234 | D32: -23.16595442 | E32: 0.7683404558 | F32: 0.298509958 | G32: 1.977646106 | H32: Non Significant | I32: -
A33: SSIHIP Fife | B33: 0.7874015748 | C33: 0.7054673721 | D33: 11.61417323 | E33: 1.116141732 | F33: 0.1258072113 | G33: 9.902233373 | H33: Non Significant | I33: -
A34: CDICA Forth Valley | B34: 1.304461258 | C34: 2.282807201 | D34: -42.85714286 | E34: 0.5714285714 | F34: 0.1672758886 | G34: 1.95204829 | H34: Non Significant | I34: -
A35: CDIHCAI Forth Valley | B35: 13.90761067 | C35: 14.20351427 | D35: -2.083312531 | E35: 0.9791668747 | F35: 0.6377202675 | G35: 1.503429979 | H35: Non Significant | I35: -
A36: ECBCOM Forth Valley | B36: 57.72241064 | C36: 50.87398904 | D36: 13.46153846 | E36: 1.134615385 | F36: 0.9148918812 | G36: 1.407108422 | H36: Non Significant | I36: -
A37: ECBHCAI Forth Valley | B37: 53.49081028 | C37: 42.29490914 | D37: 26.4710372 | E37: 1.264710372 | F37: 1.001865645 | G37: 1.596513796 | H37: Significant | I37: Increase
A38: SABCAUN Forth Valley | B38: 13.04461258 | C38: 9.457344117 | D38: 37.93103448 | E38: 1.379310345 | F38: 0.855180698 | G38: 2.224672554 | H38: Non Significant | I38: -
A39: SABHCAI Forth Valley | B39: 15.33403228 | C39: 17.67548442 | D39: -13.24689091 | E39: 0.8675310909 | F39: 0.5830280381 | G39: 1.290864494 | H39: Non Significant | I39: -
A40: SSICSEC Forth Valley | B40: 0.9756097561 | C40: 1.783723523 | D40: -45.30487805 | E40: 0.5469512195 | F40: 0.1267493204 | G40: 2.360214916 | H40: Non Significant | I40: -
A41: SSIHIP Forth Valley | B41: 0 | C41: 0 | D41: 0 | E41: 0 | F41: 0 | G41: 0
A42: CDIHCAI Golden Jubilee | B42: 9.817878356 | C42: 2.110461558 | D42: 365.2005302 | E42: 4.652005302 | F42: 0.5199366802 | G42: 41.62267089 | H42: Non Significant | I42: -
A43: ECBHCAI Golden Jubilee | B43: 7.363408767 | C43: 21.10461558 | D43: -65.10996024 | E43: 0.3489003976 | F43: 0.09602000298 | G43: 1.267772169 | H43: Non Significant | I43: -
A44: SABHCAI Golden Jubilee | B44: 17.18128712 | C44: 23.21507714 | D44: -25.99082475 | E44: 0.7400917525 | F44: 0.2868978884 | G44: 1.909166377 | H44: Non Significant | I44: -
A45: SSIHIP Golden Jubilee | B45: 0.2304147465 | C45: 0.4043905257 | D45: -43.02172482 | E45: 0.5697827518 | F45: 0.07028584939 | G45: 4.619029109 | H45: Non Significant | I45: -
A46: CDICA Grampian | B46: 6.487963121 | C46: 4.951340277 | D46: 31.03448276 | E46: 1.310344828 | F46: 0.8081610205 | G46: 2.124581022 | H46: Non Significant | I46: -
A47: CDIHCAI Grampian | B47: 13.09462476 | C47: 9.67171176 | D47: 35.3909741 | E47: 1.353909741 | F47: 0.9334256342 | G47: 1.963811063 | H47: Non Significant | I47: -
A48: ECBCOM Grampian | B48: 29.02509817 | C48: 35.17158955 | D48: -17.47572816 | E48: 0.8252427184 | F48: 0.6735659855 | G48: 1.011074726 | H48: Non Significant | I48: -
A49: ECBHCAI Grampian | B49: 40.57187017 | C49: 43.80716503 | D49: -7.385309822 | E49: 0.9261469018 | F49: 0.7641719534 | G49: 1.122454285 | H49: Non Significant | I49: -
A50: SABCAUN Grampian | B50: 10.2441523 | C50: 7.000170736 | D50: 46.34146341 | E50: 1.463414634 | F50: 0.9837607016 | G50: 2.176934277 | H50: Non Significant | I50: -
A51: SABHCAI Grampian | B51: 16.31461446 | C51: 17.44700945 | D51: -6.490481897 | E51: 0.935095181 | F51: 0.6900974152 | G51: 1.267071834 | H51: Non Significant | I51: -
A52: SSICSEC Grampian | B52: 1.279317697 | C52: 1.834862385 | D52: -30.2771855 | E52: 0.697228145 | F52: 0.2944601297 | G52: 1.650909706 | H52: Non Significant | I52: -
A53: SSIHIP Grampian | B53: 0.3636363636 | C53: 0.5159071367 | D53: -29.51515152 | E53: 0.7048484848 | F53: 0.0852019455 | G53: 5.830986413 | H53: Non Significant | I53: -
A54: CDICA Greater Glasgow & Clyde | B54: 3.380891203 | C54: 5.409425925 | D54: -37.5 | E54: 0.625 | F54: 0.4210287074 | G54: 0.9277870917 | H54: Significant | I54: Decrease
A55: CDIHCAI Greater Glasgow & Clyde | B55: 17.11613461 | C55: 15.58407878 | D55: 9.830904044 | E55: 1.09830904 | F55: 0.9252991538 | G55: 1.303667839 | H55: Non Significant | I55: -
A56: ECBCOM Greater Glasgow & Clyde | B56: 36.93623639 | C56: 47.9241328 | D56: -22.92768959 | E56: 0.7707231041 | F56: 0.6803210173 | G56: 0.8731379569 | H56: Significant | I56: Decrease
A57: ECBHCAI Greater Glasgow & Clyde | B57: 35.47827136 | C57: 38.30590357 | D57: -7.381713899 | E57: 0.926182861 | F57: 0.8261401767 | G57: 1.038340364 | H57: Non Significant | I57: -
A58: SABCAUN Greater Glasgow & Clyde | B58: 7.268916086 | C58: 6.930826966 | D58: 4.87804878 | E58: 1.048780488 | F58: 0.7749999784 | G58: 1.419278119 | H58: Non Significant | I58: -
A59: SABHCAI Greater Glasgow & Clyde | B59: 18.55887393 | C59: 20.52101977 | D59: -9.561639056 | E59: 0.9043836094 | F59: 0.7728311918 | G59: 1.058329066 | H59: Non Significant | I59: -
A60: SSICSEC Greater Glasgow & Clyde | B60: 0.3062787136 | C60: 0.6087121933 | D60: -49.68415008 | E60: 0.5031584992 | F60: 0.1782569792 | G60: 1.420244394 | H60: Non Significant | I60: -
A61: SSIHIP Greater Glasgow & Clyde | B61: 1.253918495 | C61: 0.5944517834 | D61: 110.9369558 | E61: 2.109369558 | F61: 0.6536269455 | G61: 6.807307993 | H61: Non Significant | I61: -
A62: CDICA Highland | B62: 7.149518185 | C62: 6.527820951 | D62: 9.523809524 | E62: 1.095238095 | F62: 0.6061656969 | G62: 1.978908558 | H62: Non Significant | I62: -
A63: CDIHCAI Highland | B63: 19.98221191 | C63: 13.41282669 | D63: 48.97838003 | E63: 1.4897838 | F63: 0.9847847971 | G63: 2.253746989 | H63: Non Significant | I63: -
A64: ECBCOM Highland | B64: 37.61268262 | C64: 42.27541187 | D64: -11.02941176 | E64: 0.8897058824 | F64: 0.6964183092 | G64: 1.136639498 | H64: Non Significant | I64: -
A65: ECBHCAI Highland | B65: 25.85933306 | C65: 21.79584337 | D65: 18.64341577 | E65: 1.186434158 | F65: 0.8423584296 | G65: 1.67105351 | H65: Non Significant | I65: -
A66: SABCAUN Highland | B66: 12.43394467 | C66: 9.014609885 | D66: 37.93103448 | E66: 1.379310345 | F66: 0.855180698 | G66: 2.224672554 | H66: Non Significant | I66: -
A67: SABHCAI Highland | B67: 8.619777688 | C67: 15.42475069 | D67: -44.1172317 | E67: 0.558827683 | F67: 0.3362231256 | G67: 0.9288129087 | H67: Significant | I67: Decrease
A68: SSICSEC Highland | B68: 1.685393258 | C68: 1.657458564 | D68: 1.685393258 | E68: 1.016853933 | F68: 0.2900245125 | G68: 3.56518803 | H68: Non Significant | I68: -
A69: SSIHIP Highland | B69: 1.98019802 | C69: 0.5263157895 | D69: 276.2376238 | E69: 3.762376238 | F69: 0.5365322417 | G69: 26.38326992 | H69: Non Significant | I69: -
A70: CDICA Lanarkshire | B70: 5.43888805 | C70: 5.43888805 | D70: 0 | E70: 1 | F70: 0.6300371895 | G70: 1.587207893 | H70: Non Significant | I70: -
A71: CDIHCAI Lanarkshire | B71: 18.20862384 | C71: 14.82344587 | D71: 22.83664679 | E71: 1.228366468 | F71: 0.9161880517 | G71: 1.646915365 | H71: Non Significant | I71: -
A72: ECBCOM Lanarkshire | B72: 50.00755401 | C72: 50.76295513 | D72: -1.488095238 | E72: 0.9851190476 | F72: 0.8463857487 | G72: 1.146592484 | H72: Non Significant | I72: -
A73: ECBHCAI Lanarkshire | B73: 48.94791355 | C73: 44.81506889 | D73: 9.221997765 | E73: 1.092219978 | F73: 0.9181434899 | G73: 1.2993007 | H73: Non Significant | I73: -
A74: SABCAUN Lanarkshire | B74: 10.12237498 | C74: 8.007251851 | D74: 26.41509434 | E74: 1.264150943 | F74: 0.8816984443 | G74: 1.812499067 | H74: Non Significant | I74: -
A75: SABHCAI Lanarkshire | B75: 19.38337376 | C75: 19.4773184 | D75: -0.4823284084 | E75: 0.9951767159 | F75: 0.7598375394 | G75: 1.303405853 | H75: Non Significant | I75: -
A76: SSICSEC Lanarkshire | B76: 1.432664756 | C76: 1.570680628 | D76: -8.787010506 | E76: 0.9121298949 | F76: 0.3504775353 | G76: 2.373849566 | H76: Non Significant | I76: -
A77: SSIHIP Lanarkshire | B77: 0.8 | C77: 0.9111617312 | D77: -12.2 | E77: 0.878 | F77: 0.09902056455 | G77: 7.785089931 | H77: Non Significant | I77: -
A78: CDICA Lothian | B78: 6.170254964 | C78: 5.729522466 | D78: 7.692307692 | E78: 1.076923077 | F78: 0.7383382823 | G78: 1.570774998 | H78: Non Significant | I78: -
A79: CDIHCAI Lothian | B79: 15.28697932 | C79: 12.54819763 | D79: 21.82609622 | E79: 1.218260962 | F79: 0.955583346 | G79: 1.553145289 | H79: Non Significant | I79: -
A80: ECBCOM Lothian | B80: 29.08834483 | C80: 30.85127482 | D80: -5.714285714 | E80: 0.9428571429 | F80: 0.7969352428 | G80: 1.115497903 | H80: Non Significant | I80: -
A81: ECBHCAI Lothian | B81: 34.17089494 | C81: 35.03456777 | D81: -2.465201912 | E81: 0.9753479809 | F81: 0.8363333732 | G81: 1.137469476 | H81: Non Significant | I81: -
A82: SABCAUN Lothian | B82: 10.46739681 | C82: 10.24703056 | D82: 2.150537634 | E82: 1.021505376 | F82: 0.7674866728 | G82: 1.359597855 | H82: Non Significant | I82: -
A83: SABHCAI Lothian | B83: 14.83736228 | C83: 11.84549856 | D83: 25.25738956 | E83: 1.252573896 | F83: 0.977153352 | G83: 1.605624502 | H83: Non Significant | I83: -
A84: SSICSEC Lothian | B84: 0.8759124088 | C84: 1.53461813 | D84: -42.92310304 | E84: 0.5707689696 | F84: 0.2439369561 | G84: 1.335497589 | H84: Non Significant | I84: -
A85: SSIHIP Lothian | B85: 0.4237288136 | C85: 0.4094165814 | D85: 3.495762712 | E85: 1.034957627 | F85: 0.1162084231 | G85: 9.21738082 | H85: Non Significant | I85: -
A86: CDICA Orkney | B86: 8.980691513 | C86: 4.490345757 | D86: 100 | E86: 2 | F86: 0.1813452207 | G86: 22.05737755 | H86: Non Significant | I86: -
A87: CDIHCAI Orkney | B87: 0 | C87: 14.15027593 | D87: -100 | E87: 0 | F87: 0 | G87: 0
A88: ECBCOM Orkney | B88: 31.4324203 | C88: 71.84553211 | D88: -56.25 | E88: 0.4375 | F88: 0.1799854975 | G88: 1.063453738 | H88: Non Significant | I88: -
A89: ECBHCAI Orkney | B89: 27.52041097 | C89: 49.52596576 | D89: -44.43235876 | E89: 0.5556764124 | F89: 0.1436899188 | G89: 2.14890702 | H89: Non Significant | I89: -
A90: SABCAUN Orkney | B90: 22.45172878 | C90: 8.980691513 | D90: 150 | E90: 2.5 | F90: 0.4850210824 | G90: 12.8860378 | H90: Non Significant | I90: -
A91: SABHCAI Orkney | B91: 27.52041097 | C91: 28.30055186 | D91: -2.756627832 | E91: 0.9724337217 | F91: 0.2176367076 | G91: 4.344980925 | H91: Non Significant | I91: -
A92: SSICSEC Orkney | B92: 0 | C92: 3.03030303 | D92: -100 | E92: 0 | F92: 0 | G92: 0
A93: SSIHIP Orkney | B93: 0 | C93: 0 | D93: 0 | E93: 0 | F93: 0 | G93: 0
A94: CDICA Scotland | B94: 5.088499625 | C94: 5.015283803 | D94: 1.459854015 | E94: 1.01459854 | F94: 0.8586811156 | G94: 1.198827107 | H94: Non Significant | I94: -
A95: CDIHCAI Scotland | B95: 15.31196838 | C95: 13.1345885 | D95: 16.57745032 | E95: 1.165774503 | F95: 1.057668556 | G95: 1.284930128 | H95: Significant | I95: Increase
A96: ECBCOM Scotland | B96: 39.97583878 | C96: 44.13083667 | D96: -9.415180423 | E96: 0.9058481958 | F96: 0.8548896177 | G96: 0.9598443317 | H96: Significant | I96: Decrease
A97: ECBHCAI Scotland | B97: 39.67023285 | C97: 38.67864392 | D97: 2.56366002 | E97: 1.0256366 | F97: 0.9672779582 | G97: 1.087516186 | H97: Non Significant | I97: -
A98: SABCAUN Scotland | B98: 10.28682298 | C98: 9.005546099 | D98: 14.22764228 | E98: 1.142276423 | F98: 1.012084338 | G98: 1.289216103 | H98: Significant | I98: Increase
A99: SABHCAI Scotland | B99: 17.01741764 | C99: 16.87555661 | D99: 0.8406302212 | E99: 1.008406302 | F99: 0.9224567251 | G99: 1.102364201 | H99: Non Significant | I99: -
A100: SSICSEC Scotland | B100: 0.8511673152 | C100: 1.282278556 | D100: -33.62071671 | E100: 0.6637928329 | F100: 0.4652524697 | G100: 0.9470576811 | H100: Significant | I100: Decrease
A101: SSIHIP Scotland | B101: 0.7925407925 | C101: 0.5795454545 | D101: 36.75213675 | E101: 1.367521368 | F101: 0.7914590601 | G101: 2.362869774 | H101: Non Significant | I101: -
A102: CDICA Shetland | B102: 4.363001745 | C102: 0 | D102: Inf | E102: Inf | F102: 0 | G102: Inf
A103: CDIHCAI Shetland | B103: 45.10091329 | C103: 29.27400468 | D103: 54.06471981 | E103: 1.540647198 | F103: 0.3448064133 | G103: 6.883844667 | H103: Non Significant | I103: -
A104: ECBCOM Shetland | B104: 34.90401396 | C104: 30.54101222 | D104: 14.28571429 | E104: 1.142857143 | F104: 0.414424288 | G104: 3.151655168 | H104: Non Significant | I104: -
A105: ECBHCAI Shetland | B105: 67.65136994 | C105: 78.06401249 | D105: -13.33859511 | E105: 0.8666140489 | F105: 0.300687867 | G105: 2.49767281 | H105: Non Significant | I105: -
A106: SABCAUN Shetland | B106: 13.08900524 | C106: 17.45200698 | D106: -25 | E106: 0.75 | F106: 0.1678546589 | G106: 3.351113419 | H106: Non Significant | I106: -
A107: SABHCAI Shetland | B107: 45.10091329 | C107: 29.27400468 | D107: 54.06471981 | E107: 1.540647198 | F107: 0.3448064133 | G107: 6.883844667 | H107: Non Significant | I107: -
A108: SSICSEC Shetland | B108: 0 | C108: 0 | D108: 0 | E108: 0 | F108: 0 | G108: 0
A109: SSIHIP Shetland | B109: 0 | C109: 0 | D109: 0 | E109: 0 | F109: 0 | G109: 0
A110: CDICA Tayside | B110: 2.874458045 | C110: 2.874458045 | D110: 0 | E110: 1 | F110: 0.44925409 | G110: 2.225911844 | H110: Non Significant | I110: -
A111: CDIHCAI Tayside | B111: 6.817628439 | C111: 6.685991338 | D111: 1.968849407 | E111: 1.019688494 | F111: 0.611705474 | G111: 1.699779827 | H111: Non Significant | I111: -
A112: ECBCOM Tayside | B112: 41.91917982 | C112: 42.63779433 | D112: -1.685393258 | E112: 0.9831460674 | F112: 0.7980008158 | G112: 1.21124712 | H112: Non Significant | I112: -
A113: ECBHCAI Tayside | B113: 40.90577064 | C113: 43.13542799 | D113: -5.168970051 | E113: 0.9483102995 | F113: 0.77244489 | G113: 1.164215643 | H113: Non Significant | I113: -
A114: SABCAUN Tayside | B114: 11.97690852 | C114: 10.06060316 | D114: 19.04761905 | E114: 1.19047619 | F114: 0.7898684884 | G114: 1.794265224 | H114: Non Significant | I114: -
A115: SABHCAI Tayside | B115: 23.61821281 | C115: 17.46984834 | D115: 35.1941491 | E115: 1.351941491 | F115: 1.006552424 | G115: 1.815847593 | H115: Significant | I115: Increase
A116: SSICSEC Tayside | B116: 0.6896551724 | C116: 1.031814273 | D116: -33.16091954 | E116: 0.6683908046 | F116: 0.1504207546 | G116: 2.969977573 | H116: Non Significant | I116: -
A117: SSIHIP Tayside | B117: 1.764705882 | C117: 1.41509434 | D117: 24.70588235 | E117: 1.247058824 | F117: 0.3413407244 | G117: 4.556021588 | H117: Non Significant | I117: -
A118: CDICA Western Isles | B118: 11.22754491 | C118: 3.74251497 | D118: 200 | E118: 3 | F118: 0.3120472169 | G118: 28.84178904 | H118: Non Significant | I118: -
A119: CDIHCAI Western Isles | B119: 19.42407614 | C119: 14.63111306 | D119: 32.75870441 | E119: 1.327587044 | F119: 0.3320179487 | G119: 5.308409882 | H119: Non Significant | I119: -
A120: ECBCOM Western Isles | B120: 78.59281437 | C120: 78.59281437 | D120: 0 | E120: 1 | F120: 0.5461458951 | G120: 1.831012572 | H120: Non Significant | I120: -
A121: ECBHCAI Western Isles | B121: 43.70417132 | C121: 32.92000439 | D121: 32.75870441 | E121: 1.327587044 | F121: 0.5269815088 | G121: 3.344495643 | H121: Non Significant | I121: -
A122: SABCAUN Western Isles | B122: 11.22754491 | C122: 14.97005988 | D122: -25 | E122: 0.75 | F122: 0.1678546589 | G122: 3.351113419 | H122: Non Significant | I122: -
A123: SABHCAI Western Isles | B123: 29.13611421 | C123: 25.60444786 | D123: 13.79317521 | E123: 1.137931752 | F123: 0.3824218452 | G123: 3.386021716 | H123: Non Significant | I123: -
A124: SSICSEC Western Isles | B124: 0 | C124: 0 | D124: 0 | E124: 0 | F124: 0 | G124: 0
A125: SSIHIP Western Isles | B125: 5.882352941 | C125: 0 | D125: Inf | E125: Inf | F125: 0 | G125: Inf

Sheet quarter comp (hidden)
A1: ref | B1: p | C1: lp | D1: pc | E1: r | F1: rl | G1: ru | H1: s | I1: direction
A2: CDICA Scotland | B2: 6.553611888 | C2: 5.815830427 | D2: 12.68574573 | E2: 1.126857457 | F2: 0.8329792961 | G2: 1.524416915 | H2: Non Significant | I2: -
A3: CDIHCAI Scotland | B3: 17.42072037 | C3: 15.447444 | D3: 12.77412865 | E3: 1.127741287 | F3: 0.9234852071 | G3: 1.377174642 | H3: Non Significant | I3: -
A4: ECBCOM Scotland | B4: 44.71019666 | C4: 35.92563606 | D4: 24.452067 | E4: 1.24452067 | F4: 1.1050447 | G4: 1.401600947 | H4: Significant | I4: Increase
A5: ECBHCAI Scotland | B5: 41.97856407 | C5: 39.68235615 | D5: 5.786470723 | E5: 1.057864707 | F5: 0.932253108 | G5: 1.200401188 | H5: Non Significant | I5: -
A6: SABCAUN Scotland | B6: 10.84986857 | C6: 9.717590081 | D6: 11.65184453 | E6: 1.116518445 | F6: 0.8833255984 | G6: 1.411272855 | H6: Non Significant | I6: -
A7: SABHCAI Scotland | B7: 17.26723385 | C7: 20.25742657 | D7: -14.76097029 | E7: 0.8523902971 | F7: 0.7076803872 | G7: 1.02669119 | H7: Non Significant | I7: -
